Workbook

Sheet Input sheet
A1: =Talen!A2 -> INDUSTRIAL NITROGEN GAS GENERATION Electronic sizing and selection tool
A2: =Talen!A3 -> Input gas generator selection | G2: =Talen!A18 -> Customer name
A3: =Talen!A4 -> N2 Flow rate | B3: 20 | C3: m3/hr reference temperature 20°C
A4: =Talen!A5 -> Nitrogen purity (Oxygen Content) | B4: 0,5% | G4: =Talen!A19 -> Project number
A5: =Talen!A6 -> Factory air pressure available | B5: 7 | C5: barg | D5: =VLOOKUP(B5,'factors-pull down'!A106:B126,2,FALSE) -> 101.5 | E5: psig
A6: =Talen!A7 -> Pressure drop over pre-treatment | B6: 1 | C6: barg | D6: =VLOOKUP(B6,'factors-pull down'!A129:B130,2,FALSE) -> 14.5 | E6: psig | G6: =Talen!A20 -> Date
A7: =Talen!A8 -> Compressed air pressure to generator | B7: =IF(B6=1,VLOOKUP(B5,'factors-pull down'!A106:C126,3,FALSE),B5) -> 6 | C7: barg | D7: =VLOOKUP(B7,'factors-pull down'!C106:D126,2,FALSE) -> 87 | E7: psig
A8: =Talen!A9 -> Temperature | B8: 20°C (68°F) | C8: =Talen!A10 -> Ambient for PSA generators | G8: =Talen!A21 -> Language
A9: =Talen!A9 -> Temperature | B9: 20°C (68°F) | C9: =Talen!A11 -> Compressed air for membrane generators, dryers and OVR | G9: English
A10: =Talen!A22 -> Input pre-treatment selection
A11: =Talen!A23 -> Dryer options | B11: Match dryer with number of generators
A12: =Talen!A24 -> Oil vapour removal needed | B12: Automatic selection on feed-air temperature
A13: =Talen!A30 -> Input for article number selection and energy consumption
A14: =Talen!A31 -> Nitrogen output pressure | B14: =Talen!A34 -> Only needed to select PSA generator part number | C14: 6 | D14: barg | E14: =VLOOKUP(C14,'factors-pull down'!C106:D126,2,FALSE) -> 87 | F14: psig
A15: =Talen!A32 -> Power supply | B15: =Talen!A35 -> Only needed for dryers | C15: 230V-50 Hz | E15: =Talen!A39 -> Energy price per kwh | F15: 0.13 | G15: =Talen!A40 -> Cost/kwh
A16: =Talen!A33 -> Compressor type | B16: =Talen!A36 -> Only needed for PSA generator at feed-air temperature > 35°C | C16: Oil lubricated | E16: =Talen!A41 -> Generator running hours per year | F16: 6000 | G16: =Talen!A42 -> hour
A17: =Talen!A89 -> Generator with EST (5 and 10 ppm no EST possible) | C17: Yes | E17: =Talen!A60 -> EST Energy saving per year | F17: =IF(OR(A22="MIDIGAS 2",A22="MIDIGAS 4",A22="MIDIGAS 6",B4="10ppm",B4="5ppm"),0,(((((SUM('TCO Calculator'!E41,'TCO Calculator'!E42)*Selection!I25)*'Calculations TCO'!E24)+SUM('TCO Calculator'!E44,'TCO Calculator'!E45))*'TCO Calculator'!E14)*'TCO Calculator'!O12)-((((((SUM('TCO Calculator'!E41,'TCO Calculator'!E42)*Selection!I25)*'Calculations TCO'!E24)+SUM('TCO Calculator'!E44,'TCO Calculator'!E45))*'TCO Calculator'!E14)*'TCO Calculator'!O12)*'Calculations TCO'!I24)) -> 564.2246971 | G17: =CONCATENATE(Talen!A44," ",Selection!B16,"%") -> Calculated PSA generator load based on input data = 91%
A19: =Talen!A45 -> Selection output
A20: =Selection!A1 -> Selections are based on 0,5% purity at 6 barg generator feed-air pressure and 20°C (68°F) environmental temperature and 20°C (68°F) Feed-air temperature (m3/hr)
A21: =Selection!A2 -> PSA generator | B21: =Selection!B2 -> Nitrogen flow per generator | C21: =Selection!C2 -> Number of | D21: =Selection!D2 -> Total nitrogen flow | E21: =Selection!E2 -> Feed-air flow per generator | F21: =Selection!F2 -> Generator outlet pressure | G21: =Selection!G2 -> Total generator feed-air flow | H21: =Selection!H2 -> Part number
A22: ='OEM PN'!A4 -> N2-25P | B22: =Selection!B3 -> 22 | C22: =Selection!C3 -> 1 | D22: =Selection!D3 -> 22 | E22: =Selection!E3 -> 61.6 | F22: =Selection!F3 -> 4.9 | G22: =Selection!G3 -> 61.6 | H22: =IF(C17='Calculations TCO'!L25,'OEM PN'!A5,'OEM PN'!A6) -> N2-25PBLY
A25: =Selection!A5 -> Buffer vessel (one per generator) | B25: =Selection!B5 -> size 500 litres | C25: =Selection!C5 -> 1 | H25: =IF(B6=0,"-",Selection!H5) -> 606201450
A26: =IF(B6=0,"-",Selection!A6) -> OVR before generator | B26: =IF(B6=0,"-",Selection!B6) -> Capacity per OVR | D26: =IF(B6=0,"-",Selection!D6) -> Total capacity
A27: =IF(B6=0,"-",Selection!A7) -> Not applicable | B27: =IF(B6=0,"-",Selection!B7) ->  | C27: =IF(B6=0,"-",Selection!C7) ->  | D27: =IF(B6=0,"-",Selection!D7) ->  | H27: =IF(B6=0,"-",Selection!H7) -> 
A28: =IF(B6=0,"-",Selection!A8) -> Dust filter behind OVR | C28: =IF(B6=0,"-",Selection!C8) ->  | H28: =IF(B6=0,"-",Selection!H8) -> 
A29: =IF(B6=0,"-",Selection!A9) -> Dryer incl. Filters | B29: =IF(B6=0,"-",Selection!B9) -> Capacity per dryer | D29: =IF(B6=0,"-",Selection!D9) -> Purge flow per dryer | E29: =IF(B6=0,"-",Selection!E9) -> Total dryer purge | G29: =IF(B6=0,"-",Selection!G9) -> Total air consumption, generator and dryer
A30: =IF(B6=0,"-",'OEM PN'!A7) -> DME025 | B30: =IF(B6=0,"-",Selection!B10) -> 73.91 | C30: =IF(B6=0,"-",Selection!C10) -> 1 | D30: =IF(B6=0,"-",Selection!D10) -> 16.41 | E30: =IF(B6=0,"-",Selection!E10) -> 16.41 | G30: =IF(B6=0,"-",Selection!G10) -> 78.01 | H30: =IF(B6=0,"-",'OEM PN'!A8) -> DME025N2-E
A32: =Selection!A11 -> Membrane generator | B32: =Selection!B11 -> Nitrogen flow per generator | C32: =Selection!C11 -> Number of | D32: =Selection!D11 -> Total nitrogen flow | E32: =Selection!E11 -> Feed-air flow per generator | G32: =Selection!G11 -> Total generator feed-air flow | H32: =Selection!H11 -> Part number
A33: =Selection!A12 -> Nitrosource Main + 4 Subs | B33: =Selection!B12 -> 22.8 | C33: =Selection!C12 -> 1 | D33: =Selection!D12 -> 22.8 | E33: =Selection!E12 -> 193.8 | G33: =Selection!G12 -> 193.8 | H33: =Selection!H12 -> 1 x 159.003552 and 4 x 159.003553
A34: =IF(B6=0,"-",Selection!A13) -> Dryer incl. Filters | B34: =IF(B6=0,"-",Selection!B13) -> Capacity per dryer | D34: =IF(B6=0,"-",Selection!D13) -> Purge flow per dryer | E34: =IF(B6=0,"-",Selection!E13) -> Total dryer purge | G34: =IF(B6=0,"-",Selection!G13) -> Total air consumption, generator and dryer
A35: =IF(B6=0,"-",Selection!A14) -> DME080 | B35: =IF(B6=0,"-",Selection!B14) -> 244.66 | C35: =IF(B6=0,"-",Selection!C14) -> 1 | D35: =IF(B6=0,"-",Selection!D14) -> 54.37 | E35: =IF(B6=0,"-",Selection!E14) -> 54.37 | G35: =IF(B6=0,"-",Selection!G14) -> 248.17 | H35: =IF(B6=0,"-",Selection!H14) -> DME080N2-E
A37: =Talen!A75 -> DISCLAIMER The Industrial Nitrogen Gas Generation electronic sizing and selection tool provides an indication of nitrogen system components. The user should always use the 'Industrial Gas technical Reference and Sizing Guide' to double check the indications. Parker is not liable for incorrect indications of this electronic sizing and selection tool. Parker can also update this tool without any notice. All information in this file is confidential. The intention of this file is to help select the right product for an application. The responsibility of a selection for an application lies at the user. All other uses of the included data and or outcomes are forbidden. | H37: =CONCATENATE(Talen!A76," ","1.10b"," ",Talen!A77," ","30/11/2016") -> Revision 1.10b Expire date 30/11/2016
E56: =IF('Input sheet'!C17='Calculations TCO'!L25,'Input sheet'!F17,((((SUM(E41,E42)*Selection!I25)*'Calculations TCO'!E24)+E45)*E14)*N12) -> 564.2246971

Sheet TCO Calculator
B2: =Talen!A78 -> Total Cost of Ownership calculator PSA N2 Gas Generators
B4: =Talen!A79 -> Cells with black background can be edited
B5: =Talen!A80 -> Cells with blue background are calculated
B7: =Talen!A81 -> NITROGEN REQUIREMENTS
B8: =Talen!A4 -> N2 Flow rate | E8: ='Input sheet'!B3 -> 20 | F8: =Selection!H25 -> m3/hr | J8: =Talen!A18 -> Customer name | O8: =IF('Input sheet'!G3=""," ",'Input sheet'!G3) -> 
B9: =Talen!A5 -> Nitrogen purity (Oxygen Content) | E9: ='Input sheet'!B4 -> 0,5%
B10: =Talen!A82 -> Nitrogen usage per year m3 | E10: =E8*E14 -> 120000 | J10: =Talen!A85 -> Application
B11: =Talen!A83 -> Available Air pressure bar(g) | E11: ='Input sheet'!B5 -> 7
B12: =Talen!A84 -> Maximum ambient temperature | E12: ='Input sheet'!B8 -> 20°C (68°F) | J12: =Talen!A39 -> Energy price per kwh | O12: ='Input sheet'!F15 -> 0.13
B13: =Talen!A132 -> Compressed air temperature | E13: ='Input sheet'!B9 -> 20°C (68°F)
B14: =Talen!A41 -> Generator running hours per year | E14: ='Input sheet'!F16 -> 6000 | J14: =Talen!A86 -> Currency | O14: €
J17: =Talen!A101 -> BULK GAS | O17: Alternative
B18: =Talen!A87 -> SPECIFICATION
B19: =Talen!A51 -> PSA generator | E19: =CONCATENATE('Input sheet'!C22," x ",'Input sheet'!H22) -> 1 x N2-25PBLY | O19: xx
B20: =Talen!A54 -> Total nitrogen flow | E20: ='Input sheet'!D22 -> 22 | F20: =Selection!H25 -> m3/hr | J20: =E8 -> 20 | O20: 0 | P20: =Selection!H25 -> m3/hr
B21: =Talen!A5 -> Nitrogen purity (Oxygen Content) | E21: ='Input sheet'!B4 -> 0,5% | J21: 10 ppm | O21: 99.5
B22: =Talen!A83 -> Available Air pressure bar(g) | E22: ='Input sheet'!B5 -> 7 | O22: 8
B23: =Talen!A88 -> Nitrogen pressure bar(g) | E23: ='Input sheet'!F22 -> 4.9 | J23: =E23 -> 4.9 | O23: 0
O24: 67
B25: =Talen!A90 -> Use refrigerant dryer | E25: No
B27: =Talen!A93 -> INVESTMENT
B28: =Talen!A51 -> PSA generator | E28: =E19 -> 1 x N2-25PBLY | O28: =O19 -> xx | P28: 0
B29: =Talen!A68 -> Dryer incl. Filters | E29: =IF(E25='Calculations TCO'!L26,CONCATENATE('Input sheet'!C30," x ",'Input sheet'!H30),Talen!A100) -> 1 x DME025N2-E | P29: 0
B30: =Talen!A61 -> Buffer vessel (one per generator) | E30: =CONCATENATE('Input sheet'!C25," x ",'Input sheet'!B25) -> 1 x size 500 litres | P30: 0
B31: =Talen!A64 -> OVR before generator | E31: =CONCATENATE('Input sheet'!C27," x ",'Input sheet'!H27) -> x | F31: 0 | P31: 0
B32: =Talen!A67 -> Dust filter behind OVR | E32: =CONCATENATE('Input sheet'!C28," ","x"," ",'Input sheet'!H28) -> x | F32: 0 | P32: 0
B33: =Talen!A94 -> N2 storage vessel | E33: - | F33: 0 | P33: 0
B34: =Talen!A95 -> Compressor | E34: - | F34: 0 | P34: 0
B35: =Talen!A96 -> Wet air receiver | E35: - | F35: 0 | P35: 0
B36: =Talen!A97 -> Piping, fittings and labour | E36: - | F36: 0 | P36: 0
B37: =Talen!A98 -> New cryo tank system installation | J37: 0
B38: =Talen!A99 -> Total Investment | E38: =SUM(F28:F36) -> 0 | J38: =J37 -> 0 | O38: =SUM(P28:P36) -> 0
B40: =Talen!A102 -> OPERATIONAL COSTS
B41: =Talen!A57 -> Total generator feed-air flow | E41: ='Input sheet'!G22 -> 61.6 | F41: =Selection!H25 -> m3/hr | O41: 0 | P41: =Selection!H25 -> m3/hr
B42: =Talen!A71 -> Total dryer purge | E42: =IF(E25='Calculations TCO'!L26,'Input sheet'!E30,0) -> 16.41 | F42: =Selection!H25 -> m3/hr | O42: 0 | P42: =Selection!H25 -> m3/hr
B43: =Talen!A72 -> Total air consumption, generator and dryer | E43: =SUM(E41:E42) -> 78.01 | F43: =Selection!H25 -> m3/hr | O43: =SUM(O41:O42) -> 0 | P43: =Selection!H25 -> m3/hr
B44: =Talen!A103 -> Pre-Treatment power consumption Kwh | E44: 0 | O44: 0
B45: =Talen!A104 -> Generator power consumption Kwh | E45: ='Input sheet'!C22*0.06 -> 0.06 | O45: 0
B46: =Talen!A105 -> Average yearly maintenance cost over 10 year | E46: =('Input sheet'!C22*VLOOKUP(O14,'Calculations TCO'!K2:L21,2,FALSE))+('Input sheet'!C30*VLOOKUP(O14,'Calculations TCO'!K2:M21,3,FALSE)) -> 1410 | O46: 0
B47: =Talen!A106 -> Average yearly cost for Sieve replacement over 10 years, incl. labour | O47: 0
B48: =Talen!A107 -> Compressor maintenance cost per year | E48: 0 | O48: 0
B49: =Talen!A108 -> Cost of nitrogen per m3 gas | J49: 0.2
B50: =Talen!A109 -> Nitrogen bottle/tank rent per month | J50: 500
B51: =Talen!A110 -> Nitrogen delivery charge per delivery | J51: 50
B52: =Talen!A111 -> No of drops per year | J52: 25
B53: =Talen!A112 -> Costs associated with managing supply per month | J53: 250
B55: =Talen!A113 -> COST OF OWNERSHIP
B56: =Talen!A114 -> Power cost per year | E56: =IF('Input sheet'!C17='Calculations TCO'!L25,(((((SUM(E41,E42)*Selection!I25)*'Calculations TCO'!E24)+SUM(E44,E45))*E14)*O12)*'Calculations TCO'!I24,((((SUM(E41,E42)*Selection!I25)*'Calculations TCO'!E24)+E45)*E14)*O12) -> 5078.022274 | O56: =(((((SUM(O41,O42))*'Calculations TCO'!E24)+O45)+O44)*E14)*O12 -> 0
B57: =Talen!A115 -> Total maintenance cost per year | E57: =E46+E48 -> 1410 | O57: =O46+O47+O48 -> 0
B58: =Talen!A116 -> Total nitrogen cost per year | E58: =IFERROR((E56+E57),"") -> 6488.022274 | J58: =IFERROR(((E14*J20*J49)+(J50*12)+(J51*J52)+(J53*12)),"") -> 34250 | O58: =IFERROR((O56+O57),"") -> 0
B59: =Talen!A117 -> Total cost per m3 | E59: =E58/(E8*E14) -> 0.05406685229 | J59: =J58/(E8*E14) -> 0.2854166667 | O59: =O58/(E8*E14) -> 0
B61: =Talen!A118 -> SAVINGS AGAINST BULK GAS
B62: =Talen!A119 -> Payback time in years against bulk gas | E62: =(E38-J38)/(J58-E58) -> 0 | O62: =(O38-J38)/(J58-O58) -> 0
B63: =Talen!A120 -> Savings per year on nitrogen costs against bulk gas | E63: =J58-E58 -> 27761.97773 | O63: =J58-O58 -> 34250
B64: =Talen!A121 -> Savings per m3 of nitrogen gas against bulk gas | E64: =J59-E59 -> 0.2313498144 | O64: =J59-O59 -> 0.2854166667
B66: =Talen!A122 -> SAVINGS AGAINST ALTERNATIVE
B67: =Talen!A123 -> Payback time in years against Alternative | E67: =IF((E38-O38)/(O58-E58)<0,0,(E38-O38)/(O58-E58)) -> 0
B68: =Talen!A124 -> 10 year nett savings against Alternative | E68: =+IF(O58=0,Talen!A125,(10*O58)-(10*E58)) -> Not applicable
E111: =Talen!A129 -> Total Cost time frame | F111: 5 years
B113: =Talen!A75 -> DISCLAIMER The Industrial Nitrogen Gas Generation electronic sizing and selection tool provides an indication of nitrogen system components. The user should always use the 'Industrial Gas technical Reference and Sizing Guide' to double check the indications. Parker is not liable for incorrect indications of this electronic sizing and selection tool. Parker can also update this tool without any notice. All information in this file is confidential. The intention of this file is to help select the right product for an application. The responsibility of a selection for an application lies at the user. All other uses of the included data and or outcomes are forbidden.

Sheet lay-out
B3: =Talen!A61 -> Buffer vessel (one per generator) | C3: ='TCO Calculator'!E30 -> 1 x size 500 litres
I31: =CONCATENATE(Talen!A54," ",Selection!H25) -> Total nitrogen flow m3/hr | J31: =Selection!D3 -> 22
I32: =Talen!A5 -> Nitrogen purity (Oxygen Content) | J32: ='Input sheet'!B4 -> 0,5%
I33: =Talen!A88 -> Nitrogen pressure bar(g) | J33: =Selection!F3 -> 4.9
B37: =CONCATENATE(Talen!A72," ",Selection!H25) -> Total air consumption, generator and dryer m3/hr | C37: ='TCO Calculator'!E43 -> 78.01 | E37: =Talen!A68 -> Dryer incl. Filters | F37: ='TCO Calculator'!E29 -> 1 x DME025N2-E | H37: =Talen!A51 -> PSA generator | J37: ='TCO Calculator'!E19 -> 1 x N2-25PBLY
B38: =Talen!A83 -> Available Air pressure bar(g) | C38: =Selection!C22 -> 7 | E38: =CONCATENATE(Talen!A71," ",Selection!H25) -> Total dryer purge m3/hr | F38: ='TCO Calculator'!E42 -> 16.41 | H38: =CONCATENATE(Talen!A57," ",Selection!H25) -> Total generator feed-air flow m3/hr | J38: =Selection!G3 -> 61.6
B39: =Talen!A84 -> Maximum ambient temperature | C39: ='Input sheet'!B8 -> 20°C (68°F) | E39: =Talen!A64 -> OVR before generator | F39: ='TCO Calculator'!E31 -> x | H39: =CONCATENATE(Talen!A8," ",Selection!H27) -> Compressed air pressure to generator barg | J39: ='Input sheet'!B7 -> 6
E40: ='Input sheet'!A28 -> Dust filter behind OVR | F40: =CONCATENATE('Input sheet'!C28," ","x"," ",'Input sheet'!H28) -> x
B43: =Talen!A75 -> DISCLAIMER The Industrial Nitrogen Gas Generation electronic sizing and selection tool provides an indication of nitrogen system components. The user should always use the 'Industrial Gas technical Reference and Sizing Guide' to double check the indications. Parker is not liable for incorrect indications of this electronic sizing and selection tool. Parker can also update this tool without any notice. All information in this file is confidential. The intention of this file is to help select the right product for an application. The responsibility of a selection for an application lies at the user. All other uses of the included data and or outcomes are forbidden.

Sheet OEM PN (hidden)
A2: OEM | B2: Parker
A3: Output | C3: Location | D3: Parker | E3: Compair | F3: Gardner Denver | G3: SOL
A4: =HLOOKUP($B$2,$D$3:$J$8,2,FALSE) -> N2-25P | B4: PSA Generator | C4: Input sheet A22 | D4: =Selection!A3 -> N2-25P | E4: =IF($D$4="MIDIGAS 2","CN20033",IF($D$4="MIDIGAS 4","CN20072",IF($D$4="MIDIGAS 6","CN20090",CONCATENATE("C",$D$4)))) -> CN2-25P | F4: =IF($D$4="MIDIGAS 2","GDN20033",IF($D$4="MIDIGAS 4","GDN20072",IF($D$4="MIDIGAS 6","GDN20090",CONCATENATE("GD",$D$4)))) -> GDN2-25P | G4: =CONCATENATE("S",D4) -> SN2-25P
A5: =HLOOKUP($B$2,$D$3:$J$8,3,FALSE) -> N2-25PBLY | B5: Part number with EST | C5: Input sheet H22 | D5: =Selection!H3 -> N2-25PBLY | E5: =IF($D$4="MIDIGAS 2",CONCATENATE("EST"," ",Talen!$A$125),IF($D$4="MIDIGAS 4",CONCATENATE("EST"," ",Talen!$A$125),IF($D$4="MIDIGAS 6",CONCATENATE("EST"," ",Talen!$A$125),CONCATENATE("C",$D$5)))) -> CN2-25PBLY | F5: =IF($D$4="MIDIGAS 2",CONCATENATE("EST"," ",Talen!$A$125),IF($D$4="MIDIGAS 4",CONCATENATE("EST"," ",Talen!$A$125),IF($D$4="MIDIGAS 6",CONCATENATE("EST"," ",Talen!$A$125),CONCATENATE("GD",$D$5)))) -> GDN2-25PBLY | G5: =CONCATENATE("S",D5) -> SN2-25PBLY
A6: =HLOOKUP($B$2,$D$3:$J$8,4,FALSE) -> N2-25PBLN | B6: Part number without EST | C6: Input sheet H23 | D6: =Selection!H4 -> N2-25PBLN | E6: =IF($D$4="MIDIGAS 2","CN20033",IF($D$4="MIDIGAS 4","CN20072",IF($D$4="MIDIGAS 6","CN20090",CONCATENATE("C",$D$6)))) -> CN2-25PBLN | F6: =IF($D$4="MIDIGAS 2","GDN20033",IF($D$4="MIDIGAS 4","GDN20072",IF($D$4="MIDIGAS 6","GDN20090",CONCATENATE("GD",$D$6)))) -> GDN2-25PBLN | G6: =CONCATENATE("S",D6) -> SN2-25PBLN
A7: =HLOOKUP($B$2,$D$3:$J$8,5,FALSE) -> DME025 | B7: Dryer incl filters | C7: Input sheet A30 | D7: =Selection!A10 -> DME025 | E7: =VLOOKUP(D7,A13:B31,2,FALSE) -> A15XS | F7: =VLOOKUP(D7,A13:C31,3,FALSE) -> GD15XS | G7: =D7 -> DME025
A8: =HLOOKUP($B$2,$D$3:$J$8,6,FALSE) -> DME025N2-E | B8: Dryer P/N | C8: Input sheet H30 | D8: =Selection!H10 -> DME025N2-E | E8: =E7 -> A15XS | F8: =F7 -> GD15XS | G8: =D8 -> DME025N2-E
A12: dhFNS dryer | B12: Comp Air model | C12: Gardner Denver model
A13: DAS2 | B13: A2LX | C13: GD2LX
A14: DAS3 | B14: A3LX | C14: GD3LX
A15: DAS4 | B15: A4LX | C15: GD4LX
A16: DAS5 | B16: A5LX | C16: GD5LX
A17: DAS6 | B17: A6LX | C17: GD6LX
A18: DAS7 | B18: A7LX | C18: GD7LX
A19: DME012 | B19: A7XS | C19: GD7XS
A20: DME015 | B20: A9XS | C20: GD9XS
A21: DME020 | B21: A12XS | C21: GD12XS
A22: DME025 | B22: A15XS | C22: GD15XS
A23: DME030 | B23: A18XS | C23: GD18XS
A24: DME040 | B24: A25XS | C24: GD25XS
A25: DME050 | B25: A30XS | C25: GD30XS
A26: DME060 | B26: A37XS | C26: GD37XS
A27: DME080 | B27: A50XS | C27: GD50XS
A28: MXS102c | B28: A068XS | C28: GD068XS
A29: MXS103c | B29: A102XS | C29: GD102XS
A30: MXS103 | B30: A127XS | C30: GD127XS
A31: MXS104 | B31: A170XS | C31: GD170XS
A33: Manual, change to OEM version
A34: 1. Select OEM in list, cell B2 for this sheet.
A35: 2. Replace logo on Input sheet, TCO Calculator (there are 2 logo's on this sheet) and Lay-out. Use logo's on this sheet. Compair and GD no logo right top corner at TCO calculator
A36: 3. Replace layout picture with OEM lay-out. Send picure backward, adjust lines to point to the right item. Use pictures found here below.
A37: 4. Hide NITROSource Membrane selection result on "Input sheet"
A38: 5. Delete formula on "input sheet" cell H25
A39: 6. Select all cells at sheet "Talen" and replace Parker with OEM name (use find and replace all option)

Sheet Talen (hidden)
A1: Output | B1: English | C1: Nederlands | D1: Italiano | E1: Deutsch | F1: Hebrew | G1: Français | H1: Czech | I1: 简体中文 | J1: 繁體中文
A2: =HLOOKUP('Input sheet'!$G$9,$A$1:$AF$199,2,FALSE) -> INDUSTRIAL NITROGEN GAS GENERATION Electronic sizing and selection tool | B2: INDUSTRIAL NITROGEN GAS GENERATION Electronic sizing and selection tool | C2: INDUSTRIELE STIKSTOF GAS GENERATIE Elektronisch selectie programma | D2: GENERAZIONE DI AZOTO INDUSTRIALE Software di selezione | E2: INDUSTRIELLE STICKSTOFFERZEUGUNG Elektronisches Auslegungsprogramm | F2: מחולל חנקן תעשייתי תחשיב אלקטרוני לבחירת גודל מחולל | G2: GENERATION D'AZOTE GAZEUX INDUSTRIEL Outil de sélection | H2: PRŮMYSLOVÉ GENERÁTORY DUSÍKU Elektronický selekční program | I2: 工业氮气发生机 电子选型工具 | J2: 工業氮氣產生機 電子選型工具
A3: =HLOOKUP('Input sheet'!$G$9,$A$1:$AF$199,3,FALSE) -> Input gas generator selection | B3: Input gas generator selection | C3: Gegevens voor generator selectie | D3: Dati per selezione generatore | E3: Eingabe zur Gasgeneratorauswahl | F3: כניסת לחץ | G3: Données d'entrée du Générateur | H3: Vstupní hodnoty pro výběr generátoru | I3: 气体发生机选型参数 | J3: 氣體產生機選型參數
A4: =HLOOKUP('Input sheet'!$G$9,$A$1:$AF$199,4,FALSE) -> N2 Flow rate | B4: N2 Flow rate | C4: Benodigde stikstof | D4: Portata N2 | E4: N2 Volumenstrom | F4: ספיקת חנקן דרושה | G4: Débit N² | H4: Požadovaný průtok dusíku | I4: 氮气流量 | J4: 氮氣流量
A5: =HLOOKUP('Input sheet'!$G$9,$A$1:$AF$199,5,FALSE) -> Nitrogen purity (Oxygen Content) | B5: Nitrogen purity (Oxygen Content) | C5: Stikstof zuiverheid | D5: Purezza azoto (residuo ossigeno) | E5: Stickstoffqualität (Sauerstoffgehalt) | F5: טוהר חנקן (תחולת חמצן) | G5: Pureté d'azote (Oxygène résiduel) | H5: Čistota dusíku (zbytkový obsah kyslíku) | I5: 氮气纯度(残氧含量) | J5: 氮氣純度(殘氧含量)
A6: =HLOOKUP('Input sheet'!$G$9,$A$1:$AF$199,6,FALSE) -> Factory air pressure available | B6: Factory air pressure available | C6: Beschikbare persluchtdruk | D6: Pressione aria compressa disponibile | E6: Verfügbarer Luftdruck | F6: לחץ אוויר מפעלי קיים | G6: Pression Air réseau disponible | H6: Dostupný tlak vzduchu v rozvodech | I6: 现场可供应空气压力 | J6: 現場可供應空氣壓力
A7: =HLOOKUP('Input sheet'!$G$9,$A$1:$AF$199,7,FALSE) -> Pressure drop over pre-treatment | B7: Pressure drop over pre-treatment | C7: Drukval over perslucht filtratie | D7: Caduta di pressione pre-trattamento | E7: Differenzdruck der Aufbereitung | F7: מפל לחץ על מערכת סינון/יבוש | G7: Perte de charge du pré-traitement | H7: Tlaková ztráta úpravy stlač. Vzduchu | I7: 空气前处理设备所产生的压损 | J7: 空氣前處理設備所產生的壓損
A8: =HLOOKUP('Input sheet'!$G$9,$A$1:$AF$199,8,FALSE) -> Compressed air pressure to generator | B8: Compressed air pressure to generator | C8: Persluchtdruk naar de generator | D8: Pressione aria compressa al generatore | E8: Luftdruck am Generatoreintritt | F8: לחץ כניסת אוויר למחולל | G8: Pression Air comprimé entrée Générateur | H8: Tlak vzduchu na vstupu do generátoru | I8: 进入制氮机的空气压力 | J8: 進入氮氣機的空氣壓力
A9: =HLOOKUP('Input sheet'!$G$9,$A$1:$AF$199,9,FALSE) -> Temperature | B9: Temperature | C9: Temperatuur | D9: Temperatura | E9: Temperatur | F9: טמפרטורה | G9: Température | H9: Teplota | I9: 温度 | J9: 溫度
A10: =HLOOKUP('Input sheet'!$G$9,$A$1:$AF$199,10,FALSE) -> Ambient for PSA generators | B10: Ambient for PSA generators | C10: Omgevingstemperatuur, voor PSA generatoren | D10: Ambiente per generatori PSA | E10: Umgebung für PSA Generatoren | F10: טמפ' סביבה של המחולל | G10: Ambiante pour Générateur PSA | H10: prostředí pro PSA generátory | I10: PSA制氮机, 采环境温度 | J10: PSA氮氣機, 採環境溫度
A11: =HLOOKUP('Input sheet'!$G$9,$A$1:$AF$199,11,FALSE) -> Compressed air for membrane generators, dryers and OVR | B11: Compressed air for membrane generators, dryers and OVR | C11: Perslucht voor membraan generatoren, drogers en OVR | D11: Aria compressa per generatori a membrana, essiccatori e OVR | E11: Druckluft für Membrangeneratoren, Trockner und OVR | F11: לחץ אוויר עבור מחוללי ממברנות, מיבשים ומסנני OVR | G11: Air Comprimé pour générateurs à membrane, sécheur et OVR | H11: stlačeného vzduchu pro membránové generátory, sušiče a OVR | I11: 中空膜制氮机, 乾燥机及OVR, 采空气进气温度 | J11: 中空膜氮氣機, 乾燥機及OVR, 採空氣進氣溫度
A12: =HLOOKUP('Input sheet'!$G$9,$A$1:$AF$199,12,FALSE) -> Select flow dimension | B12: Select flow dimension | C12: Selecteer eenheid voor debiet | D12: Seleziona unità di misura | E12: Auswahl Mengeneinheit | F12: בחירת סקלות ספיקה | G12: Débit N² souhaité | H12: Zvolte jednotky průtoku | I12: 选择气体流量基准 | J12: 選擇氣體流量基準
A13: =HLOOKUP('Input sheet'!$G$9,$A$1:$AF$199,13,FALSE) -> m3/hr reference temperature 20°C | B13: m3/hr reference temperature 20°C | C13: m3/hr referentie temperatuur 20°C | D13: m3/hr riferito a 20°C | E13: m³/h bei 20 °C Referenztemperatur | F13: m3/hr reference temperature 20°C | G13: m3/h se référant à une température de 20°C | H13: m3/hod @ 20°C | I13: m3/hr, 参照气体温度为 20°C | J13: m3/hr, 參照氣體溫度為 20°C
A14: =HLOOKUP('Input sheet'!$G$9,$A$1:$AF$199,14,FALSE) -> Nm3/hr reference temperature 0°C | B14: Nm3/hr reference temperature 0°C | C14: Nm3/hr referentie temperatuur 0°C | D14: Nm3/hr riferito a 0°C | E14: Nm³/h bei 0 °C Referenztemperatur | F14: Nm3/hr reference temperature 0°C | G14: Nm3/h se référant à une température de 0°C | H14: Nm3/hod @ 0°C | I14: Nm3/hr, 参照气体温度为 0°C | J14: Nm3/hr, 參照氣體溫度為 0°C
A15: =HLOOKUP('Input sheet'!$G$9,$A$1:$AF$199,15,FALSE) -> SCFM reference temperature 60°F (15,5°C) | B15: SCFM reference temperature 60°F (15,5°C) | C15: SCFM referentie temperatuur 60°F (15,5°C) | D15: SCFM riferito a 60°F (15,5°C) | E15: SCFM bei 60 °F (15,5 °C) Referenztemperatur | F15: SCFM reference temperature 60°F (15,5°C) | G15: SCFM se référant à une température de 60°F (15,5°C) | H15: SCFM @ 60°F (15,5°C) | I15: SCFM, 参照气体温度为 60°F (15.5°C) | J15: SCFM, 參照氣體溫度為 60°F (15.5°C)
A16: =HLOOKUP('Input sheet'!$G$9,$A$1:$AF$199,16,FALSE) -> SCFH reference temperature 60°F (15,5°C) | B16: SCFH reference temperature 60°F (15,5°C) | C16: SCFH referentie temperatuur 60°F (15,5°C) | D16: SCFH riferito a 60°F (15,5°C) | E16: SCFH bei 60 °F (15,5 °C) Referenztemperatur | F16: CFH reference temperature 60°F (15,5°C) | G16: SCFH se référant à une température de 60°F (15,5°C) | H16: SCFH @ 60°F (15,5°C) | I16: SCFH, 参照气体温度为 60°F (15.5°C) | J16: SCFH, 參照氣體溫度為 60°F (15.5°C)
A17: =HLOOKUP('Input sheet'!$G$9,$A$1:$AF$199,17,FALSE) -> l/m reference temperature 20°C | B17: l/m reference temperature 20°C | C17: l/m referentie temperatuur 20°C | D17: l/min riferito a 20°C | E17: l/min bei 20 °C Referenztemperatur | F17: Lit/Min ref. temperature 20°C | G17: l/m r se référant à une température de 20°C | H17: l/min @ 20°C | I17: l/m, 参照气体温度为 20°C | J17: l/m, 參照氣體溫度為 20°C
A18: =HLOOKUP('Input sheet'!$G$9,$A$1:$AF$199,18,FALSE) -> Customer name | B18: Customer name | C18: Naam klant | D18: Nome cliente | E18: Kundenname | F18: שם הלקוח | G18: Nom du client | H18: Zákazník | I18: 客户名称 | J18: 客戶名稱
A19: =HLOOKUP('Input sheet'!$G$9,$A$1:$AF$199,19,FALSE) -> Project number | B19: Project number | C19: Project nummer | D19: Numero progetto | E19: Projektnummer | F19: מס. פרויקט/הצעה | G19: Nom ou numéro de projet | H19: Projekt | I19: 项目代号 | J19: 案件代號
A20: =HLOOKUP('Input sheet'!$G$9,$A$1:$AF$199,20,FALSE) -> Date | B20: Date | C20: Datum | D20: Data | E20: Datum | F20: תאריך | G20: Date | H20: Datum | I20: 日期 | J20: 日期
A21: =HLOOKUP('Input sheet'!$G$9,$A$1:$AF$199,21,FALSE) -> Language | B21: Language | C21: Taal | D21: Lingua | E21: Sprache | F21: שפה | G21: Langue | H21: Jazyk | I21: 语言 | J21: 語言
A22: =HLOOKUP('Input sheet'!$G$9,$A$1:$AF$199,22,FALSE) -> Input pre-treatment selection | B22: Input pre-treatment selection | C22: Invoer selectie voorbehandeling | D22: Dati per selezione pre-trattamento | E22: Eingabe zur Aufbereitungswahl | F22: שיטת הטיפול באוויר כניסה | G22: Sélection du Traitement d'air | H22: Výběr úpravy stlačeného vzduchu | I22: 空气前处理选型参数 | J22: 空氣前處理選型參數
A23: =HLOOKUP('Input sheet'!$G$9,$A$1:$AF$199,23,FALSE) -> Dryer options | B23: Dryer options | C23: Droger opties | D23: Opzioni essiccatore | E23: Trockneroptionen | F23: סוג מייבש | G23: Options de sécheur | H23: Volba sušiče vzduchu | I23: 乾燥机选项 | J23: 乾燥機選項
A24: =HLOOKUP('Input sheet'!$G$9,$A$1:$AF$199,24,FALSE) -> Oil vapour removal needed | B24: Oil vapour removal needed | C24: Oliedamp verwijderen? | D24: Adsorbitore di vapori d'olio necessario | E24: Erforderliche Öldampfentfernung | F24: דרוש OVR | G24: Adsorption des vapeurs d'huile requise | H24: Odstranění olejových par | I24: 需要去除油汽 | J24: 需要去除油汽
A25: =HLOOKUP('Input sheet'!$G$9,$A$1:$AF$199,25,FALSE) -> Minimum number of dryers | B25: Minimum number of dryers | C25: Minimum aantal drogers | D25: Numero minimo di essiccatori | E25: Minimale Trockneranzahl | F25: מס. מיבשים דרוש = מינימום | G25: Nombre minimal de sécheurs | H25: Minimální množství sušičů | I25: 最少的乾燥机数量 | J25: 最少的乾燥機數量
A26: =HLOOKUP('Input sheet'!$G$9,$A$1:$AF$199,26,FALSE) -> Match dryer with number of generators | B26: Match dryer with number of generators | C26: 1 droger per generator | D26: Un essiccatore per ogni generatore | E26: Trockneranzahl gleich Generatoranzahl | F26: התאם מס. המייבשים למס. המחוללים | G26: Correspondance du nombre de sécheurs et de générateurs | H26: Počet sušičů shodný s počtem generátorů | I26: 乾燥机的数量和制氮机相同 | J26: 乾燥機的數量和氮氣機相同
A27: =HLOOKUP('Input sheet'!$G$9,$A$1:$AF$199,27,FALSE) -> 2 dryers | B27: 2 dryers | C27: 2 drogers | D27: 2 essiccatori | E27: 2 Trockner | F27: שני מייבשים | G27: 2 sécheurs | H27: Dva sušiče | I27: 两台乾燥机 | J27: 兩台乾燥機
A28: =HLOOKUP('Input sheet'!$G$9,$A$1:$AF$199,28,FALSE) -> Yes | B28: Yes | C28: Ja | D28: Sì | E28: Ja | F28: כן | G28: Oui | H28: Ano | I28: 是的 | J28: 是的
A29: =HLOOKUP('Input sheet'!$G$9,$A$1:$AF$199,29,FALSE) -> Automatic selection on feed-air temperature | B29: Automatic selection on feed-air temperature | C29: Automatische selectie afhankelijk van omgevingstemperatuur | D29: Selezione automatica in base alla temperatura ingresso | E29: Automatische Auswahl gemäß Drucklufttemperatur | F29: בחירה אוטומטית של טמפ' אוויר כניסה | G29: Sélection Automatique en fonction de la température | H29: Automatická volba podle teploty stlač. vzduchu | I29: 依进气温度自动筛选 | J29: 依進氣溫度自動篩選
A30: =HLOOKUP('Input sheet'!$G$9,$A$1:$AF$199,30,FALSE) -> Input for article number selection and energy consumption | B30: Input for article number selection and energy consumption | C30: Gegevens voor artikelnummer selectie en energieverbruik | D30: Dati per selezione codice e consumi energetici | E30: Eingabe für Artikelnummerauswahl und Energieverbrauch | F30: תוספת לבחירת פריט מס. וצריכת אנרגיה | G30: Sélection du modèle et calcul des consommations énergétiques | H30: Vstupní hodnoty pro výběr modelu a výpočet spotřeby energie | I30: 其它选型参数及能源消耗量 | J30: 其它選型參數及能源消耗量
A31: =HLOOKUP('Input sheet'!$G$9,$A$1:$AF$199,31,FALSE) -> Nitrogen output pressure | B31: Nitrogen output pressure | C31: Stikstofdruk | D31: Pressione azoto uscita | E31: Stickstoff Austrittsdruck | F31: לחץ יציאת חנקן | G31: Pression de sortie Azote | H31: Výstupní tlak dusíku | I31: 氮气输出压力 | J31: 氮氣輸出壓力
A32: =HLOOKUP('Input sheet'!$G$9,$A$1:$AF$199,32,FALSE) -> Power supply | B32: Power supply | C32: Elektrische voeding | D32: Tensione di alimentazione | E32: Stromanschluss | F32: מתח חשמלי | G32: Puissance installée | H32: Napájení | I32: 电源 | J32: 電源
A33: =HLOOKUP('Input sheet'!$G$9,$A$1:$AF$199,33,FALSE) -> Compressor type | B33: Compressor type | C33: Type compressor | D33: Tipo compressore | E33: Kompressortyp | F33: סוג המדחס | G33: Type de compresseur | H33: Typ kompresoru | I33: 空压机种类 | J33: 空壓機種類
A34: =HLOOKUP('Input sheet'!$G$9,$A$1:$AF$199,34,FALSE) -> Only needed to select PSA generator part number | B34: Only needed to select PSA generator part number | C34: Alleen nodig voor selectie van PSA artikelnummer | D34: Necessario solo per selezione codice PSA | E34: Nur zur Auswahl der PSA Generator Teilenummer | F34: נחוץ רק לבחירת דגם מחולל NITROSOURCE PSA | G34: Pour sélectionner le modèle exact de générateur | H34: Pro výběr konkrétního modelu generátoru PSA | I34: 只需在选用 PSA 制氮机型号时提供 | J34: 只需在選用 PSA 氮氣機型號時提供
A35: =HLOOKUP('Input sheet'!$G$9,$A$1:$AF$199,35,FALSE) -> Only needed for dryers | B35: Only needed for dryers | C35: Alleen nodig voor drogers | D35: Necessario solo per DAS e DME | E35: Nur zur Auswahl die Trockner | F35: נחוץ רק לבחירת דגם מייבש DAS או DME | G35: Nécessaire pour les sécheurs | H35: Pro výběr sušiče vzduchu | I35: 只需在采用 DAS 及 DME 乾燥机时选择 | J35: 只需在採用 DAS 及 DME 乾燥機時選擇
A36: =HLOOKUP('Input sheet'!$G$9,$A$1:$AF$199,36,FALSE) -> Only needed for PSA generator at feed-air temperature > 35°C | B36: Only needed for PSA generator at feed-air temperature > 35°C | C36: Alleen nodig voor PSA generator met perslucht temperatuur > 35°C | D36: Necessario solo per generatore PSA con temperatura aria > 35°C | E36: Nur zur Auswahl bei >35 °C Lufttemperatur am PSA Generator | F36: נחוץ רק למחוללי PSA כשטמפ' כניסה האוויר מעל 35°C | G36: Nécessaire pour les générateurs PSA à une température > 35°C | H36: Pro výběr PSA generátoru při teplotě vstupního vzduchu > 35°C | I36: 只需在采用 PSA 制氮机且进气温度 > 35°C 时选择 | J36: 只需在採用 PSA 氮氣機且進氣溫度 > 35°C 時選擇
A37: =HLOOKUP('Input sheet'!$G$9,$A$1:$AF$199,37,FALSE) -> Oil lubricated | B37: Oil lubricated | C37: Olie gesmeerd | D37: Lubrificato | E37: Ölgeschmiert | F37: מדחס מוזרק שמן | G37: Lubrifié | H37: Olejem mazaný | I37: 油润滑式 | J37: 油潤滑式
A38: =HLOOKUP('Input sheet'!$G$9,$A$1:$AF$199,38,FALSE) -> Oil-free | B38: Oil-free | C38: Olievrij | D38: Oil-free | E38: Ölfrei | F38: מדחס נטול שמן | G38: Non lubrifié | H38: Bezmazný | I38: 无油式 | J38: 無油式
A39: =HLOOKUP('Input sheet'!$G$9,$A$1:$AF$199,39,FALSE) -> Energy price per kwh | B39: Energy price per kwh | C39: Energieprijs per kWh | D39: Costo energia per kWh | E39: Stromkosten je kWh | F39: עלות חשמל Kwh | G39: Côut du Kwh | H39: Cena elektrické energie | I39: 每度(千瓦小时)电价 | J39: 每度(千瓦小時)電價
A40: =HLOOKUP('Input sheet'!$G$9,$A$1:$AF$199,40,FALSE) -> Cost/kwh | B40: Cost/kwh | C40: Kosten/kWh | D40: Costo/kWh | E40: Kosten/kWh | F40: עלות אנרגטית Kwh | G40: /Kwh | H40: Kč/kWh | I40: 价格/kwh | J40: 價格/kwh
A41: =HLOOKUP('Input sheet'!$G$9,$A$1:$AF$199,41,FALSE) -> Generator running hours per year | B41: Generator running hours per year | C41: Generator draaiuren per jaar | D41: Ore di esercizio annuali | E41: Betriebsstunden pro Jahr | F41: שעות העבודה של המחולל בשנה | G41: Nombre d'heures de fonctionnement du générateur par an | H41: Počet provozních hodin za rok | I41: 制氮机每年运转时数 | J41: 氮氣機每年運轉時數
A42: =HLOOKUP('Input sheet'!$G$9,$A$1:$AF$199,42,FALSE) -> hour | B42: hour | C42: Uur | D42: Ore | E42: Stunde | F42: שעות | G42: heures | H42: hodin | I42: 小时 | J42: 小時
A43: =HLOOKUP('Input sheet'!$G$9,$A$1:$AF$199,43,FALSE) -> Average generator load % per year | B43: Average generator load % per year | C43: Gem. belasting van de generator in % per jaar | D43: Carico medio % per anno | E43: Mittlere Generator-auslastung % pro Jahr | F43: ממוצע % שעות העמסה של המחולל | G43: Taux de charge annuel moyen du générateur. | H43: Průměrné zatížení generátoru za rok | I43: 制氮机每年平均负载% | J43: 氮氣機每年平均負載%
A44: =HLOOKUP('Input sheet'!$G$9,$A$1:$AF$199,44,FALSE) -> Calculated PSA generator load based on input data = | B44: Calculated PSA generator load based on input data = | C44: Berekende PSA generator belasting gebaseerd op gegevens = | D44: Calcolo carico generatore basato sui dati iniziali | E44: Kalkulierte Generatorauslastung gemäß Eingaben = | F44: חשב עומס העבודה של המחולל מביסס על נתוני כניסה = | G44: Taux de charge du générateur PSA basé sur les données d'entrée | H44: Výpočtové zatížení PSA generátoru v závislosti na vstupních datech = | I44: 按输入数据计算的 PSA 制氮机负载 = | J44: 按輸入數據計算的 PSA 氮氣機負載 =
A45: =HLOOKUP('Input sheet'!$G$9,$A$1:$AF$199,45,FALSE) -> Selection output | B45: Selection output | C45: Selectie van Stikstof generator systeem | D45: Selezione ottenuta | E45: Berechnete Auswahl | F45: בחר נתוני יציאה | G45: Sélections | H45: Výsledky výběru | I45: 选型结果 | J45: 選型結果
A46: =HLOOKUP('Input sheet'!$G$9,$A$1:$AF$199,46,FALSE) -> Selections are based on | B46: Selections are based on | C46: Selecties zijn gebaseerd op | D46: Le selezioni sono basate su | E46: Berechnungen basieren auf | F46: הבחירה מבוססת על | G46: Les sélections sont basées sur : | H46: Výběr vychází z | I46: 选型依据 | J46: 選型依據
A47: =HLOOKUP('Input sheet'!$G$9,$A$1:$AF$199,47,FALSE) -> purity at | B47: purity at | C47: zuiverheid met | D47: purezza a | E47: Reinheit bei | F47: טוהר ב- | G47: pureté | H47: čistoty při | I47: 纯度在 | J47: 純度在
A48: =HLOOKUP('Input sheet'!$G$9,$A$1:$AF$199,48,FALSE) -> generator feed-air pressure and | B48: generator feed-air pressure and | C48: generator inlaatdruk en | D48: pressione aria in ingresso e | E48: Generator-Eintrittsdruck und | F48: לחץ אספקת אוויר למחולל ו- | G48: Pression d'air entrée générateur et | H48: tlaku vzduchu na vstupu a | I48: 发生机进气压力且 | J48: 產生機進氣壓力且
A49: =HLOOKUP('Input sheet'!$G$9,$A$1:$AF$199,49,FALSE) -> environmental temperature and | B49: environmental temperature and | C49: omgevingstemperatuur en | D49: temperatura ambiente e | E49: Umgebungstemperatur und | F49: אקלים בסביבת המחולל ו- | G49: Température ambiante et | H49: teploty prostředí a | I49: 环境温度及 | J49: 環境溫度及
A50: =HLOOKUP('Input sheet'!$G$9,$A$1:$AF$199,50,FALSE) -> Feed-air temperature | B50: Feed-air temperature | C50: Inlaat persluchttemperatuur | D50: temperatura aria ingresso | E50: Drucklufttemperatur | F50: טמפ' אספקת אוויר | G50: température air comprimé | H50: teploty vstupního vzduchu | I50: 进气温度 | J50: 進氣溫度
A51: =HLOOKUP('Input sheet'!$G$9,$A$1:$AF$199,51,FALSE) -> PSA generator | B51: PSA generator | C51: PSA generator | D51: Generatore PSA | E51: PSA Generator | F51: מחולל PSA | G51: Générateur PSA | H51: Generátor PSA | I51: PSA 制氮机 | J51: PSA 氮氣機
A52: =HLOOKUP('Input sheet'!$G$9,$A$1:$AF$199,52,FALSE) -> Nitrogen flow per generator | B52: Nitrogen flow per generator | C52: Stikstof productie per generator | D52: Portata azoto per generatore | E52: Stickstoffmenge je Generator | F52: ספיקה חנקן של כל מחולל | G52: Débit d'azote par générateur | H52: Průtok dusíku z generátoru | I52: 每台制氮机的氮气流量 | J52: 每台氮氣機的氮氣流量
A53: =HLOOKUP('Input sheet'!$G$9,$A$1:$AF$199,53,FALSE) -> Number of | B53: Number of | C53: Aantal generatoren | D53: Numero di | E53: Anzahl | F53: מספר ה: | G53: Nombre de | H53: Množství | I53: 数量 | J53: 數量
A54: =HLOOKUP('Input sheet'!$G$9,$A$1:$AF$199,54,FALSE) -> Total nitrogen flow | B54: Total nitrogen flow | C54: Totaal stikstof productie | D54: Portata totale azoto | E54: Gesamte Stickstoff-menge | F54: סה"כ תפוקת חנקן | G54: Débit d'azote total | H54: Celkový průtok dusíku | I54: 总氮气流量 | J54: 總氮氣流量
A55: =HLOOKUP('Input sheet'!$G$9,$A$1:$AF$199,55,FALSE) -> Feed-air flow per generator | B55: Feed-air flow per generator | C55: Persluchtverbruik per generator | D55: Aria in ingresso per generatore | E55: Luftverbrauch je Generator | F55: צריכת אוויר של המחולל | G55: Consommation d'air par générateur | H55: Spotřeba vzduchu generátoru | I55: 每台制氮机所需空气流量 | J55: 每台氮氣機所需空氣流量
A56: =HLOOKUP('Input sheet'!$G$9,$A$1:$AF$199,56,FALSE) -> Generator outlet pressure | B56: Generator outlet pressure | C56: Stikstof druk | D56: Pressione azoto in uscita | E56: Austrittsdruck am Generator | F56: לחץ יציאת חנקן של המחולל | G56: Pression de sortie générateur | H56: Výstupní tlak dusíku | I56: 输出氮气压力 | J56: 輸出氮氣壓力
A57: =HLOOKUP('Input sheet'!$G$9,$A$1:$AF$199,57,FALSE) -> Total generator feed-air flow | B57: Total generator feed-air flow | C57: Totaal generator persluchtverbruik | D57: Portata aria totale | E57: Gesamter Generator Luftverbrauch | F57: סה"כ צריכת אוויר | G57: Consommation d'air Totale | H57: Celková spotřeba stlač. vzduchu | I57: 所需总空气流量 | J57: 所需總空氣流量
A58: =HLOOKUP('Input sheet'!$G$9,$A$1:$AF$199,58,FALSE) -> Part number | B58: Part number | C58: Artikelnummer | D58: Codice | E58: Teilenummer | F58: פריט מס. | G58: Référence | H58: Objednací kód | I58: 型号 | J58: 型號
A59: =HLOOKUP('Input sheet'!$G$9,$A$1:$AF$199,59,FALSE) -> Energy costs indication per year | B59: Energy costs indication per year | C59: Indicatie energie kosten per jaar | D59: Costi energetici indicativi per anno | E59: Überschlägige Jahresenergie-kosten | F59: עלות אנרגיה שנתית | G59: Indication de coûts énergétiques annuels | H59: Odhad ročních nákladů na energii | I59: 每年能源成本指标 | J59: 每年能源成本指標
A60: =HLOOKUP('Input sheet'!$G$9,$A$1:$AF$199,60,FALSE) -> EST Energy saving per year | B60: EST Energy saving per year | C60: EST Energiebesparing /jaar | D60: EST Risparmio energetico per anno | E60: EST Energieersparnis pro Jahr | F60: חסכון אנרגטי שנתית | G60: EST Economie annuelle | H60: EST Úspora energie za rok | I60: EST 每年能源节省 | J60: EST 每年能源節省
A61: =HLOOKUP('Input sheet'!$G$9,$A$1:$AF$199,61,FALSE) -> Buffer vessel (one per generator) | B61: Buffer vessel (one per generator) | C61: Buffertank (één per generator) | D61: Serbatoio di buffer (per ogni generatore) | E61: Pufferkessel (einer pro Generator) | F61: מיכל/קולט (1 לכל מחולל) | G61: Réservoir d'homogénéisation (un par générateur) | H61: Pracovní zásobník (pro každý generátor) | I61: 缓冲桶(每台制氮机一只) | J61: 緩衝桶(每台氮氣機一只)
A62: =HLOOKUP('Input sheet'!$G$9,$A$1:$AF$199,62,FALSE) -> size | B62: size | C62: Grootte | D62: Taglia | E62: Größe | F62: גודל | G62: taille | H62: Velikost | I62: 容量 | J62: 容量
A63: =HLOOKUP('Input sheet'!$G$9,$A$1:$AF$199,63,FALSE) -> litres | B63: litres | C63: liter | D63: litri | E63: Liter | F63: ליטר | G63: litres | H63: litrů | I63: 公升 | J63: 公升
A64: =HLOOKUP('Input sheet'!$G$9,$A$1:$AF$199,64,FALSE) -> OVR before generator | B64: OVR before generator | C64: OVR voor de generator | D64: OVR prima del generatore | E64: OVR vor Generator | F64: האם OVR לפני המחולל | G64: OVR avant générateur | H64: OVR před generátorem | I64: 制氮机的前置 OVR | J64: 氮氣機的前置 OVR
A65: =HLOOKUP('Input sheet'!$G$9,$A$1:$AF$199,65,FALSE) -> Capacity per OVR | B65: Capacity per OVR | C65: Capaciteit per OVR | D65: Capacità OVR | E65: Leistung je OVR | F65: ספיקה של OVR | G65: Capacité par OVR | H65: Kapacita OVR | I65: 每 OVR 的处理量 | J65: 每 OVR 的處理量
A66: =HLOOKUP('Input sheet'!$G$9,$A$1:$AF$199,66,FALSE) -> Total capacity | B66: Total capacity | C66: Totale capaciteit | D66: Capacità totale | E66: Gesamt-leistung | F66: סה"כ תפוקה | G66: Capacité totale | H66: Celková kapacita | I66: 总处理量 | J66: 總處理量
A67: =HLOOKUP('Input sheet'!$G$9,$A$1:$AF$199,67,FALSE) -> Dust filter behind OVR | B67: Dust filter behind OVR | C67: Stoffilter achter de OVR | D67: Filtro antipolvere dopo OVR | E67: Staubfilter nach OVR | F67: מסנני אבק אחרי OVR | G67: Filtre à poussières après OVR | H67: Prachový filtr za OVR | I67: OVR 的后置粉尘过滤器 | J67: OVR 的後置粉塵過濾器
A68: =HLOOKUP('Input sheet'!$G$9,$A$1:$AF$199,68,FALSE) -> Dryer incl. Filters | B68: Dryer incl. Filters | C68: Droger inclusief filters | D68: Essiccatore incl. Filtri | E68: Trockner inkl. Filter | F68: מייבש כולל פילטרים | G68: Sécheur, filtres inclus | H68: Sušič včetně filtrů | I68: 乾燥机含过滤器 | J68: 乾燥機含過濾器
A69: =HLOOKUP('Input sheet'!$G$9,$A$1:$AF$199,69,FALSE) -> Capacity per dryer | B69: Capacity per dryer | C69: Capaciteit per droger | D69: Capacità per essiccatore | E69: Kapazität je Trockner | F69: תפוקה לכל מייבש | G69: Capacité par sécheur | H69: Kapacita sušiče | I69: 每台乾燥机处理量 | J69: 每台乾燥機處理量
A70: =HLOOKUP('Input sheet'!$G$9,$A$1:$AF$199,70,FALSE) -> Purge flow per dryer | B70: Purge flow per dryer | C70: Spoellucht per droger | D70: Aria di purga per essiccatore | E70: Spülluft je Trockner | F70: אוויר לרענון למייבש | G70: Débit air de régénération | H70: Spotřeba vzduchu sušiče | I70: 每台乾燥机排气量 | J70: 每台乾燥機排氣量
A71: =HLOOKUP('Input sheet'!$G$9,$A$1:$AF$199,71,FALSE) -> Total dryer purge | B71: Total dryer purge | C71: Totaal benodigde droger spoellucht | D71: Aria di purga totale | E71: Gesamte Spülluft | F71: סה"כ אוויר לרענון | G71: Total air de rgénération | H71: Celková spotřeba vzduchu | I71: 总排气流量 | J71: 總排氣流量
A72: =HLOOKUP('Input sheet'!$G$9,$A$1:$AF$199,72,FALSE) -> Total air consumption, generator and dryer | B72: Total air consumption, generator and dryer | C72: Totaal persluchtverbruik, generator en droger | D72: Portata aria totale generatore e dryer | E72: Gesamter Luftverbrauch, Generator und Trockner | F72: סה"כ צריכת אוויר, מחולל + מייבש | G72: Consommation d'air Totale (sécheur + générateur) | H72: Celková spotřeba vzduchu, generátor a sušič | I72: 总空气消耗量, 制氮机及乾燥机 | J72: 總空氣消耗量, 氮氣機及乾燥機
A73: =HLOOKUP('Input sheet'!$G$9,$A$1:$AF$199,73,FALSE) -> Membrane generator | B73: Membrane generator | C73: Membraan generator | D73: Generatore a membrana | E73: Membrangenerator | F73: מחולל ממברנות | G73: Générateur à membrane | H73: Membránový generátor | I73: 中空膜制氮机 | J73: 中空膜氮氣機
A74: =HLOOKUP('Input sheet'!$G$9,$A$1:$AF$199,74,FALSE) -> Nitrogen flow per generator | B74: Nitrogen flow per generator | C74: Stikstof productie per generator | D74: Portata azoto per generatore | E74: Stickstoffmenge je Generator | F74: תפוקה לכל מחולל | G74: Débit d'azote par générateur | H74: Průtok dusíku z generátoru | I74: 每台制氮机的氮气流量 | J74: 每台氮氣機的氮氣流量
A75: =HLOOKUP('Input sheet'!$G$9,$A$1:$AF$199,75,FALSE) -> DISCLAIMER The Industrial Nitrogen Gas Generation electronic sizing and selection tool provides an indication of nitrogen system components. The user should always use the 'Industrial Gas technical Reference and Sizing Guide' to double check the indications. Parker is not liable for incorrect indications of this electronic sizing and selection tool. Parker can also update this tool without any notice. All information in this file is confidential. The intention of this file is to help select the right product for an application. The responsibility of a selection for an application lies at the user. All other uses of the included data and or outcomes are forbidden. | B75: DISCLAIMER The Industrial Nitrogen Gas Generation electronic sizing and selection tool provides an indication of nitrogen system components. The user should always use the 'Industrial Gas technical Reference and Sizing Guide' to double check the indications. Parker is not liable for incorrect indications of this electronic sizing and selection tool. Parker can also update this tool without any notice. All information in this file is confidential. The intention of this file is to help select the right product for an application. The responsibility of a selection for an application lies at the user. All other uses of the included data and or outcomes are forbidden. | C75: VRIJWAARDING Dit elektronisch selectieprogramma geeft een indicatie voor welke componenten gebruikt kunnen worden voor het gewenste stikstof systeem. De gebruiker dient telkens de selectie te verifiëren middels de 'Industrial Gas technical Reference and Sizing Guide'. Parker is niet aansprakelijk voor onjuiste selecties middels dit selectieprogramma en is gemachtigd op ieder moment een update door te voeren zonder kennisgeving. Alle informatie in dit programma is confidentieel. Het doel van dit programma is the selecteren van het juiste product voor een toepassing. De verantwoordelijkheid voor een juiste selectie ligt bij de gebruiker. Het is verboden de informatie in dit programma te gebruiken voor andere doelen dan product selectie. | D75: ESONERO DA RESPONSABILITA': il presente software di selezione da un'indicazione di componenti del sistena. L'utente deve sempre utilizzare 'Industrial Gas Technical Reference and Sizing Guide' per verificare il risultato. Parker non è responsabile per indicazioni errate di questo software. Parker può modificarlo in ogni momento e senza alcun avviso. Ogni formazione contenuta in questo file è confidenziale. L'intento di questo file è di aiutare a selezionare il giusto prodotto per un'applicazione. La responsabilità di ogni selezione è dell'utente. Ogni ulteriore utilizzo dei dati contenuti e/o dei risultati è vietato. | E75: Anmerkung: Das elektronische Auslegungprogramm für industrielle Stickstofferzeugung berechnet eine Vorauswahl der Stickstoff-Systemkomponenten. Zur Kontrolle sollte immer der 'Industrial Gas Technical Reference and Sizing Guide' verwendet werden. Parker ist nicht für eine unkorrekte Berechnung durch diese Programm verantwortlich. Parker kann ohne Vorankündigung Änderungen am Programm vornehmen. Alle Informationen dieser Datei sind vertraulich. Dieses Programm soll bei der Auswahl des richtigen Produktes für eine Anwendung dienen. Der Nutzer trägt die Verantwortung der Produktauswahl durch dieses Programm. Die weitere Nutzung der gegebenen Daten oder Berechnungen ist untersagt. | F75: מבלי לפגוע בזכויות. ברת PARKER HANNIFIN באמצעות טכנולאב סחר מבססת את הנתונים המפורטים מטה על המידע שהלקוח מסר לצורך הגשת הצעת מחיר בלבד. על הלקוח לבדוק את המפורט בהצעה ולאשר את אמיתות הנתונים. המערכת מספקת מידע ונתונים על מרכיבי המערכת המוצעת. מטרת המערכת היא לעזור בבחירת המוצר הנכון לשימוש הלקוח. האחריות על הבחירה של המוצר היא על הלקוח. כל המידע והנתונים בתוכנה זאת חסוי. | G75: AVERTISSEMENT L'outil de sélection "Générateurs de gaz Industriels" fournit une indication des composants d'une centrale d'azote. Nous conseillons à l'utilisateur de contrôler la sélection à l'aide du "Sizing Reference Guide". En cas de mauvaise sélection, Parker ne saurait être tenu pour responsable. Parker se réserve également le droit de modifier cet outil sans avertissement préalable aux utilisateurs. Toutes les informations contenues dans ce programme sont confidentielles. Le but de cet outil est d'aider sélectionner le bon produit pour une application. La responsabilité de la sélection incombe à l'utilisateur. Toute utilisation à d'autres fins des données contenues dans ce programme sont strictement interdites. | H75: DISCLAIMER The Industrial Nitrogen Gas Generation electronic sizing and selection tool provides an indication of nitrogen system components. The user should always use the 'Industrial Gas technical Reference and Sizing Guide' to double check the indications. Parker is not liable for incorrect indications of this electronic sizing and selection tool. Parker can also update this tool without any notice. All information in this file is confidential. The intention of this file is to help select the right product for an application. The responsibility of a selection for an application lies at the user. All other uses of the included data and or outcomes are forbidden. | I75: 声明 : 本工业氮气发生机电子选型工具仅提供筛选氮气系统各部件的参考. 用户应当依 'Industrial Gas technical Reference and Sizing Guide (工业气体技术参考及选型指导)'的内容及指示选型, 作再次的确认. Parker 不负责本电子工具的任何选型或筛选错误. 另外 Parker 有权不经事先通知或公告既更新本选型工具. 本文件中的所资料皆属机密. 本文件的目的在协助用户针对某一应用场合筛选适当的产品, 而该筛选或选型系由用户自行负责. 禁止将本文件的所有资料或筛选结果用做任何其它用途. | J75: 聲明 : 本工業氮氣產生機電子選型工具僅提供篩選氮氣系統各部件的參考. 用戶應當依 'Industrial Gas technical Reference and Sizing Guide (工業氣體技術參考及選型指導)'的內容及指示選型, 作再次的確認. Parker 不負責本電子工具的任何選型或篩選錯誤. 另外 Parker 有權不經事先通知或公告既更新本選型工具. 本文件中的所資料皆屬機密. 本文件的目的在協助用戶針對某一應用場合篩選適當的產品, 而該篩選或選型係由用戶自行負責. 禁止將本文件的所有資料或篩選結果用做任何其它用途.
A76: =HLOOKUP('Input sheet'!$G$9,$A$1:$AF$199,76,FALSE) -> Revision | B76: Revision | C76: Revisie | D76: Revisione | E76: Revision | F76: עידכון (רוויזיה) | G76: Révision | H76: Revize | I76: 版本 | J76: 版本
A77: =HLOOKUP('Input sheet'!$G$9,$A$1:$AF$199,77,FALSE) -> Expire date | B77: Expire date | C77: Vervaldatum | D77: Data di scadenza | E77: Auslaufdatum | F77: תאריך תפוגה | G77: Date d'expiration | H77: Platnost do | I77: 有效期限 | J77: 有效期限
A78: =HLOOKUP('Input sheet'!$G$9,$A$1:$AF$199,78,FALSE) -> Total Cost of Ownership calculator PSA N2 Gas Generators | B78: Total Cost of Ownership calculator PSA N2 Gas Generators | C78: Totale gebruikskosten calculator voor PSA gas generatoren | D78: Calcolo costi totali di possesso del generatore PSA | E78: PSA N2 Gasgenerator Gesamtkostenberechner | F78: סה"כ עלות רכישה של מחולל PSA | G78: Calcul de rentabilité d'un générateur d'azote PSA | H78: Výpočet celkových nákladů na provoz generátoru dusíku | I78: PSA 氮气机的用户持有总成本计算 | J78: PSA 氮氣機的用戶持有總成本計算
A79: =HLOOKUP('Input sheet'!$G$9,$A$1:$AF$199,79,FALSE) -> Cells with black background can be edited | B79: Cells with black background can be edited | C79: Cellen met een zwarte achtergrond kunnen bewerkt worden | D79: Le celle a sfondo bianco possono essere scritte | E79: Zellen mit schwarzem Hintergrund können geändert werden | F79: תאים עם רקע שחור יכולים להכנס לחישוב | G79: Les cellules en noir peuvent être complétées | H79: Pole s černým pozadím lze editovat | I79: 背景黑色的单元格可供编辑 | J79: 背景黑色的儲存格可供編輯
A80: =HLOOKUP('Input sheet'!$G$9,$A$1:$AF$199,80,FALSE) -> Cells with blue background are calculated | B80: Cells with blue background are calculated | C80: Cellen met een blauwe achtergrond zijn berekend | D80: Le celle a sfondo blu sono calcolate | E80: Zellen mit blauem Hintergrund wurden berechnet | F80: תאים עם רקע כחול הוכנסו לחישוב | G80: Les cellules en bleu se calculent automatiquement | H80: Pole s modrým pozadím jsou kalkulována | I80: 背景蓝色的单元格为自行计算 | J80: 背景藍色的儲存格為自行計算
A81: =HLOOKUP('Input sheet'!$G$9,$A$1:$AF$199,81,FALSE) -> NITROGEN REQUIREMENTS | B81: NITROGEN REQUIREMENTS | C81: SELECTIE CRITERIA | D81: AZOTO NECESSARIO | E81: STICKSTOFFANFORDERUNGEN | F81: דרישת חנקן | G81: Données Requise | H81: POŽADAVKY NA DUSÍK | I81: 氮气需求 | J81: 氮氣需求
A82: =HLOOKUP('Input sheet'!$G$9,$A$1:$AF$199,82,FALSE) -> Nitrogen usage per year m3 | B82: Nitrogen usage per year m3 | C82: Stikstof verbruik per jaar m3 | D82: Consumo azoto per anno m3 | E82: Stickstoffverbrauch pro Jahr | F82: צריכת חנקן שנתית m3 | G82: Nombre de m3 Azote par an | H82: Spotřeba dusíku za rok v m3 | I82: 每年氮气用量 m3 | J82: 每年氮氣用量 m3
A83: =HLOOKUP('Input sheet'!$G$9,$A$1:$AF$199,83,FALSE) -> Available Air pressure bar(g) | B83: Available Air pressure bar(g) | C83: Beschikbare persluchtdruk bar(g) | D83: Pressione aria disponibile bar(g) | E83: Verfügbare Druckluft bar(ü) | F83: לחץ אוויר זמין BarG | G83: Pression d'air disponible bar(g) | H83: Dostupný tlak vzduchu bar(g) | I83: 可供应空气压力 bar(g) | J83: 可供應空氣壓力 bar(g)
A84: =HLOOKUP('Input sheet'!$G$9,$A$1:$AF$199,84,FALSE) -> Maximum ambient temperature | B84: Maximum ambient temperature | C84: Maximale omgevingstemperatuur | D84: Temperatura ambiente massima | E84: Maximale Umgebungstemperatur | F84: טמפ' סביבתי מאכסימאלית | G84: Température ambiante maximum | H84: Maximální teplota prostředí | I84: 最高环境温度 | J84: 最高環境溫度
A85: =HLOOKUP('Input sheet'!$G$9,$A$1:$AF$199,85,FALSE) -> Application | B85: Application | C85: Toepassing | D85: Applicazione | E85: Anwendung | F85: אפליקציה | G85: Application | H85: Aplikace | I85: 应用场合 | J85: 應用場合
A86: =HLOOKUP('Input sheet'!$G$9,$A$1:$AF$199,86,FALSE) -> Currency | B86: Currency | C86: Valuta | D86: Valuta | E86: Währung | F86: מטבע | G86: Monnaie | H86: Měna | I86: 货币 | J86: 貨幣
A87: =HLOOKUP('Input sheet'!$G$9,$A$1:$AF$199,87,FALSE) -> SPECIFICATION | B87: SPECIFICATION | C87: SPECIFICATIE | D87: Specifiche | E87: SPEZIFIKATION | F87: ספסיפיקציה | G87: SPECIFICATION | H87: SPECIFIKACE | I87: 规格参数 | J87: 規格參數
A88: =HLOOKUP('Input sheet'!$G$9,$A$1:$AF$199,88,FALSE) -> Nitrogen pressure bar(g) | B88: Nitrogen pressure bar(g) | C88: Stikstofdruk bar(g) | D88: Pressione azoto bar(g) | E88: Stickstoffdruck bar(ü) | F88: לחץ חנקן BarG | G88: Pression de sortie d'azote | H88: Tlak dusíku bar(g) | I88: 氮气压力 bar(g) | J88: 氮氣壓力 bar(g)
A89: =HLOOKUP('Input sheet'!$G$9,$A$1:$AF$199,89,FALSE) -> Generator with EST (5 and 10 ppm no EST possible) | B89: Generator with EST (5 and 10 ppm no EST possible) | C89: Generator met EST (5 en 10 ppm EST niet mogelijk) | D89: Generatore con EST (non disponibile per 5 e 10 ppm) | E89: Generator mit EST (nicht für 5 bzw. 10 ppm) | F89: NITROSource with EST (5 and 10 ppm no EST possible) | G89: Générateur avec EST (indisponible pour 5 et 10 ppm) | H89: Generátor PSA včetně EST (nelze pro 5 a 10 ppm) | I89: NITROSource 加选 EST 节能套件 (5和10 ppm机型无EST) | J89: NITROSource 加選 EST 節能套件 (5和10 ppm機型無EST)
A90: =HLOOKUP('Input sheet'!$G$9,$A$1:$AF$199,90,FALSE) -> Use refrigerant dryer | B90: Use refrigerant dryer | C90: Gebruik koeldroger | D90: Uso essiccatore frigorifero | E90: Kältetrockner verwenden | F90: השתמש במיבש קירור | G90: Utilisation d'un sécheur par réfrigération | H90: Použití kondenzačního sušiče | I90: 采用冷冻乾燥机 | J90: 採用冷凍乾燥機
A91: =HLOOKUP('Input sheet'!$G$9,$A$1:$AF$199,91,FALSE) -> Yes | B91: Yes | C91: Ja | D91: Sì | E91: Ja | F91: כן | G91: Oui | H91: Ano | I91: 是的 | J91: 是的
A92: =HLOOKUP('Input sheet'!$G$9,$A$1:$AF$199,92,FALSE) -> No | B92: No | C92: Nee | D92: No | E92: Nein | F92: לא | G92: Non | H92: Ne | I92: 不 | J92: 不
A93: =HLOOKUP('Input sheet'!$G$9,$A$1:$AF$199,93,FALSE) -> INVESTMENT | B93: INVESTMENT | C93: INVESTERING | D93: INVESTIMENTO | E93: INVESTITION | F93: השקעה | G93: INVESTISSEMENT | H93: INVESTICE | I93: 投资成本 | J93: 投資成本
A94: =HLOOKUP('Input sheet'!$G$9,$A$1:$AF$199,94,FALSE) -> N2 storage vessel | B94: N2 storage vessel | C94: N2 voorraadvat | D94: Serbatoio stoccaggio N2 | E94: N2 Speicherkessel | F94: מיכל חנקן | G94: Réservoir de stokage Azote | H94: Koncový zásobník dusíku | I94: 氮气储存桶 | J94: 氮氣儲存桶
A95: =HLOOKUP('Input sheet'!$G$9,$A$1:$AF$199,95,FALSE) -> Compressor | B95: Compressor | C95: Compressor | D95: Compressore | E95: Kompressor | F95: מדחס אוור | G95: Compresseur | H95: Kompresor | I95: 空压机 | J95: 空壓機
A96: =HLOOKUP('Input sheet'!$G$9,$A$1:$AF$199,96,FALSE) -> Wet air receiver | B96: Wet air receiver | C96: Persluchtvat | D96: Serbatoio aria umida | E96: Druckluftkessel | F96: מיכל אוויר ראשוני (רטוב) | G96: Réservoir amont | H96: Vzdušník (za kompresorem) | I96: 空气储存槽 | J96: 空氣儲存槽
A97: =HLOOKUP('Input sheet'!$G$9,$A$1:$AF$199,97,FALSE) -> Piping, fittings and labour | B97: Piping, fittings and labour | C97: Leidingwerk, installatie en arbeid | D97: Tubazioni, connessioni e manodopera | E97: Verrohrung und Arbeitszeit | F97: צנרת, אביזרים ועבודה | G97: Tuyauterie et raccordements | H97: Potrubí, armatury a instalace | I97: 配管, 管配件及工资 | J97: 配管, 管配件及工資
A98: =HLOOKUP('Input sheet'!$G$9,$A$1:$AF$199,98,FALSE) -> New cryo tank system installation | B98: New cryo tank system installation | C98: Nieuwe cryogene tank installatie | D98: Installazione nuovo impianto azoto liquido | E98: Neue Flüssigtankinstallation | F98: מערכת חנקן נוזלי חדשה | G98: Installation d'un nouveau réservoir cryogénique | H98: Instalace nové odpařovací stanice | I98: 液态氮桶槽系统安装 | J98: 液態氮桶槽系統安裝
A99: =HLOOKUP('Input sheet'!$G$9,$A$1:$AF$199,99,FALSE) -> Total Investment | B99: Total Investment | C99: Totale investering | D99: Investimento totale | E99: Gesamtinvestition | F99: סה"כ השקעה | G99: Investissement total | H99: Celková investice | I99: 总投资成本 | J99: 總投資成本
A100: =HLOOKUP('Input sheet'!$G$9,$A$1:$AF$199,100,FALSE) -> Refrigerant dryer | B100: Refrigerant dryer | C100: Koeldroger | D100: Esiccatore frigorifero | E100: Kältetrockner | F100: מייבש קירור | G100: sécheur par réfrigération | H100: Kondenzační sušič | I100: 冷冻乾燥机 | J100: 冷凍乾燥機
A101: =HLOOKUP('Input sheet'!$G$9,$A$1:$AF$199,101,FALSE) -> BULK GAS | B101: BULK GAS | C101: BULK GAS | D101: GAS IN BOMBOLE / LIQUIDO | E101: Flüssiggas | F101: גלילי חנקן | G101: Gaz en Vrac | H101: KAPALNÝ DUSÍK | I101: 钢瓶/液氮 | J101: 鋼瓶/液氮
A102: =HLOOKUP('Input sheet'!$G$9,$A$1:$AF$199,102,FALSE) -> OPERATIONAL COSTS | B102: OPERATIONAL COSTS | C102: OPERATIONELE KOSTEN | D102: COSTI OPERATIVI | E102: BETRIEBSKOSTEN | F102: עלות תיפעולית | G102: Coûts de fonctionnement | H102: PROVOZNÍ NÁKLADY | I102: 操作成本 | J102: 操作成本
A103: =HLOOKUP('Input sheet'!$G$9,$A$1:$AF$199,103,FALSE) -> Pre-Treatment power consumption Kwh | B103: Pre-Treatment power consumption Kwh | C103: Perslucht conditionering energieverbruik KWh | D103: Consumo elettrico pre-trattamento kWh | E103: Energieverbrauch der Aufbereitung kWh | F103: עלות אנרגיתית למע' יבוש אוויר Kwh | G103: Consommation énergétique du traitement d'air | H103: Příkon předúpravy stlač. vzduchu kWh | I103: 空气前处理耗电 Kwh | J103: 空氣前處理耗電 Kwh
A104: =HLOOKUP('Input sheet'!$G$9,$A$1:$AF$199,104,FALSE) -> Generator power consumption Kwh | B104: Generator power consumption Kwh | C104: Generator energieverbruik KWh | D104: Consumo elettrico generatore kWh | E104: Energieverbrauch des Generators kWh | F104: צריכת אנרגיה כללית למערכת Kwh | G104: Consommation énergétique du générateur | H104: Příkon generátoru dusíku kWh | I104: 制氮机耗电 Kwh | J104: 氮氣機耗電 Kwh
A105: =HLOOKUP('Input sheet'!$G$9,$A$1:$AF$199,105,FALSE) -> Average yearly maintenance cost over 10 year | B105: Average yearly maintenance cost over 10 year | C105: Gemiddelde jaarlijkse onderhoudskosten over 10 jaar | D105: Costo annuale medio manutenzione sui 10 anni | E105: Durchschnittliche jährliche Wartungskosten über 10 Jahre | F105: עלות אחזקה שנתית ממוצעת ל-10 שנים | G105: Coût moyen de la maintenance sur 10 ans | H105: Průměrné roční náklady na údržbu za 10 let | I105: 10年间平均每年的维护费用, 含工资 | J105: 10年間平均每年的維護費用, 含工資
A106: =HLOOKUP('Input sheet'!$G$9,$A$1:$AF$199,106,FALSE) -> Average yearly cost for Sieve replacement over 10 years, incl. labour | B106: Average yearly cost for Sieve replacement over 10 years, incl. labour | C106: Gemiddelde jaarlijkse kosten voor vervangen adsobent over 10 jaar | D106: Costo medio annuale sostituzione setaccio per 10 anni, incl. manodopera | E106: Durchschnittliche jährliche Kosten für Molekularsiebwechsel über 10 Jahre | F106: עלות שנתית להחלפת מולקולר-סיב ל-10 שנים כולל עלות העבודה | G106: Coût moyen du remplacement de charbon sur 10 ans (M-O incluse) | H106: Průměrné roční náklady na výměnu molekul. síta za 10 let vč. práce | I106: 10年间平均每年的碳分子筛更换成本, 含工资 | J106: 10年間平均每年的碳分子篩更換成本, 含工資
A107: =HLOOKUP('Input sheet'!$G$9,$A$1:$AF$199,107,FALSE) -> Compressor maintenance cost per year | B107: Compressor maintenance cost per year | C107: Compressor onderhoud per jaar | D107: Costo manutenzione annuale compressore | E107: Wartungskosten Kompressor pro Jahr | F107: עלות אחזקה שנתית למדחס | G107: Coût de maintenance du compresseur par an | H107: Náklady na údržbu kompresoru za rok | I107: 每年空压机维护成本 | J107: 每年空壓機維護成本
A108: =HLOOKUP('Input sheet'!$G$9,$A$1:$AF$199,108,FALSE) -> Cost of nitrogen per m3 gas | B108: Cost of nitrogen per m3 gas | C108: Stikstof kosten per m3 gas | D108: Costo azoto al m3 | E108: Stickstoffkosten je m³ Gas | F108: עלות m3 חנקן גזי | G108: Coût du m3 d'azote | H108: Náklady na 1m3 plynného dusíku | I108: 每 m3 氮气的购买价格 | J108: 每 m3 氮氣的購買價格
A109: =HLOOKUP('Input sheet'!$G$9,$A$1:$AF$199,109,FALSE) -> Nitrogen bottle/tank rent per month | B109: Nitrogen bottle/tank rent per month | C109: Stikstof flessen/tank huur per maand | D109: Costo mensile noleggio bombole/serbatoio azoto | E109: Mietkosten pro Monat für Flaschen/Tank | F109: עלות שכירות סוללות/מיכל חנקן נוזלי | G109: Coût de location du réservoir / bouteilles par an | H109: Měsíční nájemné nádoby / odpařovací stanice | I109: 氮气钢瓶/储槽的月租费 | J109: 氮氣鋼瓶/儲槽的月租費
A110: =HLOOKUP('Input sheet'!$G$9,$A$1:$AF$199,110,FALSE) -> Nitrogen delivery charge per delivery | B110: Nitrogen delivery charge per delivery | C110: Stikstof Leveringstoeslag, per levering | D110: Costi trasporto azoto per spedizione | E110: Lieferkosten je Lieferung | F110: עלות הובלה ומסירה לכל משלוח | G110: Coûts de transport unitaires | H110: Dopravní náklady na jednu dodávku dusíku | I110: 每趟运送氮气的费用 | J110: 每趟運送氮氣的費用
A111: =HLOOKUP('Input sheet'!$G$9,$A$1:$AF$199,111,FALSE) -> No of drops per year | B111: No of drops per year | C111: Aantal leveringen per jaar | D111: Numero di spedizioni annuali | E111: Anzahl Lieferungen pro Jahr | F111: מס. משלוחים בשנה | G111: Nombre de livraisons par an | H111: Počet dodávek za rok | I111: 每年运送氮气趟数 | J111: 每年運送氮氣趟數
A112: =HLOOKUP('Input sheet'!$G$9,$A$1:$AF$199,112,FALSE) -> Costs associated with managing supply per month | B112: Costs associated with managing supply per month | C112: Kosten i.v.m. het managen van de stikstof leveringen per maand | D112: Costi associati alla movimentazione per mese | E112: Monatliche Verwaltungskosten | F112: עלויות נוספות (הזמנה בדיקות) חודשית | G112: Coûts mensuels associés au transport | H112: Měsíční náklady spojené s organizací nákupu | I112: 每月管理氮气供应的相关成本 | J112: 每月管理氮氣供應的相關成本
A113: =HLOOKUP('Input sheet'!$G$9,$A$1:$AF$199,113,FALSE) -> COST OF OWNERSHIP | B113: COST OF OWNERSHIP | C113: TOTALE GEBRUIKSKOSTEN | D113: COSTO DI PROPRIETA' | E113: GESAMTKOSTEN | F113: עלות רכישה | G113: RENTABILITE | H113: CELKOVÉ NÁKLADY | I113: 用户持有成本 | J113: 用戶持有成本
A114: =HLOOKUP('Input sheet'!$G$9,$A$1:$AF$199,114,FALSE) -> Power cost per year | B114: Power cost per year | C114: Jaarlijkse elektriciteitskosten | D114: Costo energetico annuale | E114: Energiekosten pro Jahr | F114: עלות אנרגיה שנתית | G114: Coûts énergétiques annuels | H114: Náklady na energie za rok | I114: 年度电费成本 | J114: 年度電費成本
A115: =HLOOKUP('Input sheet'!$G$9,$A$1:$AF$199,115,FALSE) -> Total maintenance cost per year | B115: Total maintenance cost per year | C115: Totaal onderhoudskosten per jaar | D115: Costi manutenzione totali annuali | E115: Jährliche Wartungskosten | F115: סה"כ עלות אחזקה שנתית | G115: Coûts de maintenance annuels | H115: Celkové náklady na údržbu za rok | I115: 年度维护成本 | J115: 年度維護成本
A116: =HLOOKUP('Input sheet'!$G$9,$A$1:$AF$199,116,FALSE) -> Total nitrogen cost per year | B116: Total nitrogen cost per year | C116: Totaal stikstof kosten per jaar | D116: Costo totale azoto per anno | E116: Gesamtkosten für N2 pro Jahr | F116: סה"כ עלות חנקן שנתית | G116: Coûts d'azote total par an | H116: Celkové náklady na dusík za rok | I116: 年度氮气消耗总成本 | J116: 年度氮氣消耗總成本
A117: =HLOOKUP('Input sheet'!$G$9,$A$1:$AF$199,117,FALSE) -> Total cost per m3 | B117: Total cost per m3 | C117: Totaal stikstof kosten per m3 | D117: Costo totale per m3 | E117: Gesamtkosten pro m³ | F117: סה"כ עלות 1m3 | G117: Coût total du m3 d'azote | H117: Celkové náklady na 1 m3 plynu | I117: 每 m3 氮气成本 | J117: 每 m3 氮氣成本
A118: =HLOOKUP('Input sheet'!$G$9,$A$1:$AF$199,118,FALSE) -> SAVINGS AGAINST BULK GAS | B118: SAVINGS AGAINST BULK GAS | C118: BESPARING TEN OPZICHTE VAN BULK GAS | D118: RISPARMIO RISPETTO A GAS IN BOMBOLE/LIQUIDO | E118: ERSPARNIS GEGENÜBER FLÜSSIGGAS | F118: חסכון לעומת חנקן סוללות/נוזלי | G118: ECONOMIES vs GAS VRAC | H118: ÚSPORY OPROTI KAPALNÉMU PLYNU | I118: 相较钢瓶/液氮节省的成本 | J118: 相較鋼瓶/液氮節省的成本
A119: =HLOOKUP('Input sheet'!$G$9,$A$1:$AF$199,119,FALSE) -> Payback time in years against bulk gas | B119: Payback time in years against bulk gas | C119: Terugverdientijd in jaren t.o.v. bulk gas | D119: Ritorno dell'investimento in anni | E119: Amortisationszeit gegenüber Flüssiggas | F119: החזר הון בשנים לעומת סוללות/נוזלי | G119: Retour sur investissement (en années) | H119: Návratnost investice v letech oproti kapalnému zdroji | I119: 相较钢瓶/液氮的投资回收期间(几年) | J119: 相較鋼瓶/液氮的投資回收期間(幾年)
A120: =HLOOKUP('Input sheet'!$G$9,$A$1:$AF$199,120,FALSE) -> Savings per year on nitrogen costs against bulk gas | B120: Savings per year on nitrogen costs against bulk gas | C120: Besparing per jaar t.o.v. bulk gas | D120: Risparmio annuale sul costo dell'azoto | E120: Jährliche Ersparnis für Stickstoff gegenüber Flüssiggas | F120: חסכון שנתי בהוצאות לחנקן מול סוללות/נוזלי | G120: Economies Annuelles vs Gaz en Vrac | H120: Roční úspora nákladů na dusík oproti kapalnému zdroji | I120: 相较钢瓶/液氮, 每年节省氮气消耗成本 | J120: 相較鋼瓶/液氮, 每年節省氮氣消耗成本
A121: =HLOOKUP('Input sheet'!$G$9,$A$1:$AF$199,121,FALSE) -> Savings per m3 of nitrogen gas against bulk gas | B121: Savings per m3 of nitrogen gas against bulk gas | C121: Besparing per m3 stikstof gas t.o.v. bulk gas | D121: Risparmio per m3 sul costo dell'azoto | E121: Ersparnis je m³ Stickstoff gegenüber Flüssiggas | F121: חסכון ל-1m3 בהוצאות לחנקן מול סוללות/נוזלי | G121: Economie par m3 vs Gaz Vrac | H121: Úspora na 1 m3 plynu oproti kapalnému zdroji | I121: 相较钢瓶/液氮, 每 m3 氮气节省的成本 | J121: 相較鋼瓶/液氮, 每 m3 氮氣節省的成本
A122: =HLOOKUP('Input sheet'!$G$9,$A$1:$AF$199,122,FALSE) -> SAVINGS AGAINST ALTERNATIVE | B122: SAVINGS AGAINST ALTERNATIVE | C122: BESPARING T.O.V. ALTERNATIEF | D122: RISPARMIO RISPETTO AD ALTERNATIVE | E122: ERSPARNIS GEGENÜBER ALTERNATIVE | F122: חסכון בהוצאות לחנקן מול האלטרנטיבה | G122: ECONOMIE vs ALTERNATIVE | H122: ÚSPORY OPROTI ALTERNATIVĚ | I122: 相较其它替代方案节省的成本 | J122: 相較其它替代方案節省的成本
A123: =HLOOKUP('Input sheet'!$G$9,$A$1:$AF$199,123,FALSE) -> Payback time in years against Alternative | B123: Payback time in years against Alternative | C123: Terugverdientijd in jaren t.o.v. alternatief | D123: Ritorno dell'investimento in anni rispetto ad alternative | E123: Amortisationszeit in Jahren gegenüber Alternative | F123: החזר השקעה בשנים מול האלטרנטיבה | G123: Retour sur investissement vs Alternative | H123: Návratnost investice v letech oproti alternativě | I123: 相较其它替代方案的投资回收期间(几年) | J123: 相較其它替代方案的投資回收期間(幾年)
A124: =HLOOKUP('Input sheet'!$G$9,$A$1:$AF$199,124,FALSE) -> 10 year nett savings against Alternative | B124: 10 year nett savings against Alternative | C124: Netto besparing t.o.v. alternatief over 10 jaar | D124: Risparmio netto in 10 anni rispetto ad alternative | E124: 10-Jahresersparnis gegenüber Alternative | F124: חסכון נטו ב-10 שנים מול האלטרנטיבה | G124: Economie en 10 ans vs Alternative | H124: Úspora oproti alternativě za 10 let | I124: 相较其它替代方案, 10年期间节省的成本 | J124: 相較其它替代方案, 10年期間節省的成本
A125: =HLOOKUP('Input sheet'!$G$9,$A$1:$AF$199,125,FALSE) -> Not applicable | B125: Not applicable | C125: Niet van toepassing | D125: Non applicabile | E125: Nicht anwendbar | F125: לא ישים | G125: Non applicable | H125: Neaplikovatelné | I125: 不适用 | J125: 不適用
A126: =HLOOKUP('Input sheet'!$G$9,$A$1:$AF$199,126,FALSE) -> 5 YEAR TOTAL COST OF OWNERSHIP | B126: 5 YEAR TOTAL COST OF OWNERSHIP | C126: TOTAAL GEBRUIKSKOSTEN OVER 5 JAAR | D126: COSTO TOTALE DI POSSESSO 5 ANNI | E126: GESAMTKOSTEN ÜBER 5 JAHRE | F126: עלות כללית במשך 5 שנים | G126: RETOUR SUR INVESTISSEMENT EN 5 ANS | H126: CELKOVÉ NÁKLADY ZA 5 LET | I126: 5年期用户总持有成本 | J126: 5年期用戶總持有成本
A127: =HLOOKUP('Input sheet'!$G$9,$A$1:$AF$199,127,FALSE) -> 10 YEAR TOTAL COST OF OWNERSHIP | B127: 10 YEAR TOTAL COST OF OWNERSHIP | C127: TOTAAL GEBRUIKSKOSTEN OVER 10 JAAR | D127: COSTO TOTALE DI POSSESSO 10 ANNI | E127: GESAMTKOSTEN ÜBER 10 JAHRE | F127: עלות כללית במשך 10 שנים | G127: RETOUR SUR INVESTISSEMENT EN 10 ANS | H127: CELKOVÉ NÁKLADY ZA 10 LET | I127: 10年期用户总持有成本 | J127: 10年期用戶總持有成本
A128: =HLOOKUP('Input sheet'!$G$9,$A$1:$AF$199,128,FALSE) -> SERVICE COSTS | B128: SERVICE COSTS | C128: SERVICE KOSTEN | D128: COSTI DI MANUTENZIONE | E128: WARTUNGSKOSTEN | F128: עלות השרות | G128: COUTS D'ENTRETIEN | H128: Servisní náklady | I128: 维修成本 | J128: 維修成本
A129: =HLOOKUP('Input sheet'!$G$9,$A$1:$AF$199,129,FALSE) -> Total Cost time frame | B129: Total Cost time frame | C129: Totaal kosten looptijd | D129: Intervallo di tempo considerato | E129: Zeitrahmen für Gesamtkosten | F129: סה"כ עלות במשך | G129: Période Totale de rentabilité | H129: Celkové náklady za období | I129: 总成本时间轴 | J129: 總成本時間軸
A130: =HLOOKUP('Input sheet'!$G$9,$A$1:$AF$199,130,FALSE) -> 5 years | B130: 5 years | C130: 5 jaar | D130: 5 anni | E130: 5 Jahre | F130: 5 שנים | G130: 5 ans | H130: 5 let | I130: 5年期 | J130: 5年期
A131: =HLOOKUP('Input sheet'!$G$9,$A$1:$AF$199,131,FALSE) -> 10 years | B131: 10 years | C131: 10 jaar | D131: 10 anni | E131: 10 Jahre | F131: 10 שנים | G131: 10 ans | H131: 10 let | I131: 10年期 | J131: 10年期
A132: =HLOOKUP('Input sheet'!$G$9,$A$1:$AF$199,132,FALSE) -> Compressed air temperature | B132: Compressed air temperature | C132: Persluchttemperatuur | D132: Temperatura aria compressa | E132: Drucklufttemperatur | F132: טמפ' אספקת אוויר | G132: Température d'air comprimé | H132: Teplota stlačeného vzduchu | I132: 压缩空气温度 | J132: 壓縮空氣溫度
A133: =HLOOKUP('Input sheet'!$G$9,$A$1:$AF$199,133,FALSE) -> Years | B133: Years | C133: Jaren | D133: Anni | E133: Jahre | F133: שנים | G133: Ans | H133: Roky | I133: 年 | J133: 年
D135: Alessandro Koob | E135: Carsten Beckmann | F135: Haim Goldberg - Technolab | G135: Pascal Brion | H135: Vaclav Kouba | I135: Clark Lee | J135: Clark Lee

Sheet Selection (hidden)
A1: =CONCATENATE(Talen!A46," ",'Input sheet'!B4," ",Talen!A47," ",Selection!C21," ",'Input sheet'!C5," ",Talen!A48," ",'Input sheet'!B8," ",Talen!A49," ",'Input sheet'!B9," ",Talen!A50," ","(",Selection!H25,")") -> Selections are based on 0,5% purity at 6 barg generator feed-air pressure and 20°C (68°F) environmental temperature and 20°C (68°F) Feed-air temperature (m3/hr)
A2: =Talen!A51 -> PSA generator | B2: =Talen!A52 -> Nitrogen flow per generator | C2: =Talen!A53 -> Number of | D2: =Talen!A54 -> Total nitrogen flow | E2: =Talen!A55 -> Feed-air flow per generator | F2: =Talen!A56 -> Generator outlet pressure | G2: =Talen!A57 -> Total generator feed-air flow | H2: =Talen!A58 -> Part number | I2: =Talen!A59 -> Energy costs indication per year | J2: Looks up the position of the lowest number and smallest generator that can provide this flow
A3: =IFERROR(INDEX(Selection!A33:A99,J3,1),"N/A") -> N2-25P | B3: =IFERROR(INDEX((Selection!B33:B99),J3,1),"N/A") -> 22 | C3: =IFERROR(INDEX(C33:C99,J3,1),"N/A") -> 1 | D3: =IFERROR(INDEX(Selection!D33:D99,J3,1),"N/A") -> 22 | E3: =IFERROR(INDEX((Selection!F33:F99),J3,1),"N/A") -> 61.6 | F3: =IFERROR(INDEX((Selection!O33:O99),J3,1),"N/A") -> 4.9 | G3: =IFERROR(INDEX(Selection!G33:G99,J3,1),"N/A") -> 61.6 | H3: =IFERROR(INDEX(M33:M99,J3,1),"N/A") -> N2-25PBLY | I3: =IF(H3="N/A","N/A",IFERROR(I4*(100%-(IFERROR(INDEX(N33:N99,J3,1),"N/A"))),"N/A")) -> 3976.561724 | J3: =IFERROR(MATCH(MIN(R33:R99),Selection!R33:R99,0),"N/A") -> 6
H4: =IFERROR(INDEX(L33:L99,J3,1),"N/A") -> N2-25PBLN | I4: =G3*'Input sheet'!F15*'Input sheet'!F16*'Calculations TCO'!E24 -> 4418.401916
A5: =Talen!A61 -> Buffer vessel (one per generator) | B5: =IFERROR(CONCATENATE(Talen!A62," ",INDEX((Selection!P33:P99),J3,1)," ",Talen!A63),"N/A") -> size 500 litres | C5: =IFERROR(INDEX(C33:C99,J3,1),"N/A") -> 1 | H5: =IFERROR(INDEX(Q33:Q99,J3,1),"N/A") -> 606201450
A6: =Talen!A64 -> OVR before generator | B6: =Talen!A65 -> Capacity per OVR | D6: =Talen!A66 -> Total capacity
A7: =IFERROR(INDEX('OVR sizing'!A44:A56,J7,1),Talen!A125) -> Not applicable | B7: =IFERROR(INDEX('OVR sizing'!B44:B56,J7,1),"") ->  | C7: =IFERROR(INDEX('OVR sizing'!C44:C56,J7,1),"") ->  | D7: =IFERROR(INDEX('OVR sizing'!D44:D56,J7,1),"") ->  | H7: =IFERROR(INDEX('OVR sizing'!F44:F56,J7,1),"") ->  | J7: =IFERROR(MATCH(MIN('OVR sizing'!G44:G56),'OVR sizing'!G44:G56,0),"N/A") -> N/A
A8: =Talen!A67 -> Dust filter behind OVR | C8: =C7 ->  | H8: =IFERROR(VLOOKUP(A7,'OVR sizing'!A34:E39,5,FALSE),"") -> 
A9: =Talen!A68 -> Dryer incl. Filters | B9: =Talen!A69 -> Capacity per dryer | D9: =Talen!A70 -> Purge flow per dryer | E9: =Talen!A71 -> Total dryer purge | G9: =Talen!A72 -> Total air consumption, generator and dryer
A10: =IFERROR(INDEX('Capacities Dryers'!A47:A188,J10,1),"N/A") -> DME025 | B10: =IFERROR(INDEX('Capacities Dryers'!C47:C188,J10,1),"N/A") -> 73.91 | C10: =IFERROR(INDEX('Capacities Dryers'!E47:E188,J10,1),"N/A") -> 1 | D10: =IFERROR(INDEX('Capacities Dryers'!D47:D188,J10,1),"N/A") -> 16.41 | E10: =IFERROR(INDEX('Capacities Dryers'!G47:G188,J10,1),"N/A") -> 16.41 | G10: =IFERROR((G3+E10),"N/A") -> 78.01 | H10: =IFERROR(INDEX('Capacities Dryers'!K47:K188,J10,1),"N/A") -> DME025N2-E | J10: =IFERROR(MATCH(MAX('Capacities Dryers'!H47:H188),'Capacities Dryers'!H47:H188,0),"N/A") -> 43
A11: =Talen!A73 -> Membrane generator | B11: =Talen!A74 -> Nitrogen flow per generator | C11: =C2 -> Number of | D11: Total nitrogen flow | E11: Feed-air flow per generator | F11: Generator outlet pressure | G11: Total generator feed-air flow | H11: Part number | J11: -
A12: =IFERROR(INDEX(Selection!A100:A135,J12,1),"N/A") -> Nitrosource Main + 4 Subs | B12: =IFERROR(INDEX(B100:B135,J12,1),"N/A") -> 22.8 | C12: =IFERROR(INDEX(C100:C135,J12,1),"N/A") -> 1 | D12: =IFERROR(INDEX(Selection!D100:D135,J12,1),"N/A") -> 22.8 | E12: =IFERROR(INDEX(Selection!F100:F135,J12,1),"N/A") -> 193.8 | F12: =IFERROR(INDEX(Selection!O100:O135,I12,1),"N/A") -> N/A | G12: =IFERROR(INDEX(Selection!G100:G135,J12,1),"N/A") -> 193.8 | H12: =IFERROR(INDEX(L100:L135,J12,1),"N/A") -> 1 x 159.003552 and 4 x 159.003553 | J12: =IFERROR(MATCH(MIN(R100:R135),Selection!R100:R135,0),"N/A") -> 8
A13: =A9 -> Dryer incl. Filters | B13: =B9 -> Capacity per dryer | D13: =D9 -> Purge flow per dryer | E13: =E9 -> Total dryer purge | G13: =G9 -> Total air consumption, generator and dryer | J13: -
A14: =IFERROR(INDEX('Capacities Dryers'!A47:A188,J14,1),"N/A") -> DME080 | B14: =IFERROR(INDEX('Capacities Dryers'!C47:C188,J14,1),"N/A") -> 244.66 | C14: =IFERROR(INDEX('Capacities Dryers'!E47:E188,J14,1),"N/A") -> 1 | D14: =IFERROR(INDEX('Capacities Dryers'!D47:D188,J14,1),"N/A") -> 54.37 | E14: =IFERROR(INDEX('Capacities Dryers'!G47:G188,J14,1),"N/A") -> 54.37 | G14: =IFERROR((G12+E14),"N/A") -> 248.17 | H14: =IFERROR(INDEX('Capacities Dryers'!K47:K188,J14,1),"N/A") -> DME080N2-E | J14: =IFERROR(MATCH(MAX('Capacities Dryers'!I47:I188),'Capacities Dryers'!I47:I188,0),"N/A") -> 93
A16: Generator load | B16: =ROUND('Input sheet'!B3/Selection!D3*100,0) -> 91
A20: selection data
A21: Generator feed-air Pressure | C21: ='Input sheet'!B7 -> 6
A22: Dryer feed-air Pressure | C22: ='Input sheet'!B5 -> 7
A23: Temperature correction factors | G23: Other selections
A24: MIDIGAS range PSA | B24: Temp correction factor | C24: Nitrogen flow | D24: =VLOOKUP('Input sheet'!$B$8,'factors-pull down'!A6:O15,G26+1,FALSE) -> 1 | E24: Feed-air | F24: 1 | G24: Flow metric number | H24: Define flow metric | I24: correction to entered metric | J24: Flow corrected to metric
A25: NitroSource PSA range | B25: Temp correction factor | C25: Nitrogen flow | D25: =VLOOKUP('Input sheet'!$B$8,'factors-pull down'!A49:O58,G26+1,FALSE) -> 1 | E25: Feed-air | F25: 1 | G25: =VLOOKUP('Input sheet'!C3,'factors-pull down'!A99:D103,4,FALSE) -> 1 | H25: =VLOOKUP('Input sheet'!C3,'factors-pull down'!A99:D103,3,FALSE) -> m3/hr | I25: =(IF(G25=1,1)) +(IF(G25=2,(293/273)))+(IF(G25=3,(1.699*293/288.5)))+(IF(G25=4,(1/35.31467*293/288.5)))+(IF(G25=5,(60/1000))) -> 1 | J25: ='Input sheet'!B3*I25 -> 20 | K25: m3/hr at 20°C
A26: NitroFlow range membrane | B26: Temp correction factor | C26: Nitrogen flow | D26: =VLOOKUP('Input sheet'!$B$9,'factors-pull down'!A20:V29,G26+1,FALSE) -> 1 | E26: Feed-air | F26: =VLOOKUP('Input sheet'!$B$9,'factors-pull down'!A34:AB43,G26+14,FALSE) -> 1 | G26: =HLOOKUP('Input sheet'!B4,'factors-pull down'!B1:O2,2,FALSE) -> 9 | H26: purity column
A27: Nitrosource Membrane range | B27: Temp correction factor | C27: Nitrogen flow | D27: =VLOOKUP('Input sheet'!$B$9,'factors-pull down'!A20:O29,G26+1,FALSE) -> 1 | E27: Feed-air | F27: =VLOOKUP('Input sheet'!$B$9,'factors-pull down'!A20:AB29,G26+14,FALSE) -> 1 | G27: =C21 -> 6 | H27: barg
A28: Dryer | B28: Temp correction factor | C28: Nitrogen flow | D28: =VLOOKUP('Input sheet'!$B$9,'factors-pull down'!A84:B93,2,FALSE) -> up to 35C | E28: Feed-air | F28: =VLOOKUP('Input sheet'!$B$9,'factors-pull down'!A35:AB44,'Input sheet'!K33+14,FALSE) -> 1
A31: Sizing data | B31: =CONCATENATE("Nitrogen flow at ",'Input sheet'!B4," purity at ",Selection!C21," ",'Input sheet'!C5," feed-air pressure and ",'Input sheet'!B8," enviromental temperature and ",'Input sheet'!B9," feed-air temperature") -> Nitrogen flow at 0,5% purity at 6 barg feed-air pressure and 20°C (68°F) enviromental temperature and 20°C (68°F) feed-air temperature | F31: =CONCATENATE("Feed-air consumption at ",'Input sheet'!B4," purity at ",Selection!C21," ",'Input sheet'!C5," feed-air pressure and ",'Input sheet'!B8," enviromental temperature and ",'Input sheet'!B9," feed-air temperature") -> Feed-air consumption at 0,5% purity at 6 barg feed-air pressure and 20°C (68°F) enviromental temperature and 20°C (68°F) feed-air temperature | H31: =CONCATENATE("Spare capacity in flow ",Selection!H25) -> Spare capacity in flow m3/hr | I31: Calculating fields | L31: Part number without EST | M31: Part number with EST | N31: EST % | O31: Genearotr output pressre | P31: Buffer vessel size (l) | Q31: Art nr Buffer vessel | R31: minimal number of generators
A32: Nitrogen generator typemembrane module | B32: =IFERROR((CONCATENATE("Per generator corrected for temperature in ",Selection!H25)),"") -> Per generator corrected for temperature in m3/hr | C32: number of generators | D32: =IFERROR((CONCATENATE("Total in ",Selection!H25)),"") -> Total in m3/hr | E32: % of generators (total) | F32: =IFERROR((CONCATENATE("Per generator corrected for temperature in ",Selection!H25)),"") -> Per generator corrected for temperature in m3/hr | G32: =IFERROR((CONCATENATE("Total in ",Selection!H25)),"") -> Total in m3/hr | I32: Before looking up the capacities, the model numbers and pressure needs to be concatenated first | J32: Nitrogen flow from performance table m3/hr per generator | K32: Feed-air consumption from performance table m3/hr per generator
A33: MIDIGAS 2 | B33: =J33*Selection!$D$24/$I$25 -> 3 | C33: 1 | D33: =IFERROR(B33*C33,"N/A") -> 3 | E33: =IFERROR(IF(('Input sheet'!$B$3/D33)<=1,('Input sheet'!$B$3/D33),"0"),"") -> 0 | F33: =K33*Selection!$F$24/$I$25 -> 9.6 | G33: =IFERROR(F33*C33,"N/A") -> 9.6 | H33: =IFERROR((D33-'Input sheet'!$B$3),"") -> -17 | I33: =CONCATENATE(A33,Selection!$G$27) -> MIDIGAS 26 | J33: =VLOOKUP(I33,'Capacities generators'!D:R,Selection!$G$26+1,FALSE) -> 3 | K33: =VLOOKUP(I33,'Capacities generators'!T:AH,Selection!$G$26+1,FALSE) -> 9.6 | L33: =CONCATENATE("MIDIGAS2",'Part numbers'!$X$174,'Part numbers'!$AE$164,'Part numbers'!$AF$174,'Part numbers'!$AR$166,'Part numbers'!$AR$174) -> MIDIGAS2NCBHA | M33: =CONCATENATE("EST"," ",Talen!$A$125) -> EST Not applicable | N33: N/A | O33: =VLOOKUP(I33,'Capacities generators'!AY:BM,Selection!$G$26+1,FALSE) -> 4.9 | P33: =IFERROR(INDEX('Buffer vessel'!$E$19:$E$23,'Buffer vessel'!$G$16,1),"N/A") -> 500 | Q33: =IFERROR(INDEX('Buffer vessel'!$D$19:$D$23,'Buffer vessel'!$G$16,1),"N/A") -> 60 620 1450 | R33: =IFERROR((IF(C33*ROUNDUP(E33,0)=0,"",C33*ROUNDUP(E33,0))),"N/A") -> 
A34: MIDIGAS 4 | B34: =J34*Selection!$D$24/$I$25 -> 6.1 | C34: 1 | D34: 6.1 | E34: =IFERROR(IF(('Input sheet'!$B$3/D34)<=1,('Input sheet'!$B$3/D34),"0"),"") -> 0 | F34: =K34*Selection!$F$24/$I$25 -> 19.5 | G34: 19.5 | H34: =IFERROR((D34-'Input sheet'!$B$3),"") -> -13.9 | I34: =CONCATENATE(A34,Selection!$G$27) -> MIDIGAS 46 | J34: =VLOOKUP(I34,'Capacities generators'!D:R,Selection!$G$26+1,FALSE) -> 6.1 | K34: =VLOOKUP(I34,'Capacities generators'!T:AH,Selection!$G$26+1,FALSE) -> 19.5 | L34: =CONCATENATE("MIDIGAS4",'Part numbers'!$X$174,'Part numbers'!$AE$164,'Part numbers'!$AF$174,'Part numbers'!$AR$166,'Part numbers'!$AR$174) -> MIDIGAS4NCBHA | M34: =CONCATENATE("EST"," ",Talen!$A$125) -> EST Not applicable | N34: N/A | O34: =VLOOKUP(I34,'Capacities generators'!AY:BM,Selection!$G$26+1,FALSE) -> 4.9 | P34: =IFERROR(INDEX('Buffer vessel'!$E$19:$E$23,'Buffer vessel'!$G$16,1),"na") -> 500 | Q34: =IFERROR(INDEX('Buffer vessel'!$D$19:$D$23,'Buffer vessel'!$G$16,1),"N/A") -> 60 620 1450 | R34: =IFERROR((IF(C34*ROUNDUP(E34,0)=0,"",C34*ROUNDUP(E34,0))),"N/A") -> 
A35: MIDIGAS 6 | B35: =J35*Selection!$D$24/$I$25 -> 8.4 | C35: 1 | D35: 8.4 | E35: =IFERROR(IF(('Input sheet'!$B$3/D35)<=1,('Input sheet'!$B$3/D35),"0"),"") -> 0 | F35: =K35*Selection!$F$24/$I$25 -> 26.9 | G35: 26.9 | H35: =IFERROR((D35-'Input sheet'!$B$3),"") -> -11.6 | I35: =CONCATENATE(A35,Selection!$G$27) -> MIDIGAS 66 | J35: =VLOOKUP(I35,'Capacities generators'!D:R,Selection!$G$26+1,FALSE) -> 8.4 | K35: =VLOOKUP(I35,'Capacities generators'!T:AH,Selection!$G$26+1,FALSE) -> 26.9 | L35: =CONCATENATE("MIDIGAS6",'Part numbers'!$X$174,'Part numbers'!$AE$164,'Part numbers'!$AF$174,'Part numbers'!$AR$166,'Part numbers'!$AR$174) -> MIDIGAS6NCBHA | M35: =CONCATENATE("EST"," ",Talen!$A$125) -> EST Not applicable | N35: N/A | O35: =VLOOKUP(I35,'Capacities generators'!AY:BM,Selection!$G$26+1,FALSE) -> 4.9 | P35: =IFERROR(INDEX('Buffer vessel'!$E$19:$E$23,'Buffer vessel'!$G$16,1),"N/A") -> 500 | Q35: =IFERROR(INDEX('Buffer vessel'!$D$19:$D$23,'Buffer vessel'!$G$16,1),"N/A") -> 60 620 1450
A36: MIDIGAS 4 | B36: =J36*Selection!$D$24/$I$25 -> 6.1 | C36: 2 | D36: =IFERROR(B36*C36,"N/A") -> 12.2 | E36: =IFERROR(IF(('Input sheet'!$B$3/D36)<=1,('Input sheet'!$B$3/D36),"0"),"") -> 0 | F36: =K36*Selection!$F$24/$I$25 -> 19.5 | G36: =IFERROR(F36*C36,"N/A") -> 39 | H36: =IFERROR((D36-'Input sheet'!$B$3),"") -> -7.8 | I36: =CONCATENATE(A36,Selection!$G$27) -> MIDIGAS 46 | J36: =VLOOKUP(I36,'Capacities generators'!D:R,Selection!$G$26+1,FALSE) -> 6.1 | K36: =VLOOKUP(I36,'Capacities generators'!T:AH,Selection!$G$26+1,FALSE) -> 19.5 | L36: =CONCATENATE("MIDIGAS4",'Part numbers'!$X$174,'Part numbers'!$AE$164,'Part numbers'!$AF$174,'Part numbers'!$AR$166,'Part numbers'!$AR$174) -> MIDIGAS4NCBHA | M36: =CONCATENATE("EST"," ",Talen!$A$125) -> EST Not applicable | N36: N/A | O36: =VLOOKUP(I36,'Capacities generators'!AY:BM,Selection!$G$26+1,FALSE) -> 4.9 | P36: =IFERROR(INDEX('Buffer vessel'!$E$19:$E$23,'Buffer vessel'!$G$16,1),"na") -> 500 | Q36: =IFERROR(INDEX('Buffer vessel'!$D$19:$D$23,'Buffer vessel'!$G$16,1),"N/A") -> 60 620 1450
A37: N2-20P | B37: =J37*Selection!$D$25/$I$25 -> 14.7 | C37: 1 | D37: 14.7 | E37: =IFERROR(IF(('Input sheet'!$B$3/D37)<=1,('Input sheet'!$B$3/D37),"0"),"") -> 0 | F37: =K37*Selection!$F$25/$I$25 -> 41.2 | G37: 41.2 | H37: =IFERROR((D37-'Input sheet'!$B$3),"") -> -5.3 | I37: =CONCATENATE(A37,Selection!$G$27) -> N2-20P6 | J37: =VLOOKUP(I37,'Capacities generators'!D:R,Selection!$G$26+1,FALSE) -> 14.7 | K37: =VLOOKUP(I37,'Capacities generators'!T:AH,Selection!$G$26+1,FALSE) -> 41.2 | L37: =CONCATENATE(Selection!A37,'Part numbers'!$Z$16,'Part numbers'!$Z$24,'Part numbers'!$AM$23) -> N2-20PBLN | M37: =IF('Part numbers'!$AM$24="N",CONCATENATE("EST"," ",Talen!$A$125),CONCATENATE(Selection!A37,'Part numbers'!$Z$16,'Part numbers'!$Z$24,'Part numbers'!$AM$24)) -> N2-20PBLY | N37: =VLOOKUP('Input sheet'!$F$17,'factors-pull down'!$A$62:$B$80,2) -> 0.1 | O37: =VLOOKUP(I37,'Capacities generators'!AY:BM,Selection!$G$26+1,FALSE) -> 4.9 | P37: =VLOOKUP(A37,'Buffer vessel'!$A$5:$B$13,2,FALSE) -> 250 | Q37: =VLOOKUP(A37,'Buffer vessel'!$A$5:$C$13,3,FALSE) -> 606201444
A38: N2-25P | B38: =J38*Selection!$D$25/$I$25 -> 22 | C38: 1 | D38: 22 | E38: =IFERROR(IF(('Input sheet'!$B$3/D38)<=1,('Input sheet'!$B$3/D38),"0"),"") -> 0.9090909091 | F38: =K38*Selection!$F$25/$I$25 -> 61.6 | G38: 61.6 | H38: =IFERROR((D38-'Input sheet'!$B$3),"") -> 2 | I38: =CONCATENATE(A38,Selection!$G$27) -> N2-25P6 | J38: =VLOOKUP(I38,'Capacities generators'!D:R,Selection!$G$26+1,FALSE) -> 22 | K38: =VLOOKUP(I38,'Capacities generators'!T:AH,Selection!$G$26+1,FALSE) -> 61.6 | L38: =CONCATENATE(Selection!A38,'Part numbers'!$Z$16,'Part numbers'!$Z$24,'Part numbers'!$AM$23) -> N2-25PBLN | M38: =IF('Part numbers'!$AM$24="N",CONCATENATE("EST"," ",Talen!$A$125),CONCATENATE(Selection!A38,'Part numbers'!$Z$16,'Part numbers'!$Z$24,'Part numbers'!$AM$24)) -> N2-25PBLY | N38: =VLOOKUP('Input sheet'!$F$17,'factors-pull down'!$A$62:$B$80,2) -> 0.1 | O38: =VLOOKUP(I38,'Capacities generators'!AY:BM,Selection!$G$26+1,FALSE) -> 4.9 | P38: =VLOOKUP(A38,'Buffer vessel'!$A$5:$B$13,2,FALSE) -> 500 | Q38: =VLOOKUP(A38,'Buffer vessel'!$A$5:$C$13,3,FALSE) -> 606201450 | R38: 1
A39: N2-35P | B39: =J39*Selection!$D$25/$I$25 -> 29.4 | C39: 1 | D39: 29.4 | E39: =IFERROR(IF(('Input sheet'!$B$3/D39)<=1,('Input sheet'!$B$3/D39),"0"),"") -> 0.6802721088 | F39: =K39*Selection!$F$25/$I$25 -> 82.3 | G39: 82.3 | H39: =IFERROR((D39-'Input sheet'!$B$3),"") -> 9.4 | I39: =CONCATENATE(A39,Selection!$G$27) -> N2-35P6 | J39: =VLOOKUP(I39,'Capacities generators'!D:R,Selection!$G$26+1,FALSE) -> 29.4 | K39: =VLOOKUP(I39,'Capacities generators'!T:AH,Selection!$G$26+1,FALSE) -> 82.3 | L39: =CONCATENATE(Selection!A39,'Part numbers'!$Z$16,'Part numbers'!$Z$24,'Part numbers'!$AM$23) -> N2-35PBLN | M39: =IF('Part numbers'!$AM$24="N",CONCATENATE("EST"," ",Talen!$A$125),CONCATENATE(Selection!A39,'Part numbers'!$Z$16,'Part numbers'!$Z$24,'Part numbers'!$AM$24)) -> N2-35PBLY | N39: =VLOOKUP('Input sheet'!$F$17,'factors-pull down'!$A$62:$B$80,2) -> 0.1 | O39: =VLOOKUP(I39,'Capacities generators'!AY:BM,Selection!$G$26+1,FALSE) -> 4.9 | P39: =VLOOKUP(A39,'Buffer vessel'!$A$5:$B$13,2,FALSE) -> 500 | Q39: =VLOOKUP(A39,'Buffer vessel'!$A$5:$C$13,3,FALSE) -> 606201450 | R39: 1
A40: N2-45P | B40: =J40*Selection!$D$25/$I$25 -> 36.7 | C40: 1 | D40: 36.7 | E40: =IFERROR(IF(('Input sheet'!$B$3/D40)<=1,('Input sheet'!$B$3/D40),"0"),"") -> 0.5449591281 | F40: =K40*Selection!$F$25/$I$25 -> 102.8 | G40: 102.8 | H40: =IFERROR((D40-'Input sheet'!$B$3),"") -> 16.7 | I40: =CONCATENATE(A40,Selection!$G$27) -> N2-45P6 | J40: =VLOOKUP(I40,'Capacities generators'!D:R,Selection!$G$26+1,FALSE) -> 36.7 | K40: =VLOOKUP(I40,'Capacities generators'!T:AH,Selection!$G$26+1,FALSE) -> 102.8 | L40: =CONCATENATE(Selection!A40,'Part numbers'!$Z$16,'Part numbers'!$Z$24,'Part numbers'!$AM$23) -> N2-45PBLN | M40: =IF('Part numbers'!$AM$24="N",CONCATENATE("EST"," ",Talen!$A$125),CONCATENATE(Selection!A40,'Part numbers'!$Z$16,'Part numbers'!$Z$24,'Part numbers'!$AM$24)) -> N2-45PBLY | N40: =VLOOKUP('Input sheet'!$F$17,'factors-pull down'!$A$62:$B$80,2) -> 0.1 | O40: =VLOOKUP(I40,'Capacities generators'!AY:BM,Selection!$G$26+1,FALSE) -> 4.9 | P40: =VLOOKUP(A40,'Buffer vessel'!$A$5:$B$13,2,FALSE) -> 750 | Q40: =VLOOKUP(A40,'Buffer vessel'!$A$5:$C$13,3,FALSE) -> 606201452 | R40: 1
A41: N2-55P | B41: =J41*Selection!$D$25/$I$25 -> 44.1 | C41: 1 | D41: 44.1 | E41: =IFERROR(IF(('Input sheet'!$B$3/D41)<=1,('Input sheet'!$B$3/D41),"0"),"") -> 0.4535147392 | F41: =K41*Selection!$F$25/$I$25 -> 123.5 | G41: 123.5 | H41: =IFERROR((D41-'Input sheet'!$B$3),"") -> 24.1 | I41: =CONCATENATE(A41,Selection!$G$27) -> N2-55P6 | J41: =VLOOKUP(I41,'Capacities generators'!D:R,Selection!$G$26+1,FALSE) -> 44.1 | K41: =VLOOKUP(I41,'Capacities generators'!T:AH,Selection!$G$26+1,FALSE) -> 123.5 | L41: =CONCATENATE(Selection!A41,'Part numbers'!$Z$16,'Part numbers'!$Z$24,'Part numbers'!$AM$23) -> N2-55PBLN | M41: =IF('Part numbers'!$AM$24="N",CONCATENATE("EST"," ",Talen!$A$125),CONCATENATE(Selection!A41,'Part numbers'!$Z$16,'Part numbers'!$Z$24,'Part numbers'!$AM$24)) -> N2-55PBLY | N41: =VLOOKUP('Input sheet'!$F$17,'factors-pull down'!$A$62:$B$80,2) -> 0.1 | O41: =VLOOKUP(I41,'Capacities generators'!AY:BM,Selection!$G$26+1,FALSE) -> 4.9 | P41: =VLOOKUP(A41,'Buffer vessel'!$A$5:$B$13,2,FALSE) -> 750 | Q41: =VLOOKUP(A41,'Buffer vessel'!$A$5:$C$13,3,FALSE) -> 606201452 | R41: 1
A42: N2-60P | B42: =J42*Selection!$D$25/$I$25 -> 48.8 | C42: 1 | D42: 48.8 | E42: =IFERROR(IF(('Input sheet'!$B$3/D42)<=1,('Input sheet'!$B$3/D42),"0"),"") -> 0.4098360656 | F42: =K42*Selection!$F$25/$I$25 -> 141.5 | G42: 141.5 | H42: =IFERROR((D42-'Input sheet'!$B$3),"") -> 28.8 | I42: =CONCATENATE(A42,Selection!$G$27) -> N2-60P6 | J42: =VLOOKUP(I42,'Capacities generators'!D:R,Selection!$G$26+1,FALSE) -> 48.8 | K42: =VLOOKUP(I42,'Capacities generators'!T:AH,Selection!$G$26+1,FALSE) -> 141.5 | L42: =CONCATENATE(Selection!A42,'Part numbers'!$Z$16,'Part numbers'!$Z$24,'Part numbers'!$AM$23) -> N2-60PBLN | M42: =IF('Part numbers'!$AM$24="N",CONCATENATE("EST"," ",Talen!$A$125),CONCATENATE(Selection!A42,'Part numbers'!$Z$16,'Part numbers'!$Z$24,'Part numbers'!$AM$24)) -> N2-60PBLY | N42: =VLOOKUP('Input sheet'!$F$17,'factors-pull down'!$A$62:$B$80,2) -> 0.1 | O42: =VLOOKUP(I42,'Capacities generators'!AY:BM,Selection!$G$26+1,FALSE) -> 4.9 | P42: =VLOOKUP(A42,'Buffer vessel'!$A$5:$B$13,2,FALSE) -> 750 | Q42: =VLOOKUP(A42,'Buffer vessel'!$A$5:$C$13,3,FALSE) -> 606201452 | R42: 1
A43: N2-65P | B43: =J43*Selection!$D$25/$I$25 -> 55.8 | C43: 1 | D43: 55.8 | E43: =IFERROR(IF(('Input sheet'!$B$3/D43)<=1,('Input sheet'!$B$3/D43),"0"),"") -> 0.3584229391 | F43: =K43*Selection!$F$25/$I$25 -> 161.8 | G43: 161.8 | H43: =IFERROR((D43-'Input sheet'!$B$3),"") -> 35.8 | I43: =CONCATENATE(A43,Selection!$G$27) -> N2-65P6 | J43: =VLOOKUP(I43,'Capacities generators'!D:R,Selection!$G$26+1,FALSE) -> 55.8 | K43: =VLOOKUP(I43,'Capacities generators'!T:AH,Selection!$G$26+1,FALSE) -> 161.8 | L43: =CONCATENATE(Selection!A43,'Part numbers'!$Z$16,'Part numbers'!$Z$24,'Part numbers'!$AM$23) -> N2-65PBLN | M43: =IF('Part numbers'!$AM$24="N",CONCATENATE("EST"," ",Talen!$A$125),CONCATENATE(Selection!A43,'Part numbers'!$Z$16,'Part numbers'!$Z$24,'Part numbers'!$AM$24)) -> N2-65PBLY | N43: =VLOOKUP('Input sheet'!$F$17,'factors-pull down'!$A$62:$B$80,2) -> 0.1 | O43: =VLOOKUP(I43,'Capacities generators'!AY:BM,Selection!$G$26+1,FALSE) -> 4.9 | P43: =VLOOKUP(A43,'Buffer vessel'!$A$5:$B$13,2,FALSE) -> 1000 | Q43: =VLOOKUP(A43,'Buffer vessel'!$A$5:$C$13,3,FALSE) -> 606201456 | R43: 1
A44: N2-75P | B44: =J44*Selection!$D$25/$I$25 -> 60.8 | C44: 1 | D44: 60.8 | E44: =IFERROR(IF(('Input sheet'!$B$3/D44)<=1,('Input sheet'!$B$3/D44),"0"),"") -> 0.3289473684 | F44: =K44*Selection!$F$25/$I$25 -> 182.4 | G44: 182.4 | H44: =IFERROR((D44-'Input sheet'!$B$3),"") -> 40.8 | I44: =CONCATENATE(A44,Selection!$G$27) -> N2-75P6 | J44: =VLOOKUP(I44,'Capacities generators'!D:R,Selection!$G$26+1,FALSE) -> 60.8 | K44: =VLOOKUP(I44,'Capacities generators'!T:AH,Selection!$G$26+1,FALSE) -> 182.4 | L44: =CONCATENATE(Selection!A44,'Part numbers'!$Z$16,'Part numbers'!$Z$24,'Part numbers'!$AM$23) -> N2-75PBLN | M44: =IF('Part numbers'!$AM$24="N",CONCATENATE("EST"," ",Talen!$A$125),CONCATENATE(Selection!A44,'Part numbers'!$Z$16,'Part numbers'!$Z$24,'Part numbers'!$AM$24)) -> N2-75PBLY | N44: =VLOOKUP('Input sheet'!$F$17,'factors-pull down'!$A$62:$B$80,2) -> 0.1 | O44: =VLOOKUP(I44,'Capacities generators'!AY:BM,Selection!$G$26+1,FALSE) -> 4.9 | P44: =VLOOKUP(A44,'Buffer vessel'!$A$5:$B$13,2,FALSE) -> 1000 | Q44: =VLOOKUP(A44,'Buffer vessel'!$A$5:$C$13,3,FALSE) -> 606201456 | R44: 1
A45: N2-80P | B45: =J45*Selection!$D$25/$I$25 -> 67.6 | C45: 1 | D45: =IFERROR(B45*C45,"N/A") -> 67.6 | E45: =IFERROR(IF(('Input sheet'!$B$3/D45)<=1,('Input sheet'!$B$3/D45),"0"),"") -> 0.2958579882 | F45: =K45*Selection!$F$25/$I$25 -> 202.8 | G45: 202.8 | H45: =IFERROR((D45-'Input sheet'!$B$3),"") -> 47.6 | I45: =CONCATENATE(A45,Selection!$G$27) -> N2-80P6 | J45: =VLOOKUP(I45,'Capacities generators'!D:R,Selection!$G$26+1,FALSE) -> 67.6 | K45: =VLOOKUP(I45,'Capacities generators'!T:AH,Selection!$G$26+1,FALSE) -> 202.8 | L45: =CONCATENATE(Selection!A45,'Part numbers'!$Z$16,'Part numbers'!$Z$24,'Part numbers'!$AM$23) -> N2-80PBLN | M45: =IF('Part numbers'!$AM$24="N",CONCATENATE("EST"," ",Talen!$A$125),CONCATENATE(Selection!A45,'Part numbers'!$Z$16,'Part numbers'!$Z$24,'Part numbers'!$AM$24)) -> N2-80PBLY | N45: =VLOOKUP('Input sheet'!$F$17,'factors-pull down'!$A$62:$B$80,2) -> 0.1 | O45: =VLOOKUP(I45,'Capacities generators'!AY:BM,Selection!$G$26+1,FALSE) -> 4.9 | P45: =VLOOKUP(A45,'Buffer vessel'!$A$5:$B$13,2,FALSE) -> 1000 | Q45: =VLOOKUP(A45,'Buffer vessel'!$A$5:$C$13,3,FALSE) -> 606201456 | R45: 1
A46: N2-45P | B46: =J46*Selection!$D$25/$I$25 -> 36.7 | C46: 2 | D46: 73.4 | E46: =IFERROR(IF(('Input sheet'!$B$3/D46)<=1,('Input sheet'!$B$3/D46),"0"),"") -> 0.272479564 | F46: =K46*Selection!$F$25/$I$25 -> 102.8 | G46: 205.6 | H46: =IFERROR((D46-'Input sheet'!$B$3),"") -> 53.4 | I46: =CONCATENATE(A46,Selection!$G$27) -> N2-45P6 | J46: =VLOOKUP(I46,'Capacities generators'!D:R,Selection!$G$26+1,FALSE) -> 36.7 | K46: =VLOOKUP(I46,'Capacities generators'!T:AH,Selection!$G$26+1,FALSE) -> 102.8 | L46: =CONCATENATE(Selection!A46,'Part numbers'!$Z$16,'Part numbers'!$Z$24,'Part numbers'!$AM$23) -> N2-45PBLN | M46: =IF('Part numbers'!$AM$24="N",CONCATENATE("EST"," ",Talen!$A$125),CONCATENATE(Selection!A46,'Part numbers'!$Z$16,'Part numbers'!$Z$24,'Part numbers'!$AM$24)) -> N2-45PBLY | N46: =VLOOKUP('Input sheet'!$F$17,'factors-pull down'!$A$62:$B$80,2) -> 0.1 | O46: =VLOOKUP(I46,'Capacities generators'!AY:BM,Selection!$G$26+1,FALSE) -> 4.9 | P46: =VLOOKUP(A46,'Buffer vessel'!$A$5:$B$13,2,FALSE) -> 750 | Q46: =VLOOKUP(A46,'Buffer vessel'!$A$5:$C$13,3,FALSE) -> 606201452 | R46: 2
A47: N2-55P | B47: =J47*Selection!$D$25/$I$25 -> 44.1 | C47: 2 | D47: 88.2 | E47: =IFERROR(IF(('Input sheet'!$B$3/D47)<=1,('Input sheet'!$B$3/D47),"0"),"") -> 0.2267573696 | F47: =K47*Selection!$F$25/$I$25 -> 123.5 | G47: 247 | H47: =IFERROR((D47-'Input sheet'!$B$3),"") -> 68.2 | I47: =CONCATENATE(A47,Selection!$G$27) -> N2-55P6 | J47: =VLOOKUP(I47,'Capacities generators'!D:R,Selection!$G$26+1,FALSE) -> 44.1 | K47: =VLOOKUP(I47,'Capacities generators'!T:AH,Selection!$G$26+1,FALSE) -> 123.5 | L47: =CONCATENATE(Selection!A47,'Part numbers'!$Z$16,'Part numbers'!$Z$24,'Part numbers'!$AM$23) -> N2-55PBLN | M47: =IF('Part numbers'!$AM$24="N",CONCATENATE("EST"," ",Talen!$A$125),CONCATENATE(Selection!A47,'Part numbers'!$Z$16,'Part numbers'!$Z$24,'Part numbers'!$AM$24)) -> N2-55PBLY | N47: =VLOOKUP('Input sheet'!$F$17,'factors-pull down'!$A$62:$B$80,2) -> 0.1 | O47: =VLOOKUP(I47,'Capacities generators'!AY:BM,Selection!$G$26+1,FALSE) -> 4.9 | P47: =VLOOKUP(A47,'Buffer vessel'!$A$5:$B$13,2,FALSE) -> 750 | Q47: =VLOOKUP(A47,'Buffer vessel'!$A$5:$C$13,3,FALSE) -> 606201452 | R47: 2
A48: N2-60P | B48: =J48*Selection!$D$25/$I$25 -> 48.8 | C48: 2 | D48: 97.6 | E48: =IFERROR(IF(('Input sheet'!$B$3/D48)<=1,('Input sheet'!$B$3/D48),"0"),"") -> 0.2049180328 | F48: =K48*Selection!$F$25/$I$25 -> 141.5 | G48: 283 | H48: =IFERROR((D48-'Input sheet'!$B$3),"") -> 77.6 | I48: =CONCATENATE(A48,Selection!$G$27) -> N2-60P6 | J48: =VLOOKUP(I48,'Capacities generators'!D:R,Selection!$G$26+1,FALSE) -> 48.8 | K48: =VLOOKUP(I48,'Capacities generators'!T:AH,Selection!$G$26+1,FALSE) -> 141.5 | L48: =CONCATENATE(Selection!A48,'Part numbers'!$Z$16,'Part numbers'!$Z$24,'Part numbers'!$AM$23) -> N2-60PBLN | M48: =IF('Part numbers'!$AM$24="N",CONCATENATE("EST"," ",Talen!$A$125),CONCATENATE(Selection!A48,'Part numbers'!$Z$16,'Part numbers'!$Z$24,'Part numbers'!$AM$24)) -> N2-60PBLY | N48: =VLOOKUP('Input sheet'!$F$17,'factors-pull down'!$A$62:$B$80,2) -> 0.1 | O48: =VLOOKUP(I48,'Capacities generators'!AY:BM,Selection!$G$26+1,FALSE) -> 4.9 | P48: =VLOOKUP(A48,'Buffer vessel'!$A$5:$B$13,2,FALSE) -> 750 | Q48: =VLOOKUP(A48,'Buffer vessel'!$A$5:$C$13,3,FALSE) -> 606201452 | R48: 2
A49: N2-65P | B49: =J49*Selection!$D$25/$I$25 -> 55.8 | C49: 2 | D49: 111.6 | E49: =IFERROR(IF(('Input sheet'!$B$3/D49)<=1,('Input sheet'!$B$3/D49),"0"),"") -> 0.1792114695 | F49: =K49*Selection!$F$25/$I$25 -> 161.8 | G49: 323.6 | H49: =IFERROR((D49-'Input sheet'!$B$3),"") -> 91.6 | I49: =CONCATENATE(A49,Selection!$G$27) -> N2-65P6 | J49: =VLOOKUP(I49,'Capacities generators'!D:R,Selection!$G$26+1,FALSE) -> 55.8 | K49: =VLOOKUP(I49,'Capacities generators'!T:AH,Selection!$G$26+1,FALSE) -> 161.8 | L49: =CONCATENATE(Selection!A49,'Part numbers'!$Z$16,'Part numbers'!$Z$24,'Part numbers'!$AM$23) -> N2-65PBLN | M49: =IF('Part numbers'!$AM$24="N",CONCATENATE("EST"," ",Talen!$A$125),CONCATENATE(Selection!A49,'Part numbers'!$Z$16,'Part numbers'!$Z$24,'Part numbers'!$AM$24)) -> N2-65PBLY | N49: =VLOOKUP('Input sheet'!$F$17,'factors-pull down'!$A$62:$B$80,2) -> 0.1 | O49: =VLOOKUP(I49,'Capacities generators'!AY:BM,Selection!$G$26+1,FALSE) -> 4.9 | P49: =VLOOKUP(A49,'Buffer vessel'!$A$5:$B$13,2,FALSE) -> 1000 | Q49: =VLOOKUP(A49,'Buffer vessel'!$A$5:$C$13,3,FALSE) -> 606201456 | R49: 2
A50: N2-75P | B50: =J50*Selection!$D$25/$I$25 -> 60.8 | C50: 2 | D50: 121.6 | E50: =IFERROR(IF(('Input sheet'!$B$3/D50)<=1,('Input sheet'!$B$3/D50),"0"),"") -> 0.1644736842 | F50: =K50*Selection!$F$25/$I$25 -> 182.4 | G50: 364.8 | H50: =IFERROR((D50-'Input sheet'!$B$3),"") -> 101.6 | I50: =CONCATENATE(A50,Selection!$G$27) -> N2-75P6 | J50: =VLOOKUP(I50,'Capacities generators'!D:R,Selection!$G$26+1,FALSE) -> 60.8 | K50: =VLOOKUP(I50,'Capacities generators'!T:AH,Selection!$G$26+1,FALSE) -> 182.4 | L50: =CONCATENATE(Selection!A50,'Part numbers'!$Z$16,'Part numbers'!$Z$24,'Part numbers'!$AM$23) -> N2-75PBLN | M50: =IF('Part numbers'!$AM$24="N",CONCATENATE("EST"," ",Talen!$A$125),CONCATENATE(Selection!A50,'Part numbers'!$Z$16,'Part numbers'!$Z$24,'Part numbers'!$AM$24)) -> N2-75PBLY | N50: =VLOOKUP('Input sheet'!$F$17,'factors-pull down'!$A$62:$B$80,2) -> 0.1 | O50: =VLOOKUP(I50,'Capacities generators'!AY:BM,Selection!$G$26+1,FALSE) -> 4.9 | P50: =VLOOKUP(A50,'Buffer vessel'!$A$5:$B$13,2,FALSE) -> 1000 | Q50: =VLOOKUP(A50,'Buffer vessel'!$A$5:$C$13,3,FALSE) -> 606201456 | R50: 2
A51: N2-80P | B51: =J51*Selection!$D$25/$I$25 -> 67.6 | C51: 2 | D51: 135.2 | E51: =IFERROR(IF(('Input sheet'!$B$3/D51)<=1,('Input sheet'!$B$3/D51),"0"),"") -> 0.1479289941 | F51: =K51*Selection!$F$25/$I$25 -> 202.8 | G51: 405.6 | H51: =IFERROR((D51-'Input sheet'!$B$3),"") -> 115.2 | I51: =CONCATENATE(A51,Selection!$G$27) -> N2-80P6 | J51: =VLOOKUP(I51,'Capacities generators'!D:R,Selection!$G$26+1,FALSE) -> 67.6 | K51: =VLOOKUP(I51,'Capacities generators'!T:AH,Selection!$G$26+1,FALSE) -> 202.8 | L51: =CONCATENATE(Selection!A51,'Part numbers'!$Z$16,'Part numbers'!$Z$24,'Part numbers'!$AM$23) -> N2-80PBLN | M51: =IF('Part numbers'!$AM$24="N",CONCATENATE("EST"," ",Talen!$A$125),CONCATENATE(Selection!A51,'Part numbers'!$Z$16,'Part numbers'!$Z$24,'Part numbers'!$AM$24)) -> N2-80PBLY | N51: =VLOOKUP('Input sheet'!$F$17,'factors-pull down'!$A$62:$B$80,2) -> 0.1 | O51: =VLOOKUP(I51,'Capacities generators'!AY:BM,Selection!$G$26+1,FALSE) -> 4.9 | P51: =VLOOKUP(A51,'Buffer vessel'!$A$5:$B$13,2,FALSE) -> 1000 | Q51: =VLOOKUP(A51,'Buffer vessel'!$A$5:$C$13,3,FALSE) -> 606201456 | R51: 2
A52: N2-45P | B52: =J52*Selection!$D$25/$I$25 -> 36.7 | C52: 2 | D52: 73.4 | E52: =IFERROR(IF(('Input sheet'!$B$3/D52)<=1,('Input sheet'!$B$3/D52),"0"),"") -> 0.272479564 | F52: =K52*Selection!$F$25/$I$25 -> 102.8 | G52: 205.6 | H52: =IFERROR((D52-'Input sheet'!$B$3),"") -> 53.4 | I52: =CONCATENATE(A52,Selection!$G$27) -> N2-45P6 | J52: =VLOOKUP(I52,'Capacities generators'!D:R,Selection!$G$26+1,FALSE) -> 36.7 | K52: =VLOOKUP(I52,'Capacities generators'!T:AH,Selection!$G$26+1,FALSE) -> 102.8 | L52: =CONCATENATE(Selection!A52,'Part numbers'!$Z$16,'Part numbers'!$Z$24,'Part numbers'!$AM$23) -> N2-45PBLN | M52: =IF('Part numbers'!$AM$24="N",CONCATENATE("EST"," ",Talen!$A$125),CONCATENATE(Selection!A52,'Part numbers'!$Z$16,'Part numbers'!$Z$24,'Part numbers'!$AM$24)) -> N2-45PBLY | N52: =VLOOKUP('Input sheet'!$F$17,'factors-pull down'!$A$62:$B$80,2) -> 0.1 | O52: =VLOOKUP(I52,'Capacities generators'!AY:BM,Selection!$G$26+1,FALSE) -> 4.9 | P52: =VLOOKUP(A52,'Buffer vessel'!$A$5:$B$13,2,FALSE) -> 750 | Q52: =VLOOKUP(A52,'Buffer vessel'!$A$5:$C$13,3,FALSE) -> 606201452 | R52: 2
A53: N2-55P | B53: =J53*Selection!$D$25/$I$25 -> 44.1 | C53: 3 | D53: 132.3 | E53: =IFERROR(IF(('Input sheet'!$B$3/D53)<=1,('Input sheet'!$B$3/D53),"0"),"") -> 0.1511715797 | F53: =K53*Selection!$F$25/$I$25 -> 123.5 | G53: 370.5 | H53: =IFERROR((D53-'Input sheet'!$B$3),"") -> 112.3 | I53: =CONCATENATE(A53,Selection!$G$27) -> N2-55P6 | J53: =VLOOKUP(I53,'Capacities generators'!D:R,Selection!$G$26+1,FALSE) -> 44.1 | K53: =VLOOKUP(I53,'Capacities generators'!T:AH,Selection!$G$26+1,FALSE) -> 123.5 | L53: =CONCATENATE(Selection!A53,'Part numbers'!$Z$16,'Part numbers'!$Z$24,'Part numbers'!$AM$23) -> N2-55PBLN | M53: =IF('Part numbers'!$AM$24="N",CONCATENATE("EST"," ",Talen!$A$125),CONCATENATE(Selection!A53,'Part numbers'!$Z$16,'Part numbers'!$Z$24,'Part numbers'!$AM$24)) -> N2-55PBLY | N53: =VLOOKUP('Input sheet'!$F$17,'factors-pull down'!$A$62:$B$80,2) -> 0.1 | O53: =VLOOKUP(I53,'Capacities generators'!AY:BM,Selection!$G$26+1,FALSE) -> 4.9 | P53: =VLOOKUP(A53,'Buffer vessel'!$A$5:$B$13,2,FALSE) -> 750 | Q53: =VLOOKUP(A53,'Buffer vessel'!$A$5:$C$13,3,FALSE) -> 606201452 | R53: 3
A54: N2-60P | B54: =J54*Selection!$D$25/$I$25 -> 48.8 | C54: 3 | D54: 146.4 | E54: =IFERROR(IF(('Input sheet'!$B$3/D54)<=1,('Input sheet'!$B$3/D54),"0"),"") -> 0.1366120219 | F54: =K54*Selection!$F$25/$I$25 -> 141.5 | G54: 424.5 | H54: =IFERROR((D54-'Input sheet'!$B$3),"") -> 126.4 | I54: =CONCATENATE(A54,Selection!$G$27) -> N2-60P6 | J54: =VLOOKUP(I54,'Capacities generators'!D:R,Selection!$G$26+1,FALSE) -> 48.8 | K54: =VLOOKUP(I54,'Capacities generators'!T:AH,Selection!$G$26+1,FALSE) -> 141.5 | L54: =CONCATENATE(Selection!A54,'Part numbers'!$Z$16,'Part numbers'!$Z$24,'Part numbers'!$AM$23) -> N2-60PBLN | M54: =IF('Part numbers'!$AM$24="N",CONCATENATE("EST"," ",Talen!$A$125),CONCATENATE(Selection!A54,'Part numbers'!$Z$16,'Part numbers'!$Z$24,'Part numbers'!$AM$24)) -> N2-60PBLY | N54: =VLOOKUP('Input sheet'!$F$17,'factors-pull down'!$A$62:$B$80,2) -> 0.1 | O54: =VLOOKUP(I54,'Capacities generators'!AY:BM,Selection!$G$26+1,FALSE) -> 4.9 | P54: =VLOOKUP(A54,'Buffer vessel'!$A$5:$B$13,2,FALSE) -> 750 | Q54: =VLOOKUP(A54,'Buffer vessel'!$A$5:$C$13,3,FALSE) -> 606201452 | R54: 3
A55: N2-65P | B55: =J55*Selection!$D$25/$I$25 -> 55.8 | C55: 3 | D55: 167.4 | E55: =IFERROR(IF(('Input sheet'!$B$3/D55)<=1,('Input sheet'!$B$3/D55),"0"),"") -> 0.119474313 | F55: =K55*Selection!$F$25/$I$25 -> 161.8 | G55: 485.4 | H55: =IFERROR((D55-'Input sheet'!$B$3),"") -> 147.4 | I55: =CONCATENATE(A55,Selection!$G$27) -> N2-65P6 | J55: =VLOOKUP(I55,'Capacities generators'!D:R,Selection!$G$26+1,FALSE) -> 55.8 | K55: =VLOOKUP(I55,'Capacities generators'!T:AH,Selection!$G$26+1,FALSE) -> 161.8 | L55: =CONCATENATE(Selection!A55,'Part numbers'!$Z$16,'Part numbers'!$Z$24,'Part numbers'!$AM$23) -> N2-65PBLN | M55: =IF('Part numbers'!$AM$24="N",CONCATENATE("EST"," ",Talen!$A$125),CONCATENATE(Selection!A55,'Part numbers'!$Z$16,'Part numbers'!$Z$24,'Part numbers'!$AM$24)) -> N2-65PBLY | N55: =VLOOKUP('Input sheet'!$F$17,'factors-pull down'!$A$62:$B$80,2) -> 0.1 | O55: =VLOOKUP(I55,'Capacities generators'!AY:BM,Selection!$G$26+1,FALSE) -> 4.9 | P55: =VLOOKUP(A55,'Buffer vessel'!$A$5:$B$13,2,FALSE) -> 1000 | Q55: =VLOOKUP(A55,'Buffer vessel'!$A$5:$C$13,3,FALSE) -> 606201456 | R55: 3
A56: N2-75P | B56: =J56*Selection!$D$25/$I$25 -> 60.8 | C56: 3 | D56: 182.4 | E56: =IFERROR(IF(('Input sheet'!$B$3/D56)<=1,('Input sheet'!$B$3/D56),"0"),"") -> 0.1096491228 | F56: =K56*Selection!$F$25/$I$25 -> 182.4 | G56: 547.2 | H56: =IFERROR((D56-'Input sheet'!$B$3),"") -> 162.4 | I56: =CONCATENATE(A56,Selection!$G$27) -> N2-75P6 | J56: =VLOOKUP(I56,'Capacities generators'!D:R,Selection!$G$26+1,FALSE) -> 60.8 | K56: =VLOOKUP(I56,'Capacities generators'!T:AH,Selection!$G$26+1,FALSE) -> 182.4 | L56: =CONCATENATE(Selection!A56,'Part numbers'!$Z$16,'Part numbers'!$Z$24,'Part numbers'!$AM$23) -> N2-75PBLN | M56: =IF('Part numbers'!$AM$24="N",CONCATENATE("EST"," ",Talen!$A$125),CONCATENATE(Selection!A56,'Part numbers'!$Z$16,'Part numbers'!$Z$24,'Part numbers'!$AM$24)) -> N2-75PBLY | N56: =VLOOKUP('Input sheet'!$F$17,'factors-pull down'!$A$62:$B$80,2) -> 0.1 | O56: =VLOOKUP(I56,'Capacities generators'!AY:BM,Selection!$G$26+1,FALSE) -> 4.9 | P56: =VLOOKUP(A56,'Buffer vessel'!$A$5:$B$13,2,FALSE) -> 1000 | Q56: =VLOOKUP(A56,'Buffer vessel'!$A$5:$C$13,3,FALSE) -> 606201456 | R56: 3
A57: N2-80P | B57: =J57*Selection!$D$25/$I$25 -> 67.6 | C57: 3 | D57: 202.8 | E57: =IFERROR(IF(('Input sheet'!$B$3/D57)<=1,('Input sheet'!$B$3/D57),"0"),"") -> 0.09861932939 | F57: =K57*Selection!$F$25/$I$25 -> 202.8 | G57: 608.4 | H57: =IFERROR((D57-'Input sheet'!$B$3),"") -> 182.8 | I57: =CONCATENATE(A57,Selection!$G$27) -> N2-80P6 | J57: =VLOOKUP(I57,'Capacities generators'!D:R,Selection!$G$26+1,FALSE) -> 67.6 | K57: =VLOOKUP(I57,'Capacities generators'!T:AH,Selection!$G$26+1,FALSE) -> 202.8 | L57: =CONCATENATE(Selection!A57,'Part numbers'!$Z$16,'Part numbers'!$Z$24,'Part numbers'!$AM$23) -> N2-80PBLN | M57: =IF('Part numbers'!$AM$24="N",CONCATENATE("EST"," ",Talen!$A$125),CONCATENATE(Selection!A57,'Part numbers'!$Z$16,'Part numbers'!$Z$24,'Part numbers'!$AM$24)) -> N2-80PBLY | N57: =VLOOKUP('Input sheet'!$F$17,'factors-pull down'!$A$62:$B$80,2) -> 0.1 | O57: =VLOOKUP(I57,'Capacities generators'!AY:BM,Selection!$G$26+1,FALSE) -> 4.9 | P57: =VLOOKUP(A57,'Buffer vessel'!$A$5:$B$13,2,FALSE) -> 1000 | Q57: =VLOOKUP(A57,'Buffer vessel'!$A$5:$C$13,3,FALSE) -> 606201456 | R57: 3
A58: N2-45P | B58: =J58*Selection!$D$25/$I$25 -> 36.7 | C58: 4 | D58: 146.8 | E58: =IFERROR(IF(('Input sheet'!$B$3/D58)<=1,('Input sheet'!$B$3/D58),"0"),"") -> 0.136239782 | F58: =K58*Selection!$F$25/$I$25 -> 102.8 | G58: 411.2 | H58: =IFERROR((D58-'Input sheet'!$B$3),"") -> 126.8 | I58: =CONCATENATE(A58,Selection!$G$27) -> N2-45P6 | J58: =VLOOKUP(I58,'Capacities generators'!D:R,Selection!$G$26+1,FALSE) -> 36.7 | K58: =VLOOKUP(I58,'Capacities generators'!T:AH,Selection!$G$26+1,FALSE) -> 102.8 | L58: =CONCATENATE(Selection!A58,'Part numbers'!$Z$16,'Part numbers'!$Z$24,'Part numbers'!$AM$23) -> N2-45PBLN | M58: =IF('Part numbers'!$AM$24="N",CONCATENATE("EST"," ",Talen!$A$125),CONCATENATE(Selection!A58,'Part numbers'!$Z$16,'Part numbers'!$Z$24,'Part numbers'!$AM$24)) -> N2-45PBLY | N58: =VLOOKUP('Input sheet'!$F$17,'factors-pull down'!$A$62:$B$80,2) -> 0.1 | O58: =VLOOKUP(I58,'Capacities generators'!AY:BM,Selection!$G$26+1,FALSE) -> 4.9 | P58: =VLOOKUP(A58,'Buffer vessel'!$A$5:$B$13,2,FALSE) -> 750 | Q58: =VLOOKUP(A58,'Buffer vessel'!$A$5:$C$13,3,FALSE) -> 606201452 | R58: 4
A59: N2-55P | B59: =J59*Selection!$D$25/$I$25 -> 44.1 | C59: 4 | D59: 176.4 | E59: =IFERROR(IF(('Input sheet'!$B$3/D59)<=1,('Input sheet'!$B$3/D59),"0"),"") -> 0.1133786848 | F59: =K59*Selection!$F$25/$I$25 -> 123.5 | G59: 494 | H59: =IFERROR((D59-'Input sheet'!$B$3),"") -> 156.4 | I59: =CONCATENATE(A59,Selection!$G$27) -> N2-55P6 | J59: =VLOOKUP(I59,'Capacities generators'!D:R,Selection!$G$26+1,FALSE) -> 44.1 | K59: =VLOOKUP(I59,'Capacities generators'!T:AH,Selection!$G$26+1,FALSE) -> 123.5 | L59: =CONCATENATE(Selection!A59,'Part numbers'!$Z$16,'Part numbers'!$Z$24,'Part numbers'!$AM$23) -> N2-55PBLN | M59: =IF('Part numbers'!$AM$24="N",CONCATENATE("EST"," ",Talen!$A$125),CONCATENATE(Selection!A59,'Part numbers'!$Z$16,'Part numbers'!$Z$24,'Part numbers'!$AM$24)) -> N2-55PBLY | N59: =VLOOKUP('Input sheet'!$F$17,'factors-pull down'!$A$62:$B$80,2) -> 0.1 | O59: =VLOOKUP(I59,'Capacities generators'!AY:BM,Selection!$G$26+1,FALSE) -> 4.9 | P59: =VLOOKUP(A59,'Buffer vessel'!$A$5:$B$13,2,FALSE) -> 750 | Q59: =VLOOKUP(A59,'Buffer vessel'!$A$5:$C$13,3,FALSE) -> 606201452 | R59: 4
A60: N2-60P | B60: =J60*Selection!$D$25/$I$25 -> 48.8 | C60: 4 | D60: 195.2 | E60: =IFERROR(IF(('Input sheet'!$B$3/D60)<=1,('Input sheet'!$B$3/D60),"0"),"") -> 0.1024590164 | F60: =K60*Selection!$F$25/$I$25 -> 141.5 | G60: 566 | H60: =IFERROR((D60-'Input sheet'!$B$3),"") -> 175.2 | I60: =CONCATENATE(A60,Selection!$G$27) -> N2-60P6 | J60: =VLOOKUP(I60,'Capacities generators'!D:R,Selection!$G$26+1,FALSE) -> 48.8 | K60: =VLOOKUP(I60,'Capacities generators'!T:AH,Selection!$G$26+1,FALSE) -> 141.5 | L60: =CONCATENATE(Selection!A60,'Part numbers'!$Z$16,'Part numbers'!$Z$24,'Part numbers'!$AM$23) -> N2-60PBLN | M60: =IF('Part numbers'!$AM$24="N",CONCATENATE("EST"," ",Talen!$A$125),CONCATENATE(Selection!A60,'Part numbers'!$Z$16,'Part numbers'!$Z$24,'Part numbers'!$AM$24)) -> N2-60PBLY | N60: =VLOOKUP('Input sheet'!$F$17,'factors-pull down'!$A$62:$B$80,2) -> 0.1 | O60: =VLOOKUP(I60,'Capacities generators'!AY:BM,Selection!$G$26+1,FALSE) -> 4.9 | P60: =VLOOKUP(A60,'Buffer vessel'!$A$5:$B$13,2,FALSE) -> 750 | Q60: =VLOOKUP(A60,'Buffer vessel'!$A$5:$C$13,3,FALSE) -> 606201452 | R60: 4
A61: N2-65P | B61: =J61*Selection!$D$25/$I$25 -> 55.8 | C61: 4 | D61: 223.2 | E61: =IFERROR(IF(('Input sheet'!$B$3/D61)<=1,('Input sheet'!$B$3/D61),"0"),"") -> 0.08960573477 | F61: =K61*Selection!$F$25/$I$25 -> 161.8 | G61: 647.2 | H61: =IFERROR((D61-'Input sheet'!$B$3),"") -> 203.2 | I61: =CONCATENATE(A61,Selection!$G$27) -> N2-65P6 | J61: =VLOOKUP(I61,'Capacities generators'!D:R,Selection!$G$26+1,FALSE) -> 55.8 | K61: =VLOOKUP(I61,'Capacities generators'!T:AH,Selection!$G$26+1,FALSE) -> 161.8 | L61: =CONCATENATE(Selection!A61,'Part numbers'!$Z$16,'Part numbers'!$Z$24,'Part numbers'!$AM$23) -> N2-65PBLN | M61: =IF('Part numbers'!$AM$24="N",CONCATENATE("EST"," ",Talen!$A$125),CONCATENATE(Selection!A61,'Part numbers'!$Z$16,'Part numbers'!$Z$24,'Part numbers'!$AM$24)) -> N2-65PBLY | N61: =VLOOKUP('Input sheet'!$F$17,'factors-pull down'!$A$62:$B$80,2) -> 0.1 | O61: =VLOOKUP(I61,'Capacities generators'!AY:BM,Selection!$G$26+1,FALSE) -> 4.9 | P61: =VLOOKUP(A61,'Buffer vessel'!$A$5:$B$13,2,FALSE) -> 1000 | Q61: =VLOOKUP(A61,'Buffer vessel'!$A$5:$C$13,3,FALSE) -> 606201456 | R61: 4
A62: N2-75P | B62: =J62*Selection!$D$25/$I$25 -> 60.8 | C62: 4 | D62: 243.2 | E62: =IFERROR(IF(('Input sheet'!$B$3/D62)<=1,('Input sheet'!$B$3/D62),"0"),"") -> 0.08223684211 | F62: =K62*Selection!$F$25/$I$25 -> 182.4 | G62: 729.6 | H62: =IFERROR((D62-'Input sheet'!$B$3),"") -> 223.2 | I62: =CONCATENATE(A62,Selection!$G$27) -> N2-75P6 | J62: =VLOOKUP(I62,'Capacities generators'!D:R,Selection!$G$26+1,FALSE) -> 60.8 | K62: =VLOOKUP(I62,'Capacities generators'!T:AH,Selection!$G$26+1,FALSE) -> 182.4 | L62: =CONCATENATE(Selection!A62,'Part numbers'!$Z$16,'Part numbers'!$Z$24,'Part numbers'!$AM$23) -> N2-75PBLN | M62: =IF('Part numbers'!$AM$24="N",CONCATENATE("EST"," ",Talen!$A$125),CONCATENATE(Selection!A62,'Part numbers'!$Z$16,'Part numbers'!$Z$24,'Part numbers'!$AM$24)) -> N2-75PBLY | N62: =VLOOKUP('Input sheet'!$F$17,'factors-pull down'!$A$62:$B$80,2) -> 0.1 | O62: =VLOOKUP(I62,'Capacities generators'!AY:BM,Selection!$G$26+1,FALSE) -> 4.9 | P62: =VLOOKUP(A62,'Buffer vessel'!$A$5:$B$13,2,FALSE) -> 1000 | Q62: =VLOOKUP(A62,'Buffer vessel'!$A$5:$C$13,3,FALSE) -> 606201456 | R62: 4
A63: N2-80P | B63: =J63*Selection!$D$25/$I$25 -> 67.6 | C63: 4 | D63: 270.4 | E63: =IFERROR(IF(('Input sheet'!$B$3/D63)<=1,('Input sheet'!$B$3/D63),"0"),"") -> 0.07396449704 | F63: =K63*Selection!$F$25/$I$25 -> 202.8 | G63: 811.2 | H63: =IFERROR((D63-'Input sheet'!$B$3),"") -> 250.4 | I63: =CONCATENATE(A63,Selection!$G$27) -> N2-80P6 | J63: =VLOOKUP(I63,'Capacities generators'!D:R,Selection!$G$26+1,FALSE) -> 67.6 | K63: =VLOOKUP(I63,'Capacities generators'!T:AH,Selection!$G$26+1,FALSE) -> 202.8 | L63: =CONCATENATE(Selection!A63,'Part numbers'!$Z$16,'Part numbers'!$Z$24,'Part numbers'!$AM$23) -> N2-80PBLN | M63: =IF('Part numbers'!$AM$24="N",CONCATENATE("EST"," ",Talen!$A$125),CONCATENATE(Selection!A63,'Part numbers'!$Z$16,'Part numbers'!$Z$24,'Part numbers'!$AM$24)) -> N2-80PBLY | N63: =VLOOKUP('Input sheet'!$F$17,'factors-pull down'!$A$62:$B$80,2) -> 0.1 | O63: =VLOOKUP(I63,'Capacities generators'!AY:BM,Selection!$G$26+1,FALSE) -> 4.9 | P63: =VLOOKUP(A63,'Buffer vessel'!$A$5:$B$13,2,FALSE) -> 1000 | Q63: =VLOOKUP(A63,'Buffer vessel'!$A$5:$C$13,3,FALSE) -> 606201456 | R63: 4
A64: N2-45P | B64: =J64*Selection!$D$25/$I$25 -> 36.7 | C64: 5 | D64: 183.5 | E64: =IFERROR(IF(('Input sheet'!$B$3/D64)<=1,('Input sheet'!$B$3/D64),"0"),"") -> 0.1089918256 | F64: =K64*Selection!$F$25/$I$25 -> 102.8 | G64: 514 | H64: =IFERROR((D64-'Input sheet'!$B$3),"") -> 163.5 | I64: =CONCATENATE(A64,Selection!$G$27) -> N2-45P6 | J64: =VLOOKUP(I64,'Capacities generators'!D:R,Selection!$G$26+1,FALSE) -> 36.7 | K64: =VLOOKUP(I64,'Capacities generators'!T:AH,Selection!$G$26+1,FALSE) -> 102.8 | L64: =CONCATENATE(Selection!A64,'Part numbers'!$Z$16,'Part numbers'!$Z$24,'Part numbers'!$AM$23) -> N2-45PBLN | M64: =IF('Part numbers'!$AM$24="N",CONCATENATE("EST"," ",Talen!$A$125),CONCATENATE(Selection!A64,'Part numbers'!$Z$16,'Part numbers'!$Z$24,'Part numbers'!$AM$24)) -> N2-45PBLY | N64: =VLOOKUP('Input sheet'!$F$17,'factors-pull down'!$A$62:$B$80,2) -> 0.1 | O64: =VLOOKUP(I64,'Capacities generators'!AY:BM,Selection!$G$26+1,FALSE) -> 4.9 | P64: =VLOOKUP(A64,'Buffer vessel'!$A$5:$B$13,2,FALSE) -> 750 | Q64: =VLOOKUP(A64,'Buffer vessel'!$A$5:$C$13,3,FALSE) -> 606201452 | R64: 5
A65: N2-55P | B65: =J65*Selection!$D$25/$I$25 -> 44.1 | C65: 5 | D65: 220.5 | E65: =IFERROR(IF(('Input sheet'!$B$3/D65)<=1,('Input sheet'!$B$3/D65),"0"),"") -> 0.09070294785 | F65: =K65*Selection!$F$25/$I$25 -> 123.5 | G65: 617.5 | H65: =IFERROR((D65-'Input sheet'!$B$3),"") -> 200.5 | I65: =CONCATENATE(A65,Selection!$G$27) -> N2-55P6 | J65: =VLOOKUP(I65,'Capacities generators'!D:R,Selection!$G$26+1,FALSE) -> 44.1 | K65: =VLOOKUP(I65,'Capacities generators'!T:AH,Selection!$G$26+1,FALSE) -> 123.5 | L65: =CONCATENATE(Selection!A65,'Part numbers'!$Z$16,'Part numbers'!$Z$24,'Part numbers'!$AM$23) -> N2-55PBLN | M65: =IF('Part numbers'!$AM$24="N",CONCATENATE("EST"," ",Talen!$A$125),CONCATENATE(Selection!A65,'Part numbers'!$Z$16,'Part numbers'!$Z$24,'Part numbers'!$AM$24)) -> N2-55PBLY | N65: =VLOOKUP('Input sheet'!$F$17,'factors-pull down'!$A$62:$B$80,2) -> 0.1 | O65: =VLOOKUP(I65,'Capacities generators'!AY:BM,Selection!$G$26+1,FALSE) -> 4.9 | P65: =VLOOKUP(A65,'Buffer vessel'!$A$5:$B$13,2,FALSE) -> 750 | Q65: =VLOOKUP(A65,'Buffer vessel'!$A$5:$C$13,3,FALSE) -> 606201452 | R65: 5
A66: N2-60P | B66: =J66*Selection!$D$25/$I$25 -> 48.8 | C66: 5 | D66: =IFERROR(B66*C66,"N/A") -> 244 | E66: =IFERROR(IF(('Input sheet'!$B$3/D66)<=1,('Input sheet'!$B$3/D66),"0"),"") -> 0.08196721311 | F66: =K66*Selection!$F$25/$I$25 -> 141.5 | G66: =IFERROR(F66*C66,"N/A") -> 707.5 | H66: =IFERROR((D66-'Input sheet'!$B$3),"") -> 224 | I66: =CONCATENATE(A66,Selection!$G$27) -> N2-60P6 | J66: =VLOOKUP(I66,'Capacities generators'!D:R,Selection!$G$26+1,FALSE) -> 48.8 | K66: =VLOOKUP(I66,'Capacities generators'!T:AH,Selection!$G$26+1,FALSE) -> 141.5 | L66: =CONCATENATE(Selection!A66,'Part numbers'!$Z$16,'Part numbers'!$Z$24,'Part numbers'!$AM$23) -> N2-60PBLN | M66: =IF('Part numbers'!$AM$24="N",CONCATENATE("EST"," ",Talen!$A$125),CONCATENATE(Selection!A66,'Part numbers'!$Z$16,'Part numbers'!$Z$24,'Part numbers'!$AM$24)) -> N2-60PBLY | N66: =VLOOKUP('Input sheet'!$F$17,'factors-pull down'!$A$62:$B$80,2) -> 0.1 | O66: =VLOOKUP(I66,'Capacities generators'!AY:BM,Selection!$G$26+1,FALSE) -> 4.9 | P66: =VLOOKUP(A66,'Buffer vessel'!$A$5:$B$13,2,FALSE) -> 750 | Q66: =VLOOKUP(A66,'Buffer vessel'!$A$5:$C$13,3,FALSE) -> 606201452 | R66: 5
A67: N2-65P | B67: =J67*Selection!$D$25/$I$25 -> 55.8 | C67: 5 | D67: 279 | E67: =IFERROR(IF(('Input sheet'!$B$3/D67)<=1,('Input sheet'!$B$3/D67),"0"),"") -> 0.07168458781 | F67: =K67*Selection!$F$25/$I$25 -> 161.8 | G67: 809 | H67: =IFERROR((D67-'Input sheet'!$B$3),"") -> 259 | I67: =CONCATENATE(A67,Selection!$G$27) -> N2-65P6 | J67: =VLOOKUP(I67,'Capacities generators'!D:R,Selection!$G$26+1,FALSE) -> 55.8 | K67: =VLOOKUP(I67,'Capacities generators'!T:AH,Selection!$G$26+1,FALSE) -> 161.8 | L67: =CONCATENATE(Selection!A67,'Part numbers'!$Z$16,'Part numbers'!$Z$24,'Part numbers'!$AM$23) -> N2-65PBLN | M67: =IF('Part numbers'!$AM$24="N",CONCATENATE("EST"," ",Talen!$A$125),CONCATENATE(Selection!A67,'Part numbers'!$Z$16,'Part numbers'!$Z$24,'Part numbers'!$AM$24)) -> N2-65PBLY | N67: =VLOOKUP('Input sheet'!$F$17,'factors-pull down'!$A$62:$B$80,2) -> 0.1 | O67: =VLOOKUP(I67,'Capacities generators'!AY:BM,Selection!$G$26+1,FALSE) -> 4.9 | P67: =VLOOKUP(A67,'Buffer vessel'!$A$5:$B$13,2,FALSE) -> 1000 | Q67: =VLOOKUP(A67,'Buffer vessel'!$A$5:$C$13,3,FALSE) -> 606201456 | R67: 5
A68: N2-75P | B68: =J68*Selection!$D$25/$I$25 -> 60.8 | C68: 5 | D68: 304 | E68: =IFERROR(IF(('Input sheet'!$B$3/D68)<=1,('Input sheet'!$B$3/D68),"0"),"") -> 0.06578947368 | F68: =K68*Selection!$F$25/$I$25 -> 182.4 | G68: 912 | H68: =IFERROR((D68-'Input sheet'!$B$3),"") -> 284 | I68: =CONCATENATE(A68,Selection!$G$27) -> N2-75P6 | J68: =VLOOKUP(I68,'Capacities generators'!D:R,Selection!$G$26+1,FALSE) -> 60.8 | K68: =VLOOKUP(I68,'Capacities generators'!T:AH,Selection!$G$26+1,FALSE) -> 182.4 | L68: =CONCATENATE(Selection!A68,'Part numbers'!$Z$16,'Part numbers'!$Z$24,'Part numbers'!$AM$23) -> N2-75PBLN | M68: =IF('Part numbers'!$AM$24="N",CONCATENATE("EST"," ",Talen!$A$125),CONCATENATE(Selection!A68,'Part numbers'!$Z$16,'Part numbers'!$Z$24,'Part numbers'!$AM$24)) -> N2-75PBLY | N68: =VLOOKUP('Input sheet'!$F$17,'factors-pull down'!$A$62:$B$80,2) -> 0.1 | O68: =VLOOKUP(I68,'Capacities generators'!AY:BM,Selection!$G$26+1,FALSE) -> 4.9 | P68: =VLOOKUP(A68,'Buffer vessel'!$A$5:$B$13,2,FALSE) -> 1000 | Q68: =VLOOKUP(A68,'Buffer vessel'!$A$5:$C$13,3,FALSE) -> 606201456 | R68: 5
A69: N2-80P | B69: =J69*Selection!$D$25/$I$25 -> 67.6 | C69: 5 | D69: 338 | E69: =IFERROR(IF(('Input sheet'!$B$3/D69)<=1,('Input sheet'!$B$3/D69),"0"),"") -> 0.05917159763 | F69: =K69*Selection!$F$25/$I$25 -> 202.8 | G69: 1014 | H69: =IFERROR((D69-'Input sheet'!$B$3),"") -> 318 | I69: =CONCATENATE(A69,Selection!$G$27) -> N2-80P6 | J69: =VLOOKUP(I69,'Capacities generators'!D:R,Selection!$G$26+1,FALSE) -> 67.6 | K69: =VLOOKUP(I69,'Capacities generators'!T:AH,Selection!$G$26+1,FALSE) -> 202.8 | L69: =CONCATENATE(Selection!A69,'Part numbers'!$Z$16,'Part numbers'!$Z$24,'Part numbers'!$AM$23) -> N2-80PBLN | M69: =IF('Part numbers'!$AM$24="N",CONCATENATE("EST"," ",Talen!$A$125),CONCATENATE(Selection!A69,'Part numbers'!$Z$16,'Part numbers'!$Z$24,'Part numbers'!$AM$24)) -> N2-80PBLY | N69: =VLOOKUP('Input sheet'!$F$17,'factors-pull down'!$A$62:$B$80,2) -> 0.1 | O69: =VLOOKUP(I69,'Capacities generators'!AY:BM,Selection!$G$26+1,FALSE) -> 4.9 | P69: =VLOOKUP(A69,'Buffer vessel'!$A$5:$B$13,2,FALSE) -> 1000 | Q69: =VLOOKUP(A69,'Buffer vessel'!$A$5:$C$13,3,FALSE) -> 606201456 | R69: 5
A70: N2-45P | B70: =J70*Selection!$D$25/$I$25 -> 36.7 | C70: 6 | D70: 220.2 | E70: =IFERROR(IF(('Input sheet'!$B$3/D70)<=1,('Input sheet'!$B$3/D70),"0"),"") -> 0.09082652134 | F70: =K70*Selection!$F$25/$I$25 -> 102.8 | G70: 616.8 | H70: =IFERROR((D70-'Input sheet'!$B$3),"") -> 200.2 | I70: =CONCATENATE(A70,Selection!$G$27) -> N2-45P6 | J70: =VLOOKUP(I70,'Capacities generators'!D:R,Selection!$G$26+1,FALSE) -> 36.7 | K70: =VLOOKUP(I70,'Capacities generators'!T:AH,Selection!$G$26+1,FALSE) -> 102.8 | L70: =CONCATENATE(Selection!A70,'Part numbers'!$Z$16,'Part numbers'!$Z$24,'Part numbers'!$AM$23) -> N2-45PBLN | M70: =IF('Part numbers'!$AM$24="N",CONCATENATE("EST"," ",Talen!$A$125),CONCATENATE(Selection!A70,'Part numbers'!$Z$16,'Part numbers'!$Z$24,'Part numbers'!$AM$24)) -> N2-45PBLY | N70: =VLOOKUP('Input sheet'!$F$17,'factors-pull down'!$A$62:$B$80,2) -> 0.1 | O70: =VLOOKUP(I70,'Capacities generators'!AY:BM,Selection!$G$26+1,FALSE) -> 4.9 | P70: =VLOOKUP(A70,'Buffer vessel'!$A$5:$B$13,2,FALSE) -> 750 | Q70: =VLOOKUP(A70,'Buffer vessel'!$A$5:$C$13,3,FALSE) -> 606201452 | R70: 6
A71: N2-55P | B71: =J71*Selection!$D$25/$I$25 -> 44.1 | C71: 6 | D71: 264.6 | E71: =IFERROR(IF(('Input sheet'!$B$3/D71)<=1,('Input sheet'!$B$3/D71),"0"),"") -> 0.07558578987 | F71: =K71*Selection!$F$25/$I$25 -> 123.5 | G71: 741 | H71: =IFERROR((D71-'Input sheet'!$B$3),"") -> 244.6 | I71: =CONCATENATE(A71,Selection!$G$27) -> N2-55P6 | J71: =VLOOKUP(I71,'Capacities generators'!D:R,Selection!$G$26+1,FALSE) -> 44.1 | K71: =VLOOKUP(I71,'Capacities generators'!T:AH,Selection!$G$26+1,FALSE) -> 123.5 | L71: =CONCATENATE(Selection!A71,'Part numbers'!$Z$16,'Part numbers'!$Z$24,'Part numbers'!$AM$23) -> N2-55PBLN | M71: =IF('Part numbers'!$AM$24="N",CONCATENATE("EST"," ",Talen!$A$125),CONCATENATE(Selection!A71,'Part numbers'!$Z$16,'Part numbers'!$Z$24,'Part numbers'!$AM$24)) -> N2-55PBLY | N71: =VLOOKUP('Input sheet'!$F$17,'factors-pull down'!$A$62:$B$80,2) -> 0.1 | O71: =VLOOKUP(I71,'Capacities generators'!AY:BM,Selection!$G$26+1,FALSE) -> 4.9 | P71: =VLOOKUP(A71,'Buffer vessel'!$A$5:$B$13,2,FALSE) -> 750 | Q71: =VLOOKUP(A71,'Buffer vessel'!$A$5:$C$13,3,FALSE) -> 606201452 | R71: 6
A72: N2-60P | B72: =J72*Selection!$D$25/$I$25 -> 48.8 | C72: 6 | D72: 292.8 | E72: =IFERROR(IF(('Input sheet'!$B$3/D72)<=1,('Input sheet'!$B$3/D72),"0"),"") -> 0.06830601093 | F72: =K72*Selection!$F$25/$I$25 -> 141.5 | G72: 849 | H72: =IFERROR((D72-'Input sheet'!$B$3),"") -> 272.8 | I72: =CONCATENATE(A72,Selection!$G$27) -> N2-60P6 | J72: =VLOOKUP(I72,'Capacities generators'!D:R,Selection!$G$26+1,FALSE) -> 48.8 | K72: =VLOOKUP(I72,'Capacities generators'!T:AH,Selection!$G$26+1,FALSE) -> 141.5 | L72: =CONCATENATE(Selection!A72,'Part numbers'!$Z$16,'Part numbers'!$Z$24,'Part numbers'!$AM$23) -> N2-60PBLN | M72: =IF('Part numbers'!$AM$24="N",CONCATENATE("EST"," ",Talen!$A$125),CONCATENATE(Selection!A72,'Part numbers'!$Z$16,'Part numbers'!$Z$24,'Part numbers'!$AM$24)) -> N2-60PBLY | N72: =VLOOKUP('Input sheet'!$F$17,'factors-pull down'!$A$62:$B$80,2) -> 0.1 | O72: =VLOOKUP(I72,'Capacities generators'!AY:BM,Selection!$G$26+1,FALSE) -> 4.9 | P72: =VLOOKUP(A72,'Buffer vessel'!$A$5:$B$13,2,FALSE) -> 750 | Q72: =VLOOKUP(A72,'Buffer vessel'!$A$5:$C$13,3,FALSE) -> 606201452 | R72: 6
A73: N2-65P | B73: =J73*Selection!$D$25/$I$25 -> 55.8 | C73: 6 | D73: 334.8 | E73: =IFERROR(IF(('Input sheet'!$B$3/D73)<=1,('Input sheet'!$B$3/D73),"0"),"") -> 0.05973715651 | F73: =K73*Selection!$F$25/$I$25 -> 161.8 | G73: 970.8 | H73: =IFERROR((D73-'Input sheet'!$B$3),"") -> 314.8 | I73: =CONCATENATE(A73,Selection!$G$27) -> N2-65P6 | J73: =VLOOKUP(I73,'Capacities generators'!D:R,Selection!$G$26+1,FALSE) -> 55.8 | K73: =VLOOKUP(I73,'Capacities generators'!T:AH,Selection!$G$26+1,FALSE) -> 161.8 | L73: =CONCATENATE(Selection!A73,'Part numbers'!$Z$16,'Part numbers'!$Z$24,'Part numbers'!$AM$23) -> N2-65PBLN | M73: =IF('Part numbers'!$AM$24="N",CONCATENATE("EST"," ",Talen!$A$125),CONCATENATE(Selection!A73,'Part numbers'!$Z$16,'Part numbers'!$Z$24,'Part numbers'!$AM$24)) -> N2-65PBLY | N73: =VLOOKUP('Input sheet'!$F$17,'factors-pull down'!$A$62:$B$80,2) -> 0.1 | O73: =VLOOKUP(I73,'Capacities generators'!AY:BM,Selection!$G$26+1,FALSE) -> 4.9 | P73: =VLOOKUP(A73,'Buffer vessel'!$A$5:$B$13,2,FALSE) -> 1000 | Q73: =VLOOKUP(A73,'Buffer vessel'!$A$5:$C$13,3,FALSE) -> 606201456 | R73: 6
A74: N2-75P | B74: =J74*Selection!$D$25/$I$25 -> 60.8 | C74: 6 | D74: 364.8 | E74: =IFERROR(IF(('Input sheet'!$B$3/D74)<=1,('Input sheet'!$B$3/D74),"0"),"") -> 0.0548245614 | F74: =K74*Selection!$F$25/$I$25 -> 182.4 | G74: 1094.4 | H74: =IFERROR((D74-'Input sheet'!$B$3),"") -> 344.8 | I74: =CONCATENATE(A74,Selection!$G$27) -> N2-75P6 | J74: =VLOOKUP(I74,'Capacities generators'!D:R,Selection!$G$26+1,FALSE) -> 60.8 | K74: =VLOOKUP(I74,'Capacities generators'!T:AH,Selection!$G$26+1,FALSE) -> 182.4 | L74: =CONCATENATE(Selection!A74,'Part numbers'!$Z$16,'Part numbers'!$Z$24,'Part numbers'!$AM$23) -> N2-75PBLN | M74: =IF('Part numbers'!$AM$24="N",CONCATENATE("EST"," ",Talen!$A$125),CONCATENATE(Selection!A74,'Part numbers'!$Z$16,'Part numbers'!$Z$24,'Part numbers'!$AM$24)) -> N2-75PBLY | N74: =VLOOKUP('Input sheet'!$F$17,'factors-pull down'!$A$62:$B$80,2) -> 0.1 | O74: =VLOOKUP(I74,'Capacities generators'!AY:BM,Selection!$G$26+1,FALSE) -> 4.9 | P74: =VLOOKUP(A74,'Buffer vessel'!$A$5:$B$13,2,FALSE) -> 1000 | Q74: =VLOOKUP(A74,'Buffer vessel'!$A$5:$C$13,3,FALSE) -> 606201456 | R74: 6
A75: N2-80P | B75: =J75*Selection!$D$25/$I$25 -> 67.6 | C75: 6 | D75: 405.6 | E75: =IFERROR(IF(('Input sheet'!$B$3/D75)<=1,('Input sheet'!$B$3/D75),"0"),"") -> 0.04930966469 | F75: =K75*Selection!$F$25/$I$25 -> 202.8 | G75: 1216.8 | H75: =IFERROR((D75-'Input sheet'!$B$3),"") -> 385.6 | I75: =CONCATENATE(A75,Selection!$G$27) -> N2-80P6 | J75: =VLOOKUP(I75,'Capacities generators'!D:R,Selection!$G$26+1,FALSE) -> 67.6 | K75: =VLOOKUP(I75,'Capacities generators'!T:AH,Selection!$G$26+1,FALSE) -> 202.8 | L75: =CONCATENATE(Selection!A75,'Part numbers'!$Z$16,'Part numbers'!$Z$24,'Part numbers'!$AM$23) -> N2-80PBLN | M75: =IF('Part numbers'!$AM$24="N",CONCATENATE("EST"," ",Talen!$A$125),CONCATENATE(Selection!A75,'Part numbers'!$Z$16,'Part numbers'!$Z$24,'Part numbers'!$AM$24)) -> N2-80PBLY | N75: =VLOOKUP('Input sheet'!$F$17,'factors-pull down'!$A$62:$B$80,2) -> 0.1 | O75: =VLOOKUP(I75,'Capacities generators'!AY:BM,Selection!$G$26+1,FALSE) -> 4.9 | P75: =VLOOKUP(A75,'Buffer vessel'!$A$5:$B$13,2,FALSE) -> 1000 | Q75: =VLOOKUP(A75,'Buffer vessel'!$A$5:$C$13,3,FALSE) -> 606201456 | R75: 6
A76: N2-45P | B76: =J76*Selection!$D$25/$I$25 -> 36.7 | C76: 6 | D76: 220.2 | E76: =IFERROR(IF(('Input sheet'!$B$3/D76)<=1,('Input sheet'!$B$3/D76),"0"),"") -> 0.09082652134 | F76: =K76*Selection!$F$25/$I$25 -> 102.8 | G76: 616.8 | H76: =IFERROR((D76-'Input sheet'!$B$3),"") -> 200.2 | I76: =CONCATENATE(A76,Selection!$G$27) -> N2-45P6 | J76: =VLOOKUP(I76,'Capacities generators'!D:R,Selection!$G$26+1,FALSE) -> 36.7 | K76: =VLOOKUP(I76,'Capacities generators'!T:AH,Selection!$G$26+1,FALSE) -> 102.8 | L76: =CONCATENATE(Selection!A76,'Part numbers'!$Z$16,'Part numbers'!$Z$24,'Part numbers'!$AM$23) -> N2-45PBLN | M76: =IF('Part numbers'!$AM$24="N",CONCATENATE("EST"," ",Talen!$A$125),CONCATENATE(Selection!A76,'Part numbers'!$Z$16,'Part numbers'!$Z$24,'Part numbers'!$AM$24)) -> N2-45PBLY | N76: =VLOOKUP('Input sheet'!$F$17,'factors-pull down'!$A$62:$B$80,2) -> 0.1 | O76: =VLOOKUP(I76,'Capacities generators'!AY:BM,Selection!$G$26+1,FALSE) -> 4.9 | P76: =VLOOKUP(A76,'Buffer vessel'!$A$5:$B$13,2,FALSE) -> 750 | Q76: =VLOOKUP(A76,'Buffer vessel'!$A$5:$C$13,3,FALSE) -> 606201452 | R76: 6
A77: N2-55P | B77: =J77*Selection!$D$25/$I$25 -> 44.1 | C77: 7 | D77: 308.7 | E77: =IFERROR(IF(('Input sheet'!$B$3/D77)<=1,('Input sheet'!$B$3/D77),"0"),"") -> 0.06478781989 | F77: =K77*Selection!$F$25/$I$25 -> 123.5 | G77: 864.5 | H77: =IFERROR((D77-'Input sheet'!$B$3),"") -> 288.7 | I77: =CONCATENATE(A77,Selection!$G$27) -> N2-55P6 | J77: =VLOOKUP(I77,'Capacities generators'!D:R,Selection!$G$26+1,FALSE) -> 44.1 | K77: =VLOOKUP(I77,'Capacities generators'!T:AH,Selection!$G$26+1,FALSE) -> 123.5 | L77: =CONCATENATE(Selection!A77,'Part numbers'!$Z$16,'Part numbers'!$Z$24,'Part numbers'!$AM$23) -> N2-55PBLN | M77: =IF('Part numbers'!$AM$24="N",CONCATENATE("EST"," ",Talen!$A$125),CONCATENATE(Selection!A77,'Part numbers'!$Z$16,'Part numbers'!$Z$24,'Part numbers'!$AM$24)) -> N2-55PBLY | N77: =VLOOKUP('Input sheet'!$F$17,'factors-pull down'!$A$62:$B$80,2) -> 0.1 | O77: =VLOOKUP(I77,'Capacities generators'!AY:BM,Selection!$G$26+1,FALSE) -> 4.9 | P77: =VLOOKUP(A77,'Buffer vessel'!$A$5:$B$13,2,FALSE) -> 750 | Q77: =VLOOKUP(A77,'Buffer vessel'!$A$5:$C$13,3,FALSE) -> 606201452 | R77: 7
A78: N2-60P | B78: =J78*Selection!$D$25/$I$25 -> 48.8 | C78: 7 | D78: 341.6 | E78: =IFERROR(IF(('Input sheet'!$B$3/D78)<=1,('Input sheet'!$B$3/D78),"0"),"") -> 0.05854800937 | F78: =K78*Selection!$F$25/$I$25 -> 141.5 | G78: 990.5 | H78: =IFERROR((D78-'Input sheet'!$B$3),"") -> 321.6 | I78: =CONCATENATE(A78,Selection!$G$27) -> N2-60P6 | J78: =VLOOKUP(I78,'Capacities generators'!D:R,Selection!$G$26+1,FALSE) -> 48.8 | K78: =VLOOKUP(I78,'Capacities generators'!T:AH,Selection!$G$26+1,FALSE) -> 141.5 | L78: =CONCATENATE(Selection!A78,'Part numbers'!$Z$16,'Part numbers'!$Z$24,'Part numbers'!$AM$23) -> N2-60PBLN | M78: =IF('Part numbers'!$AM$24="N",CONCATENATE("EST"," ",Talen!$A$125),CONCATENATE(Selection!A78,'Part numbers'!$Z$16,'Part numbers'!$Z$24,'Part numbers'!$AM$24)) -> N2-60PBLY | N78: =VLOOKUP('Input sheet'!$F$17,'factors-pull down'!$A$62:$B$80,2) -> 0.1 | O78: =VLOOKUP(I78,'Capacities generators'!AY:BM,Selection!$G$26+1,FALSE) -> 4.9 | P78: =VLOOKUP(A78,'Buffer vessel'!$A$5:$B$13,2,FALSE) -> 750 | Q78: =VLOOKUP(A78,'Buffer vessel'!$A$5:$C$13,3,FALSE) -> 606201452 | R78: 7
A79: N2-65P | B79: =J79*Selection!$D$25/$I$25 -> 55.8 | C79: 7 | D79: 390.6 | E79: =IFERROR(IF(('Input sheet'!$B$3/D79)<=1,('Input sheet'!$B$3/D79),"0"),"") -> 0.05120327701 | F79: =K79*Selection!$F$25/$I$25 -> 161.8 | G79: 1132.6 | H79: =IFERROR((D79-'Input sheet'!$B$3),"") -> 370.6 | I79: =CONCATENATE(A79,Selection!$G$27) -> N2-65P6 | J79: =VLOOKUP(I79,'Capacities generators'!D:R,Selection!$G$26+1,FALSE) -> 55.8 | K79: =VLOOKUP(I79,'Capacities generators'!T:AH,Selection!$G$26+1,FALSE) -> 161.8 | L79: =CONCATENATE(Selection!A79,'Part numbers'!$Z$16,'Part numbers'!$Z$24,'Part numbers'!$AM$23) -> N2-65PBLN | M79: =IF('Part numbers'!$AM$24="N",CONCATENATE("EST"," ",Talen!$A$125),CONCATENATE(Selection!A79,'Part numbers'!$Z$16,'Part numbers'!$Z$24,'Part numbers'!$AM$24)) -> N2-65PBLY | N79: =VLOOKUP('Input sheet'!$F$17,'factors-pull down'!$A$62:$B$80,2) -> 0.1 | O79: =VLOOKUP(I79,'Capacities generators'!AY:BM,Selection!$G$26+1,FALSE) -> 4.9 | P79: =VLOOKUP(A79,'Buffer vessel'!$A$5:$B$13,2,FALSE) -> 1000 | Q79: =VLOOKUP(A79,'Buffer vessel'!$A$5:$C$13,3,FALSE) -> 606201456 | R79: 7
A80: N2-75P | B80: =J80*Selection!$D$25/$I$25 -> 60.8 | C80: 7 | D80: 425.6 | E80: =IFERROR(IF(('Input sheet'!$B$3/D80)<=1,('Input sheet'!$B$3/D80),"0"),"") -> 0.0469924812 | F80: =K80*Selection!$F$25/$I$25 -> 182.4 | G80: 1276.8 | H80: =IFERROR((D80-'Input sheet'!$B$3),"") -> 405.6 | I80: =CONCATENATE(A80,Selection!$G$27) -> N2-75P6 | J80: =VLOOKUP(I80,'Capacities generators'!D:R,Selection!$G$26+1,FALSE) -> 60.8 | K80: =VLOOKUP(I80,'Capacities generators'!T:AH,Selection!$G$26+1,FALSE) -> 182.4 | L80: =CONCATENATE(Selection!A80,'Part numbers'!$Z$16,'Part numbers'!$Z$24,'Part numbers'!$AM$23) -> N2-75PBLN | M80: =IF('Part numbers'!$AM$24="N",CONCATENATE("EST"," ",Talen!$A$125),CONCATENATE(Selection!A80,'Part numbers'!$Z$16,'Part numbers'!$Z$24,'Part numbers'!$AM$24)) -> N2-75PBLY | N80: =VLOOKUP('Input sheet'!$F$17,'factors-pull down'!$A$62:$B$80,2) -> 0.1 | O80: =VLOOKUP(I80,'Capacities generators'!AY:BM,Selection!$G$26+1,FALSE) -> 4.9 | P80: =VLOOKUP(A80,'Buffer vessel'!$A$5:$B$13,2,FALSE) -> 1000 | Q80: =VLOOKUP(A80,'Buffer vessel'!$A$5:$C$13,3,FALSE) -> 606201456 | R80: 7
A81: N2-80P | B81: =J81*Selection!$D$25/$I$25 -> 67.6 | C81: 7 | D81: 473.2 | E81: =IFERROR(IF(('Input sheet'!$B$3/D81)<=1,('Input sheet'!$B$3/D81),"0"),"") -> 0.04226542688 | F81: =K81*Selection!$F$25/$I$25 -> 202.8 | G81: 1419.6 | H81: =IFERROR((D81-'Input sheet'!$B$3),"") -> 453.2 | I81: =CONCATENATE(A81,Selection!$G$27) -> N2-80P6 | J81: =VLOOKUP(I81,'Capacities generators'!D:R,Selection!$G$26+1,FALSE) -> 67.6 | K81: =VLOOKUP(I81,'Capacities generators'!T:AH,Selection!$G$26+1,FALSE) -> 202.8 | L81: =CONCATENATE(Selection!A81,'Part numbers'!$Z$16,'Part numbers'!$Z$24,'Part numbers'!$AM$23) -> N2-80PBLN | M81: =IF('Part numbers'!$AM$24="N",CONCATENATE("EST"," ",Talen!$A$125),CONCATENATE(Selection!A81,'Part numbers'!$Z$16,'Part numbers'!$Z$24,'Part numbers'!$AM$24)) -> N2-80PBLY | N81: =VLOOKUP('Input sheet'!$F$17,'factors-pull down'!$A$62:$B$80,2) -> 0.1 | O81: =VLOOKUP(I81,'Capacities generators'!AY:BM,Selection!$G$26+1,FALSE) -> 4.9 | P81: =VLOOKUP(A81,'Buffer vessel'!$A$5:$B$13,2,FALSE) -> 1000 | Q81: =VLOOKUP(A81,'Buffer vessel'!$A$5:$C$13,3,FALSE) -> 606201456 | R81: 7
A82: N2-45P | B82: =J82*Selection!$D$25/$I$25 -> 36.7 | C82: 8 | D82: 293.6 | E82: =IFERROR(IF(('Input sheet'!$B$3/D82)<=1,('Input sheet'!$B$3/D82),"0"),"") -> 0.06811989101 | F82: =K82*Selection!$F$25/$I$25 -> 102.8 | G82: 822.4 | H82: =IFERROR((D82-'Input sheet'!$B$3),"") -> 273.6 | I82: =CONCATENATE(A82,Selection!$G$27) -> N2-45P6 | J82: =VLOOKUP(I82,'Capacities generators'!D:R,Selection!$G$26+1,FALSE) -> 36.7 | K82: =VLOOKUP(I82,'Capacities generators'!T:AH,Selection!$G$26+1,FALSE) -> 102.8 | L82: =CONCATENATE(Selection!A82,'Part numbers'!$Z$16,'Part numbers'!$Z$24,'Part numbers'!$AM$23) -> N2-45PBLN | M82: =IF('Part numbers'!$AM$24="N",CONCATENATE("EST"," ",Talen!$A$125),CONCATENATE(Selection!A82,'Part numbers'!$Z$16,'Part numbers'!$Z$24,'Part numbers'!$AM$24)) -> N2-45PBLY | N82: =VLOOKUP('Input sheet'!$F$17,'factors-pull down'!$A$62:$B$80,2) -> 0.1 | O82: =VLOOKUP(I82,'Capacities generators'!AY:BM,Selection!$G$26+1,FALSE) -> 4.9 | P82: =VLOOKUP(A82,'Buffer vessel'!$A$5:$B$13,2,FALSE) -> 750 | Q82: =VLOOKUP(A82,'Buffer vessel'!$A$5:$C$13,3,FALSE) -> 606201452 | R82: 8
A83: N2-55P | B83: =J83*Selection!$D$25/$I$25 -> 44.1 | C83: 8 | D83: 352.8 | E83: =IFERROR(IF(('Input sheet'!$B$3/D83)<=1,('Input sheet'!$B$3/D83),"0"),"") -> 0.0566893424 | F83: =K83*Selection!$F$25/$I$25 -> 123.5 | G83: 988 | H83: =IFERROR((D83-'Input sheet'!$B$3),"") -> 332.8 | I83: =CONCATENATE(A83,Selection!$G$27) -> N2-55P6 | J83: =VLOOKUP(I83,'Capacities generators'!D:R,Selection!$G$26+1,FALSE) -> 44.1 | K83: =VLOOKUP(I83,'Capacities generators'!T:AH,Selection!$G$26+1,FALSE) -> 123.5 | L83: =CONCATENATE(Selection!A83,'Part numbers'!$Z$16,'Part numbers'!$Z$24,'Part numbers'!$AM$23) -> N2-55PBLN | M83: =IF('Part numbers'!$AM$24="N",CONCATENATE("EST"," ",Talen!$A$125),CONCATENATE(Selection!A83,'Part numbers'!$Z$16,'Part numbers'!$Z$24,'Part numbers'!$AM$24)) -> N2-55PBLY | N83: =VLOOKUP('Input sheet'!$F$17,'factors-pull down'!$A$62:$B$80,2) -> 0.1 | O83: =VLOOKUP(I83,'Capacities generators'!AY:BM,Selection!$G$26+1,FALSE) -> 4.9 | P83: =VLOOKUP(A83,'Buffer vessel'!$A$5:$B$13,2,FALSE) -> 750 | Q83: =VLOOKUP(A83,'Buffer vessel'!$A$5:$C$13,3,FALSE) -> 606201452 | R83: 8
A84: N2-60P | B84: =J84*Selection!$D$25/$I$25 -> 48.8 | C84: 8 | D84: 390.4 | E84: =IFERROR(IF(('Input sheet'!$B$3/D84)<=1,('Input sheet'!$B$3/D84),"0"),"") -> 0.0512295082 | F84: =K84*Selection!$F$25/$I$25 -> 141.5 | G84: 1132 | H84: =IFERROR((D84-'Input sheet'!$B$3),"") -> 370.4 | I84: =CONCATENATE(A84,Selection!$G$27) -> N2-60P6 | J84: =VLOOKUP(I84,'Capacities generators'!D:R,Selection!$G$26+1,FALSE) -> 48.8 | K84: =VLOOKUP(I84,'Capacities generators'!T:AH,Selection!$G$26+1,FALSE) -> 141.5 | L84: =CONCATENATE(Selection!A84,'Part numbers'!$Z$16,'Part numbers'!$Z$24,'Part numbers'!$AM$23) -> N2-60PBLN | M84: =IF('Part numbers'!$AM$24="N",CONCATENATE("EST"," ",Talen!$A$125),CONCATENATE(Selection!A84,'Part numbers'!$Z$16,'Part numbers'!$Z$24,'Part numbers'!$AM$24)) -> N2-60PBLY | N84: =VLOOKUP('Input sheet'!$F$17,'factors-pull down'!$A$62:$B$80,2) -> 0.1 | O84: =VLOOKUP(I84,'Capacities generators'!AY:BM,Selection!$G$26+1,FALSE) -> 4.9 | P84: =VLOOKUP(A84,'Buffer vessel'!$A$5:$B$13,2,FALSE) -> 750 | Q84: =VLOOKUP(A84,'Buffer vessel'!$A$5:$C$13,3,FALSE) -> 606201452 | R84: 8
A85: N2-65P | B85: =J85*Selection!$D$25/$I$25 -> 55.8 | C85: 8 | D85: 446.4 | E85: =IFERROR(IF(('Input sheet'!$B$3/D85)<=1,('Input sheet'!$B$3/D85),"0"),"") -> 0.04480286738 | F85: =K85*Selection!$F$25/$I$25 -> 161.8 | G85: 1294.4 | H85: =IFERROR((D85-'Input sheet'!$B$3),"") -> 426.4 | I85: =CONCATENATE(A85,Selection!$G$27) -> N2-65P6 | J85: =VLOOKUP(I85,'Capacities generators'!D:R,Selection!$G$26+1,FALSE) -> 55.8 | K85: =VLOOKUP(I85,'Capacities generators'!T:AH,Selection!$G$26+1,FALSE) -> 161.8 | L85: =CONCATENATE(Selection!A85,'Part numbers'!$Z$16,'Part numbers'!$Z$24,'Part numbers'!$AM$23) -> N2-65PBLN | M85: =IF('Part numbers'!$AM$24="N",CONCATENATE("EST"," ",Talen!$A$125),CONCATENATE(Selection!A85,'Part numbers'!$Z$16,'Part numbers'!$Z$24,'Part numbers'!$AM$24)) -> N2-65PBLY | N85: =VLOOKUP('Input sheet'!$F$17,'factors-pull down'!$A$62:$B$80,2) -> 0.1 | O85: =VLOOKUP(I85,'Capacities generators'!AY:BM,Selection!$G$26+1,FALSE) -> 4.9 | P85: =VLOOKUP(A85,'Buffer vessel'!$A$5:$B$13,2,FALSE) -> 1000 | Q85: =VLOOKUP(A85,'Buffer vessel'!$A$5:$C$13,3,FALSE) -> 606201456 | R85: 8
A86: N2-75P | B86: =J86*Selection!$D$25/$I$25 -> 60.8 | C86: 8 | D86: 486.4 | E86: =IFERROR(IF(('Input sheet'!$B$3/D86)<=1,('Input sheet'!$B$3/D86),"0"),"") -> 0.04111842105 | F86: =K86*Selection!$F$25/$I$25 -> 182.4 | G86: 1459.2 | H86: =IFERROR((D86-'Input sheet'!$B$3),"") -> 466.4 | I86: =CONCATENATE(A86,Selection!$G$27) -> N2-75P6 | J86: =VLOOKUP(I86,'Capacities generators'!D:R,Selection!$G$26+1,FALSE) -> 60.8 | K86: =VLOOKUP(I86,'Capacities generators'!T:AH,Selection!$G$26+1,FALSE) -> 182.4 | L86: =CONCATENATE(Selection!A86,'Part numbers'!$Z$16,'Part numbers'!$Z$24,'Part numbers'!$AM$23) -> N2-75PBLN | M86: =IF('Part numbers'!$AM$24="N",CONCATENATE("EST"," ",Talen!$A$125),CONCATENATE(Selection!A86,'Part numbers'!$Z$16,'Part numbers'!$Z$24,'Part numbers'!$AM$24)) -> N2-75PBLY | N86: =VLOOKUP('Input sheet'!$F$17,'factors-pull down'!$A$62:$B$80,2) -> 0.1 | O86: =VLOOKUP(I86,'Capacities generators'!AY:BM,Selection!$G$26+1,FALSE) -> 4.9 | P86: =VLOOKUP(A86,'Buffer vessel'!$A$5:$B$13,2,FALSE) -> 1000 | Q86: =VLOOKUP(A86,'Buffer vessel'!$A$5:$C$13,3,FALSE) -> 606201456 | R86: 8
A87: N2-80P | B87: =J87*Selection!$D$25/$I$25 -> 67.6 | C87: 8 | D87: 540.8 | E87: =IFERROR(IF(('Input sheet'!$B$3/D87)<=1,('Input sheet'!$B$3/D87),"0"),"") -> 0.03698224852 | F87: =K87*Selection!$F$25/$I$25 -> 202.8 | G87: 1622.4 | H87: =IFERROR((D87-'Input sheet'!$B$3),"") -> 520.8 | I87: =CONCATENATE(A87,Selection!$G$27) -> N2-80P6 | J87: =VLOOKUP(I87,'Capacities generators'!D:R,Selection!$G$26+1,FALSE) -> 67.6 | K87: =VLOOKUP(I87,'Capacities generators'!T:AH,Selection!$G$26+1,FALSE) -> 202.8 | L87: =CONCATENATE(Selection!A87,'Part numbers'!$Z$16,'Part numbers'!$Z$24,'Part numbers'!$AM$23) -> N2-80PBLN | M87: =IF('Part numbers'!$AM$24="N",CONCATENATE("EST"," ",Talen!$A$125),CONCATENATE(Selection!A87,'Part numbers'!$Z$16,'Part numbers'!$Z$24,'Part numbers'!$AM$24)) -> N2-80PBLY | N87: =VLOOKUP('Input sheet'!$F$17,'factors-pull down'!$A$62:$B$80,2) -> 0.1 | O87: =VLOOKUP(I87,'Capacities generators'!AY:BM,Selection!$G$26+1,FALSE) -> 4.9 | P87: =VLOOKUP(A87,'Buffer vessel'!$A$5:$B$13,2,FALSE) -> 1000 | Q87: =VLOOKUP(A87,'Buffer vessel'!$A$5:$C$13,3,FALSE) -> 606201456 | R87: 8
A88: N2-45P | B88: =J88*Selection!$D$25/$I$25 -> 36.7 | C88: 9 | D88: 330.3 | E88: =IFERROR(IF(('Input sheet'!$B$3/D88)<=1,('Input sheet'!$B$3/D88),"0"),"") -> 0.06055101423 | F88: =K88*Selection!$F$25/$I$25 -> 102.8 | G88: 925.2 | H88: =IFERROR((D88-'Input sheet'!$B$3),"") -> 310.3 | I88: =CONCATENATE(A88,Selection!$G$27) -> N2-45P6 | J88: =VLOOKUP(I88,'Capacities generators'!D:R,Selection!$G$26+1,FALSE) -> 36.7 | K88: =VLOOKUP(I88,'Capacities generators'!T:AH,Selection!$G$26+1,FALSE) -> 102.8 | L88: =CONCATENATE(Selection!A88,'Part numbers'!$Z$16,'Part numbers'!$Z$24,'Part numbers'!$AM$23) -> N2-45PBLN | M88: =IF('Part numbers'!$AM$24="N",CONCATENATE("EST"," ",Talen!$A$125),CONCATENATE(Selection!A88,'Part numbers'!$Z$16,'Part numbers'!$Z$24,'Part numbers'!$AM$24)) -> N2-45PBLY | N88: =VLOOKUP('Input sheet'!$F$17,'factors-pull down'!$A$62:$B$80,2) -> 0.1 | O88: =VLOOKUP(I88,'Capacities generators'!AY:BM,Selection!$G$26+1,FALSE) -> 4.9 | P88: =VLOOKUP(A88,'Buffer vessel'!$A$5:$B$13,2,FALSE) -> 750 | Q88: =VLOOKUP(A88,'Buffer vessel'!$A$5:$C$13,3,FALSE) -> 606201452 | R88: 9
A89: N2-55P | B89: =J89*Selection!$D$25/$I$25 -> 44.1 | C89: 9 | D89: 396.9 | E89: =IFERROR(IF(('Input sheet'!$B$3/D89)<=1,('Input sheet'!$B$3/D89),"0"),"") -> 0.05039052658 | F89: =K89*Selection!$F$25/$I$25 -> 123.5 | G89: 1111.5 | H89: =IFERROR((D89-'Input sheet'!$B$3),"") -> 376.9 | I89: =CONCATENATE(A89,Selection!$G$27) -> N2-55P6 | J89: =VLOOKUP(I89,'Capacities generators'!D:R,Selection!$G$26+1,FALSE) -> 44.1 | K89: =VLOOKUP(I89,'Capacities generators'!T:AH,Selection!$G$26+1,FALSE) -> 123.5 | L89: =CONCATENATE(Selection!A89,'Part numbers'!$Z$16,'Part numbers'!$Z$24,'Part numbers'!$AM$23) -> N2-55PBLN | M89: =IF('Part numbers'!$AM$24="N",CONCATENATE("EST"," ",Talen!$A$125),CONCATENATE(Selection!A89,'Part numbers'!$Z$16,'Part numbers'!$Z$24,'Part numbers'!$AM$24)) -> N2-55PBLY | N89: =VLOOKUP('Input sheet'!$F$17,'factors-pull down'!$A$62:$B$80,2) -> 0.1 | O89: =VLOOKUP(I89,'Capacities generators'!AY:BM,Selection!$G$26+1,FALSE) -> 4.9 | P89: =VLOOKUP(A89,'Buffer vessel'!$A$5:$B$13,2,FALSE) -> 750 | Q89: =VLOOKUP(A89,'Buffer vessel'!$A$5:$C$13,3,FALSE) -> 606201452 | R89: 9
A90: N2-60P | B90: =J90*Selection!$D$25/$I$25 -> 48.8 | C90: 9 | D90: =IFERROR(B90*C90,"N/A") -> 439.2 | E90: =IFERROR(IF(('Input sheet'!$B$3/D90)<=1,('Input sheet'!$B$3/D90),"0"),"") -> 0.04553734062 | F90: =K90*Selection!$F$25/$I$25 -> 141.5 | G90: =IFERROR(F90*C90,"N/A") -> 1273.5 | H90: =IFERROR((D90-'Input sheet'!$B$3),"") -> 419.2 | I90: =CONCATENATE(A90,Selection!$G$27) -> N2-60P6 | J90: =VLOOKUP(I90,'Capacities generators'!D:R,Selection!$G$26+1,FALSE) -> 48.8 | K90: =VLOOKUP(I90,'Capacities generators'!T:AH,Selection!$G$26+1,FALSE) -> 141.5 | L90: =CONCATENATE(Selection!A90,'Part numbers'!$Z$16,'Part numbers'!$Z$24,'Part numbers'!$AM$23) -> N2-60PBLN | M90: =IF('Part numbers'!$AM$24="N",CONCATENATE("EST"," ",Talen!$A$125),CONCATENATE(Selection!A90,'Part numbers'!$Z$16,'Part numbers'!$Z$24,'Part numbers'!$AM$24)) -> N2-60PBLY | N90: =VLOOKUP('Input sheet'!$F$17,'factors-pull down'!$A$62:$B$80,2) -> 0.1 | O90: =VLOOKUP(I90,'Capacities generators'!AY:BM,Selection!$G$26+1,FALSE) -> 4.9 | P90: =VLOOKUP(A90,'Buffer vessel'!$A$5:$B$13,2,FALSE) -> 750 | Q90: =VLOOKUP(A90,'Buffer vessel'!$A$5:$C$13,3,FALSE) -> 606201452 | R90: 9
A91: N2-65P | B91: =J91*Selection!$D$25/$I$25 -> 55.8 | C91: 9 | D91: 502.2 | E91: =IFERROR(IF(('Input sheet'!$B$3/D91)<=1,('Input sheet'!$B$3/D91),"0"),"") -> 0.03982477101 | F91: =K91*Selection!$F$25/$I$25 -> 161.8 | G91: 1456.2 | H91: =IFERROR((D91-'Input sheet'!$B$3),"") -> 482.2 | I91: =CONCATENATE(A91,Selection!$G$27) -> N2-65P6 | J91: =VLOOKUP(I91,'Capacities generators'!D:R,Selection!$G$26+1,FALSE) -> 55.8 | K91: =VLOOKUP(I91,'Capacities generators'!T:AH,Selection!$G$26+1,FALSE) -> 161.8 | L91: =CONCATENATE(Selection!A91,'Part numbers'!$Z$16,'Part numbers'!$Z$24,'Part numbers'!$AM$23) -> N2-65PBLN | M91: =IF('Part numbers'!$AM$24="N",CONCATENATE("EST"," ",Talen!$A$125),CONCATENATE(Selection!A91,'Part numbers'!$Z$16,'Part numbers'!$Z$24,'Part numbers'!$AM$24)) -> N2-65PBLY | N91: =VLOOKUP('Input sheet'!$F$17,'factors-pull down'!$A$62:$B$80,2) -> 0.1 | O91: =VLOOKUP(I91,'Capacities generators'!AY:BM,Selection!$G$26+1,FALSE) -> 4.9 | P91: =VLOOKUP(A91,'Buffer vessel'!$A$5:$B$13,2,FALSE) -> 1000 | Q91: =VLOOKUP(A91,'Buffer vessel'!$A$5:$C$13,3,FALSE) -> 606201456 | R91: 9
A92: N2-75P | B92: =J92*Selection!$D$25/$I$25 -> 60.8 | C92: 9 | D92: 547.2 | E92: =IFERROR(IF(('Input sheet'!$B$3/D92)<=1,('Input sheet'!$B$3/D92),"0"),"") -> 0.0365497076 | F92: =K92*Selection!$F$25/$I$25 -> 182.4 | G92: 1641.6 | H92: =IFERROR((D92-'Input sheet'!$B$3),"") -> 527.2 | I92: =CONCATENATE(A92,Selection!$G$27) -> N2-75P6 | J92: =VLOOKUP(I92,'Capacities generators'!D:R,Selection!$G$26+1,FALSE) -> 60.8 | K92: =VLOOKUP(I92,'Capacities generators'!T:AH,Selection!$G$26+1,FALSE) -> 182.4 | L92: =CONCATENATE(Selection!A92,'Part numbers'!$Z$16,'Part numbers'!$Z$24,'Part numbers'!$AM$23) -> N2-75PBLN | M92: =IF('Part numbers'!$AM$24="N",CONCATENATE("EST"," ",Talen!$A$125),CONCATENATE(Selection!A92,'Part numbers'!$Z$16,'Part numbers'!$Z$24,'Part numbers'!$AM$24)) -> N2-75PBLY | N92: =VLOOKUP('Input sheet'!$F$17,'factors-pull down'!$A$62:$B$80,2) -> 0.1 | O92: =VLOOKUP(I92,'Capacities generators'!AY:BM,Selection!$G$26+1,FALSE) -> 4.9 | P92: =VLOOKUP(A92,'Buffer vessel'!$A$5:$B$13,2,FALSE) -> 1000 | Q92: =VLOOKUP(A92,'Buffer vessel'!$A$5:$C$13,3,FALSE) -> 606201456 | R92: 9
A93: N2-80P | B93: =J93*Selection!$D$25/$I$25 -> 67.6 | C93: 9 | D93: 608.4 | E93: =IFERROR(IF(('Input sheet'!$B$3/D93)<=1,('Input sheet'!$B$3/D93),"0"),"") -> 0.0328731098 | F93: =K93*Selection!$F$25/$I$25 -> 202.8 | G93: 1825.2 | H93: =IFERROR((D93-'Input sheet'!$B$3),"") -> 588.4 | I93: =CONCATENATE(A93,Selection!$G$27) -> N2-80P6 | J93: =VLOOKUP(I93,'Capacities generators'!D:R,Selection!$G$26+1,FALSE) -> 67.6 | K93: =VLOOKUP(I93,'Capacities generators'!T:AH,Selection!$G$26+1,FALSE) -> 202.8 | L93: =CONCATENATE(Selection!A93,'Part numbers'!$Z$16,'Part numbers'!$Z$24,'Part numbers'!$AM$23) -> N2-80PBLN | M93: =IF('Part numbers'!$AM$24="N",CONCATENATE("EST"," ",Talen!$A$125),CONCATENATE(Selection!A93,'Part numbers'!$Z$16,'Part numbers'!$Z$24,'Part numbers'!$AM$24)) -> N2-80PBLY | N93: =VLOOKUP('Input sheet'!$F$17,'factors-pull down'!$A$62:$B$80,2) -> 0.1 | O93: =VLOOKUP(I93,'Capacities generators'!AY:BM,Selection!$G$26+1,FALSE) -> 4.9 | P93: =VLOOKUP(A93,'Buffer vessel'!$A$5:$B$13,2,FALSE) -> 1000 | Q93: =VLOOKUP(A93,'Buffer vessel'!$A$5:$C$13,3,FALSE) -> 606201456 | R93: 9
A94: N2-45P | B94: =J94*Selection!$D$25/$I$25 -> 36.7 | C94: 10 | D94: 367 | E94: =IFERROR(IF(('Input sheet'!$B$3/D94)<=1,('Input sheet'!$B$3/D94),"0"),"") -> 0.05449591281 | F94: =K94*Selection!$F$25/$I$25 -> 102.8 | G94: 1028 | H94: =IFERROR((D94-'Input sheet'!$B$3),"") -> 347 | I94: =CONCATENATE(A94,Selection!$G$27) -> N2-45P6 | J94: =VLOOKUP(I94,'Capacities generators'!D:R,Selection!$G$26+1,FALSE) -> 36.7 | K94: =VLOOKUP(I94,'Capacities generators'!T:AH,Selection!$G$26+1,FALSE) -> 102.8 | L94: =CONCATENATE(Selection!A94,'Part numbers'!$Z$16,'Part numbers'!$Z$24,'Part numbers'!$AM$23) -> N2-45PBLN | M94: =IF('Part numbers'!$AM$24="N",CONCATENATE("EST"," ",Talen!$A$125),CONCATENATE(Selection!A94,'Part numbers'!$Z$16,'Part numbers'!$Z$24,'Part numbers'!$AM$24)) -> N2-45PBLY | N94: =VLOOKUP('Input sheet'!$F$17,'factors-pull down'!$A$62:$B$80,2) -> 0.1 | O94: =VLOOKUP(I94,'Capacities generators'!AY:BM,Selection!$G$26+1,FALSE) -> 4.9 | P94: =VLOOKUP(A94,'Buffer vessel'!$A$5:$B$13,2,FALSE) -> 750 | Q94: =VLOOKUP(A94,'Buffer vessel'!$A$5:$C$13,3,FALSE) -> 606201452 | R94: 10
A95: N2-55P | B95: =J95*Selection!$D$25/$I$25 -> 44.1 | C95: 10 | D95: 441 | E95: =IFERROR(IF(('Input sheet'!$B$3/D95)<=1,('Input sheet'!$B$3/D95),"0"),"") -> 0.04535147392 | F95: =K95*Selection!$F$25/$I$25 -> 123.5 | G95: 1235 | H95: =IFERROR((D95-'Input sheet'!$B$3),"") -> 421 | I95: =CONCATENATE(A95,Selection!$G$27) -> N2-55P6 | J95: =VLOOKUP(I95,'Capacities generators'!D:R,Selection!$G$26+1,FALSE) -> 44.1 | K95: =VLOOKUP(I95,'Capacities generators'!T:AH,Selection!$G$26+1,FALSE) -> 123.5 | L95: =CONCATENATE(Selection!A95,'Part numbers'!$Z$16,'Part numbers'!$Z$24,'Part numbers'!$AM$23) -> N2-55PBLN | M95: =IF('Part numbers'!$AM$24="N",CONCATENATE("EST"," ",Talen!$A$125),CONCATENATE(Selection!A95,'Part numbers'!$Z$16,'Part numbers'!$Z$24,'Part numbers'!$AM$24)) -> N2-55PBLY | N95: =VLOOKUP('Input sheet'!$F$17,'factors-pull down'!$A$62:$B$80,2) -> 0.1 | O95: =VLOOKUP(I95,'Capacities generators'!AY:BM,Selection!$G$26+1,FALSE) -> 4.9 | P95: =VLOOKUP(A95,'Buffer vessel'!$A$5:$B$13,2,FALSE) -> 750 | Q95: =VLOOKUP(A95,'Buffer vessel'!$A$5:$C$13,3,FALSE) -> 606201452 | R95: 10
A96: N2-60P | B96: =J96*Selection!$D$25/$I$25 -> 48.8 | C96: 10 | D96: =IFERROR(B96*C96,"N/A") -> 488 | E96: =IFERROR(IF(('Input sheet'!$B$3/D96)<=1,('Input sheet'!$B$3/D96),"0"),"") -> 0.04098360656 | F96: =K96*Selection!$F$25/$I$25 -> 141.5 | G96: =IFERROR(F96*C96,"N/A") -> 1415 | H96: =IFERROR((D96-'Input sheet'!$B$3),"") -> 468 | I96: =CONCATENATE(A96,Selection!$G$27) -> N2-60P6 | J96: =VLOOKUP(I96,'Capacities generators'!D:R,Selection!$G$26+1,FALSE) -> 48.8 | K96: =VLOOKUP(I96,'Capacities generators'!T:AH,Selection!$G$26+1,FALSE) -> 141.5 | L96: =CONCATENATE(Selection!A96,'Part numbers'!$Z$16,'Part numbers'!$Z$24,'Part numbers'!$AM$23) -> N2-60PBLN | M96: =IF('Part numbers'!$AM$24="N",CONCATENATE("EST"," ",Talen!$A$125),CONCATENATE(Selection!A96,'Part numbers'!$Z$16,'Part numbers'!$Z$24,'Part numbers'!$AM$24)) -> N2-60PBLY | N96: =VLOOKUP('Input sheet'!$F$17,'factors-pull down'!$A$62:$B$80,2) -> 0.1 | O96: =VLOOKUP(I96,'Capacities generators'!AY:BM,Selection!$G$26+1,FALSE) -> 4.9 | P96: =VLOOKUP(A96,'Buffer vessel'!$A$5:$B$13,2,FALSE) -> 750 | Q96: =VLOOKUP(A96,'Buffer vessel'!$A$5:$C$13,3,FALSE) -> 606201452 | R96: 10
A97: N2-65P | B97: =J97*Selection!$D$25/$I$25 -> 55.8 | C97: 10 | D97: 558 | E97: =IFERROR(IF(('Input sheet'!$B$3/D97)<=1,('Input sheet'!$B$3/D97),"0"),"") -> 0.03584229391 | F97: =K97*Selection!$F$25/$I$25 -> 161.8 | G97: 1618 | H97: =IFERROR((D97-'Input sheet'!$B$3),"") -> 538 | I97: =CONCATENATE(A97,Selection!$G$27) -> N2-65P6 | J97: =VLOOKUP(I97,'Capacities generators'!D:R,Selection!$G$26+1,FALSE) -> 55.8 | K97: =VLOOKUP(I97,'Capacities generators'!T:AH,Selection!$G$26+1,FALSE) -> 161.8 | L97: =CONCATENATE(Selection!A97,'Part numbers'!$Z$16,'Part numbers'!$Z$24,'Part numbers'!$AM$23) -> N2-65PBLN | M97: =IF('Part numbers'!$AM$24="N",CONCATENATE("EST"," ",Talen!$A$125),CONCATENATE(Selection!A97,'Part numbers'!$Z$16,'Part numbers'!$Z$24,'Part numbers'!$AM$24)) -> N2-65PBLY | N97: =VLOOKUP('Input sheet'!$F$17,'factors-pull down'!$A$62:$B$80,2) -> 0.1 | O97: =VLOOKUP(I97,'Capacities generators'!AY:BM,Selection!$G$26+1,FALSE) -> 4.9 | P97: =VLOOKUP(A97,'Buffer vessel'!$A$5:$B$13,2,FALSE) -> 1000 | Q97: =VLOOKUP(A97,'Buffer vessel'!$A$5:$C$13,3,FALSE) -> 606201456 | R97: 10
A98: N2-75P | B98: =J98*Selection!$D$25/$I$25 -> 60.8 | C98: 10 | D98: 608 | E98: =IFERROR(IF(('Input sheet'!$B$3/D98)<=1,('Input sheet'!$B$3/D98),"0"),"") -> 0.03289473684 | F98: =K98*Selection!$F$25/$I$25 -> 182.4 | G98: 1824 | H98: =IFERROR((D98-'Input sheet'!$B$3),"") -> 588 | I98: =CONCATENATE(A98,Selection!$G$27) -> N2-75P6 | J98: =VLOOKUP(I98,'Capacities generators'!D:R,Selection!$G$26+1,FALSE) -> 60.8 | K98: =VLOOKUP(I98,'Capacities generators'!T:AH,Selection!$G$26+1,FALSE) -> 182.4 | L98: =CONCATENATE(Selection!A98,'Part numbers'!$Z$16,'Part numbers'!$Z$24,'Part numbers'!$AM$23) -> N2-75PBLN | M98: =IF('Part numbers'!$AM$24="N",CONCATENATE("EST"," ",Talen!$A$125),CONCATENATE(Selection!A98,'Part numbers'!$Z$16,'Part numbers'!$Z$24,'Part numbers'!$AM$24)) -> N2-75PBLY | N98: =VLOOKUP('Input sheet'!$F$17,'factors-pull down'!$A$62:$B$80,2) -> 0.1 | O98: =VLOOKUP(I98,'Capacities generators'!AY:BM,Selection!$G$26+1,FALSE) -> 4.9 | P98: =VLOOKUP(A98,'Buffer vessel'!$A$5:$B$13,2,FALSE) -> 1000 | Q98: =VLOOKUP(A98,'Buffer vessel'!$A$5:$C$13,3,FALSE) -> 606201456 | R98: =IFERROR((IF(C98*ROUNDUP(E98,0)=0,"",C98*ROUNDUP(E98,0))),"N/A") -> 10
A99: N2-80P | B99: =J99*Selection!$D$25/$I$25 -> 67.6 | C99: 10 | D99: 676 | E99: =IFERROR(IF(('Input sheet'!$B$3/D99)<=1,('Input sheet'!$B$3/D99),"0"),"") -> 0.02958579882 | F99: =K99*Selection!$F$25/$I$25 -> 202.8 | G99: 2028 | H99: =IFERROR((D99-'Input sheet'!$B$3),"") -> 656 | I99: =CONCATENATE(A99,Selection!$G$27) -> N2-80P6 | J99: =VLOOKUP(I99,'Capacities generators'!D:R,Selection!$G$26+1,FALSE) -> 67.6 | K99: =VLOOKUP(I99,'Capacities generators'!T:AH,Selection!$G$26+1,FALSE) -> 202.8 | L99: =CONCATENATE(Selection!A99,'Part numbers'!$Z$16,'Part numbers'!$Z$24,'Part numbers'!$AM$23) -> N2-80PBLN | M99: =IF('Part numbers'!$AM$24="N",CONCATENATE("EST"," ",Talen!$A$125),CONCATENATE(Selection!A99,'Part numbers'!$Z$16,'Part numbers'!$Z$24,'Part numbers'!$AM$24)) -> N2-80PBLY | N99: =VLOOKUP('Input sheet'!$F$17,'factors-pull down'!$A$62:$B$80,2) -> 0.1 | O99: =VLOOKUP(I99,'Capacities generators'!AY:BM,Selection!$G$26+1,FALSE) -> 4.9 | P99: =VLOOKUP(A99,'Buffer vessel'!$A$5:$B$13,2,FALSE) -> 1000 | Q99: =VLOOKUP(A99,'Buffer vessel'!$A$5:$C$13,3,FALSE) -> 606201456 | R99: 10
A100: Nitroflow HP1 | B100: =J100*Selection!$D$26/$I$25 -> 1.4 | C100: 1 | D100: 1.4 | E100: =IFERROR(IF(('Input sheet'!$B$3/D100)<=1,('Input sheet'!$B$3/D100),"0"),"") -> 0 | F100: =K100*Selection!$F$26/$I$25 -> 11.9 | G100: 11.9 | H100: =IFERROR((D100-'Input sheet'!$B$3),"") -> -18.6 | I100: =CONCATENATE(A100,Selection!$G$27) -> Nitroflow HP16 | J100: =VLOOKUP(I100,'Capacities generators'!D:R,Selection!$G$26+1,FALSE) -> 1.4 | K100: =VLOOKUP(I100,'Capacities generators'!T:AH,Selection!$G$26+1,FALSE) -> 11.9 | L100: ='Part numbers'!B185 -> 159.004032 | N100: N/A | O100: =VLOOKUP(I100,'Capacities generators'!AY:BM,Selection!$G$26+1,FALSE) -> 0 | P100: N/A | R100: =IFERROR(IF(C100*ROUNDUP(E100,0)=0,"",C100*ROUNDUP(E100,0)),"N/A") -> 
A101: Nitroflow HP2 | B101: =J101*Selection!$D$26/$I$25 -> 2.7 | C101: 1 | D101: 2.7 | E101: =IFERROR(IF(('Input sheet'!$B$3/D101)<=1,('Input sheet'!$B$3/D101),"0"),"") -> 0 | F101: =K101*Selection!$F$26/$I$25 -> 23 | G101: 23 | H101: =IFERROR((D101-'Input sheet'!$B$3),"") -> -17.3 | I101: =CONCATENATE(A101,Selection!$G$27) -> Nitroflow HP26 | J101: =VLOOKUP(I101,'Capacities generators'!D:R,Selection!$G$26+1,FALSE) -> 2.7 | K101: =VLOOKUP(I101,'Capacities generators'!T:AH,Selection!$G$26+1,FALSE) -> 23 | L101: ='Part numbers'!B186 -> 159.004033 | N101: N/A | O101: =VLOOKUP(I101,'Capacities generators'!AY:BM,Selection!$G$26+1,FALSE) -> 0 | P101: N/A | R101: =IFERROR(IF(C101*ROUNDUP(E101,0)=0,"",C101*ROUNDUP(E101,0)),"N/A") -> 
A102: Nitroflow HP3 | B102: =J102*Selection!$D$26/$I$25 -> 4.1 | C102: 1 | D102: 4.1 | E102: =IFERROR(IF(('Input sheet'!$B$3/D102)<=1,('Input sheet'!$B$3/D102),"0"),"") -> 0 | F102: =K102*Selection!$F$26/$I$25 -> 34.9 | G102: 34.9 | H102: =IFERROR((D102-'Input sheet'!$B$3),"") -> -15.9 | I102: =CONCATENATE(A102,Selection!$G$27) -> Nitroflow HP36 | J102: =VLOOKUP(I102,'Capacities generators'!D:R,Selection!$G$26+1,FALSE) -> 4.1 | K102: =VLOOKUP(I102,'Capacities generators'!T:AH,Selection!$G$26+1,FALSE) -> 34.9 | L102: ='Part numbers'!B187 -> 159.004034 | N102: N/A | O102: =VLOOKUP(I102,'Capacities generators'!AY:BM,Selection!$G$26+1,FALSE) -> 0 | P102: N/A
A103: Nitrosource Main | B103: =J103*Selection!$D$27/$I$25 -> 4.6 | C103: 1 | D103: 4.6 | E103: =IFERROR(IF(('Input sheet'!$B$3/D103)<=1,('Input sheet'!$B$3/D103),"0"),"") -> 0 | F103: =K103*Selection!$F$27/$I$25 -> 39.1 | G103: 39.1 | H103: =IFERROR((D103-'Input sheet'!$B$3),"") -> -15.4 | I103: =CONCATENATE(A103,Selection!$G$27) -> Nitrosource Main6 | J103: =VLOOKUP(I103,'Capacities generators'!D:R,Selection!$G$26+1,FALSE) -> 4.6 | K103: =VLOOKUP(I103,'Capacities generators'!T:AH,Selection!$G$26+1,FALSE) -> 39.1 | L103: ='Part numbers'!B181 -> 159.003552 | N103: N/A | O103: =VLOOKUP(I103,'Capacities generators'!AY:BM,Selection!$G$26+1,FALSE) -> 0 | P103: N/A
A104: Nitrosource Main + 1 Sub | B104: =J104*Selection!$D$27/$I$25 -> 9.1 | C104: 1 | D104: 9.1 | E104: =IFERROR(IF(('Input sheet'!$B$3/D104)<=1,('Input sheet'!$B$3/D104),"0"),"") -> 0 | F104: =K104*Selection!$F$27/$I$25 -> 77.4 | G104: 77.4 | H104: =IFERROR((D104-'Input sheet'!$B$3),"") -> -10.9 | I104: =CONCATENATE(A104,Selection!$G$27) -> Nitrosource Main + 1 Sub6 | J104: =VLOOKUP(I104,'Capacities generators'!D:R,Selection!$G$26+1,FALSE) -> 9.1 | K104: =VLOOKUP(I104,'Capacities generators'!T:AH,Selection!$G$26+1,FALSE) -> 77.4 | L104: =CONCATENATE("1 x ",'Part numbers'!$B$181," and 1 x ",'Part numbers'!$B$182) -> 1 x 159.003552 and 1 x 159.003553 | N104: N/A | O104: =VLOOKUP(I104,'Capacities generators'!AY:BM,Selection!$G$26+1,FALSE) -> 0 | P104: N/A
A105: Nitrosource Main + 2 Subs | B105: =J105*Selection!$D$27/$I$25 -> 13.7 | C105: 1 | D105: 13.7 | E105: =IFERROR(IF(('Input sheet'!$B$3/D105)<=1,('Input sheet'!$B$3/D105),"0"),"") -> 0 | F105: =K105*Selection!$F$27/$I$25 -> 116.5 | G105: 116.5 | H105: =IFERROR((D105-'Input sheet'!$B$3),"") -> -6.3 | I105: =CONCATENATE(A105,Selection!$G$27) -> Nitrosource Main + 2 Subs6 | J105: =VLOOKUP(I105,'Capacities generators'!D:R,Selection!$G$26+1,FALSE) -> 13.7 | K105: =VLOOKUP(I105,'Capacities generators'!T:AH,Selection!$G$26+1,FALSE) -> 116.5 | L105: =CONCATENATE("1 x ",'Part numbers'!$B$181," and 2 x ",'Part numbers'!$B$182) -> 1 x 159.003552 and 2 x 159.003553 | N105: N/A | O105: =VLOOKUP(I105,'Capacities generators'!AY:BM,Selection!$G$26+1,FALSE) -> 0 | P105: N/A
A106: Nitrosource Main + 3 Subs | B106: =J106*Selection!$D$27/$I$25 -> 18.2 | C106: 1 | D106: 18.2 | E106: =IFERROR(IF(('Input sheet'!$B$3/D106)<=1,('Input sheet'!$B$3/D106),"0"),"") -> 0 | F106: =K106*Selection!$F$27/$I$25 -> 154.7 | G106: 154.7 | H106: =IFERROR((D106-'Input sheet'!$B$3),"") -> -1.8 | I106: =CONCATENATE(A106,Selection!$G$27) -> Nitrosource Main + 3 Subs6 | J106: =VLOOKUP(I106,'Capacities generators'!D:R,Selection!$G$26+1,FALSE) -> 18.2 | K106: =VLOOKUP(I106,'Capacities generators'!T:AH,Selection!$G$26+1,FALSE) -> 154.7 | L106: =CONCATENATE("1 x ",'Part numbers'!$B$181," and 3 x ",'Part numbers'!$B$182) -> 1 x 159.003552 and 3 x 159.003553 | N106: N/A | O106: =VLOOKUP(I106,'Capacities generators'!AY:BM,Selection!$G$26+1,FALSE) -> 0 | P106: N/A
A107: Nitrosource Main + 4 Subs | B107: =J107*Selection!$D$27/$I$25 -> 22.8 | C107: 1 | D107: 22.8 | E107: =IFERROR(IF(('Input sheet'!$B$3/D107)<=1,('Input sheet'!$B$3/D107),"0"),"") -> 0.8771929825 | F107: =K107*Selection!$F$27/$I$25 -> 193.8 | G107: 193.8 | H107: =IFERROR((D107-'Input sheet'!$B$3),"") -> 2.8 | I107: =CONCATENATE(A107,Selection!$G$27) -> Nitrosource Main + 4 Subs6 | J107: =VLOOKUP(I107,'Capacities generators'!D:R,Selection!$G$26+1,FALSE) -> 22.8 | K107: =VLOOKUP(I107,'Capacities generators'!T:AH,Selection!$G$26+1,FALSE) -> 193.8 | L107: =CONCATENATE("1 x ",'Part numbers'!$B$181," and 4 x ",'Part numbers'!$B$182) -> 1 x 159.003552 and 4 x 159.003553 | N107: N/A | O107: =VLOOKUP(I107,'Capacities generators'!AY:BM,Selection!$G$26+1,FALSE) -> 0 | P107: N/A | R107: 1
A108: Nitrosource Main + 5 Subs | B108: =J108*Selection!$D$27/$I$25 -> 27.4 | C108: 1 | D108: 27.4 | E108: =IFERROR(IF(('Input sheet'!$B$3/D108)<=1,('Input sheet'!$B$3/D108),"0"),"") -> 0.7299270073 | F108: =K108*Selection!$F$27/$I$25 -> 232.9 | G108: 232.9 | H108: =IFERROR((D108-'Input sheet'!$B$3),"") -> 7.4 | I108: =CONCATENATE(A108,Selection!$G$27) -> Nitrosource Main + 5 Subs6 | J108: =VLOOKUP(I108,'Capacities generators'!D:R,Selection!$G$26+1,FALSE) -> 27.4 | K108: =VLOOKUP(I108,'Capacities generators'!T:AH,Selection!$G$26+1,FALSE) -> 232.9 | L108: =CONCATENATE("1 x ",'Part numbers'!$B$181," and 5 x ",'Part numbers'!$B$182) -> 1 x 159.003552 and 5 x 159.003553 | N108: N/A | O108: =VLOOKUP(I108,'Capacities generators'!AY:BM,Selection!$G$26+1,FALSE) -> 0 | P108: N/A | R108: 1
A109: Nitrosource Main + 3 Subs | B109: =J109*Selection!$D$27/$I$25 -> 18.2 | C109: 2 | D109: 36.4 | E109: =IFERROR(IF(('Input sheet'!$B$3/D109)<=1,('Input sheet'!$B$3/D109),"0"),"") -> 0.5494505495 | F109: =K109*Selection!$F$27/$I$25 -> 154.7 | G109: 309.4 | H109: =IFERROR((D109-'Input sheet'!$B$3),"") -> 16.4 | I109: =CONCATENATE(A109,Selection!$G$27) -> Nitrosource Main + 3 Subs6 | J109: =VLOOKUP(I109,'Capacities generators'!D:R,Selection!$G$26+1,FALSE) -> 18.2 | K109: =VLOOKUP(I109,'Capacities generators'!T:AH,Selection!$G$26+1,FALSE) -> 154.7 | L109: =CONCATENATE("1 x ",'Part numbers'!$B$181," and 3 x ",'Part numbers'!$B$182) -> 1 x 159.003552 and 3 x 159.003553 | N109: N/A | O109: =VLOOKUP(I109,'Capacities generators'!AY:BM,Selection!$G$26+1,FALSE) -> 0 | P109: N/A | R109: 2
A110: Nitrosource Main + 4 Subs | B110: =J110*Selection!$D$27/$I$25 -> 22.8 | C110: 2 | D110: 45.6 | E110: =IFERROR(IF(('Input sheet'!$B$3/D110)<=1,('Input sheet'!$B$3/D110),"0"),"") -> 0.4385964912 | F110: =K110*Selection!$F$27/$I$25 -> 193.8 | G110: 387.6 | H110: =IFERROR((D110-'Input sheet'!$B$3),"") -> 25.6 | I110: =CONCATENATE(A110,Selection!$G$27) -> Nitrosource Main + 4 Subs6 | J110: =VLOOKUP(I110,'Capacities generators'!D:R,Selection!$G$26+1,FALSE) -> 22.8 | K110: =VLOOKUP(I110,'Capacities generators'!T:AH,Selection!$G$26+1,FALSE) -> 193.8 | L110: =CONCATENATE("1 x ",'Part numbers'!$B$181," and 4 x ",'Part numbers'!$B$182) -> 1 x 159.003552 and 4 x 159.003553 | N110: N/A | O110: =VLOOKUP(I110,'Capacities generators'!AY:BM,Selection!$G$26+1,FALSE) -> 0 | P110: N/A | R110: 2
A111: Nitrosource Main + 5 Subs | B111: =J111*Selection!$D$27/$I$25 -> 27.4 | C111: 2 | D111: 54.8 | E111: =IFERROR(IF(('Input sheet'!$B$3/D111)<=1,('Input sheet'!$B$3/D111),"0"),"") -> 0.3649635036 | F111: =K111*Selection!$F$27/$I$25 -> 232.9 | G111: 465.8 | H111: =IFERROR((D111-'Input sheet'!$B$3),"") -> 34.8 | I111: =CONCATENATE(A111,Selection!$G$27) -> Nitrosource Main + 5 Subs6 | J111: =VLOOKUP(I111,'Capacities generators'!D:R,Selection!$G$26+1,FALSE) -> 27.4 | K111: =VLOOKUP(I111,'Capacities generators'!T:AH,Selection!$G$26+1,FALSE) -> 232.9 | L111: =CONCATENATE("1 x ",'Part numbers'!$B$181," and 5 x ",'Part numbers'!$B$182) -> 1 x 159.003552 and 5 x 159.003553 | N111: N/A | O111: =VLOOKUP(I111,'Capacities generators'!AY:BM,Selection!$G$26+1,FALSE) -> 0 | P111: N/A | R111: 2
A112: Nitrosource Main + 3 Subs | B112: =J112*Selection!$D$27/$I$25 -> 18.2 | C112: 3 | D112: =IFERROR(B112*C112,"N/A") -> 54.6 | E112: =IFERROR(IF(('Input sheet'!$B$3/D112)<=1,('Input sheet'!$B$3/D112),"0"),"") -> 0.3663003663 | F112: =K112*Selection!$F$27/$I$25 -> 154.7 | G112: =IFERROR(F112*C112,"N/A") -> 464.1 | H112: =IFERROR((D112-'Input sheet'!$B$3),"") -> 34.6 | I112: =CONCATENATE(A112,Selection!$G$27) -> Nitrosource Main + 3 Subs6 | J112: =VLOOKUP(I112,'Capacities generators'!D:R,Selection!$G$26+1,FALSE) -> 18.2 | K112: =VLOOKUP(I112,'Capacities generators'!T:AH,Selection!$G$26+1,FALSE) -> 154.7 | L112: =CONCATENATE("1 x ",'Part numbers'!$B$181," and 3 x ",'Part numbers'!$B$182) -> 1 x 159.003552 and 3 x 159.003553 | N112: N/A | O112: =VLOOKUP(I112,'Capacities generators'!AY:BM,Selection!$G$26+1,FALSE) -> 0 | P112: N/A | R112: 3
A113: Nitrosource Main + 4 Subs | B113: =J113*Selection!$D$27/$I$25 -> 22.8 | C113: 3 | D113: 68.4 | E113: =IFERROR(IF(('Input sheet'!$B$3/D113)<=1,('Input sheet'!$B$3/D113),"0"),"") -> 0.2923976608 | F113: =K113*Selection!$F$27/$I$25 -> 193.8 | G113: 581.4 | H113: =IFERROR((D113-'Input sheet'!$B$3),"") -> 48.4 | I113: =CONCATENATE(A113,Selection!$G$27) -> Nitrosource Main + 4 Subs6 | J113: =VLOOKUP(I113,'Capacities generators'!D:R,Selection!$G$26+1,FALSE) -> 22.8 | K113: =VLOOKUP(I113,'Capacities generators'!T:AH,Selection!$G$26+1,FALSE) -> 193.8 | L113: =CONCATENATE("1 x ",'Part numbers'!$B$181," and 4 x ",'Part numbers'!$B$182) -> 1 x 159.003552 and 4 x 159.003553 | N113: N/A | O113: =VLOOKUP(I113,'Capacities generators'!AY:BM,Selection!$G$26+1,FALSE) -> 0 | P113: N/A | R113: 3
A114: Nitrosource Main + 5 Subs | B114: =J114*Selection!$D$27/$I$25 -> 27.4 | C114: 3 | D114: 82.2 | E114: =IFERROR(IF(('Input sheet'!$B$3/D114)<=1,('Input sheet'!$B$3/D114),"0"),"") -> 0.2433090024 | F114: =K114*Selection!$F$27/$I$25 -> 232.9 | G114: 698.7 | H114: =IFERROR((D114-'Input sheet'!$B$3),"") -> 62.2 | I114: =CONCATENATE(A114,Selection!$G$27) -> Nitrosource Main + 5 Subs6 | J114: =VLOOKUP(I114,'Capacities generators'!D:R,Selection!$G$26+1,FALSE) -> 27.4 | K114: =VLOOKUP(I114,'Capacities generators'!T:AH,Selection!$G$26+1,FALSE) -> 232.9 | L114: =CONCATENATE("1 x ",'Part numbers'!$B$181," and 5 x ",'Part numbers'!$B$182) -> 1 x 159.003552 and 5 x 159.003553 | N114: N/A | O114: =VLOOKUP(I114,'Capacities generators'!AY:BM,Selection!$G$26+1,FALSE) -> 0 | P114: N/A | R114: 3
A115: Nitrosource Main + 3 Subs | B115: =J115*Selection!$D$27/$I$25 -> 18.2 | C115: 4 | D115: 72.8 | E115: =IFERROR(IF(('Input sheet'!$B$3/D115)<=1,('Input sheet'!$B$3/D115),"0"),"") -> 0.2747252747 | F115: =K115*Selection!$F$27/$I$25 -> 154.7 | G115: 618.8 | H115: =IFERROR((D115-'Input sheet'!$B$3),"") -> 52.8 | I115: =CONCATENATE(A115,Selection!$G$27) -> Nitrosource Main + 3 Subs6 | J115: =VLOOKUP(I115,'Capacities generators'!D:R,Selection!$G$26+1,FALSE) -> 18.2 | K115: =VLOOKUP(I115,'Capacities generators'!T:AH,Selection!$G$26+1,FALSE) -> 154.7 | L115: =CONCATENATE("1 x ",'Part numbers'!$B$181," and 3 x ",'Part numbers'!$B$182) -> 1 x 159.003552 and 3 x 159.003553 | N115: N/A | O115: =VLOOKUP(I115,'Capacities generators'!AY:BM,Selection!$G$26+1,FALSE) -> 0 | P115: N/A | R115: 4
A116: Nitrosource Main + 4 Subs | B116: =J116*Selection!$D$27/$I$25 -> 22.8 | C116: 4 | D116: 91.2 | E116: =IFERROR(IF(('Input sheet'!$B$3/D116)<=1,('Input sheet'!$B$3/D116),"0"),"") -> 0.2192982456 | F116: =K116*Selection!$F$27/$I$25 -> 193.8 | G116: 775.2 | H116: =IFERROR((D116-'Input sheet'!$B$3),"") -> 71.2 | I116: =CONCATENATE(A116,Selection!$G$27) -> Nitrosource Main + 4 Subs6 | J116: =VLOOKUP(I116,'Capacities generators'!D:R,Selection!$G$26+1,FALSE) -> 22.8 | K116: =VLOOKUP(I116,'Capacities generators'!T:AH,Selection!$G$26+1,FALSE) -> 193.8 | L116: =CONCATENATE("1 x ",'Part numbers'!$B$181," and 4 x ",'Part numbers'!$B$182) -> 1 x 159.003552 and 4 x 159.003553 | N116: N/A | O116: =VLOOKUP(I116,'Capacities generators'!AY:BM,Selection!$G$26+1,FALSE) -> 0 | P116: N/A | R116: 4
A117: Nitrosource Main + 5 Subs | B117: =J117*Selection!$D$27/$I$25 -> 27.4 | C117: 4 | D117: 109.6 | E117: =IFERROR(IF(('Input sheet'!$B$3/D117)<=1,('Input sheet'!$B$3/D117),"0"),"") -> 0.1824817518 | F117: =K117*Selection!$F$27/$I$25 -> 232.9 | G117: 931.6 | H117: =IFERROR((D117-'Input sheet'!$B$3),"") -> 89.6 | I117: =CONCATENATE(A117,Selection!$G$27) -> Nitrosource Main + 5 Subs6 | J117: =VLOOKUP(I117,'Capacities generators'!D:R,Selection!$G$26+1,FALSE) -> 27.4 | K117: =VLOOKUP(I117,'Capacities generators'!T:AH,Selection!$G$26+1,FALSE) -> 232.9 | L117: =CONCATENATE("1 x ",'Part numbers'!$B$181," and 5 x ",'Part numbers'!$B$182) -> 1 x 159.003552 and 5 x 159.003553 | N117: N/A | O117: =VLOOKUP(I117,'Capacities generators'!AY:BM,Selection!$G$26+1,FALSE) -> 0 | P117: N/A | R117: 4
A118: Nitrosource Main + 3 Subs | B118: =J118*Selection!$D$27/$I$25 -> 18.2 | C118: 5 | D118: 91 | E118: =IFERROR(IF(('Input sheet'!$B$3/D118)<=1,('Input sheet'!$B$3/D118),"0"),"") -> 0.2197802198 | F118: =K118*Selection!$F$27/$I$25 -> 154.7 | G118: 773.5 | H118: =IFERROR((D118-'Input sheet'!$B$3),"") -> 71 | I118: =CONCATENATE(A118,Selection!$G$27) -> Nitrosource Main + 3 Subs6 | J118: =VLOOKUP(I118,'Capacities generators'!D:R,Selection!$G$26+1,FALSE) -> 18.2 | K118: =VLOOKUP(I118,'Capacities generators'!T:AH,Selection!$G$26+1,FALSE) -> 154.7 | L118: =CONCATENATE("1 x ",'Part numbers'!$B$181," and 3 x ",'Part numbers'!$B$182) -> 1 x 159.003552 and 3 x 159.003553 | N118: N/A | O118: =VLOOKUP(I118,'Capacities generators'!AY:BM,Selection!$G$26+1,FALSE) -> 0 | P118: N/A | R118: 5
A119: Nitrosource Main + 4 Subs | B119: =J119*Selection!$D$27/$I$25 -> 22.8 | C119: 5 | D119: 114 | E119: =IFERROR(IF(('Input sheet'!$B$3/D119)<=1,('Input sheet'!$B$3/D119),"0"),"") -> 0.1754385965 | F119: =K119*Selection!$F$27/$I$25 -> 193.8 | G119: 969 | H119: =IFERROR((D119-'Input sheet'!$B$3),"") -> 94 | I119: =CONCATENATE(A119,Selection!$G$27) -> Nitrosource Main + 4 Subs6 | J119: =VLOOKUP(I119,'Capacities generators'!D:R,Selection!$G$26+1,FALSE) -> 22.8 | K119: =VLOOKUP(I119,'Capacities generators'!T:AH,Selection!$G$26+1,FALSE) -> 193.8 | L119: =CONCATENATE("1 x ",'Part numbers'!$B$181," and 4 x ",'Part numbers'!$B$182) -> 1 x 159.003552 and 4 x 159.003553 | N119: N/A | O119: =VLOOKUP(I119,'Capacities generators'!AY:BM,Selection!$G$26+1,FALSE) -> 0 | P119: N/A | R119: 5
A120: Nitrosource Main + 5 Subs | B120: =J120*Selection!$D$27/$I$25 -> 27.4 | C120: 5 | D120: 137 | E120: =IFERROR(IF(('Input sheet'!$B$3/D120)<=1,('Input sheet'!$B$3/D120),"0"),"") -> 0.1459854015 | F120: =K120*Selection!$F$27/$I$25 -> 232.9 | G120: 1164.5 | H120: =IFERROR((D120-'Input sheet'!$B$3),"") -> 117 | I120: =CONCATENATE(A120,Selection!$G$27) -> Nitrosource Main + 5 Subs6 | J120: =VLOOKUP(I120,'Capacities generators'!D:R,Selection!$G$26+1,FALSE) -> 27.4 | K120: =VLOOKUP(I120,'Capacities generators'!T:AH,Selection!$G$26+1,FALSE) -> 232.9 | L120: =CONCATENATE("1 x ",'Part numbers'!$B$181," and 5 x ",'Part numbers'!$B$182) -> 1 x 159.003552 and 5 x 159.003553 | N120: N/A | O120: =VLOOKUP(I120,'Capacities generators'!AY:BM,Selection!$G$26+1,FALSE) -> 0 | P120: N/A | R120: 5
A121: Nitrosource Main + 3 Subs | B121: =J121*Selection!$D$27/$I$25 -> 18.2 | C121: 6 | D121: =IFERROR(B121*C121,"N/A") -> 109.2 | E121: =IFERROR(IF(('Input sheet'!$B$3/D121)<=1,('Input sheet'!$B$3/D121),"0"),"") -> 0.1831501832 | F121: =K121*Selection!$F$27/$I$25 -> 154.7 | G121: =IFERROR(F121*C121,"N/A") -> 928.2 | H121: =IFERROR((D121-'Input sheet'!$B$3),"") -> 89.2 | I121: =CONCATENATE(A121,Selection!$G$27) -> Nitrosource Main + 3 Subs6 | J121: =VLOOKUP(I121,'Capacities generators'!D:R,Selection!$G$26+1,FALSE) -> 18.2 | K121: =VLOOKUP(I121,'Capacities generators'!T:AH,Selection!$G$26+1,FALSE) -> 154.7 | L121: =CONCATENATE("1 x ",'Part numbers'!$B$181," and 3 x ",'Part numbers'!$B$182) -> 1 x 159.003552 and 3 x 159.003553 | N121: N/A | O121: =VLOOKUP(I121,'Capacities generators'!AY:BM,Selection!$G$26+1,FALSE) -> 0 | P121: N/A | R121: 6
A122: Nitrosource Main + 4 Subs | B122: =J122*Selection!$D$27/$I$25 -> 22.8 | C122: 6 | D122: 136.8 | E122: =IFERROR(IF(('Input sheet'!$B$3/D122)<=1,('Input sheet'!$B$3/D122),"0"),"") -> 0.1461988304 | F122: =K122*Selection!$F$27/$I$25 -> 193.8 | G122: 1162.8 | H122: =IFERROR((D122-'Input sheet'!$B$3),"") -> 116.8 | I122: =CONCATENATE(A122,Selection!$G$27) -> Nitrosource Main + 4 Subs6 | J122: =VLOOKUP(I122,'Capacities generators'!D:R,Selection!$G$26+1,FALSE) -> 22.8 | K122: =VLOOKUP(I122,'Capacities generators'!T:AH,Selection!$G$26+1,FALSE) -> 193.8 | L122: =CONCATENATE("1 x ",'Part numbers'!$B$181," and 4 x ",'Part numbers'!$B$182) -> 1 x 159.003552 and 4 x 159.003553 | N122: N/A | O122: =VLOOKUP(I122,'Capacities generators'!AY:BM,Selection!$G$26+1,FALSE) -> 0 | P122: N/A | R122: 6
A123: Nitrosource Main + 5 Subs | B123: =J123*Selection!$D$27/$I$25 -> 27.4 | C123: 6 | D123: 164.4 | E123: =IFERROR(IF(('Input sheet'!$B$3/D123)<=1,('Input sheet'!$B$3/D123),"0"),"") -> 0.1216545012 | F123: =K123*Selection!$F$27/$I$25 -> 232.9 | G123: 1397.4 | H123: =IFERROR((D123-'Input sheet'!$B$3),"") -> 144.4 | I123: =CONCATENATE(A123,Selection!$G$27) -> Nitrosource Main + 5 Subs6 | J123: =VLOOKUP(I123,'Capacities generators'!D:R,Selection!$G$26+1,FALSE) -> 27.4 | K123: =VLOOKUP(I123,'Capacities generators'!T:AH,Selection!$G$26+1,FALSE) -> 232.9 | L123: =CONCATENATE("1 x ",'Part numbers'!$B$181," and 5 x ",'Part numbers'!$B$182) -> 1 x 159.003552 and 5 x 159.003553 | N123: N/A | O123: =VLOOKUP(I123,'Capacities generators'!AY:BM,Selection!$G$26+1,FALSE) -> 0 | P123: N/A | R123: 6
A124: Nitrosource Main + 3 Subs | B124: =J124*Selection!$D$27/$I$25 -> 18.2 | C124: 7 | D124: 127.4 | E124: =IFERROR(IF(('Input sheet'!$B$3/D124)<=1,('Input sheet'!$B$3/D124),"0"),"") -> 0.1569858713 | F124: =K124*Selection!$F$27/$I$25 -> 154.7 | G124: 1082.9 | H124: =IFERROR((D124-'Input sheet'!$B$3),"") -> 107.4 | I124: =CONCATENATE(A124,Selection!$G$27) -> Nitrosource Main + 3 Subs6 | J124: =VLOOKUP(I124,'Capacities generators'!D:R,Selection!$G$26+1,FALSE) -> 18.2 | K124: =VLOOKUP(I124,'Capacities generators'!T:AH,Selection!$G$26+1,FALSE) -> 154.7 | L124: =CONCATENATE("1 x ",'Part numbers'!$B$181," and 3 x ",'Part numbers'!$B$182) -> 1 x 159.003552 and 3 x 159.003553 | N124: N/A | O124: =VLOOKUP(I124,'Capacities generators'!AY:BM,Selection!$G$26+1,FALSE) -> 0 | P124: N/A | R124: 7
A125: Nitrosource Main + 4 Subs | B125: =J125*Selection!$D$27/$I$25 -> 22.8 | C125: 7 | D125: 159.6 | E125: =IFERROR(IF(('Input sheet'!$B$3/D125)<=1,('Input sheet'!$B$3/D125),"0"),"") -> 0.1253132832 | F125: =K125*Selection!$F$27/$I$25 -> 193.8 | G125: 1356.6 | H125: =IFERROR((D125-'Input sheet'!$B$3),"") -> 139.6 | I125: =CONCATENATE(A125,Selection!$G$27) -> Nitrosource Main + 4 Subs6 | J125: =VLOOKUP(I125,'Capacities generators'!D:R,Selection!$G$26+1,FALSE) -> 22.8 | K125: =VLOOKUP(I125,'Capacities generators'!T:AH,Selection!$G$26+1,FALSE) -> 193.8 | L125: =CONCATENATE("1 x ",'Part numbers'!$B$181," and 4 x ",'Part numbers'!$B$182) -> 1 x 159.003552 and 4 x 159.003553 | N125: N/A | O125: =VLOOKUP(I125,'Capacities generators'!AY:BM,Selection!$G$26+1,FALSE) -> 0 | P125: N/A | R125: 7
A126: Nitrosource Main + 5 Subs | B126: =J126*Selection!$D$27/$I$25 -> 27.4 | C126: 7 | D126: 191.8 | E126: =IFERROR(IF(('Input sheet'!$B$3/D126)<=1,('Input sheet'!$B$3/D126),"0"),"") -> 0.1042752868 | F126: =K126*Selection!$F$27/$I$25 -> 232.9 | G126: 1630.3 | H126: =IFERROR((D126-'Input sheet'!$B$3),"") -> 171.8 | I126: =CONCATENATE(A126,Selection!$G$27) -> Nitrosource Main + 5 Subs6 | J126: =VLOOKUP(I126,'Capacities generators'!D:R,Selection!$G$26+1,FALSE) -> 27.4 | K126: =VLOOKUP(I126,'Capacities generators'!T:AH,Selection!$G$26+1,FALSE) -> 232.9 | L126: =CONCATENATE("1 x ",'Part numbers'!$B$181," and 5 x ",'Part numbers'!$B$182) -> 1 x 159.003552 and 5 x 159.003553 | N126: N/A | O126: =VLOOKUP(I126,'Capacities generators'!AY:BM,Selection!$G$26+1,FALSE) -> 0 | P126: N/A | R126: 7
A127: Nitrosource Main + 3 Subs | B127: =J127*Selection!$D$27/$I$25 -> 18.2 | C127: 8 | D127: 145.6 | E127: =IFERROR(IF(('Input sheet'!$B$3/D127)<=1,('Input sheet'!$B$3/D127),"0"),"") -> 0.1373626374 | F127: =K127*Selection!$F$27/$I$25 -> 154.7 | G127: 1237.6 | H127: =IFERROR((D127-'Input sheet'!$B$3),"") -> 125.6 | I127: =CONCATENATE(A127,Selection!$G$27) -> Nitrosource Main + 3 Subs6 | J127: =VLOOKUP(I127,'Capacities generators'!D:R,Selection!$G$26+1,FALSE) -> 18.2 | K127: =VLOOKUP(I127,'Capacities generators'!T:AH,Selection!$G$26+1,FALSE) -> 154.7 | L127: =CONCATENATE("1 x ",'Part numbers'!$B$181," and 3 x ",'Part numbers'!$B$182) -> 1 x 159.003552 and 3 x 159.003553 | N127: N/A | O127: =VLOOKUP(I127,'Capacities generators'!AY:BM,Selection!$G$26+1,FALSE) -> 0 | P127: N/A | R127: 8
A128: Nitrosource Main + 4 Subs | B128: =J128*Selection!$D$27/$I$25 -> 22.8 | C128: 8 | D128: 182.4 | E128: =IFERROR(IF(('Input sheet'!$B$3/D128)<=1,('Input sheet'!$B$3/D128),"0"),"") -> 0.1096491228 | F128: =K128*Selection!$F$27/$I$25 -> 193.8 | G128: 1550.4 | H128: =IFERROR((D128-'Input sheet'!$B$3),"") -> 162.4 | I128: =CONCATENATE(A128,Selection!$G$27) -> Nitrosource Main + 4 Subs6 | J128: =VLOOKUP(I128,'Capacities generators'!D:R,Selection!$G$26+1,FALSE) -> 22.8 | K128: =VLOOKUP(I128,'Capacities generators'!T:AH,Selection!$G$26+1,FALSE) -> 193.8 | L128: =CONCATENATE("1 x ",'Part numbers'!$B$181," and 4 x ",'Part numbers'!$B$182) -> 1 x 159.003552 and 4 x 159.003553 | N128: N/A | O128: =VLOOKUP(I128,'Capacities generators'!AY:BM,Selection!$G$26+1,FALSE) -> 0 | P128: N/A | R128: 8
A129: Nitrosource Main + 5 Subs | B129: =J129*Selection!$D$27/$I$25 -> 27.4 | C129: 8 | D129: 219.2 | E129: =IFERROR(IF(('Input sheet'!$B$3/D129)<=1,('Input sheet'!$B$3/D129),"0"),"") -> 0.09124087591 | F129: =K129*Selection!$F$27/$I$25 -> 232.9 | G129: 1863.2 | H129: =IFERROR((D129-'Input sheet'!$B$3),"") -> 199.2 | I129: =CONCATENATE(A129,Selection!$G$27) -> Nitrosource Main + 5 Subs6 | J129: =VLOOKUP(I129,'Capacities generators'!D:R,Selection!$G$26+1,FALSE) -> 27.4 | K129: =VLOOKUP(I129,'Capacities generators'!T:AH,Selection!$G$26+1,FALSE) -> 232.9 | L129: =CONCATENATE("1 x ",'Part numbers'!$B$181," and 5 x ",'Part numbers'!$B$182) -> 1 x 159.003552 and 5 x 159.003553 | N129: N/A | O129: =VLOOKUP(I129,'Capacities generators'!AY:BM,Selection!$G$26+1,FALSE) -> 0 | P129: N/A | R129: 8
A130: Nitrosource Main + 3 Subs | B130: =J130*Selection!$D$27/$I$25 -> 18.2 | C130: 9 | D130: 163.8 | E130: =IFERROR(IF(('Input sheet'!$B$3/D130)<=1,('Input sheet'!$B$3/D130),"0"),"") -> 0.1221001221 | F130: =K130*Selection!$F$27/$I$25 -> 154.7 | G130: 1392.3 | H130: =IFERROR((D130-'Input sheet'!$B$3),"") -> 143.8 | I130: =CONCATENATE(A130,Selection!$G$27) -> Nitrosource Main + 3 Subs6 | J130: =VLOOKUP(I130,'Capacities generators'!D:R,Selection!$G$26+1,FALSE) -> 18.2 | K130: =VLOOKUP(I130,'Capacities generators'!T:AH,Selection!$G$26+1,FALSE) -> 154.7 | L130: =CONCATENATE("1 x ",'Part numbers'!$B$181," and 3 x ",'Part numbers'!$B$182) -> 1 x 159.003552 and 3 x 159.003553 | N130: N/A | O130: =VLOOKUP(I130,'Capacities generators'!AY:BM,Selection!$G$26+1,FALSE) -> 0 | P130: N/A | R130: 9
A131: Nitrosource Main + 4 Subs | B131: =J131*Selection!$D$27/$I$25 -> 22.8 | C131: 9 | D131: 205.2 | E131: =IFERROR(IF(('Input sheet'!$B$3/D131)<=1,('Input sheet'!$B$3/D131),"0"),"") -> 0.09746588694 | F131: =K131*Selection!$F$27/$I$25 -> 193.8 | G131: 1744.2 | H131: =IFERROR((D131-'Input sheet'!$B$3),"") -> 185.2 | I131: =CONCATENATE(A131,Selection!$G$27) -> Nitrosource Main + 4 Subs6 | J131: =VLOOKUP(I131,'Capacities generators'!D:R,Selection!$G$26+1,FALSE) -> 22.8 | K131: =VLOOKUP(I131,'Capacities generators'!T:AH,Selection!$G$26+1,FALSE) -> 193.8 | L131: =CONCATENATE("1 x ",'Part numbers'!$B$181," and 4 x ",'Part numbers'!$B$182) -> 1 x 159.003552 and 4 x 159.003553 | N131: N/A | O131: =VLOOKUP(I131,'Capacities generators'!AY:BM,Selection!$G$26+1,FALSE) -> 0 | P131: N/A | R131: 9
A132: Nitrosource Main + 5 Subs | B132: =J132*Selection!$D$27/$I$25 -> 27.4 | C132: 9 | D132: 246.6 | E132: =IFERROR(IF(('Input sheet'!$B$3/D132)<=1,('Input sheet'!$B$3/D132),"0"),"") -> 0.08110300081 | F132: =K132*Selection!$F$27/$I$25 -> 232.9 | G132: 2096.1 | H132: =IFERROR((D132-'Input sheet'!$B$3),"") -> 226.6 | I132: =CONCATENATE(A132,Selection!$G$27) -> Nitrosource Main + 5 Subs6 | J132: =VLOOKUP(I132,'Capacities generators'!D:R,Selection!$G$26+1,FALSE) -> 27.4 | K132: =VLOOKUP(I132,'Capacities generators'!T:AH,Selection!$G$26+1,FALSE) -> 232.9 | L132: =CONCATENATE("1 x ",'Part numbers'!$B$181," and 5 x ",'Part numbers'!$B$182) -> 1 x 159.003552 and 5 x 159.003553 | N132: N/A | O132: =VLOOKUP(I132,'Capacities generators'!AY:BM,Selection!$G$26+1,FALSE) -> 0 | P132: N/A | R132: 9
A133: Nitrosource Main + 3 Subs | B133: =J133*Selection!$D$27/$I$25 -> 18.2 | C133: 10 | D133: 182 | E133: =IFERROR(IF(('Input sheet'!$B$3/D133)<=1,('Input sheet'!$B$3/D133),"0"),"") -> 0.1098901099 | F133: =K133*Selection!$F$27/$I$25 -> 154.7 | G133: 1547 | H133: =IFERROR((D133-'Input sheet'!$B$3),"") -> 162 | I133: =CONCATENATE(A133,Selection!$G$27) -> Nitrosource Main + 3 Subs6 | J133: =VLOOKUP(I133,'Capacities generators'!D:R,Selection!$G$26+1,FALSE) -> 18.2 | K133: =VLOOKUP(I133,'Capacities generators'!T:AH,Selection!$G$26+1,FALSE) -> 154.7 | L133: =CONCATENATE("1 x ",'Part numbers'!$B$181," and 3 x ",'Part numbers'!$B$182) -> 1 x 159.003552 and 3 x 159.003553 | N133: N/A | O133: =VLOOKUP(I133,'Capacities generators'!AY:BM,Selection!$G$26+1,FALSE) -> 0 | P133: N/A | R133: 10
A134: Nitrosource Main + 4 Subs | B134: =J134*Selection!$D$27/$I$25 -> 22.8 | C134: 10 | D134: 228 | E134: =IFERROR(IF(('Input sheet'!$B$3/D134)<=1,('Input sheet'!$B$3/D134),"0"),"") -> 0.08771929825 | F134: =K134*Selection!$F$27/$I$25 -> 193.8 | G134: 1938 | H134: =IFERROR((D134-'Input sheet'!$B$3),"") -> 208 | I134: =CONCATENATE(A134,Selection!$G$27) -> Nitrosource Main + 4 Subs6 | J134: =VLOOKUP(I134,'Capacities generators'!D:R,Selection!$G$26+1,FALSE) -> 22.8 | K134: =VLOOKUP(I134,'Capacities generators'!T:AH,Selection!$G$26+1,FALSE) -> 193.8 | L134: =CONCATENATE("1 x ",'Part numbers'!$B$181," and 4 x ",'Part numbers'!$B$182) -> 1 x 159.003552 and 4 x 159.003553 | N134: N/A | O134: =VLOOKUP(I134,'Capacities generators'!AY:BM,Selection!$G$26+1,FALSE) -> 0 | P134: N/A | R134: 10
A135: Nitrosource Main + 5 Subs | B135: =J135*Selection!$D$27/$I$25 -> 27.4 | C135: 10 | D135: 274 | E135: =IFERROR(IF(('Input sheet'!$B$3/D135)<=1,('Input sheet'!$B$3/D135),"0"),"") -> 0.07299270073 | F135: =K135*Selection!$F$27/$I$25 -> 232.9 | G135: 2329 | H135: =IFERROR((D135-'Input sheet'!$B$3),"") -> 254 | I135: =CONCATENATE(A135,Selection!$G$27) -> Nitrosource Main + 5 Subs6 | J135: =VLOOKUP(I135,'Capacities generators'!D:R,Selection!$G$26+1,FALSE) -> 27.4 | K135: =VLOOKUP(I135,'Capacities generators'!T:AH,Selection!$G$26+1,FALSE) -> 232.9 | L135: =CONCATENATE("1 x ",'Part numbers'!$B$181," and 5 x ",'Part numbers'!$B$182) -> 1 x 159.003552 and 5 x 159.003553 | N135: N/A | O135: =VLOOKUP(I135,'Capacities generators'!AY:BM,Selection!$G$26+1,FALSE) -> 0 | P135: N/A | R135: 10

Sheet Calculations TCO (hidden)
H1: EST | K1: Currencies | L1: Yearly maintenance cost generator | M1: Yearly maintenance cost dryer | O1: =Talen!A126 -> 5 YEAR TOTAL COST OF OWNERSHIP
B2: Purities | D2: pressure | E2: L/Sec/kW | F2: kW/m3 | H2: Flow demand % | I2: energy savings % | K2: € | L2: 900 | M2: 510 | P2: =C30 -> Parker | Q2: =D30 -> BULK GAS | R2: =E30 -> Alternative
B3: 5 ppm | D3: 4 | E3: =-0.1602*D3 + 4.1421 -> 3.5013 | F3: =1/(((E3*3600)/1000)) -> 0.07933561185 | H3: ='factors-pull down'!A62 -> 0.1 | I3: ='factors-pull down'!B62*100 -> 71 | K3: $ | L3: 1000 | M3: 570 | O3: =Talen!A93 -> INVESTMENT | P3: ='TCO Calculator'!E38 -> 0 | Q3: ='TCO Calculator'!J38 -> 0 | R3: ='TCO Calculator'!O38 -> 0
B4: 10 ppm | D4: 4,5 | E4: 3.4212 | F4: 0.08119308365 | H4: ='factors-pull down'!A63 -> 0.15 | I4: ='factors-pull down'!B63*100 -> 65.9 | K4: £ | L4: 640 | M4: 363 | O4: =Talen!A102 -> OPERATIONAL COSTS | P4: =('TCO Calculator'!E56*5) -> 25390.11137 | Q4: ='TCO Calculator'!J58*5 -> 171250 | R4: ='TCO Calculator'!O56*5 -> 0
B5: 50 ppm | D5: 5 | E5: 3.3411 | F5: 0.08313961802 | H5: ='factors-pull down'!A64 -> 0.2 | I5: ='factors-pull down'!B64*100 -> 61.3 | K5: Kč | L5: 24500 | M5: 14000 | O5: =Talen!A128 -> SERVICE COSTS | P5: ='TCO Calculator'!E57*5 -> 7050 | Q5: 0 | R5: ='TCO Calculator'!O57*5 -> 0
B6: 100 ppm | D6: 5,5 | E6: 3.261 | F6: 0.08518177791 | H6: ='factors-pull down'!A65 -> 0.25 | I6: ='factors-pull down'!B65*100 -> 57 | K6: Rs. | L6: 63000 | M6: 36000 | O6: =Talen!A127 -> 10 YEAR TOTAL COST OF OWNERSHIP
B7: 250 ppm | D7: 6 | E7: 3.1809 | F7: 0.08732678732 | H7: ='factors-pull down'!A66 -> 0.3 | I7: ='factors-pull down'!B66*100 -> 53.1 | K7: ¥ | L7: 6100 | M7: 3400 | P7: =C30 -> Parker | Q7: =D30 -> BULK GAS | R7: =E30 -> Alternative
B8: 500 ppm | D8: 6,5 | E8: 3.1008 | F8: 0.08958261667 | H8: ='factors-pull down'!A67 -> 0.35 | I8: ='factors-pull down'!B67*100 -> 49.6 | K8: ₩ | L8: 1140000 | M8: 650000 | O8: =Talen!A93 -> INVESTMENT | P8: ='TCO Calculator'!E38 -> 0 | Q8: ='TCO Calculator'!J38 -> 0 | R8: ='TCO Calculator'!O38 -> 0
B9: 0.001 | D9: 7 | E9: 3.0207 | F9: 0.09195808183 | H9: ='factors-pull down'!A68 -> 0.4 | I9: ='factors-pull down'!B68*100 -> 46.5 | K9: ฿ | L9: 34500 | M9: 19500 | O9: =Talen!A102 -> OPERATIONAL COSTS | P9: =('TCO Calculator'!E56*10) -> 50780.22274 | Q9: ='TCO Calculator'!J58*10 -> 342500 | R9: ='TCO Calculator'!O56*10 -> 0
B10: 0.004 | D10: 7,5 | E10: 2.9406 | F10: 0.09446295918 | H10: ='factors-pull down'!A69 -> 0.45 | I10: ='factors-pull down'!B69*100 -> 43.6 | K10: ₪ | L10: 3800 | M10: 2200 | O10: =Talen!A128 -> SERVICE COSTS | P10: ='TCO Calculator'!E57*10 -> 14100 | Q10: 0 | R10: ='TCO Calculator'!O57*10 -> 0
B11: 0.005 | D11: 8 | E11: 2.8605 | F11: 0.09710812018 | H11: ='factors-pull down'!A70 -> 0.5 | I11: ='factors-pull down'!B70*100 -> 41
B12: 0.01 | D12: 8,5 | E12: 2.7804 | F12: 0.09990568903 | H12: ='factors-pull down'!A71 -> 0.55 | I12: ='factors-pull down'!B71*100 -> 38.6 | O12: selection
B13: 0.02 | D13: 9 | E13: 2.7003 | F13: 0.1028692285 | H13: ='factors-pull down'!A72 -> 0.6 | I13: ='factors-pull down'!B72*100 -> 36.2 | O13: =IF('TCO Calculator'!$F$111=O19,O1,O6) -> 5 YEAR TOTAL COST OF OWNERSHIP
B14: 0.03 | D14: 9,5 | E14: 2.6202 | F14: 0.1060139599 | H14: ='factors-pull down'!A73 -> 0.65 | I14: ='factors-pull down'!B73*100 -> 33.9 | P14: =IF('TCO Calculator'!$F$111=$O$19,P2,P7) -> Parker | Q14: =IF('TCO Calculator'!$F$111=$O$19,Q2,Q7) -> BULK GAS | R14: =IF('TCO Calculator'!$F$111=$O$19,R2,R7) -> Alternative
B15: 0.04 | D15: 10 | E15: 2.5401 | F15: 0.1093570244 | H15: ='factors-pull down'!A74 -> 0.7 | I15: ='factors-pull down'!B74*100 -> 31.5 | O15: =IF('TCO Calculator'!$F$111=$O$19,O3,O8) -> INVESTMENT | P15: =IF('TCO Calculator'!$F$111=$O$19,P3,P8) -> 0 | Q15: =IF('TCO Calculator'!$F$111=$O$19,Q3,Q8) -> 0 | R15: =IF('TCO Calculator'!$F$111=$O$19,R3,R8) -> 0
B16: 0.05 | D16: 10,5 | E16: 2.46 | F16: 0.1129177958 | H16: ='factors-pull down'!A75 -> 0.75 | I16: ='factors-pull down'!B75*100 -> 29 | O16: =IF('TCO Calculator'!$F$111=$O$19,O4,O9) -> OPERATIONAL COSTS | P16: =IF('TCO Calculator'!$F$111=$O$19,P4,P9) -> 25390.11137 | Q16: =IF('TCO Calculator'!$F$111=$O$19,Q4,Q9) -> 171250 | R16: =IF('TCO Calculator'!$F$111=$O$19,R4,R9) -> 0
D17: 11 | E17: 2.3799 | F17: 0.1167182561 | H17: ='factors-pull down'!A76 -> 0.8 | I17: ='factors-pull down'!B76*100 -> 26.2 | O17: =IF('TCO Calculator'!$F$111=$O$19,O5,O10) -> SERVICE COSTS | P17: =IF('TCO Calculator'!$F$111=$O$19,P5,P10) -> 7050 | Q17: =IF('TCO Calculator'!$F$111=$O$19,Q5,Q10) -> 0 | R17: =IF('TCO Calculator'!$F$111=$O$19,R5,R10) -> 0
D18: 11,5 | E18: 2.2998 | F18: 0.1207834498 | H18: ='factors-pull down'!A77 -> 0.85 | I18: ='factors-pull down'!B77*100 -> 23
D19: 12 | E19: 2.2197 | F19: 0.1251420362 | H19: ='factors-pull down'!A78 -> 0.9 | I19: ='factors-pull down'!B78*100 -> 19.4 | O19: =Talen!A130 -> 5 years
D20: 12,5 | E20: 2.1396 | F20: 0.1298269666 | H20: ='factors-pull down'!A79 -> 0.95 | I20: ='factors-pull down'!B79*100 -> 15.1 | O20: =Talen!A131 -> 10 years
D21: 13 | E21: 2.0595 | F21: 0.1348763184 | H21: ='factors-pull down'!A80 -> 1 | I21: ='factors-pull down'!B80*100 -> 10
D22: 13,5 | E22: 1.9794 | F22: 0.1403343325 | H22: Load | I22: =Selection!B16 -> 91
D23: 14 | E23: 1.8993 | F23: 0.146252713 | H23: Savings | I23: =VLOOKUP(I22,H3:I21,2,TRUE) -> 10
D24: Power consumption Parker | E24: =VLOOKUP('TCO Calculator'!E22,D3:F23,3,FALSE) -> 0.09195808183 | H24: multiplier | I24: =(100-I23)/100 -> 0.9
D25: Power consumption alternative | E25: =VLOOKUP('TCO Calculator'!O22,D3:F12,3,FALSE) ->  | L25: =Talen!A91 -> Yes
L26: =Talen!A92 -> No
B29: =Talen!A113 -> COST OF OWNERSHIP
A30: Month | C30: ='OEM PN'!B2 -> Parker | D30: ='TCO Calculator'!$J$17 -> BULK GAS | E30: ='TCO Calculator'!$O$17 -> Alternative
A31: 1 | B31: =A31/12 -> 0.08333333333 | C31: =(A31*('TCO Calculator'!$E$58/12))+'TCO Calculator'!$E$38 -> 540.6685229 | D31: =(A31*('TCO Calculator'!$J$58/12))+'TCO Calculator'!$J$38 -> 2854.166667 | E31: =(A31*('TCO Calculator'!$O$58/12))+'TCO Calculator'!$O$38 -> 0
A32: 2 | B32: 0.1666666667 | C32: =(A32*('TCO Calculator'!$E$58/12))+'TCO Calculator'!$E$38 -> 1081.337046 | D32: =(A32*('TCO Calculator'!$J$58/12))+'TCO Calculator'!$J$38 -> 5708.333333 | E32: =(A32*('TCO Calculator'!$O$58/12))+'TCO Calculator'!$O$38 -> 0
A33: 3 | B33: 0.25 | C33: =(A33*('TCO Calculator'!$E$58/12))+'TCO Calculator'!$E$38 -> 1622.005569 | D33: =(A33*('TCO Calculator'!$J$58/12))+'TCO Calculator'!$J$38 -> 8562.5 | E33: =(A33*('TCO Calculator'!$O$58/12))+'TCO Calculator'!$O$38 -> 0
A34: 4 | B34: 0.3333333333 | C34: =(A34*('TCO Calculator'!$E$58/12))+'TCO Calculator'!$E$38 -> 2162.674091 | D34: =(A34*('TCO Calculator'!$J$58/12))+'TCO Calculator'!$J$38 -> 11416.66667 | E34: =(A34*('TCO Calculator'!$O$58/12))+'TCO Calculator'!$O$38 -> 0
A35: 5 | B35: 0.4166666667 | C35: =(A35*('TCO Calculator'!$E$58/12))+'TCO Calculator'!$E$38 -> 2703.342614 | D35: =(A35*('TCO Calculator'!$J$58/12))+'TCO Calculator'!$J$38 -> 14270.83333 | E35: =(A35*('TCO Calculator'!$O$58/12))+'TCO Calculator'!$O$38 -> 0
A36: 6 | B36: 0.5 | C36: =(A36*('TCO Calculator'!$E$58/12))+'TCO Calculator'!$E$38 -> 3244.011137 | D36: =(A36*('TCO Calculator'!$J$58/12))+'TCO Calculator'!$J$38 -> 17125 | E36: =(A36*('TCO Calculator'!$O$58/12))+'TCO Calculator'!$O$38 -> 0
A37: 7 | B37: 0.5833333333 | C37: =(A37*('TCO Calculator'!$E$58/12))+'TCO Calculator'!$E$38 -> 3784.67966 | D37: =(A37*('TCO Calculator'!$J$58/12))+'TCO Calculator'!$J$38 -> 19979.16667 | E37: =(A37*('TCO Calculator'!$O$58/12))+'TCO Calculator'!$O$38 -> 0
A38: 8 | B38: 0.6666666667 | C38: =(A38*('TCO Calculator'!$E$58/12))+'TCO Calculator'!$E$38 -> 4325.348183 | D38: =(A38*('TCO Calculator'!$J$58/12))+'TCO Calculator'!$J$38 -> 22833.33333 | E38: =(A38*('TCO Calculator'!$O$58/12))+'TCO Calculator'!$O$38 -> 0
A39: 9 | B39: 0.75 | C39: =(A39*('TCO Calculator'!$E$58/12))+'TCO Calculator'!$E$38 -> 4866.016706 | D39: =(A39*('TCO Calculator'!$J$58/12))+'TCO Calculator'!$J$38 -> 25687.5 | E39: =(A39*('TCO Calculator'!$O$58/12))+'TCO Calculator'!$O$38 -> 0
A40: 10 | B40: 0.8333333333 | C40: =(A40*('TCO Calculator'!$E$58/12))+'TCO Calculator'!$E$38 -> 5406.685229 | D40: =(A40*('TCO Calculator'!$J$58/12))+'TCO Calculator'!$J$38 -> 28541.66667 | E40: =(A40*('TCO Calculator'!$O$58/12))+'TCO Calculator'!$O$38 -> 0
A41: 11 | B41: 0.9166666667 | C41: =(A41*('TCO Calculator'!$E$58/12))+'TCO Calculator'!$E$38 -> 5947.353751 | D41: =(A41*('TCO Calculator'!$J$58/12))+'TCO Calculator'!$J$38 -> 31395.83333 | E41: =(A41*('TCO Calculator'!$O$58/12))+'TCO Calculator'!$O$38 -> 0
A42: 12 | B42: 1 | C42: =(A42*('TCO Calculator'!$E$58/12))+'TCO Calculator'!$E$38 -> 6488.022274 | D42: =(A42*('TCO Calculator'!$J$58/12))+'TCO Calculator'!$J$38 -> 34250 | E42: =(A42*('TCO Calculator'!$O$58/12))+'TCO Calculator'!$O$38 -> 0
A43: 13 | B43: 1.083333333 | C43: =(A43*('TCO Calculator'!$E$58/12))+'TCO Calculator'!$E$38 -> 7028.690797 | D43: =(A43*('TCO Calculator'!$J$58/12))+'TCO Calculator'!$J$38 -> 37104.16667 | E43: =(A43*('TCO Calculator'!$O$58/12))+'TCO Calculator'!$O$38 -> 0
A44: 14 | B44: 1.166666667 | C44: =(A44*('TCO Calculator'!$E$58/12))+'TCO Calculator'!$E$38 -> 7569.35932 | D44: =(A44*('TCO Calculator'!$J$58/12))+'TCO Calculator'!$J$38 -> 39958.33333 | E44: =(A44*('TCO Calculator'!$O$58/12))+'TCO Calculator'!$O$38 -> 0
A45: 15 | B45: 1.25 | C45: =(A45*('TCO Calculator'!$E$58/12))+'TCO Calculator'!$E$38 -> 8110.027843 | D45: =(A45*('TCO Calculator'!$J$58/12))+'TCO Calculator'!$J$38 -> 42812.5 | E45: =(A45*('TCO Calculator'!$O$58/12))+'TCO Calculator'!$O$38 -> 0
A46: 16 | B46: 1.333333333 | C46: =(A46*('TCO Calculator'!$E$58/12))+'TCO Calculator'!$E$38 -> 8650.696366 | D46: =(A46*('TCO Calculator'!$J$58/12))+'TCO Calculator'!$J$38 -> 45666.66667 | E46: =(A46*('TCO Calculator'!$O$58/12))+'TCO Calculator'!$O$38 -> 0
A47: 17 | B47: 1.416666667 | C47: =(A47*('TCO Calculator'!$E$58/12))+'TCO Calculator'!$E$38 -> 9191.364889 | D47: =(A47*('TCO Calculator'!$J$58/12))+'TCO Calculator'!$J$38 -> 48520.83333 | E47: =(A47*('TCO Calculator'!$O$58/12))+'TCO Calculator'!$O$38 -> 0
A48: 18 | B48: 1.5 | C48: =(A48*('TCO Calculator'!$E$58/12))+'TCO Calculator'!$E$38 -> 9732.033411 | D48: =(A48*('TCO Calculator'!$J$58/12))+'TCO Calculator'!$J$38 -> 51375 | E48: =(A48*('TCO Calculator'!$O$58/12))+'TCO Calculator'!$O$38 -> 0
A49: 19 | B49: 1.583333333 | C49: =(A49*('TCO Calculator'!$E$58/12))+'TCO Calculator'!$E$38 -> 10272.70193 | D49: =(A49*('TCO Calculator'!$J$58/12))+'TCO Calculator'!$J$38 -> 54229.16667 | E49: =(A49*('TCO Calculator'!$O$58/12))+'TCO Calculator'!$O$38 -> 0
A50: 20 | B50: 1.666666667 | C50: =(A50*('TCO Calculator'!$E$58/12))+'TCO Calculator'!$E$38 -> 10813.37046 | D50: =(A50*('TCO Calculator'!$J$58/12))+'TCO Calculator'!$J$38 -> 57083.33333 | E50: =(A50*('TCO Calculator'!$O$58/12))+'TCO Calculator'!$O$38 -> 0
A51: 21 | B51: 1.75 | C51: =(A51*('TCO Calculator'!$E$58/12))+'TCO Calculator'!$E$38 -> 11354.03898 | D51: =(A51*('TCO Calculator'!$J$58/12))+'TCO Calculator'!$J$38 -> 59937.5 | E51: =(A51*('TCO Calculator'!$O$58/12))+'TCO Calculator'!$O$38 -> 0
A52: 22 | B52: 1.833333333 | C52: =(A52*('TCO Calculator'!$E$58/12))+'TCO Calculator'!$E$38 -> 11894.7075 | D52: =(A52*('TCO Calculator'!$J$58/12))+'TCO Calculator'!$J$38 -> 62791.66667 | E52: =(A52*('TCO Calculator'!$O$58/12))+'TCO Calculator'!$O$38 -> 0
A53: 23 | B53: 1.916666667 | C53: =(A53*('TCO Calculator'!$E$58/12))+'TCO Calculator'!$E$38 -> 12435.37603 | D53: =(A53*('TCO Calculator'!$J$58/12))+'TCO Calculator'!$J$38 -> 65645.83333 | E53: =(A53*('TCO Calculator'!$O$58/12))+'TCO Calculator'!$O$38 -> 0
A54: 24 | B54: 2 | C54: =(A54*('TCO Calculator'!$E$58/12))+'TCO Calculator'!$E$38 -> 12976.04455 | D54: =(A54*('TCO Calculator'!$J$58/12))+'TCO Calculator'!$J$38 -> 68500 | E54: =(A54*('TCO Calculator'!$O$58/12))+'TCO Calculator'!$O$38 -> 0
A55: 25 | B55: 2.083333333 | C55: =(A55*('TCO Calculator'!$E$58/12))+'TCO Calculator'!$E$38 -> 13516.71307 | D55: =(A55*('TCO Calculator'!$J$58/12))+'TCO Calculator'!$J$38 -> 71354.16667 | E55: =(A55*('TCO Calculator'!$O$58/12))+'TCO Calculator'!$O$38 -> 0
A56: 26 | B56: 2.166666667 | C56: =(A56*('TCO Calculator'!$E$58/12))+'TCO Calculator'!$E$38 -> 14057.38159 | D56: =(A56*('TCO Calculator'!$J$58/12))+'TCO Calculator'!$J$38 -> 74208.33333 | E56: =(A56*('TCO Calculator'!$O$58/12))+'TCO Calculator'!$O$38 -> 0
A57: 27 | B57: 2.25 | C57: =(A57*('TCO Calculator'!$E$58/12))+'TCO Calculator'!$E$38 -> 14598.05012 | D57: =(A57*('TCO Calculator'!$J$58/12))+'TCO Calculator'!$J$38 -> 77062.5 | E57: =(A57*('TCO Calculator'!$O$58/12))+'TCO Calculator'!$O$38 -> 0
A58: 28 | B58: 2.333333333 | C58: =(A58*('TCO Calculator'!$E$58/12))+'TCO Calculator'!$E$38 -> 15138.71864 | D58: =(A58*('TCO Calculator'!$J$58/12))+'TCO Calculator'!$J$38 -> 79916.66667 | E58: =(A58*('TCO Calculator'!$O$58/12))+'TCO Calculator'!$O$38 -> 0
A59: 29 | B59: 2.416666667 | C59: =(A59*('TCO Calculator'!$E$58/12))+'TCO Calculator'!$E$38 -> 15679.38716 | D59: =(A59*('TCO Calculator'!$J$58/12))+'TCO Calculator'!$J$38 -> 82770.83333 | E59: =(A59*('TCO Calculator'!$O$58/12))+'TCO Calculator'!$O$38 -> 0
A60: 30 | B60: 2.5 | C60: =(A60*('TCO Calculator'!$E$58/12))+'TCO Calculator'!$E$38 -> 16220.05569 | D60: =(A60*('TCO Calculator'!$J$58/12))+'TCO Calculator'!$J$38 -> 85625 | E60: =(A60*('TCO Calculator'!$O$58/12))+'TCO Calculator'!$O$38 -> 0
A61: 31 | B61: 2.583333333 | C61: =(A61*('TCO Calculator'!$E$58/12))+'TCO Calculator'!$E$38 -> 16760.72421 | D61: =(A61*('TCO Calculator'!$J$58/12))+'TCO Calculator'!$J$38 -> 88479.16667 | E61: =(A61*('TCO Calculator'!$O$58/12))+'TCO Calculator'!$O$38 -> 0
A62: 32 | B62: 2.666666667 | C62: =(A62*('TCO Calculator'!$E$58/12))+'TCO Calculator'!$E$38 -> 17301.39273 | D62: =(A62*('TCO Calculator'!$J$58/12))+'TCO Calculator'!$J$38 -> 91333.33333 | E62: =(A62*('TCO Calculator'!$O$58/12))+'TCO Calculator'!$O$38 -> 0
A63: 33 | B63: =A63/12 -> 2.75 | C63: =(A63*('TCO Calculator'!$E$58/12))+'TCO Calculator'!$E$38 -> 17842.06125 | D63: =(A63*('TCO Calculator'!$J$58/12))+'TCO Calculator'!$J$38 -> 94187.5 | E63: =(A63*('TCO Calculator'!$O$58/12))+'TCO Calculator'!$O$38 -> 0
A64: 34 | B64: 2.833333333 | C64: =(A64*('TCO Calculator'!$E$58/12))+'TCO Calculator'!$E$38 -> 18382.72978 | D64: =(A64*('TCO Calculator'!$J$58/12))+'TCO Calculator'!$J$38 -> 97041.66667 | E64: =(A64*('TCO Calculator'!$O$58/12))+'TCO Calculator'!$O$38 -> 0
A65: 35 | B65: 2.916666667 | C65: =(A65*('TCO Calculator'!$E$58/12))+'TCO Calculator'!$E$38 -> 18923.3983 | D65: =(A65*('TCO Calculator'!$J$58/12))+'TCO Calculator'!$J$38 -> 99895.83333 | E65: =(A65*('TCO Calculator'!$O$58/12))+'TCO Calculator'!$O$38 -> 0
A66: 36 | B66: 3 | C66: =(A66*('TCO Calculator'!$E$58/12))+'TCO Calculator'!$E$38 -> 19464.06682 | D66: =(A66*('TCO Calculator'!$J$58/12))+'TCO Calculator'!$J$38 -> 102750 | E66: =(A66*('TCO Calculator'!$O$58/12))+'TCO Calculator'!$O$38 -> 0
A67: 37 | B67: 3.083333333 | C67: =(A67*('TCO Calculator'!$E$58/12))+'TCO Calculator'!$E$38 -> 20004.73535 | D67: =(A67*('TCO Calculator'!$J$58/12))+'TCO Calculator'!$J$38 -> 105604.1667 | E67: =(A67*('TCO Calculator'!$O$58/12))+'TCO Calculator'!$O$38 -> 0
A68: 38 | B68: 3.166666667 | C68: =(A68*('TCO Calculator'!$E$58/12))+'TCO Calculator'!$E$38 -> 20545.40387 | D68: =(A68*('TCO Calculator'!$J$58/12))+'TCO Calculator'!$J$38 -> 108458.3333 | E68: =(A68*('TCO Calculator'!$O$58/12))+'TCO Calculator'!$O$38 -> 0
A69: 39 | B69: 3.25 | C69: =(A69*('TCO Calculator'!$E$58/12))+'TCO Calculator'!$E$38 -> 21086.07239 | D69: =(A69*('TCO Calculator'!$J$58/12))+'TCO Calculator'!$J$38 -> 111312.5 | E69: =(A69*('TCO Calculator'!$O$58/12))+'TCO Calculator'!$O$38 -> 0
A70: 40 | B70: 3.333333333 | C70: =(A70*('TCO Calculator'!$E$58/12))+'TCO Calculator'!$E$38 -> 21626.74091 | D70: =(A70*('TCO Calculator'!$J$58/12))+'TCO Calculator'!$J$38 -> 114166.6667 | E70: =(A70*('TCO Calculator'!$O$58/12))+'TCO Calculator'!$O$38 -> 0
A71: 41 | B71: 3.416666667 | C71: =(A71*('TCO Calculator'!$E$58/12))+'TCO Calculator'!$E$38 -> 22167.40944 | D71: =(A71*('TCO Calculator'!$J$58/12))+'TCO Calculator'!$J$38 -> 117020.8333 | E71: =(A71*('TCO Calculator'!$O$58/12))+'TCO Calculator'!$O$38 -> 0
A72: 42 | B72: 3.5 | C72: =(A72*('TCO Calculator'!$E$58/12))+'TCO Calculator'!$E$38 -> 22708.07796 | D72: =(A72*('TCO Calculator'!$J$58/12))+'TCO Calculator'!$J$38 -> 119875 | E72: =(A72*('TCO Calculator'!$O$58/12))+'TCO Calculator'!$O$38 -> 0
A73: 43 | B73: 3.583333333 | C73: =(A73*('TCO Calculator'!$E$58/12))+'TCO Calculator'!$E$38 -> 23248.74648 | D73: =(A73*('TCO Calculator'!$J$58/12))+'TCO Calculator'!$J$38 -> 122729.1667 | E73: =(A73*('TCO Calculator'!$O$58/12))+'TCO Calculator'!$O$38 -> 0
A74: 44 | B74: 3.666666667 | C74: =(A74*('TCO Calculator'!$E$58/12))+'TCO Calculator'!$E$38 -> 23789.41501 | D74: =(A74*('TCO Calculator'!$J$58/12))+'TCO Calculator'!$J$38 -> 125583.3333 | E74: =(A74*('TCO Calculator'!$O$58/12))+'TCO Calculator'!$O$38 -> 0
A75: 45 | B75: 3.75 | C75: =(A75*('TCO Calculator'!$E$58/12))+'TCO Calculator'!$E$38 -> 24330.08353 | D75: =(A75*('TCO Calculator'!$J$58/12))+'TCO Calculator'!$J$38 -> 128437.5 | E75: =(A75*('TCO Calculator'!$O$58/12))+'TCO Calculator'!$O$38 -> 0
A76: 46 | B76: 3.833333333 | C76: =(A76*('TCO Calculator'!$E$58/12))+'TCO Calculator'!$E$38 -> 24870.75205 | D76: =(A76*('TCO Calculator'!$J$58/12))+'TCO Calculator'!$J$38 -> 131291.6667 | E76: =(A76*('TCO Calculator'!$O$58/12))+'TCO Calculator'!$O$38 -> 0
A77: 47 | B77: 3.916666667 | C77: =(A77*('TCO Calculator'!$E$58/12))+'TCO Calculator'!$E$38 -> 25411.42057 | D77: =(A77*('TCO Calculator'!$J$58/12))+'TCO Calculator'!$J$38 -> 134145.8333 | E77: =(A77*('TCO Calculator'!$O$58/12))+'TCO Calculator'!$O$38 -> 0
A78: 48 | B78: 4 | C78: =(A78*('TCO Calculator'!$E$58/12))+'TCO Calculator'!$E$38 -> 25952.0891 | D78: =(A78*('TCO Calculator'!$J$58/12))+'TCO Calculator'!$J$38 -> 137000 | E78: =(A78*('TCO Calculator'!$O$58/12))+'TCO Calculator'!$O$38 -> 0
A79: 49 | B79: 4.083333333 | C79: =(A79*('TCO Calculator'!$E$58/12))+'TCO Calculator'!$E$38 -> 26492.75762 | D79: =(A79*('TCO Calculator'!$J$58/12))+'TCO Calculator'!$J$38 -> 139854.1667 | E79: =(A79*('TCO Calculator'!$O$58/12))+'TCO Calculator'!$O$38 -> 0
A80: 50 | B80: 4.166666667 | C80: =(A80*('TCO Calculator'!$E$58/12))+'TCO Calculator'!$E$38 -> 27033.42614 | D80: =(A80*('TCO Calculator'!$J$58/12))+'TCO Calculator'!$J$38 -> 142708.3333 | E80: =(A80*('TCO Calculator'!$O$58/12))+'TCO Calculator'!$O$38 -> 0
A81: 51 | B81: 4.25 | C81: =(A81*('TCO Calculator'!$E$58/12))+'TCO Calculator'!$E$38 -> 27574.09467 | D81: =(A81*('TCO Calculator'!$J$58/12))+'TCO Calculator'!$J$38 -> 145562.5 | E81: =(A81*('TCO Calculator'!$O$58/12))+'TCO Calculator'!$O$38 -> 0
A82: 52 | B82: 4.333333333 | C82: =(A82*('TCO Calculator'!$E$58/12))+'TCO Calculator'!$E$38 -> 28114.76319 | D82: =(A82*('TCO Calculator'!$J$58/12))+'TCO Calculator'!$J$38 -> 148416.6667 | E82: =(A82*('TCO Calculator'!$O$58/12))+'TCO Calculator'!$O$38 -> 0
A83: 53 | B83: 4.416666667 | C83: =(A83*('TCO Calculator'!$E$58/12))+'TCO Calculator'!$E$38 -> 28655.43171 | D83: =(A83*('TCO Calculator'!$J$58/12))+'TCO Calculator'!$J$38 -> 151270.8333 | E83: =(A83*('TCO Calculator'!$O$58/12))+'TCO Calculator'!$O$38 -> 0
A84: 54 | B84: 4.5 | C84: =(A84*('TCO Calculator'!$E$58/12))+'TCO Calculator'!$E$38 -> 29196.10023 | D84: =(A84*('TCO Calculator'!$J$58/12))+'TCO Calculator'!$J$38 -> 154125 | E84: =(A84*('TCO Calculator'!$O$58/12))+'TCO Calculator'!$O$38 -> 0
A85: 55 | B85: 4.583333333 | C85: =(A85*('TCO Calculator'!$E$58/12))+'TCO Calculator'!$E$38 -> 29736.76876 | D85: =(A85*('TCO Calculator'!$J$58/12))+'TCO Calculator'!$J$38 -> 156979.1667 | E85: =(A85*('TCO Calculator'!$O$58/12))+'TCO Calculator'!$O$38 -> 0
A86: 56 | B86: 4.666666667 | C86: =(A86*('TCO Calculator'!$E$58/12))+'TCO Calculator'!$E$38 -> 30277.43728 | D86: =(A86*('TCO Calculator'!$J$58/12))+'TCO Calculator'!$J$38 -> 159833.3333 | E86: =(A86*('TCO Calculator'!$O$58/12))+'TCO Calculator'!$O$38 -> 0
A87: 57 | B87: 4.75 | C87: =(A87*('TCO Calculator'!$E$58/12))+'TCO Calculator'!$E$38 -> 30818.1058 | D87: =(A87*('TCO Calculator'!$J$58/12))+'TCO Calculator'!$J$38 -> 162687.5 | E87: =(A87*('TCO Calculator'!$O$58/12))+'TCO Calculator'!$O$38 -> 0
A88: 58 | B88: 4.833333333 | C88: =(A88*('TCO Calculator'!$E$58/12))+'TCO Calculator'!$E$38 -> 31358.77433 | D88: =(A88*('TCO Calculator'!$J$58/12))+'TCO Calculator'!$J$38 -> 165541.6667 | E88: =(A88*('TCO Calculator'!$O$58/12))+'TCO Calculator'!$O$38 -> 0
A89: 59 | B89: 4.916666667 | C89: =(A89*('TCO Calculator'!$E$58/12))+'TCO Calculator'!$E$38 -> 31899.44285 | D89: =(A89*('TCO Calculator'!$J$58/12))+'TCO Calculator'!$J$38 -> 168395.8333 | E89: =(A89*('TCO Calculator'!$O$58/12))+'TCO Calculator'!$O$38 -> 0
A90: 60 | B90: 5 | C90: =(A90*('TCO Calculator'!$E$58/12))+'TCO Calculator'!$E$38 -> 32440.11137 | D90: =(A90*('TCO Calculator'!$J$58/12))+'TCO Calculator'!$J$38 -> 171250 | E90: =(A90*('TCO Calculator'!$O$58/12))+'TCO Calculator'!$O$38 -> 0
A91: 61 | B91: 5.083333333 | C91: =(A91*('TCO Calculator'!$E$58/12))+'TCO Calculator'!$E$38 -> 32980.77989 | D91: =(A91*('TCO Calculator'!$J$58/12))+'TCO Calculator'!$J$38 -> 174104.1667 | E91: =(A91*('TCO Calculator'!$O$58/12))+'TCO Calculator'!$O$38 -> 0
A92: 62 | B92: 5.166666667 | C92: =(A92*('TCO Calculator'!$E$58/12))+'TCO Calculator'!$E$38 -> 33521.44842 | D92: =(A92*('TCO Calculator'!$J$58/12))+'TCO Calculator'!$J$38 -> 176958.3333 | E92: =(A92*('TCO Calculator'!$O$58/12))+'TCO Calculator'!$O$38 -> 0
A93: 63 | B93: 5.25 | C93: =(A93*('TCO Calculator'!$E$58/12))+'TCO Calculator'!$E$38 -> 34062.11694 | D93: =(A93*('TCO Calculator'!$J$58/12))+'TCO Calculator'!$J$38 -> 179812.5 | E93: =(A93*('TCO Calculator'!$O$58/12))+'TCO Calculator'!$O$38 -> 0
A94: 64 | B94: 5.333333333 | C94: =(A94*('TCO Calculator'!$E$58/12))+'TCO Calculator'!$E$38 -> 34602.78546 | D94: =(A94*('TCO Calculator'!$J$58/12))+'TCO Calculator'!$J$38 -> 182666.6667 | E94: =(A94*('TCO Calculator'!$O$58/12))+'TCO Calculator'!$O$38 -> 0
A95: 65 | B95: =A95/12 -> 5.416666667 | C95: =(A95*('TCO Calculator'!$E$58/12))+'TCO Calculator'!$E$38 -> 35143.45399 | D95: =(A95*('TCO Calculator'!$J$58/12))+'TCO Calculator'!$J$38 -> 185520.8333 | E95: =(A95*('TCO Calculator'!$O$58/12))+'TCO Calculator'!$O$38 -> 0
A96: 66 | B96: 5.5 | C96: =(A96*('TCO Calculator'!$E$58/12))+'TCO Calculator'!$E$38 -> 35684.12251 | D96: =(A96*('TCO Calculator'!$J$58/12))+'TCO Calculator'!$J$38 -> 188375 | E96: =(A96*('TCO Calculator'!$O$58/12))+'TCO Calculator'!$O$38 -> 0
A97: 67 | B97: 5.583333333 | C97: =(A97*('TCO Calculator'!$E$58/12))+'TCO Calculator'!$E$38 -> 36224.79103 | D97: =(A97*('TCO Calculator'!$J$58/12))+'TCO Calculator'!$J$38 -> 191229.1667 | E97: =(A97*('TCO Calculator'!$O$58/12))+'TCO Calculator'!$O$38 -> 0
A98: 68 | B98: 5.666666667 | C98: =(A98*('TCO Calculator'!$E$58/12))+'TCO Calculator'!$E$38 -> 36765.45955 | D98: =(A98*('TCO Calculator'!$J$58/12))+'TCO Calculator'!$J$38 -> 194083.3333 | E98: =(A98*('TCO Calculator'!$O$58/12))+'TCO Calculator'!$O$38 -> 0
A99: 69 | B99: 5.75 | C99: =(A99*('TCO Calculator'!$E$58/12))+'TCO Calculator'!$E$38 -> 37306.12808 | D99: =(A99*('TCO Calculator'!$J$58/12))+'TCO Calculator'!$J$38 -> 196937.5 | E99: =(A99*('TCO Calculator'!$O$58/12))+'TCO Calculator'!$O$38 -> 0
A100: 70 | B100: 5.833333333 | C100: =(A100*('TCO Calculator'!$E$58/12))+'TCO Calculator'!$E$38 -> 37846.7966 | D100: =(A100*('TCO Calculator'!$J$58/12))+'TCO Calculator'!$J$38 -> 199791.6667 | E100: =(A100*('TCO Calculator'!$O$58/12))+'TCO Calculator'!$O$38 -> 0
A101: 71 | B101: 5.916666667 | C101: =(A101*('TCO Calculator'!$E$58/12))+'TCO Calculator'!$E$38 -> 38387.46512 | D101: =(A101*('TCO Calculator'!$J$58/12))+'TCO Calculator'!$J$38 -> 202645.8333 | E101: =(A101*('TCO Calculator'!$O$58/12))+'TCO Calculator'!$O$38 -> 0
A102: 72 | B102: 6 | C102: =(A102*('TCO Calculator'!$E$58/12))+'TCO Calculator'!$E$38 -> 38928.13365 | D102: =(A102*('TCO Calculator'!$J$58/12))+'TCO Calculator'!$J$38 -> 205500 | E102: =(A102*('TCO Calculator'!$O$58/12))+'TCO Calculator'!$O$38 -> 0
A103: 73 | B103: 6.083333333 | C103: =(A103*('TCO Calculator'!$E$58/12))+'TCO Calculator'!$E$38 -> 39468.80217 | D103: =(A103*('TCO Calculator'!$J$58/12))+'TCO Calculator'!$J$38 -> 208354.1667 | E103: =(A103*('TCO Calculator'!$O$58/12))+'TCO Calculator'!$O$38 -> 0
A104: 74 | B104: 6.166666667 | C104: =(A104*('TCO Calculator'!$E$58/12))+'TCO Calculator'!$E$38 -> 40009.47069 | D104: =(A104*('TCO Calculator'!$J$58/12))+'TCO Calculator'!$J$38 -> 211208.3333 | E104: =(A104*('TCO Calculator'!$O$58/12))+'TCO Calculator'!$O$38 -> 0
A105: 75 | B105: 6.25 | C105: =(A105*('TCO Calculator'!$E$58/12))+'TCO Calculator'!$E$38 -> 40550.13921 | D105: =(A105*('TCO Calculator'!$J$58/12))+'TCO Calculator'!$J$38 -> 214062.5 | E105: =(A105*('TCO Calculator'!$O$58/12))+'TCO Calculator'!$O$38 -> 0
A106: 76 | B106: 6.333333333 | C106: =(A106*('TCO Calculator'!$E$58/12))+'TCO Calculator'!$E$38 -> 41090.80774 | D106: =(A106*('TCO Calculator'!$J$58/12))+'TCO Calculator'!$J$38 -> 216916.6667 | E106: =(A106*('TCO Calculator'!$O$58/12))+'TCO Calculator'!$O$38 -> 0
A107: 77 | B107: 6.416666667 | C107: =(A107*('TCO Calculator'!$E$58/12))+'TCO Calculator'!$E$38 -> 41631.47626 | D107: =(A107*('TCO Calculator'!$J$58/12))+'TCO Calculator'!$J$38 -> 219770.8333 | E107: =(A107*('TCO Calculator'!$O$58/12))+'TCO Calculator'!$O$38 -> 0
A108: 78 | B108: 6.5 | C108: =(A108*('TCO Calculator'!$E$58/12))+'TCO Calculator'!$E$38 -> 42172.14478 | D108: =(A108*('TCO Calculator'!$J$58/12))+'TCO Calculator'!$J$38 -> 222625 | E108: =(A108*('TCO Calculator'!$O$58/12))+'TCO Calculator'!$O$38 -> 0
A109: 79 | B109: 6.583333333 | C109: =(A109*('TCO Calculator'!$E$58/12))+'TCO Calculator'!$E$38 -> 42712.81331 | D109: =(A109*('TCO Calculator'!$J$58/12))+'TCO Calculator'!$J$38 -> 225479.1667 | E109: =(A109*('TCO Calculator'!$O$58/12))+'TCO Calculator'!$O$38 -> 0
A110: 80 | B110: 6.666666667 | C110: =(A110*('TCO Calculator'!$E$58/12))+'TCO Calculator'!$E$38 -> 43253.48183 | D110: =(A110*('TCO Calculator'!$J$58/12))+'TCO Calculator'!$J$38 -> 228333.3333 | E110: =(A110*('TCO Calculator'!$O$58/12))+'TCO Calculator'!$O$38 -> 0
A111: 81 | B111: 6.75 | C111: =(A111*('TCO Calculator'!$E$58/12))+'TCO Calculator'!$E$38 -> 43794.15035 | D111: =(A111*('TCO Calculator'!$J$58/12))+'TCO Calculator'!$J$38 -> 231187.5 | E111: =(A111*('TCO Calculator'!$O$58/12))+'TCO Calculator'!$O$38 -> 0
A112: 82 | B112: 6.833333333 | C112: =(A112*('TCO Calculator'!$E$58/12))+'TCO Calculator'!$E$38 -> 44334.81887 | D112: =(A112*('TCO Calculator'!$J$58/12))+'TCO Calculator'!$J$38 -> 234041.6667 | E112: =(A112*('TCO Calculator'!$O$58/12))+'TCO Calculator'!$O$38 -> 0
A113: 83 | B113: 6.916666667 | C113: =(A113*('TCO Calculator'!$E$58/12))+'TCO Calculator'!$E$38 -> 44875.4874 | D113: =(A113*('TCO Calculator'!$J$58/12))+'TCO Calculator'!$J$38 -> 236895.8333 | E113: =(A113*('TCO Calculator'!$O$58/12))+'TCO Calculator'!$O$38 -> 0
A114: 84 | B114: 7 | C114: =(A114*('TCO Calculator'!$E$58/12))+'TCO Calculator'!$E$38 -> 45416.15592 | D114: =(A114*('TCO Calculator'!$J$58/12))+'TCO Calculator'!$J$38 -> 239750 | E114: =(A114*('TCO Calculator'!$O$58/12))+'TCO Calculator'!$O$38 -> 0
A115: 85 | B115: 7.083333333 | C115: =(A115*('TCO Calculator'!$E$58/12))+'TCO Calculator'!$E$38 -> 45956.82444 | D115: =(A115*('TCO Calculator'!$J$58/12))+'TCO Calculator'!$J$38 -> 242604.1667 | E115: =(A115*('TCO Calculator'!$O$58/12))+'TCO Calculator'!$O$38 -> 0
A116: 86 | B116: 7.166666667 | C116: =(A116*('TCO Calculator'!$E$58/12))+'TCO Calculator'!$E$38 -> 46497.49297 | D116: =(A116*('TCO Calculator'!$J$58/12))+'TCO Calculator'!$J$38 -> 245458.3333 | E116: =(A116*('TCO Calculator'!$O$58/12))+'TCO Calculator'!$O$38 -> 0
A117: 87 | B117: 7.25 | C117: =(A117*('TCO Calculator'!$E$58/12))+'TCO Calculator'!$E$38 -> 47038.16149 | D117: =(A117*('TCO Calculator'!$J$58/12))+'TCO Calculator'!$J$38 -> 248312.5 | E117: =(A117*('TCO Calculator'!$O$58/12))+'TCO Calculator'!$O$38 -> 0
A118: 88 | B118: 7.333333333 | C118: =(A118*('TCO Calculator'!$E$58/12))+'TCO Calculator'!$E$38 -> 47578.83001 | D118: =(A118*('TCO Calculator'!$J$58/12))+'TCO Calculator'!$J$38 -> 251166.6667 | E118: =(A118*('TCO Calculator'!$O$58/12))+'TCO Calculator'!$O$38 -> 0
A119: 89 | B119: 7.416666667 | C119: =(A119*('TCO Calculator'!$E$58/12))+'TCO Calculator'!$E$38 -> 48119.49853 | D119: =(A119*('TCO Calculator'!$J$58/12))+'TCO Calculator'!$J$38 -> 254020.8333 | E119: =(A119*('TCO Calculator'!$O$58/12))+'TCO Calculator'!$O$38 -> 0
A120: 90 | B120: 7.5 | C120: =(A120*('TCO Calculator'!$E$58/12))+'TCO Calculator'!$E$38 -> 48660.16706 | D120: =(A120*('TCO Calculator'!$J$58/12))+'TCO Calculator'!$J$38 -> 256875 | E120: =(A120*('TCO Calculator'!$O$58/12))+'TCO Calculator'!$O$38 -> 0
A121: 91 | B121: 7.583333333 | C121: =(A121*('TCO Calculator'!$E$58/12))+'TCO Calculator'!$E$38 -> 49200.83558 | D121: =(A121*('TCO Calculator'!$J$58/12))+'TCO Calculator'!$J$38 -> 259729.1667 | E121: =(A121*('TCO Calculator'!$O$58/12))+'TCO Calculator'!$O$38 -> 0
A122: 92 | B122: 7.666666667 | C122: =(A122*('TCO Calculator'!$E$58/12))+'TCO Calculator'!$E$38 -> 49741.5041 | D122: =(A122*('TCO Calculator'!$J$58/12))+'TCO Calculator'!$J$38 -> 262583.3333 | E122: =(A122*('TCO Calculator'!$O$58/12))+'TCO Calculator'!$O$38 -> 0
A123: 93 | B123: 7.75 | C123: =(A123*('TCO Calculator'!$E$58/12))+'TCO Calculator'!$E$38 -> 50282.17263 | D123: =(A123*('TCO Calculator'!$J$58/12))+'TCO Calculator'!$J$38 -> 265437.5 | E123: =(A123*('TCO Calculator'!$O$58/12))+'TCO Calculator'!$O$38 -> 0
A124: 94 | B124: 7.833333333 | C124: =(A124*('TCO Calculator'!$E$58/12))+'TCO Calculator'!$E$38 -> 50822.84115 | D124: =(A124*('TCO Calculator'!$J$58/12))+'TCO Calculator'!$J$38 -> 268291.6667 | E124: =(A124*('TCO Calculator'!$O$58/12))+'TCO Calculator'!$O$38 -> 0
A125: 95 | B125: 7.916666667 | C125: =(A125*('TCO Calculator'!$E$58/12))+'TCO Calculator'!$E$38 -> 51363.50967 | D125: =(A125*('TCO Calculator'!$J$58/12))+'TCO Calculator'!$J$38 -> 271145.8333 | E125: =(A125*('TCO Calculator'!$O$58/12))+'TCO Calculator'!$O$38 -> 0
A126: 96 | B126: 8 | C126: =(A126*('TCO Calculator'!$E$58/12))+'TCO Calculator'!$E$38 -> 51904.17819 | D126: =(A126*('TCO Calculator'!$J$58/12))+'TCO Calculator'!$J$38 -> 274000 | E126: =(A126*('TCO Calculator'!$O$58/12))+'TCO Calculator'!$O$38 -> 0
A127: 97 | B127: =A127/12 -> 8.083333333 | C127: =(A127*('TCO Calculator'!$E$58/12))+'TCO Calculator'!$E$38 -> 52444.84672 | D127: =(A127*('TCO Calculator'!$J$58/12))+'TCO Calculator'!$J$38 -> 276854.1667 | E127: =(A127*('TCO Calculator'!$O$58/12))+'TCO Calculator'!$O$38 -> 0
A128: 98 | B128: 8.166666667 | C128: =(A128*('TCO Calculator'!$E$58/12))+'TCO Calculator'!$E$38 -> 52985.51524 | D128: =(A128*('TCO Calculator'!$J$58/12))+'TCO Calculator'!$J$38 -> 279708.3333 | E128: =(A128*('TCO Calculator'!$O$58/12))+'TCO Calculator'!$O$38 -> 0
A129: 99 | B129: 8.25 | C129: =(A129*('TCO Calculator'!$E$58/12))+'TCO Calculator'!$E$38 -> 53526.18376 | D129: =(A129*('TCO Calculator'!$J$58/12))+'TCO Calculator'!$J$38 -> 282562.5 | E129: =(A129*('TCO Calculator'!$O$58/12))+'TCO Calculator'!$O$38 -> 0
A130: 100 | B130: 8.333333333 | C130: =(A130*('TCO Calculator'!$E$58/12))+'TCO Calculator'!$E$38 -> 54066.85229 | D130: =(A130*('TCO Calculator'!$J$58/12))+'TCO Calculator'!$J$38 -> 285416.6667 | E130: =(A130*('TCO Calculator'!$O$58/12))+'TCO Calculator'!$O$38 -> 0
A131: 101 | B131: 8.416666667 | C131: =(A131*('TCO Calculator'!$E$58/12))+'TCO Calculator'!$E$38 -> 54607.52081 | D131: =(A131*('TCO Calculator'!$J$58/12))+'TCO Calculator'!$J$38 -> 288270.8333 | E131: =(A131*('TCO Calculator'!$O$58/12))+'TCO Calculator'!$O$38 -> 0
A132: 102 | B132: 8.5 | C132: =(A132*('TCO Calculator'!$E$58/12))+'TCO Calculator'!$E$38 -> 55148.18933 | D132: =(A132*('TCO Calculator'!$J$58/12))+'TCO Calculator'!$J$38 -> 291125 | E132: =(A132*('TCO Calculator'!$O$58/12))+'TCO Calculator'!$O$38 -> 0
A133: 103 | B133: 8.583333333 | C133: =(A133*('TCO Calculator'!$E$58/12))+'TCO Calculator'!$E$38 -> 55688.85785 | D133: =(A133*('TCO Calculator'!$J$58/12))+'TCO Calculator'!$J$38 -> 293979.1667 | E133: =(A133*('TCO Calculator'!$O$58/12))+'TCO Calculator'!$O$38 -> 0
A134: 104 | B134: 8.666666667 | C134: =(A134*('TCO Calculator'!$E$58/12))+'TCO Calculator'!$E$38 -> 56229.52638 | D134: =(A134*('TCO Calculator'!$J$58/12))+'TCO Calculator'!$J$38 -> 296833.3333 | E134: =(A134*('TCO Calculator'!$O$58/12))+'TCO Calculator'!$O$38 -> 0
A135: 105 | B135: 8.75 | C135: =(A135*('TCO Calculator'!$E$58/12))+'TCO Calculator'!$E$38 -> 56770.1949 | D135: =(A135*('TCO Calculator'!$J$58/12))+'TCO Calculator'!$J$38 -> 299687.5 | E135: =(A135*('TCO Calculator'!$O$58/12))+'TCO Calculator'!$O$38 -> 0
A136: 106 | B136: 8.833333333 | C136: =(A136*('TCO Calculator'!$E$58/12))+'TCO Calculator'!$E$38 -> 57310.86342 | D136: =(A136*('TCO Calculator'!$J$58/12))+'TCO Calculator'!$J$38 -> 302541.6667 | E136: =(A136*('TCO Calculator'!$O$58/12))+'TCO Calculator'!$O$38 -> 0
A137: 107 | B137: 8.916666667 | C137: =(A137*('TCO Calculator'!$E$58/12))+'TCO Calculator'!$E$38 -> 57851.53195 | D137: =(A137*('TCO Calculator'!$J$58/12))+'TCO Calculator'!$J$38 -> 305395.8333 | E137: =(A137*('TCO Calculator'!$O$58/12))+'TCO Calculator'!$O$38 -> 0
A138: 108 | B138: 9 | C138: =(A138*('TCO Calculator'!$E$58/12))+'TCO Calculator'!$E$38 -> 58392.20047 | D138: =(A138*('TCO Calculator'!$J$58/12))+'TCO Calculator'!$J$38 -> 308250 | E138: =(A138*('TCO Calculator'!$O$58/12))+'TCO Calculator'!$O$38 -> 0
A139: 109 | B139: 9.083333333 | C139: =(A139*('TCO Calculator'!$E$58/12))+'TCO Calculator'!$E$38 -> 58932.86899 | D139: =(A139*('TCO Calculator'!$J$58/12))+'TCO Calculator'!$J$38 -> 311104.1667 | E139: =(A139*('TCO Calculator'!$O$58/12))+'TCO Calculator'!$O$38 -> 0
A140: 110 | B140: 9.166666667 | C140: =(A140*('TCO Calculator'!$E$58/12))+'TCO Calculator'!$E$38 -> 59473.53751 | D140: =(A140*('TCO Calculator'!$J$58/12))+'TCO Calculator'!$J$38 -> 313958.3333 | E140: =(A140*('TCO Calculator'!$O$58/12))+'TCO Calculator'!$O$38 -> 0
A141: 111 | B141: 9.25 | C141: =(A141*('TCO Calculator'!$E$58/12))+'TCO Calculator'!$E$38 -> 60014.20604 | D141: =(A141*('TCO Calculator'!$J$58/12))+'TCO Calculator'!$J$38 -> 316812.5 | E141: =(A141*('TCO Calculator'!$O$58/12))+'TCO Calculator'!$O$38 -> 0
A142: 112 | B142: 9.333333333 | C142: =(A142*('TCO Calculator'!$E$58/12))+'TCO Calculator'!$E$38 -> 60554.87456 | D142: =(A142*('TCO Calculator'!$J$58/12))+'TCO Calculator'!$J$38 -> 319666.6667 | E142: =(A142*('TCO Calculator'!$O$58/12))+'TCO Calculator'!$O$38 -> 0
A143: 113 | B143: 9.416666667 | C143: =(A143*('TCO Calculator'!$E$58/12))+'TCO Calculator'!$E$38 -> 61095.54308 | D143: =(A143*('TCO Calculator'!$J$58/12))+'TCO Calculator'!$J$38 -> 322520.8333 | E143: =(A143*('TCO Calculator'!$O$58/12))+'TCO Calculator'!$O$38 -> 0
A144: 114 | B144: 9.5 | C144: =(A144*('TCO Calculator'!$E$58/12))+'TCO Calculator'!$E$38 -> 61636.21161 | D144: =(A144*('TCO Calculator'!$J$58/12))+'TCO Calculator'!$J$38 -> 325375 | E144: =(A144*('TCO Calculator'!$O$58/12))+'TCO Calculator'!$O$38 -> 0
A145: 115 | B145: 9.583333333 | C145: =(A145*('TCO Calculator'!$E$58/12))+'TCO Calculator'!$E$38 -> 62176.88013 | D145: =(A145*('TCO Calculator'!$J$58/12))+'TCO Calculator'!$J$38 -> 328229.1667 | E145: =(A145*('TCO Calculator'!$O$58/12))+'TCO Calculator'!$O$38 -> 0
A146: 116 | B146: 9.666666667 | C146: =(A146*('TCO Calculator'!$E$58/12))+'TCO Calculator'!$E$38 -> 62717.54865 | D146: =(A146*('TCO Calculator'!$J$58/12))+'TCO Calculator'!$J$38 -> 331083.3333 | E146: =(A146*('TCO Calculator'!$O$58/12))+'TCO Calculator'!$O$38 -> 0
A147: 117 | B147: 9.75 | C147: =(A147*('TCO Calculator'!$E$58/12))+'TCO Calculator'!$E$38 -> 63258.21717 | D147: =(A147*('TCO Calculator'!$J$58/12))+'TCO Calculator'!$J$38 -> 333937.5 | E147: =(A147*('TCO Calculator'!$O$58/12))+'TCO Calculator'!$O$38 -> 0
A148: 118 | B148: 9.833333333 | C148: =(A148*('TCO Calculator'!$E$58/12))+'TCO Calculator'!$E$38 -> 63798.8857 | D148: =(A148*('TCO Calculator'!$J$58/12))+'TCO Calculator'!$J$38 -> 336791.6667 | E148: =(A148*('TCO Calculator'!$O$58/12))+'TCO Calculator'!$O$38 -> 0
A149: 119 | B149: 9.916666667 | C149: =(A149*('TCO Calculator'!$E$58/12))+'TCO Calculator'!$E$38 -> 64339.55422 | D149: =(A149*('TCO Calculator'!$J$58/12))+'TCO Calculator'!$J$38 -> 339645.8333 | E149: =(A149*('TCO Calculator'!$O$58/12))+'TCO Calculator'!$O$38 -> 0
A150: 120 | B150: 10 | C150: =(A150*('TCO Calculator'!$E$58/12))+'TCO Calculator'!$E$38 -> 64880.22274 | D150: =(A150*('TCO Calculator'!$J$58/12))+'TCO Calculator'!$J$38 -> 342500 | E150: =(A150*('TCO Calculator'!$O$58/12))+'TCO Calculator'!$O$38 -> 0

Sheet Capacities generators (hidden)
C1: At 20°C | E1: Minimum nitrogen flow rate in m3/hr | T1: Feed-air consumption at minimal nitrogen flow rate in m3/hr | AJ1: Air factor | AY1: Generator output pressure
B2: Generator | C2: Feed-air pressure bar(g) | D2: generator and pressure | E2: 5ppm | F2: 10ppm | G2: 50ppm | H2: 100ppm | I2: 250ppm | J2: 500ppm | K2: 0.001 | L2: 0.004 | M2: 0.005 | N2: 0.01 | O2: 0.02 | P2: 0.03 | Q2: 0.04 | R2: 0.05 | U2: 5ppm | V2: 10ppm | W2: 50ppm | X2: 100ppm | Y2: 250ppm | Z2: 500ppm | AA2: 0.001 | AB2: 0.004 | AC2: 0.005 | AD2: 0.01 | AE2: 0.02 | AF2: 0.03 | AG2: 0.04 | AH2: 0.05 | AJ2: 5ppm | AK2: 10ppm | AL2: 50ppm | AM2: 100ppm | AN2: 250ppm | AO2: 500ppm | AP2: 0.001 | AQ2: 0.004 | AR2: 0.005 | AS2: 0.01 | AT2: 0.02 | AU2: 0.03 | AV2: 0.04 | AW2: 0.05 | AY2: generator and pressure | AZ2: 5ppm | BA2: 10ppm | BB2: 50ppm | BC2: 100ppm | BD2: 250ppm | BE2: 500ppm | BF2: 0.001 | BG2: 0.004 | BH2: 0.005 | BI2: 0.01 | BJ2: 0.02 | BK2: 0.03 | BL2: 0.04 | BM2: 0.05
B3: MIDIGAS 2 | C3: =S3/10 -> 0 | D3: MIDIGAS 26 | F3: 0.5 | H3: 1.1 | I3: 1.2 | J3: 1.7 | K3: 2.1 | M3: 3 | N3: 3.8 | O3: 5.1 | P3: 6.3 | Q3: 7.4 | R3: 8.3 | T3: MIDIGAS 26 | V3: 4.6 | X3: 6.8 | Y3: 6.5 | Z3: 8 | AA3: 8.2 | AC3: 9.6 | AD3: 11 | AE3: 12.8 | AF3: 14.5 | AG3: 16.3 | AH3: 17.4 | AJ3: N/A | AK3: 9.2 | AL3: N/A | AM3: 6.2 | AN3: 5.4 | AO3: 4.7 | AP3: 3.9 | AQ3: N/A | AR3: 3.2 | AS3: 2.9 | AT3: 2.5 | AU3: 2.3 | AV3: 2.2 | AW3: 2.1 | AY3: MIDIGAS 26 | BA3: 4.8 | BC3: 4.8 | BD3: 5.1 | BE3: 5 | BF3: 4.9 | BH3: 4.9 | BI3: 5.1 | BJ3: 5 | BK3: 5 | BL3: 4.9 | BM3: 4.8
B4: MIDIGAS 2 | C4: 7 | D4: MIDIGAS 27 | F4: 0.6 | H4: 1.2 | I4: 1.5 | J4: 1.9 | K4: 2.4 | M4: 3.4 | N4: 4.3 | O4: 5.8 | P4: 7.2 | Q4: 8.4 | R4: 9.4 | T4: MIDIGAS 27 | V4: 5.8 | X4: 7.8 | Y4: 8.4 | Z4: 9.3 | AA4: 9.4 | AC4: 10.9 | AD4: 12.5 | AE4: 14.5 | AF4: 16.6 | AG4: 18.5 | AH4: 19.7 | AJ4: N/A | AK4: 9.6 | AL4: N/A | AM4: 6.5 | AN4: 5.6 | AO4: 4.9 | AP4: 3.9 | AQ4: N/A | AR4: 3.2 | AS4: 2.9 | AT4: 2.5 | AU4: 2.3 | AV4: 2.2 | AW4: 2.1 | AY4: MIDIGAS 27 | BA4: 5.6 | BC4: 5.4 | BD4: 5.9 | BE4: 5.7 | BF4: 5.6 | BH4: 5.7 | BI4: 6 | BJ4: 6 | BK4: 5.8 | BL4: 5.7 | BM4: 5.6
B5: MIDIGAS 2 | C5: 8 | D5: MIDIGAS 28 | F5: 0.6 | H5: 1.2 | I5: 1.5 | J5: 1.9 | K5: 2.6 | M5: 3.7 | N5: 4.7 | O5: 6.4 | P5: 7.9 | Q5: 9.2 | R5: 10.3 | T5: MIDIGAS 28 | V5: 6.1 | X5: 8.3 | Y5: 8.9 | Z5: 9.9 | AA5: 10.1 | AC5: 11.8 | AD5: 13.6 | AE5: 16 | AF5: 18.2 | AG5: 20.2 | AH5: 21.6 | AJ5: N/A | AK5: 10.1 | AL5: N/A | AM5: 6.9 | AN5: 5.9 | AO5: 5.2 | AP5: 3.9 | AQ5: N/A | AR5: 3.2 | AS5: 2.9 | AT5: 2.5 | AU5: 2.3 | AV5: 2.2 | AW5: 2.1 | AY5: MIDIGAS 28 | BA5: 6.6 | BC5: 6.1 | BD5: 6.6 | BE5: 6.4 | BF5: 6 | BH5: 6.4 | BI5: 6.6 | BJ5: 6.5 | BK5: 6.4 | BL5: 6.2 | BM5: 6
B6: MIDIGAS 2 | C6: 9 | D6: MIDIGAS 29 | F6: 0.6 | H6: 1.2 | I6: 1.5 | J6: 1.9 | K6: 2.9 | M6: 4.1 | N6: 5.2 | O6: 7 | P6: 8.6 | Q6: 10.1 | R6: 11.3 | T6: MIDIGAS 29 | V6: 6.2 | X6: 8.5 | Y6: 9.2 | Z6: 10.1 | AA6: 11.6 | AC6: 13.5 | AD6: 15.6 | AE6: 18.2 | AF6: 19.8 | AG6: 22.2 | AH6: 23.7 | AJ6: N/A | AK6: 10.4 | AL6: N/A | AM6: 7.1 | AN6: 6.1 | AO6: 5.3 | AP6: 4 | AQ6: N/A | AR6: 3.3 | AS6: 3 | AT6: 2.6 | AU6: 2.3 | AV6: 2.2 | AW6: 2.1 | AY6: MIDIGAS 29 | BA6: 7.2 | BC6: 6.7 | BD6: 7.1 | BE6: 6.9 | BF6: 6.6 | BH6: 6.7 | BI6: 7.8 | BJ6: 7.3 | BK6: 7.4 | BL6: 6.8 | BM6: 6.9
B7: MIDIGAS 2 | C7: 10 | D7: MIDIGAS 210 | F7: 0.6 | H7: 1.2 | I7: 1.5 | J7: 1.9 | K7: 3 | M7: 4.3 | N7: 5.4 | O7: 7.3 | P7: 9 | Q7: 10.5 | R7: 11.8 | T7: MIDIGAS 210 | V7: 6.4 | X7: 8.6 | Y7: 9.3 | Z7: 10.3 | AA7: 12 | AC7: 14.2 | AD7: 16.2 | AE7: 19 | AF7: 21.6 | AG7: 24.2 | AH7: 26 | AJ7: N/A | AK7: 10.7 | AL7: N/A | AM7: 7.2 | AN7: 6.2 | AO7: 5.4 | AP7: 4 | AQ7: N/A | AR7: 3.3 | AS7: 3 | AT7: 2.6 | AU7: 2.4 | AV7: 2.3 | AW7: 2.2 | AY7: MIDIGAS 210 | BA7: 7.6 | BC7: 7.2 | BD7: 7.7 | BE7: 7.4 | BF7: 6.8 | BH7: 7 | BI7: 8.4 | BJ7: 8.1 | BK7: 7.8 | BL7: 7.6 | BM7: 7.3
B8: MIDIGAS 2 | C8: 11 | D8: MIDIGAS 211 | K8: 3.1 | M8: 4.5 | N8: 5.6 | O8: 7.6 | P8: 9.4 | Q8: 11 | R8: 12.3 | T8: MIDIGAS 211 | AA8: 12.7 | AC8: 15.3 | AD8: 16.8 | AE8: 19.8 | AF8: 22.6 | AG8: 25.3 | AH8: 27.1 | AJ8: N/A | AK8: N/A | AL8: N/A | AM8: N/A | AN8: N/A | AO8: N/A | AP8: 4.1 | AQ8: N/A | AR8: 3.4 | AS8: 3 | AT8: 2.6 | AU8: 2.4 | AV8: 2.3 | AW8: 2.2 | AY8: MIDIGAS 211 | BF8: 9.4 | BH8: 8.8 | BI8: 9.8 | BJ8: 9.1 | BK8: 9.5 | BL8: 8.7 | BM8: 9
B9: MIDIGAS 2 | C9: 12 | D9: MIDIGAS 212 | K9: 3.2 | M9: 4.6 | N9: 5.8 | O9: 7.8 | P9: 9.6 | Q9: 11.3 | R9: 12.6 | T9: MIDIGAS 212 | AA9: 13.4 | AC9: 16.1 | AD9: 18 | AE9: 21.1 | AF9: 24 | AG9: 27.1 | AH9: 29 | AJ9: N/A | AK9: N/A | AL9: N/A | AM9: N/A | AN9: N/A | AO9: N/A | AP9: 4.2 | AQ9: N/A | AR9: 3.5 | AS9: 3.1 | AT9: 2.7 | AU9: 2.5 | AV9: 2.4 | AW9: 2.3 | AY9: MIDIGAS 212 | BF9: 9.8 | BH9: 8.9 | BI9: 10.2 | BJ9: 10 | BK9: 9.7 | BL9: 9.6 | BM9: 9.4
B10: MIDIGAS 2 | C10: 13 | D10: MIDIGAS 213 | K10: 3.3 | M10: 4.6 | N10: 5.8 | O10: 7.9 | P10: 9.8 | Q10: 11.4 | R10: 12.8 | T10: MIDIGAS 213 | AA10: 14.5 | AC10: 16.6 | AD10: 18.6 | AE10: 22.1 | AF10: 25.5 | AG10: 28.5 | AH10: 30.7 | AJ10: N/A | AK10: N/A | AL10: N/A | AM10: N/A | AN10: N/A | AO10: N/A | AP10: 4.4 | AQ10: N/A | AR10: 3.6 | AS10: 3.2 | AT10: 2.8 | AU10: 2.6 | AV10: 2.5 | AW10: 2.4 | AY10: MIDIGAS 213 | BF10: 10.6 | BH10: 9.3 | BI10: 11 | BJ10: 10.6 | BK10: 10.4 | BL10: 9.9 | BM10: 9.8
B11: MIDIGAS 4 | C11: 6 | D11: MIDIGAS 46 | F11: 1.1 | H11: 2.1 | I11: 2.8 | J11: 3.4 | K11: 4.1 | M11: 6.1 | N11: 7.5 | O11: 10.2 | P11: 12.6 | Q11: 14.7 | R11: 16.5 | T11: MIDIGAS 46 | V11: 10.1 | X11: 13 | Y11: 15.1 | Z11: 16 | AA11: 16 | AC11: 19.5 | AD11: 21.8 | AE11: 25.5 | AF11: 29 | AG11: 32.3 | AH11: 34.7 | AJ11: N/A | AK11: 9.2 | AL11: N/A | AM11: 6.2 | AN11: 5.4 | AO11: 4.7 | AP11: 3.9 | AQ11: N/A | AR11: 3.2 | AS11: 2.9 | AT11: 2.5 | AU11: 2.3 | AV11: 2.2 | AW11: 2.1 | AY11: MIDIGAS 46 | BA11: 4.8 | BC11: 4.8 | BD11: 5.1 | BE11: 5 | BF11: 4.9 | BH11: 4.9 | BI11: 5.1 | BJ11: 5 | BK11: 5 | BL11: 4.9 | BM11: 4.8
B12: MIDIGAS 4 | C12: 7 | D12: MIDIGAS 47 | F12: 1.2 | H12: 2.4 | I12: 3.2 | J12: 3.9 | K12: 4.7 | M12: 6.9 | N12: 8.5 | O12: 11.6 | P12: 14.3 | Q12: 16.7 | R12: 18.8 | T12: MIDIGAS 47 | V12: 11.5 | X12: 15.6 | Y12: 17.9 | Z12: 19.1 | AA12: 18.3 | AC12: 22.1 | AD12: 24.7 | AE12: 29 | AF12: 32.9 | AG12: 36.7 | AH12: 39.5 | AJ12: N/A | AK12: 9.6 | AL12: N/A | AM12: 6.5 | AN12: 5.6 | AO12: 4.9 | AP12: 3.9 | AQ12: N/A | AR12: 3.2 | AS12: 2.9 | AT12: 2.5 | AU12: 2.3 | AV12: 2.2 | AW12: 2.1 | AY12: MIDIGAS 47 | BA12: 5.6 | BC12: 5.4 | BD12: 5.9 | BE12: 5.7 | BF12: 5.6 | BH12: 5.7 | BI12: 6 | BJ12: 6 | BK12: 5.8 | BL12: 5.7 | BM12: 5.6
B13: MIDIGAS 4 | C13: 8 | D13: MIDIGAS 48 | F13: 1.2 | H13: 2.4 | I13: 3.2 | J13: 3.9 | K13: 5.2 | M13: 7.6 | N13: 9.4 | O13: 12.8 | P13: 15.7 | Q13: 18.4 | R13: 20.7 | T13: MIDIGAS 48 | V13: 12.1 | X13: 16.6 | Y13: 18.9 | Z13: 20.3 | AA13: 20.3 | AC13: 24.3 | AD13: 27.3 | AE13: 32 | AF13: 36.1 | AG13: 40.5 | AH13: 43.5 | AJ13: N/A | AK13: 10.1 | AL13: N/A | AM13: 6.9 | AN13: 5.9 | AO13: 5.2 | AP13: 3.9 | AQ13: N/A | AR13: 3.2 | AS13: 2.9 | AT13: 2.5 | AU13: 2.3 | AV13: 2.2 | AW13: 2.1 | AY13: MIDIGAS 48 | BA13: 6.6 | BC13: 6.1 | BD13: 6.6 | BE13: 6.4 | BF13: 6 | BH13: 6.4 | BI13: 6.6 | BJ13: 6.5 | BK13: 6.4 | BL13: 6.2 | BM13: 6
B14: MIDIGAS 4 | C14: 9 | D14: MIDIGAS 49 | F14: 1.2 | H14: 2.4 | I14: 3.2 | J14: 3.9 | K14: 5.6 | M14: 8.3 | N14: 10.2 | O14: 13.9 | P14: 17.2 | Q14: 20 | R14: 22.6 | T14: MIDIGAS 49 | V14: 12.5 | X14: 17 | Y14: 19.5 | Z14: 20.7 | AA14: 22.4 | AC14: 27.4 | AD14: 30.6 | AE14: 36.1 | AF14: 39.6 | AG14: 44 | AH14: 47.5 | AJ14: N/A | AK14: 10.4 | AL14: N/A | AM14: 7.1 | AN14: 6.1 | AO14: 5.3 | AP14: 4 | AQ14: N/A | AR14: 3.3 | AS14: 3 | AT14: 2.6 | AU14: 2.3 | AV14: 2.2 | AW14: 2.1 | AY14: MIDIGAS 49 | BA14: 7.2 | BC14: 6.7 | BD14: 7.1 | BE14: 6.9 | BF14: 6.6 | BH14: 6.7 | BI14: 7.8 | BJ14: 7.3 | BK14: 7.4 | BL14: 6.8 | BM14: 6.9
B15: MIDIGAS 4 | C15: 10 | D15: MIDIGAS 410 | F15: 1.2 | H15: 2.4 | I15: 3.2 | J15: 3.9 | K15: 5.9 | M15: 8.6 | N15: 10.6 | O15: 14.5 | P15: 17.9 | Q15: 20.9 | R15: 23.5 | T15: MIDIGAS 410 | V15: 12.8 | X15: 17.3 | Y15: 19.8 | Z15: 21.1 | AA15: 23.6 | AC15: 28.4 | AD15: 31.8 | AE15: 37.7 | AF15: 43 | AG15: 48.1 | AH15: 51.7 | AJ15: N/A | AK15: 10.7 | AL15: N/A | AM15: 7.2 | AN15: 6.2 | AO15: 5.4 | AP15: 4 | AQ15: N/A | AR15: 3.3 | AS15: 3 | AT15: 2.6 | AU15: 2.4 | AV15: 2.3 | AW15: 2.2 | AY15: MIDIGAS 410 | BA15: 7.6 | BC15: 7.2 | BD15: 7.7 | BE15: 7.4 | BF15: 6.8 | BH15: 7 | BI15: 8.4 | BJ15: 8.1 | BK15: 7.8 | BL15: 7.6 | BM15: 7.3
B16: MIDIGAS 4 | C16: 11 | D16: MIDIGAS 411 | K16: 6.2 | M16: 9 | N16: 11.1 | O16: 15.2 | P16: 18.7 | Q16: 21.9 | R16: 24.6 | T16: MIDIGAS 411 | AA16: 25.4 | AC16: 30.6 | AD16: 33.3 | AE16: 39.5 | AF16: 44.9 | AG16: 50.4 | AH16: 54.1 | AJ16: N/A | AK16: N/A | AL16: N/A | AM16: N/A | AN16: N/A | AO16: N/A | AP16: 4.1 | AQ16: N/A | AR16: 3.4 | AS16: 3 | AT16: 2.6 | AU16: 2.4 | AV16: 2.3 | AW16: 2.2 | AY16: MIDIGAS 411 | BF16: 9.4 | BH16: 8.8 | BI16: 9.8 | BJ16: 9.1 | BK16: 9.5 | BL16: 8.7 | BM16: 9
B17: MIDIGAS 4 | C17: 12 | D17: MIDIGAS 412 | K17: 6.3 | M17: 9.2 | N17: 11.4 | O17: 15.5 | P17: 19.2 | Q17: 22.4 | R17: 25.2 | T17: MIDIGAS 412 | AA17: 26.5 | AC17: 32.2 | AD17: 35.3 | AE17: 41.9 | AF17: 48 | AG17: 53.8 | AH17: 58 | AJ17: N/A | AK17: N/A | AL17: N/A | AM17: N/A | AN17: N/A | AO17: N/A | AP17: 4.2 | AQ17: N/A | AR17: 3.5 | AS17: 3.1 | AT17: 2.7 | AU17: 2.5 | AV17: 2.4 | AW17: 2.3 | AY17: MIDIGAS 412 | BF17: 9.8 | BH17: 8.9 | BI17: 10.2 | BJ17: 10 | BK17: 9.7 | BL17: 9.6 | BM17: 9.4
B18: MIDIGAS 4 | C18: 13 | D18: MIDIGAS 413 | K18: 6.4 | M18: 9.4 | N18: 11.6 | O18: 15.8 | P18: 19.4 | Q18: 22.7 | R18: 25.6 | T18: MIDIGAS 413 | AA18: 28.2 | AC18: 33.8 | AD18: 37.1 | AE18: 44.2 | AF18: 50.4 | AG18: 56.8 | AH18: 61.4 | AJ18: N/A | AK18: N/A | AL18: N/A | AM18: N/A | AN18: N/A | AO18: N/A | AP18: 4.4 | AQ18: N/A | AR18: 3.6 | AS18: 3.2 | AT18: 2.8 | AU18: 2.6 | AV18: 2.5 | AW18: 2.4 | AY18: MIDIGAS 413 | BF18: 10.6 | BH18: 9.3 | BI18: 11 | BJ18: 10.6 | BK18: 10.4 | BL18: 9.9 | BM18: 9.8
B19: MIDIGAS 6 | C19: 6 | D19: MIDIGAS 66 | F19: 1.3 | H19: 2.8 | I19: 3.7 | J19: 4.7 | K19: 5.7 | M19: 8.4 | N19: 10.1 | O19: 13.4 | P19: 16.5 | Q19: 19.1 | R19: 21.6 | T19: MIDIGAS 66 | V19: 12 | X19: 17.4 | Y19: 20 | Z19: 22.1 | AA19: 22.2 | AC19: 26.9 | AD19: 29.3 | AE19: 33.5 | AF19: 38 | AG19: 42 | AH19: 45.4 | AJ19: N/A | AK19: 9.2 | AL19: N/A | AM19: 6.2 | AN19: 5.4 | AO19: 4.7 | AP19: 3.9 | AQ19: N/A | AR19: 3.2 | AS19: 2.9 | AT19: 2.5 | AU19: 2.3 | AV19: 2.2 | AW19: 2.1 | AY19: MIDIGAS 66 | BA19: 4.8 | BC19: 4.8 | BD19: 5.1 | BE19: 5 | BF19: 4.9 | BH19: 4.9 | BI19: 5.1 | BJ19: 5 | BK19: 5 | BL19: 4.9 | BM19: 4.8
B20: MIDIGAS 6 | C20: 7 | D20: MIDIGAS 67 | F20: 1.5 | H20: 3.2 | I20: 4.2 | J20: 5.3 | K20: 6.5 | M20: 9.5 | N20: 11.5 | O20: 15.2 | P20: 18.7 | Q20: 21.7 | R20: 24.5 | T20: MIDIGAS 67 | V20: 14.4 | X20: 20.8 | Y20: 23.5 | Z20: 26 | AA20: 25.4 | AC20: 30.4 | AD20: 33.4 | AE20: 38 | AF20: 43 | AG20: 47.7 | AH20: 51.5 | AJ20: N/A | AK20: 9.6 | AL20: N/A | AM20: 6.5 | AN20: 5.6 | AO20: 4.9 | AP20: 3.9 | AQ20: N/A | AR20: 3.2 | AS20: 2.9 | AT20: 2.5 | AU20: 2.3 | AV20: 2.2 | AW20: 2.1 | AY20: MIDIGAS 67 | BA20: 5.6 | BC20: 5.4 | BD20: 5.9 | BE20: 5.7 | BF20: 5.6 | BH20: 5.7 | BI20: 6 | BJ20: 6 | BK20: 5.8 | BL20: 5.7 | BM20: 5.6
B21: MIDIGAS 6 | C21: 8 | D21: MIDIGAS 68 | F21: 1.5 | H21: 3.2 | I21: 4.2 | J21: 5.3 | K21: 7.2 | M21: 10.5 | N21: 12.7 | O21: 16.7 | P21: 20.6 | Q21: 23.9 | R21: 27 | T21: MIDIGAS 68 | V21: 15.2 | X21: 22.1 | Y21: 24.8 | Z21: 27.6 | AA21: 28.1 | AC21: 33.6 | AD21: 36.8 | AE21: 41.8 | AF21: 47.4 | AG21: 52.6 | AH21: 56.7 | AJ21: N/A | AK21: 10.1 | AL21: N/A | AM21: 6.9 | AN21: 5.9 | AO21: 5.2 | AP21: 3.9 | AQ21: N/A | AR21: 3.2 | AS21: 2.9 | AT21: 2.5 | AU21: 2.3 | AV21: 2.2 | AW21: 2.1 | AY21: MIDIGAS 68 | BA21: 6.6 | BC21: 6.1 | BD21: 6.6 | BE21: 6.4 | BF21: 6 | BH21: 6.4 | BI21: 6.6 | BJ21: 6.5 | BK21: 6.4 | BL21: 6.2 | BM21: 6
B22: MIDIGAS 6 | C22: 9 | D22: MIDIGAS 69 | F22: 1.5 | H22: 3.2 | I22: 4.2 | J22: 5.3 | K22: 7.8 | M22: 11.4 | N22: 13.8 | O22: 18.2 | P22: 22.4 | Q22: 26 | R22: 29.4 | T22: MIDIGAS 69 | V22: 15.6 | X22: 22.7 | Y22: 25.6 | Z22: 28.1 | AA22: 31.2 | AC22: 37.6 | AD22: 41.4 | AE22: 47.3 | AF22: 51.5 | AG22: 57.2 | AH22: 61.7 | AJ22: N/A | AK22: 10.4 | AL22: N/A | AM22: 7.1 | AN22: 6.1 | AO22: 5.3 | AP22: 4 | AQ22: N/A | AR22: 3.3 | AS22: 3 | AT22: 2.6 | AU22: 2.3 | AV22: 2.2 | AW22: 2.1 | AY22: MIDIGAS 69 | BA22: 7.2 | BC22: 6.7 | BD22: 7.1 | BE22: 6.9 | BF22: 6.6 | BH22: 6.7 | BI22: 7.8 | BJ22: 7.3 | BK22: 7.4 | BL22: 6.8 | BM22: 6.9
B23: MIDIGAS 6 | C23: 10 | D23: MIDIGAS 610 | F23: 1.5 | H23: 3.2 | I23: 4.2 | J23: 5.3 | K23: 8.1 | M23: 11.9 | N23: 14.4 | O23: 19 | P23: 23.4 | Q23: 27.1 | R23: 30.6 | T23: MIDIGAS 610 | V23: 16.1 | X23: 23 | Y23: 26 | Z23: 28.6 | AA23: 32.4 | AC23: 39.3 | AD23: 43.2 | AE23: 49.4 | AF23: 56.2 | AG23: 62.3 | AH23: 67.3 | AJ23: N/A | AK23: 10.7 | AL23: N/A | AM23: 7.2 | AN23: 6.2 | AO23: 5.4 | AP23: 4 | AQ23: N/A | AR23: 3.3 | AS23: 3 | AT23: 2.6 | AU23: 2.4 | AV23: 2.3 | AW23: 2.2 | AY23: MIDIGAS 610 | BA23: 7.6 | BC23: 7.2 | BD23: 7.7 | BE23: 7.4 | BF23: 6.8 | BH23: 7 | BI23: 8.4 | BJ23: 8.1 | BK23: 7.8 | BL23: 7.6 | BM23: 7.3
B24: MIDIGAS 6 | C24: 11 | D24: MIDIGAS 611 | K24: 8.5 | M24: 12.4 | N24: 15.1 | O24: 19.9 | P24: 24.5 | Q24: 28.4 | R24: 32.1 | T24: MIDIGAS 611 | AA24: 34.9 | AC24: 42.2 | AD24: 45.3 | AE24: 51.7 | AF24: 58.8 | AG24: 65.3 | AH24: 70.6 | AJ24: N/A | AK24: N/A | AL24: N/A | AM24: N/A | AN24: N/A | AO24: N/A | AP24: 4.1 | AQ24: N/A | AR24: 3.4 | AS24: 3 | AT24: 2.6 | AU24: 2.4 | AV24: 2.3 | AW24: 2.2 | AY24: MIDIGAS 611 | BF24: 9.4 | BH24: 8.8 | BI24: 9.8 | BJ24: 9.1 | BK24: 9.5 | BL24: 8.7 | BM24: 9
B25: MIDIGAS 6 | C25: 12 | D25: MIDIGAS 612 | K25: 8.7 | M25: 12.7 | N25: 15.4 | O25: 20.4 | P25: 25.1 | Q25: 29.1 | R25: 32.8 | T25: MIDIGAS 612 | AA25: 36.5 | AC25: 44.5 | AD25: 47.7 | AE25: 55.1 | AF25: 62.8 | AG25: 69.8 | AH25: 75.4 | AJ25: N/A | AK25: N/A | AL25: N/A | AM25: N/A | AN25: N/A | AO25: N/A | AP25: 4.2 | AQ25: N/A | AR25: 3.5 | AS25: 3.1 | AT25: 2.7 | AU25: 2.5 | AV25: 2.4 | AW25: 2.3 | AY25: MIDIGAS 612 | BF25: 9.8 | BH25: 8.9 | BI25: 10.2 | BJ25: 10 | BK25: 9.7 | BL25: 9.6 | BM25: 9.4
B26: MIDIGAS 6 | C26: 13 | D26: MIDIGAS 613 | K26: 8.8 | M26: 12.9 | N26: 15.6 | O26: 20.7 | P26: 25.4 | Q26: 29.5 | R26: 33.3 | T26: MIDIGAS 613 | AA26: 38.7 | AC26: 46.4 | AD26: 49.9 | AE26: 58 | AF26: 66 | AG26: 73.8 | AH26: 79.9 | AJ26: N/A | AK26: N/A | AL26: N/A | AM26: N/A | AN26: N/A | AO26: N/A | AP26: 4.4 | AQ26: N/A | AR26: 3.6 | AS26: 3.2 | AT26: 2.8 | AU26: 2.6 | AV26: 2.5 | AW26: 2.4 | AY26: MIDIGAS 613 | BF26: 10.6 | BH26: 9.3 | BI26: 11 | BJ26: 10.6 | BK26: 10.4 | BL26: 9.9 | BM26: 9.8
B27: Nitroflow HP1 | C27: 5 | D27: Nitroflow HP15 | M27: 1.1 | N27: 1.6 | O27: 2.5 | P27: 3.3 | Q27: 4.1 | R27: 4.9 | T27: Nitroflow HP15 | AC27: 9.4 | AD27: 9.6 | AE27: 10.8 | AF27: 11.6 | AG27: 12.3 | AH27: 13.7 | AJ27: N/A | AK27: N/A | AL27: N/A | AM27: N/A | AN27: N/A | AO27: N/A | AP27: N/A | AQ27: N/A | AR27: 8.5 | AS27: 6 | AT27: 4.3 | AU27: 3.5 | AV27: 3 | AW27: 2.8 | AY27: Nitroflow HP15
B28: Nitroflow HP1 | C28: 6 | D28: Nitroflow HP16 | M28: 1.4 | N28: 2 | O28: 4 | P28: 4 | Q28: 5 | R28: 6 | T28: Nitroflow HP16 | AC28: 11.9 | AD28: 12 | AE28: 17.2 | AF28: 14 | AG28: 15 | AH28: 15.6 | AJ28: N/A | AK28: N/A | AL28: N/A | AM28: N/A | AN28: N/A | AO28: N/A | AP28: N/A | AQ28: N/A | AR28: 8.5 | AS28: 6 | AT28: 4.3 | AU28: 3.5 | AV28: 3 | AW28: 2.6 | AY28: Nitroflow HP16
B29: Nitroflow HP1 | C29: 7 | D29: Nitroflow HP17 | M29: 1.7 | N29: 2.5 | O29: 3.8 | P29: 5 | Q29: 6.3 | R29: 7.5 | T29: Nitroflow HP17 | AC29: 14.5 | AD29: 15 | AE29: 16.3 | AF29: 17.5 | AG29: 18.9 | AH29: 19.5 | AJ29: N/A | AK29: N/A | AL29: N/A | AM29: N/A | AN29: N/A | AO29: N/A | AP29: N/A | AQ29: N/A | AR29: 8.5 | AS29: 6 | AT29: 4.3 | AU29: 3.5 | AV29: 3 | AW29: 2.6 | AY29: Nitroflow HP17
B30: Nitroflow HP1 | C30: 8 | D30: Nitroflow HP18 | M30: 2 | N30: 2.9 | O30: 4.4 | P30: 5.8 | Q30: 7.2 | R30: 8.6 | T30: Nitroflow HP18 | AC30: 17 | AD30: 17.4 | AE30: 18.9 | AF30: 20.3 | AG30: 21.6 | AH30: 22.4 | AJ30: N/A | AK30: N/A | AL30: N/A | AM30: N/A | AN30: N/A | AO30: N/A | AP30: N/A | AQ30: N/A | AR30: 8.5 | AS30: 6 | AT30: 4.3 | AU30: 3.5 | AV30: 3 | AW30: 2.6 | AY30: Nitroflow HP18
B31: Nitroflow HP1 | C31: 9 | D31: Nitroflow HP19 | M31: 2.2 | N31: 3.3 | O31: 4.9 | P31: 6.5 | Q31: 8.2 | R31: 9.8 | T31: Nitroflow HP19 | AC31: 18.7 | AD31: 19.8 | AE31: 21.1 | AF31: 22.8 | AG31: 24.6 | AH31: 25.5 | AJ31: N/A | AK31: N/A | AL31: N/A | AM31: N/A | AN31: N/A | AO31: N/A | AP31: N/A | AQ31: N/A | AR31: 8.5 | AS31: 6 | AT31: 4.3 | AU31: 3.5 | AV31: 3 | AW31: 2.6 | AY31: Nitroflow HP19
B32: Nitroflow HP1 | C32: 10 | D32: Nitroflow HP110 | M32: 2.6 | N32: 3.8 | O32: 5.7 | P32: 7.5 | Q32: 9.5 | R32: 11.3 | T32: Nitroflow HP110 | AC32: 22.1 | AD32: 22.8 | AE32: 24.5 | AF32: 26.3 | AG32: 28.5 | AH32: 29.4 | AJ32: N/A | AK32: N/A | AL32: N/A | AM32: N/A | AN32: N/A | AO32: N/A | AP32: N/A | AQ32: N/A | AR32: 8.5 | AS32: 6 | AT32: 4.3 | AU32: 3.5 | AV32: 3 | AW32: 2.6 | AY32: Nitroflow HP110
B33: Nitroflow HP1 | C33: 11 | D33: Nitroflow HP111 | M33: 2.8 | N33: 4.1 | O33: 6.3 | P33: 8.3 | Q33: 10.4 | R33: 12.4 | T33: Nitroflow HP111 | AC33: 23.8 | AD33: 24.6 | AE33: 27.1 | AF33: 29.1 | AG33: 31.2 | AH33: 32.2 | AJ33: N/A | AK33: N/A | AL33: N/A | AM33: N/A | AN33: N/A | AO33: N/A | AP33: N/A | AQ33: N/A | AR33: 8.5 | AS33: 6 | AT33: 4.3 | AU33: 3.5 | AV33: 3 | AW33: 2.6 | AY33: Nitroflow HP111
B34: Nitroflow HP1 | C34: 12 | D34: Nitroflow HP112 | M34: 3.1 | N34: 4.5 | O34: 6.8 | P34: 9 | Q34: 11.3 | R34: 13.5 | T34: Nitroflow HP112 | AC34: 26.4 | AD34: 27 | AE34: 29.2 | AF34: 31.5 | AG34: 33.9 | AH34: 35.1 | AJ34: N/A | AK34: N/A | AL34: N/A | AM34: N/A | AN34: N/A | AO34: N/A | AP34: N/A | AQ34: N/A | AR34: 8.5 | AS34: 6 | AT34: 4.3 | AU34: 3.5 | AV34: 3 | AW34: 2.6 | AY34: Nitroflow HP112
B35: Nitroflow HP1 | C35: 13 | D35: Nitroflow HP113 | M35: 3.3 | N35: 5 | O35: 7.6 | P35: 10 | Q35: 12.6 | R35: 15 | T35: Nitroflow HP113 | AC35: 28.1 | AD35: 30 | AE35: 32.7 | AF35: 35 | AG35: 37.8 | AH35: 40.5 | AJ35: N/A | AK35: N/A | AL35: N/A | AM35: N/A | AN35: N/A | AO35: N/A | AP35: N/A | AQ35: N/A | AR35: 8.5 | AS35: 6 | AT35: 4.3 | AU35: 3.5 | AV35: 3 | AW35: 2.7 | AY35: Nitroflow HP113
B36: Nitroflow HP2 | C36: 5 | D36: Nitroflow HP25 | M36: 2.2 | N36: 3.3 | O36: 4.9 | P36: 6.5 | Q36: 8.2 | R36: 9.8 | T36: Nitroflow HP25 | AC36: 18.7 | AD36: 19.8 | AE36: 21.1 | AF36: 22.8 | AG36: 24.6 | AH36: 27.4 | AJ36: N/A | AK36: N/A | AL36: N/A | AM36: N/A | AN36: N/A | AO36: N/A | AP36: N/A | AQ36: N/A | AR36: 8.5 | AS36: 6 | AT36: 4.3 | AU36: 3.5 | AV36: 3 | AW36: 2.8 | AY36: Nitroflow HP25
B37: Nitroflow HP2 | C37: 6 | D37: Nitroflow HP26 | M37: 2.7 | N37: 4 | O37: 6.1 | P37: 8 | Q37: 10.1 | R37: 12 | T37: Nitroflow HP26 | AC37: 23 | AD37: 24 | AE37: 26.2 | AF37: 28 | AG37: 30.3 | AH37: 31.2 | AJ37: N/A | AK37: N/A | AL37: N/A | AM37: N/A | AN37: N/A | AO37: N/A | AP37: N/A | AQ37: N/A | AR37: 8.5 | AS37: 6 | AT37: 4.3 | AU37: 3.5 | AV37: 3 | AW37: 2.6 | AY37: Nitroflow HP26
B38: Nitroflow HP2 | C38: 7 | D38: Nitroflow HP27 | M38: 3.4 | N38: 5 | O38: 7.6 | P38: 10 | Q38: 12.6 | R38: 15 | T38: Nitroflow HP27 | AC38: 28.9 | AD38: 30 | AE38: 32.7 | AF38: 35 | AG38: 37.8 | AH38: 39 | AJ38: N/A | AK38: N/A | AL38: N/A | AM38: N/A | AN38: N/A | AO38: N/A | AP38: N/A | AQ38: N/A | AR38: 8.5 | AS38: 6 | AT38: 4.3 | AU38: 3.5 | AV38: 3 | AW38: 2.6 | AY38: Nitroflow HP27
B39: Nitroflow HP2 | C39: 8 | D39: Nitroflow HP28 | M39: 3.9 | N39: 5.8 | O39: 8.7 | P39: 11.5 | Q39: 14.5 | R39: 17.3 | T39: Nitroflow HP28 | AC39: 33.2 | AD39: 34.8 | AE39: 37.4 | AF39: 40.3 | AG39: 43.5 | AH39: 45 | AJ39: N/A | AK39: N/A | AL39: N/A | AM39: N/A | AN39: N/A | AO39: N/A | AP39: N/A | AQ39: N/A | AR39: 8.5 | AS39: 6 | AT39: 4.3 | AU39: 3.5 | AV39: 3 | AW39: 2.6 | AY39: Nitroflow HP28
B40: Nitroflow HP2 | C40: 9 | D40: Nitroflow HP29 | M40: 4.4 | N40: 6.5 | O40: 9.9 | P40: 13 | Q40: 16.4 | R40: 19.5 | T40: Nitroflow HP29 | AC40: 37.4 | AD40: 39 | AE40: 42.6 | AF40: 45.5 | AG40: 49.2 | AH40: 50.7 | AJ40: N/A | AK40: N/A | AL40: N/A | AM40: N/A | AN40: N/A | AO40: N/A | AP40: N/A | AQ40: N/A | AR40: 8.5 | AS40: 6 | AT40: 4.3 | AU40: 3.5 | AV40: 3 | AW40: 2.6 | AY40: Nitroflow HP29
B41: Nitroflow HP2 | C41: 10 | D41: Nitroflow HP210 | M41: 5.1 | N41: 7.5 | O41: 11.4 | P41: 15 | Q41: 18.9 | R41: 22.5 | T41: Nitroflow HP210 | AC41: 43.4 | AD41: 45 | AE41: 49 | AF41: 52.5 | AG41: 56.7 | AH41: 58.5 | AJ41: N/A | AK41: N/A | AL41: N/A | AM41: N/A | AN41: N/A | AO41: N/A | AP41: N/A | AQ41: N/A | AR41: 8.5 | AS41: 6 | AT41: 4.3 | AU41: 3.5 | AV41: 3 | AW41: 2.6 | AY41: Nitroflow HP210
B42: Nitroflow HP2 | C42: 11 | D42: Nitroflow HP211 | M42: 5.6 | N42: 8.3 | O42: 12.5 | P42: 16.5 | Q42: 20.8 | R42: 24.8 | T42: Nitroflow HP211 | AC42: 47.6 | AD42: 49.8 | AE42: 53.8 | AF42: 57.8 | AG42: 62.4 | AH42: 64.5 | AJ42: N/A | AK42: N/A | AL42: N/A | AM42: N/A | AN42: N/A | AO42: N/A | AP42: N/A | AQ42: N/A | AR42: 8.5 | AS42: 6 | AT42: 4.3 | AU42: 3.5 | AV42: 3 | AW42: 2.6 | AY42: Nitroflow HP211
B43: Nitroflow HP2 | C43: 12 | D43: Nitroflow HP212 | M43: 6.1 | N43: 9 | O43: 13.7 | P43: 18 | Q43: 22.7 | R43: 27 | T43: Nitroflow HP212 | AC43: 51.9 | AD43: 54 | AE43: 58.9 | AF43: 63 | AG43: 68.1 | AH43: 70.2 | AJ43: N/A | AK43: N/A | AL43: N/A | AM43: N/A | AN43: N/A | AO43: N/A | AP43: N/A | AQ43: N/A | AR43: 8.5 | AS43: 6 | AT43: 4.3 | AU43: 3.5 | AV43: 3 | AW43: 2.6 | AY43: Nitroflow HP212
B44: Nitroflow HP2 | C44: 13 | D44: Nitroflow HP213 | M44: 6.8 | N44: 10 | O44: 15.2 | P44: 20 | Q44: 25.2 | R44: 30 | T44: Nitroflow HP213 | AC44: 57.8 | AD44: 60 | AE44: 65.4 | AF44: 70 | AG44: 75.6 | AH44: 81 | AJ44: N/A | AK44: N/A | AL44: N/A | AM44: N/A | AN44: N/A | AO44: N/A | AP44: N/A | AQ44: N/A | AR44: 8.5 | AS44: 6 | AT44: 4.3 | AU44: 3.5 | AV44: 3 | AW44: 2.7 | AY44: Nitroflow HP213
B45: Nitroflow HP3 | C45: 5 | D45: Nitroflow HP35 | M45: 3.3 | N45: 4.9 | O45: 7.4 | P45: 9.8 | Q45: 12.3 | R45: 14.6 | T45: Nitroflow HP35 | AC45: 28.1 | AD45: 29.4 | AE45: 31.8 | AF45: 34.3 | AG45: 36.9 | AH45: 40.9 | AJ45: N/A | AK45: N/A | AL45: N/A | AM45: N/A | AN45: N/A | AO45: N/A | AP45: N/A | AQ45: N/A | AR45: 8.5 | AS45: 6 | AT45: 4.3 | AU45: 3.5 | AV45: 3 | AW45: 2.8 | AY45: Nitroflow HP35
B46: Nitroflow HP3 | C46: 6 | D46: Nitroflow HP36 | M46: 4.1 | N46: 6 | O46: 9.1 | P46: 12 | Q46: 15.1 | R46: 18 | T46: Nitroflow HP36 | AC46: 34.9 | AD46: 36 | AE46: 39.1 | AF46: 42 | AG46: 45.3 | AH46: 46.8 | AJ46: N/A | AK46: N/A | AL46: N/A | AM46: N/A | AN46: N/A | AO46: N/A | AP46: N/A | AQ46: N/A | AR46: 8.5 | AS46: 6 | AT46: 4.3 | AU46: 3.5 | AV46: 3 | AW46: 2.6 | AY46: Nitroflow HP36
B47: Nitroflow HP3 | C47: 7 | D47: Nitroflow HP37 | M47: 5.1 | N47: 7.5 | O47: 11.4 | P47: 15 | Q47: 18.9 | R47: 22.5 | T47: Nitroflow HP37 | AC47: 43.4 | AD47: 45 | AE47: 49 | AF47: 52.5 | AG47: 56.7 | AH47: 58.5 | AJ47: N/A | AK47: N/A | AL47: N/A | AM47: N/A | AN47: N/A | AO47: N/A | AP47: N/A | AQ47: N/A | AR47: 8.5 | AS47: 6 | AT47: 4.3 | AU47: 3.5 | AV47: 3 | AW47: 2.6 | AY47: Nitroflow HP37
B48: Nitroflow HP3 | C48: 8 | D48: Nitroflow HP38 | M48: 5.9 | N48: 8.6 | O48: 13.1 | P48: 17.3 | Q48: 21.7 | R48: 25.9 | T48: Nitroflow HP38 | AC48: 50.2 | AD48: 51.6 | AE48: 56.3 | AF48: 60.6 | AG48: 65.1 | AH48: 67.3 | AJ48: N/A | AK48: N/A | AL48: N/A | AM48: N/A | AN48: N/A | AO48: N/A | AP48: N/A | AQ48: N/A | AR48: 8.5 | AS48: 6 | AT48: 4.3 | AU48: 3.5 | AV48: 3 | AW48: 2.6 | AY48: Nitroflow HP38
B49: Nitroflow HP3 | C49: 9 | D49: Nitroflow HP39 | M49: 6.6 | N49: 9.8 | O49: 14.8 | P49: 19.5 | Q49: 24.6 | R49: 29.3 | T49: Nitroflow HP39 | AC49: 56.1 | AD49: 58.8 | AE49: 63.6 | AF49: 68.3 | AG49: 73.8 | AH49: 76.2 | AJ49: N/A | AK49: N/A | AL49: N/A | AM49: N/A | AN49: N/A | AO49: N/A | AP49: N/A | AQ49: N/A | AR49: 8.5 | AS49: 6 | AT49: 4.3 | AU49: 3.5 | AV49: 3 | AW49: 2.6 | AY49: Nitroflow HP39
B50: Nitroflow HP3 | C50: 10 | D50: Nitroflow HP310 | M50: 7.7 | N50: 11.3 | O50: 17.1 | P50: 22.5 | Q50: 28.4 | R50: 33.8 | T50: Nitroflow HP310 | AC50: 65.5 | AD50: 67.8 | AE50: 73.5 | AF50: 78.8 | AG50: 85.2 | AH50: 87.9 | AJ50: N/A | AK50: N/A | AL50: N/A | AM50: N/A | AN50: N/A | AO50: N/A | AP50: N/A | AQ50: N/A | AR50: 8.5 | AS50: 6 | AT50: 4.3 | AU50: 3.5 | AV50: 3 | AW50: 2.6 | AY50: Nitroflow HP310
B51: Nitroflow HP3 | C51: 11 | D51: Nitroflow HP311 | M51: 8.4 | N51: 12.4 | O51: 18.8 | P51: 24.8 | Q51: 31.2 | R51: 37.1 | T51: Nitroflow HP311 | AC51: 71.4 | AD51: 74.4 | AE51: 80.8 | AF51: 86.8 | AG51: 93.6 | AH51: 96.5 | AJ51: N/A | AK51: N/A | AL51: N/A | AM51: N/A | AN51: N/A | AO51: N/A | AP51: N/A | AQ51: N/A | AR51: 8.5 | AS51: 6 | AT51: 4.3 | AU51: 3.5 | AV51: 3 | AW51: 2.6 | AY51: Nitroflow HP311
B52: Nitroflow HP3 | C52: 12 | D52: Nitroflow HP312 | M52: 9.2 | N52: 13.5 | O52: 20.5 | P52: 27 | Q52: 34 | R52: 40.5 | T52: Nitroflow HP312 | AC52: 78.2 | AD52: 81 | AE52: 88.2 | AF52: 94.5 | AG52: 102 | AH52: 105.3 | AJ52: N/A | AK52: N/A | AL52: N/A | AM52: N/A | AN52: N/A | AO52: N/A | AP52: N/A | AQ52: N/A | AR52: 8.5 | AS52: 6 | AT52: 4.3 | AU52: 3.5 | AV52: 3 | AW52: 2.6 | AY52: Nitroflow HP312
B53: Nitroflow HP3 | C53: 13 | D53: Nitroflow HP313 | M53: 10.2 | N53: 15 | O53: 22.8 | P53: 30 | Q53: 37.8 | R53: 45 | T53: Nitroflow HP313 | AC53: 86.7 | AD53: 90 | AE53: 98 | AF53: 105 | AG53: 113.4 | AH53: 121.5 | AJ53: N/A | AK53: N/A | AL53: N/A | AM53: N/A | AN53: N/A | AO53: N/A | AP53: N/A | AQ53: N/A | AR53: 8.5 | AS53: 6 | AT53: 4.3 | AU53: 3.5 | AV53: 3 | AW53: 2.7 | AY53: Nitroflow HP313
B54: Nitrosource Main | C54: 4 | D54: Nitrosource Main4 | M54: 2.1 | N54: 3.3 | O54: 5.7 | P54: 7.7 | Q54: 9.8 | R54: 11.9 | T54: Nitrosource Main4 | AC54: 17.9 | AD54: 19.8 | AE54: 24.5 | AF54: 27 | AG54: 29.4 | AH54: 33.3 | AJ54: N/A | AK54: N/A | AL54: N/A | AM54: N/A | AN54: N/A | AO54: N/A | AP54: N/A | AQ54: N/A | AR54: 8.5 | AS54: 6 | AT54: 4.3 | AU54: 3.5 | AV54: 3 | AW54: 2.8 | AY54: Nitrosource Main4
B55: Nitrosource Main | C55: 5 | D55: Nitrosource Main5 | M55: 3.1 | N55: 4.8 | O55: 8.3 | P55: 11.2 | Q55: 14.3 | R55: 17.3 | T55: Nitrosource Main5 | AC55: 26.4 | AD55: 28.8 | AE55: 35.7 | AF55: 39.2 | AG55: 42.9 | AH55: 48.4 | AJ55: N/A | AK55: N/A | AL55: N/A | AM55: N/A | AN55: N/A | AO55: N/A | AP55: N/A | AQ55: N/A | AR55: 8.5 | AS55: 6 | AT55: 4.3 | AU55: 3.5 | AV55: 3 | AW55: 2.8 | AY55: Nitrosource Main5
B56: Nitrosource Main | C56: 6 | D56: Nitrosource Main6 | M56: 4.6 | N56: 7.1 | O56: 12.3 | P56: 16.7 | Q56: 21.3 | R56: 25.8 | T56: Nitrosource Main6 | AC56: 39.1 | AD56: 42.6 | AE56: 52.9 | AF56: 58.5 | AG56: 63.9 | AH56: 67.1 | AJ56: N/A | AK56: N/A | AL56: N/A | AM56: N/A | AN56: N/A | AO56: N/A | AP56: N/A | AQ56: N/A | AR56: 8.5 | AS56: 6 | AT56: 4.3 | AU56: 3.5 | AV56: 3 | AW56: 2.6 | AY56: Nitrosource Main6
B57: Nitrosource Main | C57: 7 | D57: Nitrosource Main7 | M57: 6 | N57: 9.4 | O57: 16.2 | P57: 22 | Q57: 28 | R57: 34 | T57: Nitrosource Main7 | AC57: 51 | AD57: 56.4 | AE57: 69.7 | AF57: 77 | AG57: 84 | AH57: 88.4 | AJ57: N/A | AK57: N/A | AL57: N/A | AM57: N/A | AN57: N/A | AO57: N/A | AP57: N/A | AQ57: N/A | AR57: 8.5 | AS57: 6 | AT57: 4.3 | AU57: 3.5 | AV57: 3 | AW57: 2.6 | AY57: Nitrosource Main7
B58: Nitrosource Main | C58: 8 | D58: Nitrosource Main8 | M58: 7.2 | N58: 11.3 | O58: 19.4 | P58: 26.4 | Q58: 33.6 | R58: 40.8 | T58: Nitrosource Main8 | AC58: 61.2 | AD58: 67.8 | AE58: 83.4 | AF58: 92.4 | AG58: 100.8 | AH58: 106.1 | AJ58: N/A | AK58: N/A | AL58: N/A | AM58: N/A | AN58: N/A | AO58: N/A | AP58: N/A | AQ58: N/A | AR58: 8.5 | AS58: 6 | AT58: 4.3 | AU58: 3.5 | AV58: 3 | AW58: 2.6 | AY58: Nitrosource Main8
B59: Nitrosource Main | C59: 9 | D59: Nitrosource Main9 | M59: 8.4 | N59: 13.2 | O59: 22.7 | P59: 30.8 | Q59: 39.2 | R59: 47.6 | T59: Nitrosource Main9 | AC59: 71.4 | AD59: 79.2 | AE59: 97.6 | AF59: 107.8 | AG59: 117.6 | AH59: 123.8 | AJ59: N/A | AK59: N/A | AL59: N/A | AM59: N/A | AN59: N/A | AO59: N/A | AP59: N/A | AQ59: N/A | AR59: 8.5 | AS59: 6 | AT59: 4.3 | AU59: 3.5 | AV59: 3 | AW59: 2.6 | AY59: Nitrosource Main9
B60: Nitrosource Main | C60: 10 | D60: Nitrosource Main10 | M60: 9.6 | N60: 15 | O60: 25.9 | P60: 35.2 | Q60: 44.8 | R60: 54.4 | T60: Nitrosource Main10 | AC60: 81.6 | AD60: 90 | AE60: 111.4 | AF60: 123.2 | AG60: 134.4 | AH60: 141.4 | AJ60: N/A | AK60: N/A | AL60: N/A | AM60: N/A | AN60: N/A | AO60: N/A | AP60: N/A | AQ60: N/A | AR60: 8.5 | AS60: 6 | AT60: 4.3 | AU60: 3.5 | AV60: 3 | AW60: 2.6 | AY60: Nitrosource Main10
B61: Nitrosource Main | C61: 11 | D61: Nitrosource Main11 | M61: 11.4 | N61: 17.9 | O61: 30.8 | P61: 41.8 | Q61: 53.2 | R61: 64.6 | T61: Nitrosource Main11 | AC61: 96.9 | AD61: 107.4 | AE61: 132.4 | AF61: 146.3 | AG61: 159.6 | AH61: 168 | AJ61: N/A | AK61: N/A | AL61: N/A | AM61: N/A | AN61: N/A | AO61: N/A | AP61: N/A | AQ61: N/A | AR61: 8.5 | AS61: 6 | AT61: 4.3 | AU61: 3.5 | AV61: 3 | AW61: 2.6 | AY61: Nitrosource Main11
B62: Nitrosource Main | C62: 12 | D62: Nitrosource Main12 | M62: 12.6 | N62: 19.7 | O62: 34 | P62: 46.2 | Q62: 58.8 | R62: 71.4 | T62: Nitrosource Main12 | AC62: 107.1 | AD62: 118.2 | AE62: 146.2 | AF62: 161.7 | AG62: 176.4 | AH62: 185.6 | AJ62: N/A | AK62: N/A | AL62: N/A | AM62: N/A | AN62: N/A | AO62: N/A | AP62: N/A | AQ62: N/A | AR62: 8.5 | AS62: 6 | AT62: 4.3 | AU62: 3.5 | AV62: 3 | AW62: 2.6 | AY62: Nitrosource Main12
B63: Nitrosource Main | C63: 13 | D63: Nitrosource Main13 | M63: 14.4 | N63: 22.6 | O63: 38.9 | P63: 52.8 | Q63: 67.2 | R63: 81.6 | T63: Nitrosource Main13 | AC63: 122.4 | AD63: 135.6 | AE63: 167.3 | AF63: 184.8 | AG63: 201.6 | AH63: 220.3 | AJ63: N/A | AK63: N/A | AL63: N/A | AM63: N/A | AN63: N/A | AO63: N/A | AP63: N/A | AQ63: N/A | AR63: 8.5 | AS63: 6 | AT63: 4.3 | AU63: 3.5 | AV63: 3 | AW63: 2.7 | AY63: Nitrosource Main13
B64: Nitrosource Main + 1 Sub | C64: 4 | D64: Nitrosource Main + 1 Sub4 | M64: 4.2 | N64: 6.6 | O64: 11.3 | P64: 15.4 | Q64: 19.6 | R64: 23.8 | T64: Nitrosource Main + 1 Sub4 | AC64: 35.7 | AD64: 39.6 | AE64: 48.6 | AF64: 53.9 | AG64: 58.8 | AH64: 66.6 | AJ64: N/A | AK64: N/A | AL64: N/A | AM64: N/A | AN64: N/A | AO64: N/A | AP64: N/A | AQ64: N/A | AR64: 8.5 | AS64: 6 | AT64: 4.3 | AU64: 3.5 | AV64: 3 | AW64: 2.8 | AY64: Nitrosource Main + 1 Sub4
B65: Nitrosource Main + 1 Sub | C65: 5 | D65: Nitrosource Main + 1 Sub5 | M65: 6.1 | N65: 9.6 | O65: 16.5 | P65: 22.4 | Q65: 28.6 | R65: 34.7 | T65: Nitrosource Main + 1 Sub5 | AC65: 51.9 | AD65: 57.6 | AE65: 71 | AF65: 78.4 | AG65: 85.8 | AH65: 97.2 | AJ65: N/A | AK65: N/A | AL65: N/A | AM65: N/A | AN65: N/A | AO65: N/A | AP65: N/A | AQ65: N/A | AR65: 8.5 | AS65: 6 | AT65: 4.3 | AU65: 3.5 | AV65: 3 | AW65: 2.8 | AY65: Nitrosource Main + 1 Sub5
B66: Nitrosource Main + 1 Sub | C66: 6 | D66: Nitrosource Main + 1 Sub6 | M66: 9.1 | N66: 14.3 | O66: 24.6 | P66: 33.4 | Q66: 42.6 | R66: 51.7 | T66: Nitrosource Main + 1 Sub6 | AC66: 77.4 | AD66: 85.8 | AE66: 105.8 | AF66: 116.9 | AG66: 127.8 | AH66: 134.4 | AJ66: N/A | AK66: N/A | AL66: N/A | AM66: N/A | AN66: N/A | AO66: N/A | AP66: N/A | AQ66: N/A | AR66: 8.5 | AS66: 6 | AT66: 4.3 | AU66: 3.5 | AV66: 3 | AW66: 2.6 | AY66: Nitrosource Main + 1 Sub6
B67: Nitrosource Main + 1 Sub | C67: 7 | D67: Nitrosource Main + 1 Sub7 | M67: 12 | N67: 18.8 | O67: 32.4 | P67: 44 | Q67: 56 | R67: 68 | T67: Nitrosource Main + 1 Sub7 | AC67: 102 | AD67: 112.8 | AE67: 139.3 | AF67: 154 | AG67: 168 | AH67: 176.8 | AJ67: N/A | AK67: N/A | AL67: N/A | AM67: N/A | AN67: N/A | AO67: N/A | AP67: N/A | AQ67: N/A | AR67: 8.5 | AS67: 6 | AT67: 4.3 | AU67: 3.5 | AV67: 3 | AW67: 2.6 | AY67: Nitrosource Main + 1 Sub7
B68: Nitrosource Main + 1 Sub | C68: 8 | D68: Nitrosource Main + 1 Sub8 | M68: 14.4 | N68: 22.6 | O68: 38.9 | P68: 52.8 | Q68: 67.2 | R68: 81.6 | T68: Nitrosource Main + 1 Sub8 | AC68: 122.4 | AD68: 135.6 | AE68: 167.3 | AF68: 184.8 | AG68: 201.6 | AH68: 212.2 | AJ68: N/A | AK68: N/A | AL68: N/A | AM68: N/A | AN68: N/A | AO68: N/A | AP68: N/A | AQ68: N/A | AR68: 8.5 | AS68: 6 | AT68: 4.3 | AU68: 3.5 | AV68: 3 | AW68: 2.6 | AY68: Nitrosource Main + 1 Sub8
B69: Nitrosource Main + 1 Sub | C69: 9 | D69: Nitrosource Main + 1 Sub9 | M69: 16.8 | N69: 26.3 | O69: 45.4 | P69: 61.6 | Q69: 78.4 | R69: 95.2 | T69: Nitrosource Main + 1 Sub9 | AC69: 142.8 | AD69: 157.8 | AE69: 195.2 | AF69: 215.6 | AG69: 235.2 | AH69: 247.5 | AJ69: N/A | AK69: N/A | AL69: N/A | AM69: N/A | AN69: N/A | AO69: N/A | AP69: N/A | AQ69: N/A | AR69: 8.5 | AS69: 6 | AT69: 4.3 | AU69: 3.5 | AV69: 3 | AW69: 2.6 | AY69: Nitrosource Main + 1 Sub9
B70: Nitrosource Main + 1 Sub | C70: 10 | D70: Nitrosource Main + 1 Sub10 | M70: 19.2 | N70: 30.1 | O70: 51.8 | P70: 70.4 | Q70: 89.6 | R70: 109 | T70: Nitrosource Main + 1 Sub10 | AC70: 163.2 | AD70: 180.6 | AE70: 222.7 | AF70: 246.4 | AG70: 268.8 | AH70: 283.4 | AJ70: N/A | AK70: N/A | AL70: N/A | AM70: N/A | AN70: N/A | AO70: N/A | AP70: N/A | AQ70: N/A | AR70: 8.5 | AS70: 6 | AT70: 4.3 | AU70: 3.5 | AV70: 3 | AW70: 2.6 | AY70: Nitrosource Main + 1 Sub10
B71: Nitrosource Main + 1 Sub | C71: 11 | D71: Nitrosource Main + 1 Sub11 | M71: 22.8 | N71: 35.7 | O71: 61.6 | P71: 83.6 | Q71: 106 | R71: 129 | T71: Nitrosource Main + 1 Sub11 | AC71: 193.8 | AD71: 214.2 | AE71: 264.9 | AF71: 292.6 | AG71: 318 | AH71: 335.4 | AJ71: N/A | AK71: N/A | AL71: N/A | AM71: N/A | AN71: N/A | AO71: N/A | AP71: N/A | AQ71: N/A | AR71: 8.5 | AS71: 6 | AT71: 4.3 | AU71: 3.5 | AV71: 3 | AW71: 2.6 | AY71: Nitrosource Main + 1 Sub11
B72: Nitrosource Main + 1 Sub | C72: 12 | D72: Nitrosource Main + 1 Sub12 | M72: 25.2 | N72: 39 | O72: 68 | P72: 92.4 | Q72: 118 | R72: 143 | T72: Nitrosource Main + 1 Sub12 | AC72: 214.2 | AD72: 234 | AE72: 292.4 | AF72: 323.4 | AG72: 354 | AH72: 371.8 | AJ72: N/A | AK72: N/A | AL72: N/A | AM72: N/A | AN72: N/A | AO72: N/A | AP72: N/A | AQ72: N/A | AR72: 8.5 | AS72: 6 | AT72: 4.3 | AU72: 3.5 | AV72: 3 | AW72: 2.6 | AY72: Nitrosource Main + 1 Sub12
B73: Nitrosource Main + 1 Sub | C73: 13 | D73: Nitrosource Main + 1 Sub13 | M73: 28.8 | N73: 45.1 | O73: 77.8 | P73: 106 | Q73: 134 | R73: 163 | T73: Nitrosource Main + 1 Sub13 | AC73: 244.8 | AD73: 270.6 | AE73: 334.5 | AF73: 371 | AG73: 402 | AH73: 440.1 | AJ73: N/A | AK73: N/A | AL73: N/A | AM73: N/A | AN73: N/A | AO73: N/A | AP73: N/A | AQ73: N/A | AR73: 8.5 | AS73: 6 | AT73: 4.3 | AU73: 3.5 | AV73: 3 | AW73: 2.7 | AY73: Nitrosource Main + 1 Sub13
B74: Nitrosource Main + 2 Subs | C74: 4 | D74: Nitrosource Main + 2 Subs4 | M74: 6.3 | N74: 9.9 | O74: 17 | P74: 23.1 | Q74: 29.4 | R74: 35.7 | T74: Nitrosource Main + 2 Subs4 | AC74: 53.6 | AD74: 59.4 | AE74: 73.1 | AF74: 80.9 | AG74: 88.2 | AH74: 100 | AJ74: N/A | AK74: N/A | AL74: N/A | AM74: N/A | AN74: N/A | AO74: N/A | AP74: N/A | AQ74: N/A | AR74: 8.5 | AS74: 6 | AT74: 4.3 | AU74: 3.5 | AV74: 3 | AW74: 2.8 | AY74: Nitrosource Main + 2 Subs4
B75: Nitrosource Main + 2 Subs | C75: 5 | D75: Nitrosource Main + 2 Subs5 | M75: 9.2 | N75: 14.4 | O75: 24.8 | P75: 33.7 | Q75: 42.8 | R75: 52 | T75: Nitrosource Main + 2 Subs5 | AC75: 78.2 | AD75: 86.4 | AE75: 106.6 | AF75: 118 | AG75: 128.4 | AH75: 145.6 | AJ75: N/A | AK75: N/A | AL75: N/A | AM75: N/A | AN75: N/A | AO75: N/A | AP75: N/A | AQ75: N/A | AR75: 8.5 | AS75: 6 | AT75: 4.3 | AU75: 3.5 | AV75: 3 | AW75: 2.8 | AY75: Nitrosource Main + 2 Subs5
B76: Nitrosource Main + 2 Subs | C76: 6 | D76: Nitrosource Main + 2 Subs6 | M76: 13.7 | N76: 21.4 | O76: 36.9 | P76: 50.2 | Q76: 63.8 | R76: 77.5 | T76: Nitrosource Main + 2 Subs6 | AC76: 116.5 | AD76: 128.4 | AE76: 158.7 | AF76: 175.7 | AG76: 191.4 | AH76: 201.5 | AJ76: N/A | AK76: N/A | AL76: N/A | AM76: N/A | AN76: N/A | AO76: N/A | AP76: N/A | AQ76: N/A | AR76: 8.5 | AS76: 6 | AT76: 4.3 | AU76: 3.5 | AV76: 3 | AW76: 2.6 | AY76: Nitrosource Main + 2 Subs6
B77: Nitrosource Main + 2 Subs | C77: 7 | D77: Nitrosource Main + 2 Subs7 | M77: 18 | N77: 28.2 | O77: 48.6 | P77: 66 | Q77: 84 | R77: 102 | T77: Nitrosource Main + 2 Subs7 | AC77: 153 | AD77: 169.2 | AE77: 209 | AF77: 231 | AG77: 252 | AH77: 265.2 | AJ77: N/A | AK77: N/A | AL77: N/A | AM77: N/A | AN77: N/A | AO77: N/A | AP77: N/A | AQ77: N/A | AR77: 8.5 | AS77: 6 | AT77: 4.3 | AU77: 3.5 | AV77: 3 | AW77: 2.6 | AY77: Nitrosource Main + 2 Subs7
B78: Nitrosource Main + 2 Subs | C78: 8 | D78: Nitrosource Main + 2 Subs8 | M78: 21.6 | N78: 33.8 | O78: 58.3 | P78: 79.2 | Q78: 101 | R78: 122 | T78: Nitrosource Main + 2 Subs8 | AC78: 183.6 | AD78: 202.8 | AE78: 250.7 | AF78: 277.2 | AG78: 303 | AH78: 317.2 | AJ78: N/A | AK78: N/A | AL78: N/A | AM78: N/A | AN78: N/A | AO78: N/A | AP78: N/A | AQ78: N/A | AR78: 8.5 | AS78: 6 | AT78: 4.3 | AU78: 3.5 | AV78: 3 | AW78: 2.6 | AY78: Nitrosource Main + 2 Subs8
B79: Nitrosource Main + 2 Subs | C79: 9 | D79: Nitrosource Main + 2 Subs9 | M79: 25.2 | N79: 39.5 | O79: 68 | P79: 92.4 | Q79: 118 | R79: 143 | T79: Nitrosource Main + 2 Subs9 | AC79: 214.2 | AD79: 237 | AE79: 292.4 | AF79: 323.4 | AG79: 354 | AH79: 371.8 | AJ79: N/A | AK79: N/A | AL79: N/A | AM79: N/A | AN79: N/A | AO79: N/A | AP79: N/A | AQ79: N/A | AR79: 8.5 | AS79: 6 | AT79: 4.3 | AU79: 3.5 | AV79: 3 | AW79: 2.6 | AY79: Nitrosource Main + 2 Subs9
B80: Nitrosource Main + 2 Subs | C80: 10 | D80: Nitrosource Main + 2 Subs10 | M80: 28.8 | N80: 45.1 | O80: 77.8 | P80: 106 | Q80: 134 | R80: 163 | T80: Nitrosource Main + 2 Subs10 | AC80: 244.8 | AD80: 270.6 | AE80: 334.5 | AF80: 371 | AG80: 402 | AH80: 423.8 | AJ80: N/A | AK80: N/A | AL80: N/A | AM80: N/A | AN80: N/A | AO80: N/A | AP80: N/A | AQ80: N/A | AR80: 8.5 | AS80: 6 | AT80: 4.3 | AU80: 3.5 | AV80: 3 | AW80: 2.6 | AY80: Nitrosource Main + 2 Subs10
B81: Nitrosource Main + 2 Subs | C81: 11 | D81: Nitrosource Main + 2 Subs11 | M81: 34.2 | N81: 53.6 | O81: 92.3 | P81: 125 | Q81: 160 | R81: 194 | T81: Nitrosource Main + 2 Subs11 | AC81: 290.7 | AD81: 321.6 | AE81: 396.9 | AF81: 437.5 | AG81: 480 | AH81: 504.4 | AJ81: N/A | AK81: N/A | AL81: N/A | AM81: N/A | AN81: N/A | AO81: N/A | AP81: N/A | AQ81: N/A | AR81: 8.5 | AS81: 6 | AT81: 4.3 | AU81: 3.5 | AV81: 3 | AW81: 2.6 | AY81: Nitrosource Main + 2 Subs11
B82: Nitrosource Main + 2 Subs | C82: 12 | D82: Nitrosource Main + 2 Subs12 | M82: 37.8 | N82: 59.2 | O82: 102 | P82: 139 | Q82: 176 | R82: 214 | T82: Nitrosource Main + 2 Subs12 | AC82: 321.3 | AD82: 355.2 | AE82: 438.6 | AF82: 486.5 | AG82: 528 | AH82: 556.4 | AJ82: N/A | AK82: N/A | AL82: N/A | AM82: N/A | AN82: N/A | AO82: N/A | AP82: N/A | AQ82: N/A | AR82: 8.5 | AS82: 6 | AT82: 4.3 | AU82: 3.5 | AV82: 3 | AW82: 2.6 | AY82: Nitrosource Main + 2 Subs12
B83: Nitrosource Main + 2 Subs | C83: 13 | D83: Nitrosource Main + 2 Subs13 | M83: 43.2 | N83: 67.7 | O83: 117 | P83: 158 | Q83: 202 | R83: 245 | T83: Nitrosource Main + 2 Subs13 | AC83: 367.2 | AD83: 406.2 | AE83: 503.1 | AF83: 553 | AG83: 606 | AH83: 661.5 | AJ83: N/A | AK83: N/A | AL83: N/A | AM83: N/A | AN83: N/A | AO83: N/A | AP83: N/A | AQ83: N/A | AR83: 8.5 | AS83: 6 | AT83: 4.3 | AU83: 3.5 | AV83: 3 | AW83: 2.7 | AY83: Nitrosource Main + 2 Subs13
B84: Nitrosource Main + 3 Subs | C84: 4 | D84: Nitrosource Main + 3 Subs4 | M84: 8.4 | N84: 13.2 | O84: 22.7 | P84: 30.8 | Q84: 39.2 | R84: 47.6 | T84: Nitrosource Main + 3 Subs4 | AC84: 71.4 | AD84: 79.2 | AE84: 97.6 | AF84: 107.8 | AG84: 117.6 | AH84: 133.3 | AJ84: N/A | AK84: N/A | AL84: N/A | AM84: N/A | AN84: N/A | AO84: N/A | AP84: N/A | AQ84: N/A | AR84: 8.5 | AS84: 6 | AT84: 4.3 | AU84: 3.5 | AV84: 3 | AW84: 2.8 | AY84: Nitrosource Main + 3 Subs4
B85: Nitrosource Main + 3 Subs | C85: 5 | D85: Nitrosource Main + 3 Subs5 | M85: 12.2 | N85: 19.2 | O85: 33 | P85: 44.9 | Q85: 57.1 | R85: 69.4 | T85: Nitrosource Main + 3 Subs5 | AC85: 103.7 | AD85: 115.2 | AE85: 141.9 | AF85: 157.2 | AG85: 171.3 | AH85: 194.3 | AJ85: N/A | AK85: N/A | AL85: N/A | AM85: N/A | AN85: N/A | AO85: N/A | AP85: N/A | AQ85: N/A | AR85: 8.5 | AS85: 6 | AT85: 4.3 | AU85: 3.5 | AV85: 3 | AW85: 2.8 | AY85: Nitrosource Main + 3 Subs5
B86: Nitrosource Main + 3 Subs | C86: 6 | D86: Nitrosource Main + 3 Subs6 | M86: 18.2 | N86: 28.6 | O86: 49.2 | P86: 66.9 | Q86: 85.1 | R86: 103 | T86: Nitrosource Main + 3 Subs6 | AC86: 154.7 | AD86: 171.6 | AE86: 211.6 | AF86: 234.2 | AG86: 255.3 | AH86: 267.8 | AJ86: N/A | AK86: N/A | AL86: N/A | AM86: N/A | AN86: N/A | AO86: N/A | AP86: N/A | AQ86: N/A | AR86: 8.5 | AS86: 6 | AT86: 4.3 | AU86: 3.5 | AV86: 3 | AW86: 2.6 | AY86: Nitrosource Main + 3 Subs6
B87: Nitrosource Main + 3 Subs | C87: 7 | D87: Nitrosource Main + 3 Subs7 | M87: 24 | N87: 37.6 | O87: 64.8 | P87: 88 | Q87: 112 | R87: 136 | T87: Nitrosource Main + 3 Subs7 | AC87: 204 | AD87: 225.6 | AE87: 278.6 | AF87: 308 | AG87: 336 | AH87: 353.6 | AJ87: N/A | AK87: N/A | AL87: N/A | AM87: N/A | AN87: N/A | AO87: N/A | AP87: N/A | AQ87: N/A | AR87: 8.5 | AS87: 6 | AT87: 4.3 | AU87: 3.5 | AV87: 3 | AW87: 2.6 | AY87: Nitrosource Main + 3 Subs7
B88: Nitrosource Main + 3 Subs | C88: 8 | D88: Nitrosource Main + 3 Subs8 | M88: 28.8 | N88: 45.1 | O88: 77.8 | P88: 106 | Q88: 134 | R88: 163 | T88: Nitrosource Main + 3 Subs8 | AC88: 244.8 | AD88: 270.6 | AE88: 334.5 | AF88: 371 | AG88: 402 | AH88: 423.8 | AJ88: N/A | AK88: N/A | AL88: N/A | AM88: N/A | AN88: N/A | AO88: N/A | AP88: N/A | AQ88: N/A | AR88: 8.5 | AS88: 6 | AT88: 4.3 | AU88: 3.5 | AV88: 3 | AW88: 2.6 | AY88: Nitrosource Main + 3 Subs8
B89: Nitrosource Main + 3 Subs | C89: 9 | D89: Nitrosource Main + 3 Subs9 | M89: 33.6 | N89: 52.6 | O89: 90.7 | P89: 123 | Q89: 157 | R89: 190 | T89: Nitrosource Main + 3 Subs9 | AC89: 285.6 | AD89: 315.6 | AE89: 390 | AF89: 430.5 | AG89: 471 | AH89: 494 | AJ89: N/A | AK89: N/A | AL89: N/A | AM89: N/A | AN89: N/A | AO89: N/A | AP89: N/A | AQ89: N/A | AR89: 8.5 | AS89: 6 | AT89: 4.3 | AU89: 3.5 | AV89: 3 | AW89: 2.6 | AY89: Nitrosource Main + 3 Subs9
B90: Nitrosource Main + 3 Subs | C90: 10 | D90: Nitrosource Main + 3 Subs10 | M90: 38.4 | N90: 60.2 | O90: 104 | P90: 141 | Q90: 179 | R90: 218 | T90: Nitrosource Main + 3 Subs10 | AC90: 326.4 | AD90: 361.2 | AE90: 447.2 | AF90: 493.5 | AG90: 537 | AH90: 566.8 | AJ90: N/A | AK90: N/A | AL90: N/A | AM90: N/A | AN90: N/A | AO90: N/A | AP90: N/A | AQ90: N/A | AR90: 8.5 | AS90: 6 | AT90: 4.3 | AU90: 3.5 | AV90: 3 | AW90: 2.6 | AY90: Nitrosource Main + 3 Subs10
B91: Nitrosource Main + 3 Subs | C91: 11 | D91: Nitrosource Main + 3 Subs11 | M91: 45.6 | N91: 71.4 | O91: 123 | P91: 167 | Q91: 213 | R91: 258 | T91: Nitrosource Main + 3 Subs11 | AC91: 387.6 | AD91: 428.4 | AE91: 528.9 | AF91: 584.5 | AG91: 639 | AH91: 670.8 | AJ91: N/A | AK91: N/A | AL91: N/A | AM91: N/A | AN91: N/A | AO91: N/A | AP91: N/A | AQ91: N/A | AR91: 8.5 | AS91: 6 | AT91: 4.3 | AU91: 3.5 | AV91: 3 | AW91: 2.6 | AY91: Nitrosource Main + 3 Subs11
B92: Nitrosource Main + 3 Subs | C92: 12 | D92: Nitrosource Main + 3 Subs12 | M92: 50.4 | N92: 79 | O92: 136 | P92: 185 | Q92: 235 | R92: 286 | T92: Nitrosource Main + 3 Subs12 | AC92: 428.4 | AD92: 474 | AE92: 584.8 | AF92: 647.5 | AG92: 705 | AH92: 743.6 | AJ92: N/A | AK92: N/A | AL92: N/A | AM92: N/A | AN92: N/A | AO92: N/A | AP92: N/A | AQ92: N/A | AR92: 8.5 | AS92: 6 | AT92: 4.3 | AU92: 3.5 | AV92: 3 | AW92: 2.6 | AY92: Nitrosource Main + 3 Subs12
B93: Nitrosource Main + 3 Subs | C93: 13 | D93: Nitrosource Main + 3 Subs13 | M93: 57.6 | N93: 90.2 | O93: 156 | P93: 211 | Q93: 269 | R93: 326 | T93: Nitrosource Main + 3 Subs13 | AC93: 489.6 | AD93: 541.2 | AE93: 670.8 | AF93: 738.5 | AG93: 807 | AH93: 880.2 | AJ93: N/A | AK93: N/A | AL93: N/A | AM93: N/A | AN93: N/A | AO93: N/A | AP93: N/A | AQ93: N/A | AR93: 8.5 | AS93: 6 | AT93: 4.3 | AU93: 3.5 | AV93: 3 | AW93: 2.7 | AY93: Nitrosource Main + 3 Subs13
B94: Nitrosource Main + 4 Subs | C94: 4 | D94: Nitrosource Main + 4 Subs4 | M94: 10.5 | N94: 16.5 | O94: 28.4 | P94: 38.5 | Q94: 49 | R94: 59.5 | T94: Nitrosource Main + 4 Subs4 | AC94: 89.3 | AD94: 99 | AE94: 122.1 | AF94: 134.8 | AG94: 147 | AH94: 166.6 | AJ94: N/A | AK94: N/A | AL94: N/A | AM94: N/A | AN94: N/A | AO94: N/A | AP94: N/A | AQ94: N/A | AR94: 8.5 | AS94: 6 | AT94: 4.3 | AU94: 3.5 | AV94: 3 | AW94: 2.8 | AY94: Nitrosource Main + 4 Subs4
B95: Nitrosource Main + 4 Subs | C95: 5 | D95: Nitrosource Main + 4 Subs5 | M95: 15.3 | N95: 24 | O95: 41.3 | P95: 56.1 | Q95: 71.4 | R95: 86.7 | T95: Nitrosource Main + 4 Subs5 | AC95: 130.1 | AD95: 144 | AE95: 177.6 | AF95: 196.4 | AG95: 214.2 | AH95: 242.8 | AJ95: N/A | AK95: N/A | AL95: N/A | AM95: N/A | AN95: N/A | AO95: N/A | AP95: N/A | AQ95: N/A | AR95: 8.5 | AS95: 6 | AT95: 4.3 | AU95: 3.5 | AV95: 3 | AW95: 2.8 | AY95: Nitrosource Main + 4 Subs5
B96: Nitrosource Main + 4 Subs | C96: 6 | D96: Nitrosource Main + 4 Subs6 | M96: 22.8 | N96: 35.7 | O96: 61.6 | P96: 83.6 | Q96: 106 | R96: 129 | T96: Nitrosource Main + 4 Subs6 | AC96: 193.8 | AD96: 214.2 | AE96: 264.9 | AF96: 292.6 | AG96: 318 | AH96: 335.4 | AJ96: N/A | AK96: N/A | AL96: N/A | AM96: N/A | AN96: N/A | AO96: N/A | AP96: N/A | AQ96: N/A | AR96: 8.5 | AS96: 6 | AT96: 4.3 | AU96: 3.5 | AV96: 3 | AW96: 2.6 | AY96: Nitrosource Main + 4 Subs6
B97: Nitrosource Main + 4 Subs | C97: 7 | D97: Nitrosource Main + 4 Subs7 | M97: 30 | N97: 47 | O97: 81 | P97: 110 | Q97: 140 | R97: 170 | T97: Nitrosource Main + 4 Subs7 | AC97: 255 | AD97: 282 | AE97: 348.3 | AF97: 385 | AG97: 420 | AH97: 442 | AJ97: N/A | AK97: N/A | AL97: N/A | AM97: N/A | AN97: N/A | AO97: N/A | AP97: N/A | AQ97: N/A | AR97: 8.5 | AS97: 6 | AT97: 4.3 | AU97: 3.5 | AV97: 3 | AW97: 2.6 | AY97: Nitrosource Main + 4 Subs7
B98: Nitrosource Main + 4 Subs | C98: 8 | D98: Nitrosource Main + 4 Subs8 | M98: 36 | N98: 56.4 | O98: 97.2 | P98: 132 | Q98: 168 | R98: 204 | T98: Nitrosource Main + 4 Subs8 | AC98: 306 | AD98: 338.4 | AE98: 418 | AF98: 462 | AG98: 504 | AH98: 530.4 | AJ98: N/A | AK98: N/A | AL98: N/A | AM98: N/A | AN98: N/A | AO98: N/A | AP98: N/A | AQ98: N/A | AR98: 8.5 | AS98: 6 | AT98: 4.3 | AU98: 3.5 | AV98: 3 | AW98: 2.6 | AY98: Nitrosource Main + 4 Subs8
B99: Nitrosource Main + 4 Subs | C99: 9 | D99: Nitrosource Main + 4 Subs9 | M99: 42 | N99: 65.8 | O99: 113 | P99: 154 | Q99: 196 | R99: 238 | T99: Nitrosource Main + 4 Subs9 | AC99: 357 | AD99: 394.8 | AE99: 485.9 | AF99: 539 | AG99: 588 | AH99: 618.8 | AJ99: N/A | AK99: N/A | AL99: N/A | AM99: N/A | AN99: N/A | AO99: N/A | AP99: N/A | AQ99: N/A | AR99: 8.5 | AS99: 6 | AT99: 4.3 | AU99: 3.5 | AV99: 3 | AW99: 2.6 | AY99: Nitrosource Main + 4 Subs9
B100: Nitrosource Main + 4 Subs | C100: 10 | D100: Nitrosource Main + 4 Subs10 | M100: 48 | N100: 75.2 | O100: 130 | P100: 176 | Q100: 224 | R100: 272 | T100: Nitrosource Main + 4 Subs10 | AC100: 408 | AD100: 451.2 | AE100: 559 | AF100: 616 | AG100: 672 | AH100: 707.2 | AJ100: N/A | AK100: N/A | AL100: N/A | AM100: N/A | AN100: N/A | AO100: N/A | AP100: N/A | AQ100: N/A | AR100: 8.5 | AS100: 6 | AT100: 4.3 | AU100: 3.5 | AV100: 3 | AW100: 2.6 | AY100: Nitrosource Main + 4 Subs10
B101: Nitrosource Main + 4 Subs | C101: 11 | D101: Nitrosource Main + 4 Subs11 | M101: 57 | N101: 9.3 | O101: 154 | P101: 209 | Q101: 266 | R101: 323 | T101: Nitrosource Main + 4 Subs11 | AC101: 484.5 | AD101: 55.8 | AE101: 662.2 | AF101: 731.5 | AG101: 798 | AH101: 839.8 | AJ101: N/A | AK101: N/A | AL101: N/A | AM101: N/A | AN101: N/A | AO101: N/A | AP101: N/A | AQ101: N/A | AR101: 8.5 | AS101: 6 | AT101: 4.3 | AU101: 3.5 | AV101: 3 | AW101: 2.6 | AY101: Nitrosource Main + 4 Subs11
B102: Nitrosource Main + 4 Subs | C102: 12 | D102: Nitrosource Main + 4 Subs12 | M102: 63 | N102: 98.7 | O102: 170 | P102: 231 | Q102: 294 | R102: 357 | T102: Nitrosource Main + 4 Subs12 | AC102: 535.5 | AD102: 592.2 | AE102: 731 | AF102: 808.5 | AG102: 882 | AH102: 928.2 | AJ102: N/A | AK102: N/A | AL102: N/A | AM102: N/A | AN102: N/A | AO102: N/A | AP102: N/A | AQ102: N/A | AR102: 8.5 | AS102: 6 | AT102: 4.3 | AU102: 3.5 | AV102: 3 | AW102: 2.6 | AY102: Nitrosource Main + 4 Subs12
B103: Nitrosource Main + 4 Subs | C103: 13 | D103: Nitrosource Main + 4 Subs13 | M103: 72 | N103: 113 | O103: 194 | P103: 264 | Q103: 336 | R103: 408 | T103: Nitrosource Main + 4 Subs13 | AC103: 612 | AD103: 678 | AE103: 834.2 | AF103: 924 | AG103: 1008 | AH103: 1101.6 | AJ103: N/A | AK103: N/A | AL103: N/A | AM103: N/A | AN103: N/A | AO103: N/A | AP103: N/A | AQ103: N/A | AR103: 8.5 | AS103: 6 | AT103: 4.3 | AU103: 3.5 | AV103: 3 | AW103: 2.7 | AY103: Nitrosource Main + 4 Subs13
B104: Nitrosource Main + 5 Subs | C104: 4 | D104: Nitrosource Main + 5 Subs4 | M104: 12.6 | N104: 19.7 | O104: 34 | P104: 46.2 | Q104: 58.8 | R104: 71.4 | T104: Nitrosource Main + 5 Subs4 | AC104: 107.1 | AD104: 118.2 | AE104: 146.2 | AF104: 161.7 | AG104: 176.4 | AH104: 199.9 | AJ104: N/A | AK104: N/A | AL104: N/A | AM104: N/A | AN104: N/A | AO104: N/A | AP104: N/A | AQ104: N/A | AR104: 8.5 | AS104: 6 | AT104: 4.3 | AU104: 3.5 | AV104: 3 | AW104: 2.8 | AY104: Nitrosource Main + 5 Subs4
B105: Nitrosource Main + 5 Subs | C105: 5 | D105: Nitrosource Main + 5 Subs5 | M105: 18.4 | N105: 28.8 | O105: 49.6 | P105: 67.3 | Q105: 85.7 | R105: 104 | T105: Nitrosource Main + 5 Subs5 | AC105: 156.4 | AD105: 172.8 | AE105: 213.3 | AF105: 235.6 | AG105: 257.1 | AH105: 291.2 | AJ105: N/A | AK105: N/A | AL105: N/A | AM105: N/A | AN105: N/A | AO105: N/A | AP105: N/A | AQ105: N/A | AR105: 8.5 | AS105: 6 | AT105: 4.3 | AU105: 3.5 | AV105: 3 | AW105: 2.8 | AY105: Nitrosource Main + 5 Subs5
B106: Nitrosource Main + 5 Subs | C106: 6 | D106: Nitrosource Main + 5 Subs6 | M106: 27.4 | N106: 42.9 | O106: 73.9 | P106: 100 | Q106: 128 | R106: 155 | T106: Nitrosource Main + 5 Subs6 | AC106: 232.9 | AD106: 257.4 | AE106: 317.8 | AF106: 350 | AG106: 384 | AH106: 403 | AJ106: N/A | AK106: N/A | AL106: N/A | AM106: N/A | AN106: N/A | AO106: N/A | AP106: N/A | AQ106: N/A | AR106: 8.5 | AS106: 6 | AT106: 4.3 | AU106: 3.5 | AV106: 3 | AW106: 2.6 | AY106: Nitrosource Main + 5 Subs6
B107: Nitrosource Main + 5 Subs | C107: 7 | D107: Nitrosource Main + 5 Subs7 | M107: 36 | N107: 56.4 | O107: 97.2 | P107: 132 | Q107: 168 | R107: 204 | T107: Nitrosource Main + 5 Subs7 | AC107: 306 | AD107: 338.4 | AE107: 418 | AF107: 462 | AG107: 504 | AH107: 530.4 | AJ107: N/A | AK107: N/A | AL107: N/A | AM107: N/A | AN107: N/A | AO107: N/A | AP107: N/A | AQ107: N/A | AR107: 8.5 | AS107: 6 | AT107: 4.3 | AU107: 3.5 | AV107: 3 | AW107: 2.6 | AY107: Nitrosource Main + 5 Subs7
B108: Nitrosource Main + 5 Subs | C108: 8 | D108: Nitrosource Main + 5 Subs8 | M108: 43.2 | N108: 67.7 | O108: 117 | P108: 158 | Q108: 202 | R108: 245 | T108: Nitrosource Main + 5 Subs8 | AC108: 367.2 | AD108: 406.2 | AE108: 503.1 | AF108: 553 | AG108: 606 | AH108: 637 | AJ108: N/A | AK108: N/A | AL108: N/A | AM108: N/A | AN108: N/A | AO108: N/A | AP108: N/A | AQ108: N/A | AR108: 8.5 | AS108: 6 | AT108: 4.3 | AU108: 3.5 | AV108: 3 | AW108: 2.6 | AY108: Nitrosource Main + 5 Subs8
B109: Nitrosource Main + 5 Subs | C109: 9 | D109: Nitrosource Main + 5 Subs9 | M109: 50.4 | N109: 79 | O109: 136 | P109: 185 | Q109: 235 | R109: 286 | T109: Nitrosource Main + 5 Subs9 | AC109: 428.4 | AD109: 474 | AE109: 584.8 | AF109: 647.5 | AG109: 705 | AH109: 743.6 | AJ109: N/A | AK109: N/A | AL109: N/A | AM109: N/A | AN109: N/A | AO109: N/A | AP109: N/A | AQ109: N/A | AR109: 8.5 | AS109: 6 | AT109: 4.3 | AU109: 3.5 | AV109: 3 | AW109: 2.6 | AY109: Nitrosource Main + 5 Subs9
B110: Nitrosource Main + 5 Subs | C110: 10 | D110: Nitrosource Main + 5 Subs10 | M110: 57.6 | N110: 90.2 | O110: 156 | P110: 211 | Q110: 269 | R110: 326 | T110: Nitrosource Main + 5 Subs10 | AC110: 489.6 | AD110: 541.2 | AE110: 670.8 | AF110: 738.5 | AG110: 807 | AH110: 847.6 | AJ110: N/A | AK110: N/A | AL110: N/A | AM110: N/A | AN110: N/A | AO110: N/A | AP110: N/A | AQ110: N/A | AR110: 8.5 | AS110: 6 | AT110: 4.3 | AU110: 3.5 | AV110: 3 | AW110: 2.6 | AY110: Nitrosource Main + 5 Subs10
B111: Nitrosource Main + 5 Subs | C111: 11 | D111: Nitrosource Main + 5 Subs11 | M111: 68.4 | N111: 107 | O111: 185 | P111: 251 | Q111: 319 | R111: 388 | T111: Nitrosource Main + 5 Subs11 | AC111: 581.4 | AD111: 642 | AE111: 795.5 | AF111: 878.5 | AG111: 957 | AH111: 1008.8 | AJ111: N/A | AK111: N/A | AL111: N/A | AM111: N/A | AN111: N/A | AO111: N/A | AP111: N/A | AQ111: N/A | AR111: 8.5 | AS111: 6 | AT111: 4.3 | AU111: 3.5 | AV111: 3 | AW111: 2.6 | AY111: Nitrosource Main + 5 Subs11
B112: Nitrosource Main + 5 Subs | C112: 12 | D112: Nitrosource Main + 5 Subs12 | M112: 75.6 | N112: 118 | O112: 204 | P112: 277 | Q112: 353 | R112: 428 | T112: Nitrosource Main + 5 Subs12 | AC112: 642.6 | AD112: 708 | AE112: 877.2 | AF112: 969.5 | AG112: 1059 | AH112: 1112.8 | AJ112: N/A | AK112: N/A | AL112: N/A | AM112: N/A | AN112: N/A | AO112: N/A | AP112: N/A | AQ112: N/A | AR112: 8.5 | AS112: 6 | AT112: 4.3 | AU112: 3.5 | AV112: 3 | AW112: 2.6 | AY112: Nitrosource Main + 5 Subs12
B113: Nitrosource Main + 5 Subs | C113: 13 | D113: Nitrosource Main + 5 Subs13 | M113: 86.4 | N113: 135 | O113: 233 | P113: 317 | Q113: 403 | R113: 490 | T113: Nitrosource Main + 5 Subs13 | AC113: 734.4 | AD113: 810 | AE113: 1001.9 | AF113: 1109.5 | AG113: 1209 | AH113: 1323 | AJ113: N/A | AK113: N/A | AL113: N/A | AM113: N/A | AN113: N/A | AO113: N/A | AP113: N/A | AQ113: N/A | AR113: 8.5 | AS113: 6 | AT113: 4.3 | AU113: 3.5 | AV113: 3 | AW113: 2.7 | AY113: Nitrosource Main + 5 Subs13
B114: N2-20P | C114: 5 | D114: N2-20P5 | E114: 2.1 | F114: 2.7 | G114: 4.4 | H114: 5.2 | I114: 6.3 | J114: 7.2 | K114: 8.1 | L114: 11.2 | M114: 11.9 | N114: 14.3 | O114: 17 | P114: 21.5 | Q114: 22.2 | R114: 24.3 | T114: N2-20P5 | U114: 19.5 | V114: 19.4 | W114: 22.4 | X114: 23.9 | Y114: 25.8 | Z114: 26.6 | AA114: 27.5 | AB114: 32.5 | AC114: 33.3 | AD114: 37.2 | AE114: 39.1 | AF114: 47.3 | AG114: 48.8 | AH114: 51 | AJ114: 9.3 | AK114: 7.2 | AL114: 5.1 | AM114: 4.6 | AN114: 4.1 | AO114: 3.7 | AP114: 3.4 | AQ114: 2.9 | AR114: 2.8 | AS114: 2.6 | AT114: 2.3 | AU114: 2.2 | AV114: 2.2 | AW114: 2.1 | AY114: N2-20P5 | AZ114: 4.2 | BA114: 4.2 | BB114: 4.2 | BC114: 4.2 | BD114: 4.1 | BE114: 4.1 | BF114: 4.1 | BG114: 4.1 | BH114: 4.1 | BI114: 4 | BJ114: 3.9 | BK114: 3.8 | BL114: 3.7 | BM114: 3.7
B115: N2-25P | C115: 5 | D115: N2-25P5 | E115: 3.1 | F115: 4 | G115: 6.5 | H115: 7.8 | I115: 9.5 | J115: 10.8 | K115: 12.1 | L115: 16.8 | M115: 17.8 | N115: 21.4 | O115: 25.4 | P115: 32.2 | Q115: 33.4 | R115: 36.4 | T115: N2-25P5 | U115: 28.8 | V115: 28.8 | W115: 33.2 | X115: 35.9 | Y115: 39 | Z115: 40 | AA115: 41.1 | AB115: 48.7 | AC115: 49.8 | AD115: 55.6 | AE115: 58.4 | AF115: 70.8 | AG115: 73.5 | AH115: 76.4 | AJ115: 9.3 | AK115: 7.2 | AL115: 5.1 | AM115: 4.6 | AN115: 4.1 | AO115: 3.7 | AP115: 3.4 | AQ115: 2.9 | AR115: 2.8 | AS115: 2.6 | AT115: 2.3 | AU115: 2.2 | AV115: 2.2 | AW115: 2.1 | AY115: N2-25P5 | AZ115: 4.2 | BA115: 4.2 | BB115: 4.2 | BC115: 4.2 | BD115: 4.1 | BE115: 4.1 | BF115: 4.1 | BG115: 4.1 | BH115: 4.1 | BI115: 4 | BJ115: 3.9 | BK115: 3.8 | BL115: 3.7 | BM115: 3.7
B116: N2-35P | C116: 5 | D116: N2-35P5 | E116: 4.1 | F116: 5.3 | G116: 8.7 | H116: 10.4 | I116: 12.6 | J116: 14.4 | K116: 16.1 | L116: 22.4 | M116: 23.7 | N116: 28.5 | O116: 33.9 | P116: 42.9 | Q116: 44.5 | R116: 48.5 | T116: N2-35P5 | U116: 38.1 | V116: 38.2 | W116: 44.4 | X116: 47.8 | Y116: 51.7 | Z116: 53.3 | AA116: 54.7 | AB116: 65 | AC116: 66.4 | AD116: 74.1 | AE116: 78 | AF116: 94.4 | AG116: 97.9 | AH116: 101.9 | AJ116: 9.3 | AK116: 7.2 | AL116: 5.1 | AM116: 4.6 | AN116: 4.1 | AO116: 3.7 | AP116: 3.4 | AQ116: 2.9 | AR116: 2.8 | AS116: 2.6 | AT116: 2.3 | AU116: 2.2 | AV116: 2.2 | AW116: 2.1 | AY116: N2-35P5 | AZ116: 4.2 | BA116: 4.2 | BB116: 4.2 | BC116: 4.2 | BD116: 4.1 | BE116: 4.1 | BF116: 4.1 | BG116: 4.1 | BH116: 4.1 | BI116: 4 | BJ116: 3.9 | BK116: 3.8 | BL116: 3.7 | BM116: 3.7
B117: N2-45P | C117: 5 | D117: N2-45P5 | E117: 5.2 | F117: 6.6 | G117: 10.9 | H117: 13 | I117: 15.8 | J117: 18 | K117: 20.2 | L117: 28 | M117: 29.6 | N117: 35.7 | O117: 42.4 | P117: 53.6 | Q117: 55.6 | R117: 60.7 | T117: N2-45P5 | U117: 48.4 | V117: 47.5 | W117: 55.6 | X117: 59.8 | Y117: 64.8 | Z117: 66.6 | AA117: 68.7 | AB117: 81.2 | AC117: 82.9 | AD117: 92.8 | AE117: 97.5 | AF117: 117.9 | AG117: 122.3 | AH117: 127.5 | AJ117: 9.3 | AK117: 7.2 | AL117: 5.1 | AM117: 4.6 | AN117: 4.1 | AO117: 3.7 | AP117: 3.4 | AQ117: 2.9 | AR117: 2.8 | AS117: 2.6 | AT117: 2.3 | AU117: 2.2 | AV117: 2.2 | AW117: 2.1 | AY117: N2-45P5 | AZ117: 4.2 | BA117: 4.2 | BB117: 4.2 | BC117: 4.2 | BD117: 4.1 | BE117: 4.1 | BF117: 4.1 | BG117: 4.1 | BH117: 4.1 | BI117: 4 | BJ117: 3.9 | BK117: 3.8 | BL117: 3.7 | BM117: 3.7
B118: N2-55P | C118: 5 | D118: N2-55P5 | E118: 6.2 | F118: 8 | G118: 13.1 | H118: 15.6 | I118: 18.9 | J118: 21.6 | K118: 24.2 | L118: 33.6 | M118: 35.6 | N118: 42.8 | O118: 50.9 | P118: 64.4 | Q118: 66.7 | R118: 72.8 | T118: N2-55P5 | U118: 57.7 | V118: 57.6 | W118: 66.8 | X118: 71.8 | Y118: 77.5 | Z118: 79.9 | AA118: 82.3 | AB118: 97.4 | AC118: 99.7 | AD118: 111.3 | AE118: 117.1 | AF118: 141.7 | AG118: 146.7 | AH118: 152.9 | AJ118: 9.3 | AK118: 7.2 | AL118: 5.1 | AM118: 4.6 | AN118: 4.1 | AO118: 3.7 | AP118: 3.4 | AQ118: 2.9 | AR118: 2.8 | AS118: 2.6 | AT118: 2.3 | AU118: 2.2 | AV118: 2.2 | AW118: 2.1 | AY118: N2-55P5 | AZ118: 4.2 | BA118: 4.2 | BB118: 4.2 | BC118: 4.2 | BD118: 4.1 | BE118: 4.1 | BF118: 4.1 | BG118: 4.1 | BH118: 4.1 | BI118: 4 | BJ118: 3.9 | BK118: 3.8 | BL118: 3.7 | BM118: 3.7
B119: N2-60P | C119: 5 | D119: N2-60P5 | E119: 6.9 | F119: 8.8 | G119: 14.5 | H119: 17.3 | I119: 21 | J119: 24 | K119: 26.8 | L119: 37.2 | M119: 39.4 | N119: 47.5 | O119: 56.4 | P119: 71.3 | Q119: 74 | R119: 80.7 | T119: N2-60P5 | U119: 67.6 | V119: 66.9 | W119: 76.9 | X119: 84.8 | Y119: 90.3 | Z119: 93.6 | AA119: 93.8 | AB119: 111.6 | AC119: 114.3 | AD119: 128.3 | AE119: 141 | AF119: 164 | AG119: 170.2 | AH119: 177.5 | AJ119: 9.8 | AK119: 7.6 | AL119: 5.3 | AM119: 4.9 | AN119: 4.3 | AO119: 3.9 | AP119: 3.5 | AQ119: 3 | AR119: 2.9 | AS119: 2.7 | AT119: 2.5 | AU119: 2.3 | AV119: 2.3 | AW119: 2.2 | AY119: N2-60P5 | AZ119: 4.2 | BA119: 4.2 | BB119: 4.2 | BC119: 4.2 | BD119: 4.1 | BE119: 4.1 | BF119: 4.1 | BG119: 4.1 | BH119: 4.1 | BI119: 4 | BJ119: 3.9 | BK119: 3.8 | BL119: 3.7 | BM119: 3.7
B120: N2-65P | C120: 5 | D120: N2-65P5 | E120: 7.8 | F120: 10.1 | G120: 16.5 | H120: 19.8 | I120: 24 | J120: 27.4 | K120: 30.6 | L120: 42.5 | M120: 45.1 | N120: 54.2 | O120: 64.4 | P120: 81.5 | Q120: 84.5 | R120: 92.2 | T120: N2-65P5 | U120: 76.4 | V120: 76.8 | W120: 87.5 | X120: 97 | Y120: 103.2 | Z120: 106.9 | AA120: 107.1 | AB120: 127.5 | AC120: 130.8 | AD120: 146.3 | AE120: 161 | AF120: 187.5 | AG120: 194.4 | AH120: 202.8 | AJ120: 9.8 | AK120: 7.6 | AL120: 5.3 | AM120: 4.9 | AN120: 4.3 | AO120: 3.9 | AP120: 3.5 | AQ120: 3 | AR120: 2.9 | AS120: 2.7 | AT120: 2.5 | AU120: 2.3 | AV120: 2.3 | AW120: 2.2 | AY120: N2-65P5 | AZ120: 4.2 | BA120: 4.2 | BB120: 4.2 | BC120: 4.2 | BD120: 4.1 | BE120: 4.1 | BF120: 4.1 | BG120: 4.1 | BH120: 4.1 | BI120: 4 | BJ120: 3.9 | BK120: 3.8 | BL120: 3.7 | BM120: 3.7
B121: N2-75P | C121: 5 | D121: N2-75P5 | E121: 8.5 | F121: 11 | G121: 18 | H121: 21.5 | I121: 26.1 | J121: 29.9 | K121: 33.4 | L121: 46.3 | M121: 49.1 | N121: 59.1 | O121: 70.2 | P121: 88.8 | Q121: 92.1 | R121: 100.5 | T121: N2-75P5 | U121: 85.9 | V121: 85.8 | W121: 99 | X121: 107.5 | Y121: 114.8 | Z121: 119.6 | AA121: 123.6 | AB121: 143.5 | AC121: 147.3 | AD121: 165.5 | AE121: 175.5 | AF121: 213.1 | AG121: 221 | AH121: 231.2 | AJ121: 10.1 | AK121: 7.8 | AL121: 5.5 | AM121: 5 | AN121: 4.4 | AO121: 4 | AP121: 3.7 | AQ121: 3.1 | AR121: 3 | AS121: 2.8 | AT121: 2.5 | AU121: 2.4 | AV121: 2.4 | AW121: 2.3 | AY121: N2-75P5 | AZ121: 4.2 | BA121: 4.2 | BB121: 4.2 | BC121: 4.2 | BD121: 4.1 | BE121: 4.1 | BF121: 4.1 | BG121: 4.1 | BH121: 4.1 | BI121: 4 | BJ121: 3.9 | BK121: 3.8 | BL121: 3.7 | BM121: 3.7
B122: N2-80P | C122: 5 | D122: N2-80P5 | E122: 9.5 | F122: 12.2 | G122: 20 | H122: 23.9 | I122: 29 | J122: 33.2 | K122: 37.1 | L122: 51.5 | M122: 54.6 | N122: 65.6 | O122: 78 | P122: 98.7 | Q122: 102.3 | R122: 111.6 | T122: N2-80P5 | U122: 96 | V122: 95.2 | W122: 110 | X122: 119.5 | Y122: 127.6 | Z122: 132.8 | AA122: 137.3 | AB122: 159.7 | AC122: 163.8 | AD122: 183.7 | AE122: 195 | AF122: 236.9 | AG122: 245.5 | AH122: 256.7 | AJ122: 10.1 | AK122: 7.8 | AL122: 5.5 | AM122: 5 | AN122: 4.4 | AO122: 4 | AP122: 3.7 | AQ122: 3.1 | AR122: 3 | AS122: 2.8 | AT122: 2.5 | AU122: 2.4 | AV122: 2.4 | AW122: 2.3 | AY122: N2-80P5 | AZ122: 4.2 | BA122: 4.2 | BB122: 4.2 | BC122: 4.2 | BD122: 4.1 | BE122: 4.1 | BF122: 4.1 | BG122: 4.1 | BH122: 4.1 | BI122: 4 | BJ122: 3.9 | BK122: 3.8 | BL122: 3.7 | BM122: 3.7
B123: N2-20P | C123: 6 | D123: N2-20P6 | E123: 2.8 | F123: 3.6 | G123: 5.6 | H123: 6.6 | I123: 8.1 | J123: 9.2 | K123: 10.3 | L123: 13.9 | M123: 14.7 | N123: 17.7 | O123: 21 | P123: 25.6 | Q123: 26.6 | R123: 29 | T123: N2-20P6 | U123: 26 | V123: 25.9 | W123: 28.6 | X123: 30.4 | Y123: 33.2 | Z123: 34 | AA123: 35 | AB123: 40.3 | AC123: 41.2 | AD123: 46 | AE123: 48.3 | AF123: 56.3 | AG123: 58.5 | AH123: 60.9 | AJ123: 9.3 | AK123: 7.2 | AL123: 5.1 | AM123: 4.6 | AN123: 4.1 | AO123: 3.7 | AP123: 3.4 | AQ123: 2.9 | AR123: 2.8 | AS123: 2.6 | AT123: 2.3 | AU123: 2.2 | AV123: 2.2 | AW123: 2.1 | AY123: N2-20P6 | AZ123: 5.1 | BA123: 5.1 | BB123: 5.1 | BC123: 5.1 | BD123: 5 | BE123: 5 | BF123: 5 | BG123: 5 | BH123: 4.9 | BI123: 4.8 | BJ123: 4.8 | BK123: 4.7 | BL123: 4.6 | BM123: 4.6
B124: N2-25P | C124: 6 | D124: N2-25P6 | E124: 4.1 | F124: 5.3 | G124: 8.3 | H124: 10 | I124: 12.1 | J124: 13.8 | K124: 15.4 | L124: 20.8 | M124: 22 | N124: 26.5 | O124: 31.5 | P124: 38.4 | Q124: 39.9 | R124: 43.5 | T124: N2-25P6 | U124: 38.1 | V124: 38.2 | W124: 42.3 | X124: 46 | Y124: 49.6 | Z124: 51.1 | AA124: 52.4 | AB124: 60.3 | AC124: 61.6 | AD124: 68.9 | AE124: 72.5 | AF124: 84.5 | AG124: 87.8 | AH124: 91.4 | AJ124: 9.3 | AK124: 7.2 | AL124: 5.1 | AM124: 4.6 | AN124: 4.1 | AO124: 3.7 | AP124: 3.4 | AQ124: 2.9 | AR124: 2.8 | AS124: 2.6 | AT124: 2.3 | AU124: 2.2 | AV124: 2.2 | AW124: 2.1 | AY124: N2-25P6 | AZ124: 5.1 | BA124: 5.1 | BB124: 5.1 | BC124: 5.1 | BD124: 5 | BE124: 5 | BF124: 5 | BG124: 5 | BH124: 4.9 | BI124: 4.8 | BJ124: 4.8 | BK124: 4.7 | BL124: 4.6 | BM124: 4.6
B125: N2-35P | C125: 6 | D125: N2-35P6 | E125: 5.5 | F125: 7.1 | G125: 11.1 | H125: 13.3 | I125: 16.1 | J125: 18.4 | K125: 20.6 | L125: 27.7 | M125: 29.4 | N125: 35.4 | O125: 42 | P125: 51.3 | Q125: 53.1 | R125: 58 | T125: N2-35P6 | U125: 51.2 | V125: 51.1 | W125: 56.6 | X125: 61.2 | Y125: 66 | Z125: 68.1 | AA125: 70 | AB125: 80.3 | AC125: 82.3 | AD125: 92 | AE125: 96.6 | AF125: 112.9 | AG125: 116.8 | AH125: 121.8 | AJ125: 9.3 | AK125: 7.2 | AL125: 5.1 | AM125: 4.6 | AN125: 4.1 | AO125: 3.7 | AP125: 3.4 | AQ125: 2.9 | AR125: 2.8 | AS125: 2.6 | AT125: 2.3 | AU125: 2.2 | AV125: 2.2 | AW125: 2.1 | AY125: N2-35P6 | AZ125: 5.1 | BA125: 5.1 | BB125: 5.1 | BC125: 5.1 | BD125: 5 | BE125: 5 | BF125: 5 | BG125: 5 | BH125: 4.9 | BI125: 4.8 | BJ125: 4.8 | BK125: 4.7 | BL125: 4.6 | BM125: 4.6
B126: N2-45P | C126: 6 | D126: N2-45P6 | E126: 6.9 | F126: 8.9 | G126: 13.9 | H126: 16.6 | I126: 20.1 | J126: 23 | K126: 25.7 | L126: 34.7 | M126: 36.7 | N126: 44.2 | O126: 52.5 | P126: 64.1 | Q126: 66.4 | R126: 72.5 | T126: N2-45P6 | U126: 64.2 | V126: 64.1 | W126: 70.9 | X126: 76.4 | Y126: 82.4 | Z126: 85.1 | AA126: 87.4 | AB126: 100.6 | AC126: 102.8 | AD126: 114.9 | AE126: 120.8 | AF126: 141 | AG126: 146.1 | AH126: 152.3 | AJ126: 9.3 | AK126: 7.2 | AL126: 5.1 | AM126: 4.6 | AN126: 4.1 | AO126: 3.7 | AP126: 3.4 | AQ126: 2.9 | AR126: 2.8 | AS126: 2.6 | AT126: 2.3 | AU126: 2.2 | AV126: 2.2 | AW126: 2.1 | AY126: N2-45P6 | AZ126: 5.1 | BA126: 5.1 | BB126: 5.1 | BC126: 5.1 | BD126: 5 | BE126: 5 | BF126: 5 | BG126: 5 | BH126: 4.9 | BI126: 4.8 | BJ126: 4.8 | BK126: 4.7 | BL126: 4.6 | BM126: 4.6
B127: N2-55P | C127: 6 | D127: N2-55P6 | E127: 8.3 | F127: 10.7 | G127: 16.7 | H127: 19.9 | I127: 24.2 | J127: 27.6 | K127: 30.9 | L127: 41.6 | M127: 44.1 | N127: 53 | O127: 63 | P127: 76.9 | Q127: 79.7 | R127: 86.9 | T127: N2-55P6 | U127: 77.2 | V127: 77 | W127: 85.2 | X127: 91.5 | Y127: 99.2 | Z127: 102.1 | AA127: 105.1 | AB127: 120.6 | AC127: 123.5 | AD127: 137.8 | AE127: 144.9 | AF127: 169.2 | AG127: 175.3 | AH127: 182.5 | AJ127: 9.3 | AK127: 7.2 | AL127: 5.1 | AM127: 4.6 | AN127: 4.1 | AO127: 3.7 | AP127: 3.4 | AQ127: 2.9 | AR127: 2.8 | AS127: 2.6 | AT127: 2.3 | AU127: 2.2 | AV127: 2.2 | AW127: 2.1 | AY127: N2-55P6 | AZ127: 5.1 | BA127: 5.1 | BB127: 5.1 | BC127: 5.1 | BD127: 5 | BE127: 5 | BF127: 5 | BG127: 5 | BH127: 4.9 | BI127: 4.8 | BJ127: 4.8 | BK127: 4.7 | BL127: 4.6 | BM127: 4.6
B128: N2-60P | C128: 6 | D128: N2-60P6 | E128: 9.2 | F128: 11.8 | G128: 18.5 | H128: 22.1 | I128: 26.8 | J128: 30.6 | K128: 34.2 | L128: 46.1 | M128: 48.8 | N128: 58.8 | O128: 69.8 | P128: 85.2 | Q128: 88.4 | R128: 96.4 | T128: N2-60P6 | U128: 90.2 | V128: 89.7 | W128: 98.1 | X128: 108.3 | Y128: 115.2 | Z128: 119.3 | AA128: 119.7 | AB128: 138.3 | AC128: 141.5 | AD128: 158.8 | AE128: 174.5 | AF128: 196 | AG128: 203.3 | AH128: 212.1 | AJ128: 9.8 | AK128: 7.6 | AL128: 5.3 | AM128: 4.9 | AN128: 4.3 | AO128: 3.9 | AP128: 3.5 | AQ128: 3 | AR128: 2.9 | AS128: 2.7 | AT128: 2.5 | AU128: 2.3 | AV128: 2.3 | AW128: 2.2 | AY128: N2-60P6 | AZ128: 5.1 | BA128: 5.1 | BB128: 5.1 | BC128: 5.1 | BD128: 5 | BE128: 5 | BF128: 5 | BG128: 5 | BH128: 4.9 | BI128: 4.8 | BJ128: 4.8 | BK128: 4.7 | BL128: 4.6 | BM128: 4.6
B129: N2-65P | C129: 6 | D129: N2-65P6 | E129: 10.5 | F129: 13.5 | G129: 21.1 | H129: 25.2 | I129: 30.6 | J129: 35 | K129: 39.1 | L129: 52.7 | M129: 55.8 | N129: 67.2 | O129: 79.8 | P129: 97.4 | Q129: 101 | R129: 110.1 | T129: N2-65P6 | U129: 102.9 | V129: 102.6 | W129: 111.8 | X129: 123.5 | Y129: 131.6 | Z129: 136.5 | AA129: 136.9 | AB129: 158.1 | AC129: 161.8 | AD129: 181.4 | AE129: 199.5 | AF129: 224 | AG129: 232.3 | AH129: 242.2 | AJ129: 9.8 | AK129: 7.6 | AL129: 5.3 | AM129: 4.9 | AN129: 4.3 | AO129: 3.9 | AP129: 3.5 | AQ129: 3 | AR129: 2.9 | AS129: 2.7 | AT129: 2.5 | AU129: 2.3 | AV129: 2.3 | AW129: 2.2 | AY129: N2-65P6 | AZ129: 5.1 | BA129: 5.1 | BB129: 5.1 | BC129: 5.1 | BD129: 5 | BE129: 5 | BF129: 5 | BG129: 5 | BH129: 4.9 | BI129: 4.8 | BJ129: 4.8 | BK129: 4.7 | BL129: 4.6 | BM129: 4.6
B130: N2-75P | C130: 6 | D130: N2-75P6 | E130: 11.4 | F130: 14.7 | G130: 23 | H130: 27.5 | I130: 33.3 | J130: 38.1 | K130: 42.6 | L130: 57.4 | M130: 60.8 | N130: 73.2 | O130: 86.9 | P130: 106.1 | Q130: 110 | R130: 120 | T130: N2-75P6 | U130: 115.1 | V130: 114.7 | W130: 126.5 | X130: 137.5 | Y130: 146.5 | Z130: 152.4 | AA130: 157.6 | AB130: 177.9 | AC130: 182.4 | AD130: 205 | AE130: 217.3 | AF130: 254.6 | AG130: 264 | AH130: 276 | AJ130: 10.1 | AK130: 7.8 | AL130: 5.5 | AM130: 5 | AN130: 4.4 | AO130: 4 | AP130: 3.7 | AQ130: 3.1 | AR130: 3 | AS130: 2.8 | AT130: 2.5 | AU130: 2.4 | AV130: 2.4 | AW130: 2.3 | AY130: N2-75P6 | AZ130: 5.1 | BA130: 5.1 | BB130: 5.1 | BC130: 5.1 | BD130: 5 | BE130: 5 | BF130: 5 | BG130: 5 | BH130: 4.9 | BI130: 4.8 | BJ130: 4.8 | BK130: 4.7 | BL130: 4.6 | BM130: 4.6
B131: N2-80P | C131: 6 | D131: N2-80P6 | E131: 12.7 | F131: 16.4 | G131: 25.6 | H131: 30.5 | I131: 37 | J131: 42.4 | K131: 47.3 | L131: 63.8 | M131: 67.6 | N131: 81.3 | O131: 96.6 | P131: 117.9 | Q131: 122.2 | R131: 133.3 | T131: N2-80P6 | U131: 128.3 | V131: 127.9 | W131: 140.8 | X131: 152.5 | Y131: 162.8 | Z131: 169.6 | AA131: 175 | AB131: 197.8 | AC131: 202.8 | AD131: 227.6 | AE131: 241.5 | AF131: 283 | AG131: 293.3 | AH131: 306.6 | AJ131: 10.1 | AK131: 7.8 | AL131: 5.5 | AM131: 5 | AN131: 4.4 | AO131: 4 | AP131: 3.7 | AQ131: 3.1 | AR131: 3 | AS131: 2.8 | AT131: 2.5 | AU131: 2.4 | AV131: 2.4 | AW131: 2.3 | AY131: N2-80P6 | AZ131: 5.1 | BA131: 5.1 | BB131: 5.1 | BC131: 5.1 | BD131: 5 | BE131: 5 | BF131: 5 | BG131: 5 | BH131: 4.9 | BI131: 4.8 | BJ131: 4.8 | BK131: 4.7 | BL131: 4.6 | BM131: 4.6
B132: N2-20P | C132: 7 | D132: N2-20P7 | E132: 3.5 | F132: 4.5 | G132: 6.7 | H132: 8 | I132: 9.7 | J132: 11.1 | K132: 12.4 | L132: 16.7 | M132: 17.7 | N132: 21.3 | O132: 25.3 | P132: 29.8 | Q132: 30.9 | R132: 33.7 | T132: N2-20P7 | U132: 32.6 | V132: 32.4 | W132: 34.2 | X132: 36.8 | Y132: 39.8 | Z132: 41.1 | AA132: 42.2 | AB132: 48.4 | AC132: 49.6 | AD132: 55.4 | AE132: 58.2 | AF132: 65.6 | AG132: 68 | AH132: 70.8 | AJ132: 9.3 | AK132: 7.2 | AL132: 5.1 | AM132: 4.6 | AN132: 4.1 | AO132: 3.7 | AP132: 3.4 | AQ132: 2.9 | AR132: 2.8 | AS132: 2.6 | AT132: 2.3 | AU132: 2.2 | AV132: 2.2 | AW132: 2.1 | AY132: N2-20P7 | AZ132: 6 | BA132: 6 | BB132: 6 | BC132: 6 | BD132: 6 | BE132: 6 | BF132: 5.8 | BG132: 5.8 | BH132: 5.7 | BI132: 5.7 | BJ132: 5.6 | BK132: 5.5 | BL132: 5.4 | BM132: 5.4
B133: N2-25P | C133: 7 | D133: N2-25P7 | E133: 5.3 | F133: 6.8 | G133: 10.1 | H133: 12 | I133: 14.6 | J133: 16.7 | K133: 18.6 | L133: 25.1 | M133: 26.6 | N133: 32 | O133: 38 | P133: 44.7 | Q133: 46.4 | R133: 50.6 | T133: N2-25P7 | U133: 49.3 | V133: 49 | W133: 51.5 | X133: 55.2 | Y133: 59.9 | Z133: 61.8 | AA133: 63.2 | AB133: 72.8 | AC133: 74.5 | AD133: 83.2 | AE133: 87.4 | AF133: 98.3 | AG133: 102.1 | AH133: 106.3 | AJ133: 9.3 | AK133: 7.2 | AL133: 5.1 | AM133: 4.6 | AN133: 4.1 | AO133: 3.7 | AP133: 3.4 | AQ133: 2.9 | AR133: 2.8 | AS133: 2.6 | AT133: 2.3 | AU133: 2.2 | AV133: 2.2 | AW133: 2.1 | AY133: N2-25P7 | AZ133: 6 | BA133: 6 | BB133: 6 | BC133: 6 | BD133: 6 | BE133: 6 | BF133: 5.8 | BG133: 5.8 | BH133: 5.7 | BI133: 5.7 | BJ133: 5.6 | BK133: 5.5 | BL133: 5.4 | BM133: 5.4
B134: N2-35P | C134: 7 | D134: N2-35P7 | E134: 7 | F134: 9 | G134: 13.4 | H134: 16 | I134: 19.4 | J134: 22.2 | K134: 24.8 | L134: 33.4 | M134: 35.4 | N134: 42.6 | O134: 50.6 | P134: 59.6 | Q134: 61.8 | R134: 67.4 | T134: N2-35P7 | U134: 65.1 | V134: 64.8 | W134: 68.3 | X134: 73.6 | Y134: 79.5 | Z134: 82.1 | AA134: 84.3 | AB134: 96.9 | AC134: 99.1 | AD134: 110.8 | AE134: 116.4 | AF134: 131.1 | AG134: 136 | AH134: 141.5 | AJ134: 9.3 | AK134: 7.2 | AL134: 5.1 | AM134: 4.6 | AN134: 4.1 | AO134: 3.7 | AP134: 3.4 | AQ134: 2.9 | AR134: 2.8 | AS134: 2.6 | AT134: 2.3 | AU134: 2.2 | AV134: 2.2 | AW134: 2.1 | AY134: N2-35P7 | AZ134: 6 | BA134: 6 | BB134: 6 | BC134: 6 | BD134: 6 | BE134: 6 | BF134: 5.8 | BG134: 5.8 | BH134: 5.7 | BI134: 5.7 | BJ134: 5.6 | BK134: 5.5 | BL134: 5.4 | BM134: 5.4
B135: N2-45P | C135: 7 | D135: N2-45P7 | E135: 8.8 | F135: 11.3 | G135: 16.8 | H135: 20 | I135: 24.3 | J135: 27.8 | K135: 31 | L135: 41.8 | M135: 44.3 | N135: 53.3 | O135: 63.3 | P135: 74.5 | Q135: 77.3 | R135: 84.3 | T135: N2-45P7 | U135: 81.8 | V135: 81.4 | W135: 85.7 | X135: 92 | Y135: 99.6 | Z135: 102.9 | AA135: 105.4 | AB135: 121.2 | AC135: 124 | AD135: 138.6 | AE135: 145.6 | AF135: 163.9 | AG135: 170.1 | AH135: 177 | AJ135: 9.3 | AK135: 7.2 | AL135: 5.1 | AM135: 4.6 | AN135: 4.1 | AO135: 3.7 | AP135: 3.4 | AQ135: 2.9 | AR135: 2.8 | AS135: 2.6 | AT135: 2.3 | AU135: 2.2 | AV135: 2.2 | AW135: 2.1 | AY135: N2-45P7 | AZ135: 6 | BA135: 6 | BB135: 6 | BC135: 6 | BD135: 6 | BE135: 6 | BF135: 5.8 | BG135: 5.8 | BH135: 5.7 | BI135: 5.7 | BJ135: 5.6 | BK135: 5.5 | BL135: 5.4 | BM135: 5.4
B136: N2-55P | C136: 7 | D136: N2-55P7 | E136: 10.5 | F136: 13.5 | G136: 20.1 | H136: 24 | I136: 29.1 | J136: 33.3 | K136: 37.2 | L136: 50.1 | M136: 53.1 | N136: 63.9 | O136: 75.9 | P136: 89.4 | Q136: 92.7 | R136: 101.1 | T136: N2-55P7 | U136: 97.7 | V136: 97.2 | W136: 102.5 | X136: 110.4 | Y136: 119.3 | Z136: 123.2 | AA136: 126.5 | AB136: 145.3 | AC136: 148.7 | AD136: 166.1 | AE136: 174.6 | AF136: 196.7 | AG136: 203.9 | AH136: 212.3 | AJ136: 9.3 | AK136: 7.2 | AL136: 5.1 | AM136: 4.6 | AN136: 4.1 | AO136: 3.7 | AP136: 3.4 | AQ136: 2.9 | AR136: 2.8 | AS136: 2.6 | AT136: 2.3 | AU136: 2.2 | AV136: 2.2 | AW136: 2.1 | AY136: N2-55P7 | AZ136: 6 | BA136: 6 | BB136: 6 | BC136: 6 | BD136: 6 | BE136: 6 | BF136: 5.8 | BG136: 5.8 | BH136: 5.7 | BI136: 5.7 | BJ136: 5.6 | BK136: 5.5 | BL136: 5.4 | BM136: 5.4
B137: N2-60P | C137: 7 | D137: N2-60P7 | E137: 11.6 | F137: 15 | G137: 22.3 | H137: 26.6 | I137: 32.3 | J137: 36.9 | K137: 41.2 | L137: 55.5 | M137: 58.9 | N137: 70.8 | O137: 84.1 | P137: 99.1 | Q137: 102.7 | R137: 112.1 | T137: N2-60P7 | U137: 113.7 | V137: 114 | W137: 118.2 | X137: 130.3 | Y137: 138.9 | Z137: 143.9 | AA137: 144.2 | AB137: 166.5 | AC137: 170.8 | AD137: 191.2 | AE137: 210.3 | AF137: 227.9 | AG137: 236.2 | AH137: 246.6 | AJ137: 9.8 | AK137: 7.6 | AL137: 5.3 | AM137: 4.9 | AN137: 4.3 | AO137: 3.9 | AP137: 3.5 | AQ137: 3 | AR137: 2.9 | AS137: 2.7 | AT137: 2.5 | AU137: 2.3 | AV137: 2.3 | AW137: 2.2 | AY137: N2-60P7 | AZ137: 6 | BA137: 6 | BB137: 6 | BC137: 6 | BD137: 6 | BE137: 6 | BF137: 5.8 | BG137: 5.8 | BH137: 5.7 | BI137: 5.7 | BJ137: 5.6 | BK137: 5.5 | BL137: 5.4 | BM137: 5.4
B138: N2-65P | C138: 7 | D138: N2-65P7 | E138: 13.3 | F138: 17.1 | G138: 25.5 | H138: 30.4 | I138: 36.9 | J138: 42.2 | K138: 47.1 | L138: 63.5 | M138: 67.3 | N138: 80.9 | O138: 96.1 | P138: 113.2 | Q138: 117.4 | R138: 128.1 | T138: N2-65P7 | U138: 130.3 | V138: 130 | W138: 135.2 | X138: 149 | Y138: 158.7 | Z138: 164.6 | AA138: 164.9 | AB138: 190.5 | AC138: 195.2 | AD138: 218.4 | AE138: 240.3 | AF138: 260.4 | AG138: 270 | AH138: 281.8 | AJ138: 9.8 | AK138: 7.6 | AL138: 5.3 | AM138: 4.9 | AN138: 4.3 | AO138: 3.9 | AP138: 3.5 | AQ138: 3 | AR138: 2.9 | AS138: 2.7 | AT138: 2.5 | AU138: 2.3 | AV138: 2.3 | AW138: 2.2 | AY138: N2-65P7 | AZ138: 6 | BA138: 6 | BB138: 6 | BC138: 6 | BD138: 6 | BE138: 6 | BF138: 5.8 | BG138: 5.8 | BH138: 5.7 | BI138: 5.7 | BJ138: 5.6 | BK138: 5.5 | BL138: 5.4 | BM138: 5.4
B139: N2-75P | C139: 7 | D139: N2-75P7 | E139: 14.5 | F139: 18.6 | G139: 27.7 | H139: 33.1 | I139: 40.2 | J139: 46 | K139: 51.3 | L139: 69.1 | M139: 73.3 | N139: 88.2 | O139: 104.7 | P139: 123.4 | Q139: 127.9 | R139: 139.5 | T139: N2-75P7 | U139: 146.5 | V139: 145.1 | W139: 152.4 | X139: 165.5 | Y139: 176.9 | Z139: 184 | AA139: 189.8 | AB139: 214.2 | AC139: 219.9 | AD139: 247 | AE139: 261.8 | AF139: 296.2 | AG139: 307 | AH139: 320.9 | AJ139: 10.1 | AK139: 7.8 | AL139: 5.5 | AM139: 5 | AN139: 4.4 | AO139: 4 | AP139: 3.7 | AQ139: 3.1 | AR139: 3 | AS139: 2.8 | AT139: 2.5 | AU139: 2.4 | AV139: 2.4 | AW139: 2.3 | AY139: N2-75P7 | AZ139: 6 | BA139: 6 | BB139: 6 | BC139: 6 | BD139: 6 | BE139: 6 | BF139: 5.8 | BG139: 5.8 | BH139: 5.7 | BI139: 5.7 | BJ139: 5.6 | BK139: 5.5 | BL139: 5.4 | BM139: 5.4
B140: N2-80P | C140: 7 | D140: N2-80P7 | E140: 16.1 | F140: 20.7 | G140: 30.8 | H140: 36.8 | I140: 44.6 | J140: 51.1 | K140: 57 | L140: 76.8 | M140: 81.4 | N140: 98 | O140: 116.4 | P140: 137.1 | Q140: 142.1 | R140: 155 | T140: N2-80P7 | U140: 162.6 | V140: 161.5 | W140: 169.4 | X140: 184 | Y140: 196.2 | Z140: 204.4 | AA140: 210.9 | AB140: 238.1 | AC140: 244.2 | AD140: 274.4 | AE140: 291 | AF140: 329 | AG140: 341 | AH140: 356.5 | AJ140: 10.1 | AK140: 7.8 | AL140: 5.5 | AM140: 5 | AN140: 4.4 | AO140: 4 | AP140: 3.7 | AQ140: 3.1 | AR140: 3 | AS140: 2.8 | AT140: 2.5 | AU140: 2.4 | AV140: 2.4 | AW140: 2.3 | AY140: N2-80P7 | AZ140: 6 | BA140: 6 | BB140: 6 | BC140: 6 | BD140: 6 | BE140: 6 | BF140: 5.8 | BG140: 5.8 | BH140: 5.7 | BI140: 5.7 | BJ140: 5.6 | BK140: 5.5 | BL140: 5.4 | BM140: 5.4
B141: N2-20P | C141: 8 | D141: N2-20P8 | E141: 4 | F141: 5.2 | G141: 7.5 | H141: 9 | I141: 10.9 | J141: 12.4 | K141: 13.9 | L141: 18.5 | M141: 19.6 | N141: 23.2 | O141: 27.6 | P141: 32.5 | Q141: 33.7 | R141: 36.7 | T141: N2-20P8 | U141: 37.2 | V141: 37.4 | W141: 38.3 | X141: 41.4 | Y141: 44.7 | Z141: 45.9 | AA141: 47.3 | AB141: 53.7 | AC141: 54.9 | AD141: 60.3 | AE141: 63.5 | AF141: 71.5 | AG141: 74.1 | AH141: 77.1 | AJ141: 9.3 | AK141: 7.2 | AL141: 5.1 | AM141: 4.6 | AN141: 4.1 | AO141: 3.7 | AP141: 3.4 | AQ141: 2.9 | AR141: 2.8 | AS141: 2.6 | AT141: 2.3 | AU141: 2.2 | AV141: 2.2 | AW141: 2.1 | AY141: N2-20P8 | AZ141: 6.9 | BA141: 6.9 | BB141: 6.9 | BC141: 6.8 | BD141: 6.8 | BE141: 6.7 | BF141: 6.7 | BG141: 6.6 | BH141: 6.6 | BI141: 6.5 | BJ141: 6.4 | BK141: 6.3 | BL141: 6.2 | BM141: 6.2
B142: N2-25P | C142: 8 | D142: N2-25P8 | E142: 6 | F142: 7.8 | G142: 11.3 | H142: 13.4 | I142: 16.3 | J142: 18.6 | K142: 20.8 | L142: 27.8 | M142: 29.5 | N142: 34.8 | O142: 41.4 | P142: 48.7 | Q142: 50.5 | R142: 55.1 | T142: N2-25P8 | U142: 55.8 | V142: 56.2 | W142: 57.6 | X142: 61.6 | Y142: 66.8 | Z142: 68.8 | AA142: 70.7 | AB142: 80.6 | AC142: 82.6 | AD142: 90.5 | AE142: 95.2 | AF142: 107.1 | AG142: 111.1 | AH142: 115.7 | AJ142: 9.3 | AK142: 7.2 | AL142: 5.1 | AM142: 4.6 | AN142: 4.1 | AO142: 3.7 | AP142: 3.4 | AQ142: 2.9 | AR142: 2.8 | AS142: 2.6 | AT142: 2.3 | AU142: 2.2 | AV142: 2.2 | AW142: 2.1 | AY142: N2-25P8 | AZ142: 6.9 | BA142: 6.9 | BB142: 6.9 | BC142: 6.8 | BD142: 6.8 | BE142: 6.7 | BF142: 6.7 | BG142: 6.6 | BH142: 6.6 | BI142: 6.5 | BJ142: 6.4 | BK142: 6.3 | BL142: 6.2 | BM142: 6.2
B143: N2-35P | C143: 8 | D143: N2-35P8 | E143: 8.1 | F143: 10.4 | G143: 15 | H143: 17.9 | I143: 21.7 | J143: 24.9 | K143: 27.8 | L143: 37.1 | M143: 39.3 | N143: 46.4 | O143: 55.2 | P143: 65 | Q143: 67.4 | R143: 73.5 | T143: N2-35P8 | U143: 75.3 | V143: 74.9 | W143: 76.5 | X143: 82.3 | Y143: 89 | Z143: 92.1 | AA143: 94.5 | AB143: 107.6 | AC143: 110 | AD143: 120.6 | AE143: 127 | AF143: 143 | AG143: 148.3 | AH143: 154.4 | AJ143: 9.3 | AK143: 7.2 | AL143: 5.1 | AM143: 4.6 | AN143: 4.1 | AO143: 3.7 | AP143: 3.4 | AQ143: 2.9 | AR143: 2.8 | AS143: 2.6 | AT143: 2.3 | AU143: 2.2 | AV143: 2.2 | AW143: 2.1 | AY143: N2-35P8 | AZ143: 6.9 | BA143: 6.9 | BB143: 6.9 | BC143: 6.8 | BD143: 6.8 | BE143: 6.7 | BF143: 6.7 | BG143: 6.6 | BH143: 6.6 | BI143: 6.5 | BJ143: 6.4 | BK143: 6.3 | BL143: 6.2 | BM143: 6.2
B144: N2-45P | C144: 8 | D144: N2-45P8 | E144: 10.1 | F144: 12.9 | G144: 18.8 | H144: 22.4 | I144: 27.2 | J144: 31.1 | K144: 34.7 | L144: 46.3 | M144: 49.1 | N144: 58 | O144: 68.9 | P144: 81.2 | Q144: 84.2 | R144: 91.8 | T144: N2-45P8 | U144: 93.9 | V144: 92.9 | W144: 95.9 | X144: 103 | Y144: 111.5 | Z144: 115.1 | AA144: 118 | AB144: 134.3 | AC144: 137.5 | AD144: 150.8 | AE144: 158.5 | AF144: 178.6 | AG144: 185.2 | AH144: 192.8 | AJ144: 9.3 | AK144: 7.2 | AL144: 5.1 | AM144: 4.6 | AN144: 4.1 | AO144: 3.7 | AP144: 3.4 | AQ144: 2.9 | AR144: 2.8 | AS144: 2.6 | AT144: 2.3 | AU144: 2.2 | AV144: 2.2 | AW144: 2.1 | AY144: N2-45P8 | AZ144: 6.9 | BA144: 6.9 | BB144: 6.9 | BC144: 6.8 | BD144: 6.8 | BE144: 6.7 | BF144: 6.7 | BG144: 6.6 | BH144: 6.6 | BI144: 6.5 | BJ144: 6.4 | BK144: 6.3 | BL144: 6.2 | BM144: 6.2
B145: N2-55P | C145: 8 | D145: N2-55P8 | E145: 12.1 | F145: 15.5 | G145: 22.5 | H145: 26.9 | I145: 32.6 | J145: 37.3 | K145: 41.7 | L145: 55.6 | M145: 58.9 | N145: 69.7 | O145: 82.7 | P145: 97.4 | Q145: 101 | R145: 110.2 | T145: N2-55P8 | U145: 112.5 | V145: 111.6 | W145: 114.8 | X145: 123.7 | Y145: 133.7 | Z145: 138 | AA145: 141.8 | AB145: 161.2 | AC145: 164.9 | AD145: 181.2 | AE145: 190.2 | AF145: 214.3 | AG145: 222.2 | AH145: 231.4 | AJ145: 9.3 | AK145: 7.2 | AL145: 5.1 | AM145: 4.6 | AN145: 4.1 | AO145: 3.7 | AP145: 3.4 | AQ145: 2.9 | AR145: 2.8 | AS145: 2.6 | AT145: 2.3 | AU145: 2.2 | AV145: 2.2 | AW145: 2.1 | AY145: N2-55P8 | AZ145: 6.9 | BA145: 6.9 | BB145: 6.9 | BC145: 6.8 | BD145: 6.8 | BE145: 6.7 | BF145: 6.7 | BG145: 6.6 | BH145: 6.6 | BI145: 6.5 | BJ145: 6.4 | BK145: 6.3 | BL145: 6.2 | BM145: 6.2
B146: N2-60P | C146: 8 | D146: N2-60P8 | E146: 13.4 | F146: 17.2 | G146: 25 | H146: 29.8 | I146: 36.1 | J146: 41.3 | K146: 46.2 | L146: 61.6 | M146: 65.3 | N146: 77.2 | O146: 91.7 | P146: 108 | Q146: 112 | R146: 122.1 | T146: N2-60P8 | U146: 131.3 | V146: 130.7 | W146: 132.5 | X146: 146 | Y146: 155.2 | Z146: 161.1 | AA146: 161.7 | AB146: 184.8 | AC146: 189.4 | AD146: 208.4 | AE146: 229.3 | AF146: 248.4 | AG146: 257.6 | AH146: 268.6 | AJ146: 9.8 | AK146: 7.6 | AL146: 5.3 | AM146: 4.9 | AN146: 4.3 | AO146: 3.9 | AP146: 3.5 | AQ146: 3 | AR146: 2.9 | AS146: 2.7 | AT146: 2.5 | AU146: 2.3 | AV146: 2.3 | AW146: 2.2 | AY146: N2-60P8 | AZ146: 6.9 | BA146: 6.9 | BB146: 6.9 | BC146: 6.8 | BD146: 6.8 | BE146: 6.7 | BF146: 6.7 | BG146: 6.6 | BH146: 6.6 | BI146: 6.5 | BJ146: 6.4 | BK146: 6.3 | BL146: 6.2 | BM146: 6.2
B147: N2-65P | C147: 8 | D147: N2-65P8 | E147: 15.3 | F147: 19.7 | G147: 28.5 | H147: 34 | I147: 41.3 | J147: 47.2 | K147: 52.8 | L147: 70.4 | M147: 74.7 | N147: 88.2 | O147: 104.8 | P147: 123.4 | Q147: 128 | R147: 139.6 | T147: N2-65P8 | U147: 149.9 | V147: 149.7 | W147: 151.1 | X147: 166.6 | Y147: 177.6 | Z147: 184.1 | AA147: 184.8 | AB147: 211.2 | AC147: 216.6 | AD147: 238.1 | AE147: 262 | AF147: 283.8 | AG147: 294.4 | AH147: 307.1 | AJ147: 9.8 | AK147: 7.6 | AL147: 5.3 | AM147: 4.9 | AN147: 4.3 | AO147: 3.9 | AP147: 3.5 | AQ147: 3 | AR147: 2.9 | AS147: 2.7 | AT147: 2.5 | AU147: 2.3 | AV147: 2.3 | AW147: 2.2 | AY147: N2-65P8 | AZ147: 6.9 | BA147: 6.9 | BB147: 6.9 | BC147: 6.8 | BD147: 6.8 | BE147: 6.7 | BF147: 6.7 | BG147: 6.6 | BH147: 6.6 | BI147: 6.5 | BJ147: 6.4 | BK147: 6.3 | BL147: 6.2 | BM147: 6.2
B148: N2-75P | C148: 8 | D148: N2-75P8 | E148: 16.7 | F148: 21.4 | G148: 31.1 | H148: 37.1 | I148: 45 | J148: 51.5 | K148: 57.5 | L148: 76.7 | M148: 81.3 | N148: 96.1 | O148: 114.2 | P148: 134.5 | Q148: 139.4 | R148: 152.1 | T148: N2-75P8 | U148: 168.7 | V148: 166.9 | W148: 171.1 | X148: 185.5 | Y148: 198 | Z148: 206 | AA148: 212.8 | AB148: 237.8 | AC148: 243.9 | AD148: 269.1 | AE148: 285.5 | AF148: 322.8 | AG148: 334.6 | AH148: 349.8 | AJ148: 10.1 | AK148: 7.8 | AL148: 5.5 | AM148: 5 | AN148: 4.4 | AO148: 4 | AP148: 3.7 | AQ148: 3.1 | AR148: 3 | AS148: 2.8 | AT148: 2.5 | AU148: 2.4 | AV148: 2.4 | AW148: 2.3 | AY148: N2-75P8 | AZ148: 6.9 | BA148: 6.9 | BB148: 6.9 | BC148: 6.8 | BD148: 6.8 | BE148: 6.7 | BF148: 6.7 | BG148: 6.6 | BH148: 6.6 | BI148: 6.5 | BJ148: 6.4 | BK148: 6.3 | BL148: 6.2 | BM148: 6.2
